Workbook

Sheet Instructions
A1: While you still need to submit information into the online reporting site, this workbook is intended to be a resource to help you in organizing ESSER expenses. If you have any questions, feel free to contact SDE. This first tab will show you how to use this workbook, though do not feel obligated to use this as SDE will only accept information submitted through the online site
C4: You first will go to the "LEA Background" tab at the bottom of the screen:
D27: You'll then report on expenses in each of the next four tabs at the bottom of the screen:
D28: Physical Health and Safey | G28: Meeting Various Needs | J28: Mental Health | L28: Other
D30: In each of those you will fill out the template to match USED reporting guidelines. The amounts will be used to populate the "Summary" tab for validation checks
D32: At the bottom of each, you will see information about the total amount that needs to be accounted for, the amounts you've entered, and the difference (if applicable)
D41: All of these are auto filled, no need to manually edit them. They will reference the information you've entered in each template so you don't need to jump back-and-forth between the tabs to track how much you've entered
D44: Due to the large amount of formulas used in the workbook to populate the information, most cells will be locked for edits. The responses entered in cells highlighted in orange will be referenced for validation checks
G47: Example of cell you can edit
D48: The remaining five tabs are used to populate this workbook and do not need to be reviewed, edited, or require input. They will be locked for edits
D50: LEA Info | E50: Awarded | F50: Expended | G50: Prior | H50: Remaining
D52: If you want to fill this out for multiple sub grants, it is recommended you save this workbook under a different name (macro-enabled). You then have three options:
E54: 1. Download another blank workbook OR
E55: 2. Select the "Erase Entries" option in the Summary tab OR
E56: 3. Delete all previous entries
D58: If you are ever unsure of what you have left to report, check the Summary tab
D60: If you have entered everything correctly, you will see this note:
D61: No validation errors, you have entered all necessary information needed for this subgrant. Friendly reminder to work on any other sugbrant, if needed
M62: Link to reporting site (available December 4th, 2023)
M63: https://idahoessercollection.mtwgms.org/melody/
D64: If there are errors, or if additional information is needed, you will see this error:
D65: Please review the Reimbursed and/or Remaining Funds Summaries for needed information
D68: As this is an optional resource, if at any point it is giving you difficulty, feel free to try your own method of tracking/recording your ESSER expenses. But remember that SDE will only accept submissions through the reporting site

Sheet LEA Background
B1: Please enter your LEA State ID in cell C1: | D1: *Check the "LEA Info" tab if you need help finding your ID; will only be three digits
B2: Your LEA Name:
B3: =IFERROR(VLOOKUP($C$1,'LEA Info'!$A$2:$D$200,2,FALSE),"Please double check that you entered the correct ID number") -> Please double check that you entered the correct ID number
B6: Your LEA NCES Number:
B7: =IFERROR(VLOOKUP($C$1,'LEA Info'!$A$2:$D$200,4,FALSE),"Please double check that you entered the correct ID number") -> Please double check that you entered the correct ID number
B9: Pease verify the information shown is accurate before continuing. The exact Name of you LEA shown is based on GRA reports. As long as the state ID and NCES numbers are accurate, the financial information should be correct
D12: Select which grant you will work on:
B13: Click on cell D13 to show the arrow. Click on the arrow to show the list of subgrants
B15: As of June 30th, 2023
B16: =D13 -> 0
B17: Awarded | C17: Reimbursed in Current Reporting Period (July 1st, 2022 - June 30th, 2023) | D17: Remaining Balance
B18: =IFERROR(VLOOKUP($C$1,Awarded!$A$1:$J$195,L22+3,FALSE),0) -> 0 | C18: =IFERROR(VLOOKUP($C$1,Expended!$A$1:$K$196,L22+4,FALSE),0) -> 0 | D18: =IFERROR(VLOOKUP($C$1,Remaining!$A$1:$AE$195,L22+24,FALSE),0) -> 0
B21: Notes
B22: =IF(AND(C1>0,B18=0),"No Awarded Amount, no information needed. You may start working on another subgrant","") ->  | C22: =IF(B18=0,"",IF(C18=0,"No Prior Reimbursements to report","Please report on how these funds were used by filling out the next four tabs")) ->  | D22: =IF(AND(L22<3,D18>0),"No need to report on remaining CARES Funds",IF(D18>0,"Please report on planned usage of remaining funds in the Summary Tab","")) ->  | K22: Reference | L22: =VLOOKUP(D13,$K$23:$L$29,2,FALSE) -> 
K23: CARES Set Aside (LMS and SEL) | L23: 1
B24: =IF(B30=FALSE,IF(OR(C30=FALSE,D30=FALSE),"","No Information to Report for this Subgrant in this Reporting Period; Please begin working on another subgrant, if needed"),"") ->  | K24: CARES Flow Through | L24: 2
K25: CRRSA Set Aside | L25: 3
K26: CRRSA Flow Through | L26: 4
K27: ARP Set Aside | L27: 5
K28: ARP Flow Through | L28: 6
K29: ARP Learning Loss | L29: 7
B30: =IF(B18=0,TRUE,FALSE) -> TRUE | C30: =IF(B18=0,TRUE,IF(C18=0,TRUE,FALSE)) -> TRUE | D30: =IF(L22<3,TRUE,IF(D18=0,TRUE,FALSE)) -> 

Sheet Physical Health And Safety
A1: ='LEA Background'!B3 -> Please double check that you entered the correct ID number | D1: ='LEA Background'!B16 -> 0
A2: Expense Type | B2: a. Personnel Services - Salaries | C2: b. Personnel Services - Benefits | D2: c. Purchased Professional and Technical Services | E2: d. Purchased Property Services | F2: e. Other Purchased Services | G2: f. Supplies | H2: g. Property | I2: h. Debt Service and Miscellaneous | J2: i. Other Items | K2: Row Total
A3: a. Building and facilities upgrades and maintenance, including ventilation systems and new construction | K3: =SUM(B3:J3) -> 0
A4: b. Assistance with meals for students | K4: =SUM(B4:J4) -> 0
A5: c. Cleaning and/or sanitization supplies | K5: 0
A6: d. Temporary classroom space to support social distancing | K6: 0
A7: e. Temporary or additional transportation services to support social distancing to and from school | K7: 0
A8: f. Capacity-building to improve disaster preparedness and response efforts, including coordination with public health departments | K8: 0
A9: g. Other health protocols not listed above and aligned to guidance from the Centers for Disease Control and Prevention (CDC) | K9: 0
A10: Column Total | B10: =SUM(B3:B9) -> 0 | C10: =SUM(C3:C9) -> 0 | D10: 0 | E10: 0 | F10: 0 | G10: 0 | H10: 0 | I10: 0 | J10: 0 | K10: =SUM(B3:J9) -> 0
A12: If an expense doesn't fit one of the above descriptions, enter it into one of the other three tabs. The cells at the bottom of this sheet will track the all entries across all four tabs, including the amount left to report on
B15: Reimbursed Amount (Exact amount to report) | F15: ='LEA Background'!$C$18 -> 0
B16: Amounts Entered in all Tabs
B17: Physical Health and Safety | C17: Meeting Various Needs | D17: Mental Health | E17: Other | F17: Total Entered
B18: =K10 -> 0 | C18: ='Meeting Various Needs'!K14 -> 0 | D18: ='Mental Health'!K4 -> 0 | E18: =Other!K9 -> 0 | F18: =Summary!B$18 -> 0 | G18: Warnings:
G19: =IF(F$20<0,"Double check that you haven't overreported in one of the templates","NA") -> NA
D20: Amount remaining to report | F20: =F15-F18 -> 0
B22: a. Personnel Services - Salaries | C22: b. Personnel Services - Benefits | D22: c. Purchased Professional and Technical Services | E22: d. Purchased Property Services | F22: e. Other Purchased Services | G22: f. Supplies | H22: g. Property | I22: h. Debt Service and Miscellaneous | J22: i. Other Items
B23: =B10+'Meeting Various Needs'!B14+'Mental Health'!B3+Other!B9 -> 0 | C23: =C10+'Meeting Various Needs'!C14+'Mental Health'!C3+Other!C9 -> 0 | D23: =D10+'Meeting Various Needs'!D14+'Mental Health'!D3+Other!D9 -> 0 | E23: =E10+'Meeting Various Needs'!E14+'Mental Health'!E3+Other!E9 -> 0 | F23: =F10+'Meeting Various Needs'!F14+'Mental Health'!F3+Other!F9 -> 0 | G23: =G10+'Meeting Various Needs'!G14+'Mental Health'!G3+Other!G9 -> 0 | H23: =H10+'Meeting Various Needs'!H14+'Mental Health'!H3+Other!H9 -> 0 | I23: =I10+'Meeting Various Needs'!I14+'Mental Health'!I3+Other!I9 -> 0 | J23: =J10+'Meeting Various Needs'!J14+'Mental Health'!J3+Other!J9 -> 0

Sheet Meeting Various Needs
A1: ='LEA Background'!B3 -> Please double check that you entered the correct ID number | D1: ='Physical Health And Safety'!D1 -> 0
A2: Expense Type | B2: a. Personnel Services - Salaries | C2: b. Personnel Services - Benefits | D2: c. Purchased Professional and Technical Services | E2: d. Purchased Property Services | F2: e. Other Purchased Services | G2: f. Supplies | H2: g. Property | I2: h. Debt Service and Miscellaneous | J2: i. Other Items | K2: Row Total
A3: h.1 Summer Learning or Summer Enrichment | K3: =SUM(B3:J3) -> 0
A4: h.2 Afterschool Programs | K4: =SUM(B4:J4) -> 0
A5: h.3 Extended instructional time (school day, school week, or school year) | K5: 0
A6: i. Tutoring | K6: =SUM(B6:J6) -> 0
A7: j. Additional staffing and/or activities to identify and/or respond to unique student needs and/or provide targeted support for underserved student groups | K7: 0
A8: k. Universal screening, academic assessments, and intervention data systems, such as early warning systems and/or opportunities to learn data systems | K8: 0
A9: l. Improved coordination of services for students with multiple types of needs | K9: 0
A10: m. Early Childhood Programs | K10: 0
A11: n. Hardware and software | K11: 0
A12: o. Wi-Fi, broadband, or other connectivity | K12: 0
A13: p. Curriculum adoption and learning materials | K13: 0
B14: =SUM(B3:B13) -> 0 | C14: =SUM(C3:C13) -> 0 | D14: 0 | E14: 0 | F14: 0 | G14: 0 | H14: 0 | I14: 0 | J14: 0 | K14: =SUM(B3:J13) -> 0
A16: If an expense doesn't fit one of the above descriptions, enter it into one of the other three tabs. The cells at the bottom of this sheet will track the total amount you've entered and will show the amount remaining to report
B20: Reimbursed Amount (Exact amount to report) | F20: ='LEA Background'!$C$18 -> 0
B21: Amounts Entered in each Tab
B22: Physical Health and Safety | C22: Meeting Various Needs | D22: Mental Health | E22: Other | F22: Total Reported
B23: ='Physical Health And Safety'!K10 -> 0 | C23: =K14 -> 0 | D23: ='Mental Health'!K4 -> 0 | E23: =Other!K9 -> 0 | F23: =Summary!B$18 -> 0 | G23: Warnings:
G24: =IF(F$25<0,"Double check that you haven't overreported in one of the templates","NA") -> NA
D25: Amount remaining to report | F25: =F20-F23 -> 0
B27: a. Personnel Services - Salaries | C27: b. Personnel Services - Benefits | D27: c. Purchased Professional and Technical Services | E27: d. Purchased Property Services | F27: e. Other Purchased Services | G27: f. Supplies | H27: g. Property | I27: h. Debt Service and Miscellaneous | J27: i. Other Items
B28: ='Physical Health And Safety'!B23 -> 0 | C28: ='Physical Health And Safety'!C23 -> 0 | D28: ='Physical Health And Safety'!D23 -> 0 | E28: ='Physical Health And Safety'!E23 -> 0 | F28: ='Physical Health And Safety'!F23 -> 0 | G28: ='Physical Health And Safety'!G23 -> 0 | H28: ='Physical Health And Safety'!H23 -> 0 | I28: ='Physical Health And Safety'!I23 -> 0 | J28: ='Physical Health And Safety'!J23 -> 0

Sheet Mental Health
A1: ='LEA Background'!B3 -> Please double check that you entered the correct ID number | D1: ='Meeting Various Needs'!D1:G1 -> 0
A2: Expense Type | B2: a. Personnel Services - Salaries | C2: b. Personnel Services - Benefits | D2: c. Purchased Professional and Technical Services | E2: d. Purchased Property Services | F2: e. Other Purchased Services | G2: f. Supplies | H2: g. Property | I2: h. Debt Service and Miscellaneous | J2: i. Other Items | K2: Total
A3: s. Additional staffing and/or activities to assess and support social-emotional well-being, including mental health, for students, educators and/or families
A4: Total | K4: =SUM(B3:J3) -> 0
A6: If an expense doesn't fit one of the above descriptions, enter it into one of the other three tabs. The cells at the bottom of this sheet will track the total amount you've entered and will show the amount remaining to report
C9: Reimbursed Amount (Exact amount to report) | F9: ='LEA Background'!$C$18 -> 0
B10: Amounts Entered in all Tabs
B11: Physical Health and Safety | C11: Meeting Various Needs | D11: Mental Health | E11: Other | F11: Total Reported
B12: ='Physical Health And Safety'!K10 -> 0 | C12: ='Meeting Various Needs'!K14 -> 0 | D12: =K4 -> 0 | E12: =Other!K9 -> 0 | F12: =Summary!B18 -> 0 | G12: Warnings
G13: =IF(F$14<0,"Double check that you haven't overreported in one of the tabs","NA") -> NA
D14: Amount remaining to report | F14: =F9-F12 -> 0
B16: a. Personnel Services - Salaries | C16: b. Personnel Services - Benefits | D16: c. Purchased Professional and Technical Services | E16: d. Purchased Property Services | F16: e. Other Purchased Services | G16: f. Supplies | H16: g. Property | I16: h. Debt Service and Miscellaneous | J16: i. Other Items
B17: ='Meeting Various Needs'!B28 -> 0 | C17: ='Meeting Various Needs'!C28 -> 0 | D17: ='Meeting Various Needs'!D28 -> 0 | E17: ='Meeting Various Needs'!E28 -> 0 | F17: ='Meeting Various Needs'!F28 -> 0 | G17: ='Meeting Various Needs'!G28 -> 0 | H17: ='Meeting Various Needs'!H28 -> 0 | I17: ='Meeting Various Needs'!I28 -> 0 | J17: ='Meeting Various Needs'!J28 -> 0

Sheet Other
A1: ='LEA Background'!B3 -> Please double check that you entered the correct ID number | D1: ='Mental Health'!D1:G1 -> 0
A2: Expense Type | B2: a. Personnel Services - Salaries | C2: b. Personnel Services - Benefits | D2: c. Purchased Professional and Technical Services | E2: d. Purchased Property Services | F2: e. Other Purchased Services | G2: f. Supplies | H2: g. Property | I2: h. Debt Service and Miscellaneous | J2: i. Other Items | K2: Row Total
A3: t. Any activity not described above that is authorized by the McKinney-Vento Homeless Assistance Act | K3: =SUM(B3:J3) -> 0
A4: u. Any activity not described above that is authorized by the Elementary and Secondary Education Act of 1965 | K4: =SUM(B4:J4) -> 0
A5: v. Any activity not described above that is authorized by the Individuals with Disabilities Education Act | K5: 0
A6: w. Any activity not described above that is authorized by the Adult Education and Family Literacy Act | K6: 0
A7: w. Any activity not described above that is authorized by the Carl D. Perkins Career and Technical Education Act of 2006 | K7: 0
A8: y. Other activities not described above that are necessary to maintain the operation of and continuity of services in LEAs and continuing to employ existing staff of the LEA | K8: 0
A9: Column Total | B9: =SUM(B3:B8) -> 0 | C9: =SUM(C3:C8) -> 0 | D9: 0 | E9: 0 | F9: 0 | G9: 0 | H9: 0 | I9: 0 | J9: 0 | K9: =SUM(B3:J8) -> 0
A11: If an expense doesn't fit one of the above descriptions, enter it into one of the other three tabs. The cells at the bottom of this sheet will track the total amount you've entered and will show the amount remaining to report
C14: Reimbursed Amount (Exact amount to report) | F14: ='LEA Background'!$C$18 -> 0
B16: Physical Health and Safety | C16: Meeting Various Needs | D16: Mental Health | E16: Other | F16: Total Reported
B17: ='Physical Health And Safety'!B18 -> 0 | C17: ='Physical Health And Safety'!C18 -> 0 | D17: ='Physical Health And Safety'!D18 -> 0 | E17: ='Physical Health And Safety'!E18 -> 0 | F17: =Summary!B18 -> 0 | G17: Warnings
G18: =IF(F$19<0,"Double check that you haven't overreported in one of the templates","NA") -> NA
D19: Amount remaining to report | F19: =F14-F17 -> 0
B21: a. Personnel Services - Salaries | C21: b. Personnel Services - Benefits | D21: c. Purchased Professional and Technical Services | E21: d. Purchased Property Services | F21: e. Other Purchased Services | G21: f. Supplies | H21: g. Property | I21: h. Debt Service and Miscellaneous | J21: i. Other Items
B22: ='Physical Health And Safety'!B23 -> 0 | C22: ='Physical Health And Safety'!C23 -> 0 | D22: ='Physical Health And Safety'!D23 -> 0 | E22: ='Physical Health And Safety'!E23 -> 0 | F22: ='Physical Health And Safety'!F23 -> 0 | G22: ='Physical Health And Safety'!G23 -> 0 | H22: ='Physical Health And Safety'!H23 -> 0 | I22: ='Physical Health And Safety'!I23 -> 0 | J22: ='Physical Health And Safety'!J23 -> 0

Sheet Summary
A1: SUMMARY
A2: State ID | B2: ='LEA Background'!C1 -> 0
A3: LEA Name | B3: ='LEA Background'!B3 -> Please double check that you entered the correct ID number
A4: NCES # | B4: ='LEA Background'!B7 -> Please double check that you entered the correct ID number
C6: Subrant
A7: ='LEA Background'!B16 -> 0
A8: Reimbursed Summary: | D8: Remaining Funds Summary:
A9: Awarded: | B9: ='LEA Background'!B18 -> 0 | D9: Remaining to Report for Planned Usage: | E9: =IF(L23<3,0,'LEA Background'!D18) -> 
D10: If any amount is remaining, please report as a percentage where you plan to use the remaining funds
A11: Total Reimbursed: | B11: ='LEA Background'!C18 -> 0
A12: =IF(B11=0,"No expended funds to report","") -> No expended funds to report | D12: =IF(L23<3,"No need to report on Planned Usage of CARES Funds",IF(E9=0,"No remaining funds to report","")) -> 
A13: Total Reported | D13: Category: | E13: %
A14: Physical Health and Safety | B14: ='Physical Health And Safety'!K10 -> 0 | D14: Physical Health and Safety | F14: =IF(AND(E9=0,SUM(E14:E18)>0),"Please leave these entries blank; there is no need to report planned usage of remaining funds for this subgrant","") -> 
A15: Meeting Various Needs | B15: ='Meeting Various Needs'!K14 -> 0 | D15: Meeting Various Needs
A16: Mental Health | B16: ='Mental Health'!K4 -> 0 | D16: Mental Health
A17: Other | B17: =Other!K9 -> 0 | D17: Other
A18: Total Reported | B18: =SUM(B14:B17) -> 0 | D18: Not Yet planned
A19: Difference | B19: =B18-B11 -> 0 | D19: Total | E19: =IF(E9>0,SUM(E14:E18),"") -> 
A20: =IF(B11=B18,"Amount reported equals amount reimbursed in the reporting period. Thank you","Please edit your entries until the amount reported equals the total amount expended. You will need to review the tabs and make edits until this is corrected") -> Amount reported equals amount reimbursed in the reporting period. Thank you | D20: =IF(OR(L23=1,L23=2,E9=0),"No Data to Report; please leave responses to this section blank","") -> 
D21: =IF(AND(K22=FALSE,E9>0),IF(E19<>100%,"Please report 100% of planned usage of remaining funds","100% of remaining funds has been reported. Thank you"),"") -> 
K22: =IF(L23<3,TRUE,FALSE) -> 
K23: Reference | L23: ='LEA Background'!L22 -> 
A24: =IF(AND(L34=TRUE,L35=TRUE,L36=TRUE),"No validation errors, you have entered all necessary information needed for this subgrant. Friendly reminder to work on any other sugbrant, if needed","") ->  | E24: If the reporting site is ready (anticipated date is December 4th, 2023), you may enter your data
K25: CARES Set Aside (LMS and SEL) | L25: 1
A26: =IF(OR(L34=FALSE,L35=FALSE,L36=FALSE),"Please review the Reimbursed and/or Remaining Funds Summaries for needed information","") -> 
A27: The remaining Tabs are for information only, no need to review | E27: https://idahoessercollection.mtwgms.org/melody/ | K27: CARES Flow Through | L27: 2
K28: CRRSA Set Aside | L28: 3
A29: We recommend you saving this template, macro enabled, and changing the name (i.e. "CARES Set Aside Report") if you plan to work on other subgrants. You can select the "Erase Entries" button below to start over. Clicking this will automatically delete all of your entries | K29: CRRSA Flow Through | L29: 4
K30: ARP Set Aside | L30: 5
A31: WARNING: CLICKING THIS WILL ERASE YOUR WORK, TAKING YOU BACK TO THE LEA BACKGROUND TAB. ONLY SELECT IF YOU WANT TO BEGIN WORKING ON A DIFFERENT SUBGRANT. MAKE SURE TO SAVE THIS FILE BEFORE DELETING YOUR ENTRIES. YOU WILL NOT BE ABLE TO UNDO THIS ACTION | K31: ARP Flow Through | L31: 6
K32: ARP Learning Loss | L32: 7
K34: expend check | L34: =IF(AND(B11=0,B19=0),TRUE,IF(B19=0,TRUE,FALSE)) -> TRUE
K35: remain check | L35: =IF(K22=TRUE,TRUE,IF(OR(E9=0,E19=100%),TRUE,FALSE)) -> 
K36: unnecessary check | L36: =IF(SUM(E14:E18)>0,IF(E9>0,TRUE,FALSE),TRUE) -> TRUE

Sheet LEA Info
A1: ID | B1: Name | C1: DUNS | D1: NCES | E1: vendor
A2: 58 | B2: ABERDEEN DISTRICT | C2: 801867284 | D2: 1600030 | E2: 826000617
A3: 495 | B3: ALTURAS INTERNATIONAL ACADEMY, INC. | C3: 71549639 | D3: 1600175 | E3: 473126055
A4: 560 | B4: ALTURAS PREPARATORY ACADEMY, INC | C4: 36487482 | D4: 1600199 | E4: 853948402
A5: 381 | B5: AMERICAN FALLS JOINT DISTRICT | C5: 144756442 | D5: 1600060 | E5: 826000865
A6: 482 | B6: AMERICAN HERITAGE CHARTER SCHOOL, INC. | C6: 79082049 | D6: 1600162 | E6: 453753476
A7: 476 | B7: ANOTHER CHOICE VIRTUAL CHARTER SCHOOL, INC. | C7: 966325438 | D7: 1600155 | E7: 263533892
A8: 492 | B8: ANSER OF IDAHO, INC. | C8: 832063890 | D8: 1600195 | E8: 841390547
A9: 383 | B9: ARBON ELEMENTARY DISTRICT | C9: 189339153 | D9: 1600090 | E9: 826003195
A10: 394 | B10: AVERY SCHOOL DISTRICT | C10: 100599109 | D10: 1600150 | E10: 826001332
A11: 72 | B11: BASIN SCHOOL DISTRICT | C11: 100014778 | D11: 1600180 | E11: 826000632
A12: 33 | B12: BEAR LAKE COUNTY DISTRICT | C12: 183893577 | D12: 1600240 | E12: 826001400
A13: 477 | B13: BLACKFOOT CHARTER COMMUNITY LEARNING CENTER, INC. | C13: 142291967 | D13: 1600153 | E13: 820524579
A14: 55 | B14: BLACKFOOT DISTRICT | C14: 607630415 | D14: 1600270 | E14: 826000616
A15: 61 | B15: BLAINE COUNTY DISTRICT | C15: 794328906 | D15: 1600300 | E15: 826001220
A16: 234 | B16: BLISS JOINT DISTRICT | C16: 40197688 | D16: 1600330 | E16: 826000767
A17: 1 | B17: Boise Independent District | C17: 122740046 | D17: 1600360 | E17: 826000549
A18: 93 | B18: BONNEVILLE JOINT DISTRICT | C18: 879016822 | D18: 1600930 | E18: 826001206
A19: 101 | B19: BOUNDARY COUNTY DISTRICT | C19: 10206712 | D19: 1600420 | E19: 826000683
A20: 365 | B20: BRUNEAU-GRAND VIEW JOINT SCHOOL DISTRICT | C20: 29868007 | D20: 1600450 | E20: 826001219
A21: 412 | B21: BUHL JOINT DISTRICT | C21: 100014851 | D21: 1600480 | E21: 826000893
A22: 111 | B22: BUTTE COUNTY JOINT DISTRICT | C22: 29645454 | D22: 1600490 | E22: 826000685
A23: 132 | B23: CALDWELL DISTRICT | C23: 100014869 | D23: 1600510 | E23: 826000728
A24: 121 | B24: CAMAS COUNTY DISTRICT | C24: 100185412 | D24: 1600540 | E24: 826000686
A25: 432 | B25: CAMBRIDGE JOINT DISTRICT | C25: 112893883 | D25: 1600570 | E25: 826000921
A26: 555 | B26: CANYON-OWYHEE SCHOOL SERVICE AGENCY (COSSA) | C26: 29765393 | D26: 1600152 | E26: 820299347
A27: 566 | B27: CARDINAL ACADEMY INCORPORATED | C27: 108110500 | D27: 1600200 | E27: 861222191
A28: 422 | B28: CASCADE DISTRICT | C28: 100014885 | D28: 1600630 | E28: 826000907
A29: 151 | B29: CASSIA COUNTY JOINT DISTRICT | C29: 879016707 | D29: 1600660 | E29: 826000732
A30: 417 | B30: CASTLEFORD DISTRICT | C30: 181912668 | D30: 1600690 | E30: 826000891
A31: 181 | B31: CHALLIS JOINT DISTRICT | C31: 193218112 | D31: 1600720 | E31: 826000736
A32: 483 | B32: CHIEF TAHGEE ELEMENTARY ACADEMY, INC. | C32: 78351211 | D32: 1600163 | E32: 453150830
A33: 161 | B33: CLARK COUNTY DISTRICT | C33: 24714961 | D33: 1600750 | E33: 826000733
A34: 491 | B34: COEUR D'ALENE CHARTER ACADEMY, INC. | C34: 128705576 | D34: 1600173 | E34: 820509670
A35: 271 | B35: COEUR D'ALENE DISTRICT | C35: 85188761 | D35: 1600780 | E35: 826000811
A36: 455 | B36: COMPASS PUBLIC CHARTER SCHOOL, INC. | C36: 165024576 | D36: 1600007 | E36: 731729632
A37: 242 | B37: COTTONWOOD JOINT DISTRICT | C37: 100014901 | D37: 1600810 | E37: 826003404
A38: 13 | B38: COUNCIL DISTRICT | C38: 100185610 | D38: 1600840 | E38: 826004153
A39: 342 | B39: CULDESAC JOINT DISTRICT | C39: 92284785 | D39: 1600870 | E39: 826001189
A40: 314 | B40: DIETRICH DISTRICT | C40: 29816998 | D40: 1600900 | E40: 826003139
A41: 550 | B41: DORAL ACADEMY OF IDAHO, INC. | C41: 117165868 | D41: 1600197 | E41: 842149691
A42: 523 | B42: ELEVATE ACADEMY INC. | C42: 18395435 | D42: 1600189 | E42: 823036828
A43: 221 | B43: EMMETT INDEPENDENT DISTRICT | C43: 7643034 | D43: 1601020 | E43: 826001228
A44: 456 | B44: FALCON RIDGE PUBLIC CHARTER SCHOOL, INC. | C44: 182860341 | D44: 1600008 | E44: 270095874
A45: 531 | B45: FERN-WATERS PUBLIC CHARTER SCHOOL, INC. | C45: 116915742 | D45: 1600186 | E45: 824261500
A46: 413 | B46: FILER DISTRICT | C46: 100014943 | D46: 1601050 | E46: 826000894
A47: 59 | B47: FIRTH DISTRICT | C47: 100014950 | D47: 1601080 | E47: 826000618
A48: 528 | B48: FORGE INTERNATIONAL, LLC | C48: 116766344 | D48: 1600190 | E48: 352643363
A49: 215 | B49: FREMONT COUNTY JOINT DISTRICT | C49: 184556975 | D49: 1601110 | E49: 826000751
A50: 373 | B50: FRUITLAND DISTRICT | C50: 100014968 | D50: 1601140 | E50: 826000864
A51: 499 | B51: FUTURE PUBLIC SCHOOL, INC. | C51: 80975896 | D51: 1600181 | E51: 822354868
A52: 71 | B52: GARDEN VALLEY DISTRICT | C52: 29632296 | D52: 1601170 | E52: 826000631
A53: 549 | B53: GEM PREP: MERIDIAN NORTH, LLC | C53: 117200585 | D53: 1600196 | E53: 842329869
A54: 498 | B54: GEM PREP: MERIDIAN, LLC | C54: 81046990 | D54: 1600179 | E54: 371848621
A55: 796 | B55: GEM PREP: NAMPA, LLC | C55: 81304980 | D55: 1600205 | E55: 473817130
A56: 534 | B56: GEM PREP: ONLINE LLC | C56: 117035032 | D56: 1600172 | E56: 834122757
A57: 496 | B57: GEM PREP: POCATELLO, LLC | C57: 80511840 | D57: 1600177 | E57: 473829757
A58: 282 | B58: GENESEE JOINT DISTRICT | C58: 100185818 | D58: 1601200 | E58: 826000815
A59: 192 | B59: GLENS FERRY JOINT DISTRICT | C59: 605581743 | D59: 1601230 | E59: 826002941
A60: 231 | B60: GOODING JOINT DISTRICT | C60: 29720992 | D60: 1601260 | E60: 826000771
A61: 148 | B61: GRACE JOINT DISTRICT | C61: 29651205 | D61: 1601290 | E61: 826000730
A62: 233 | B62: HAGERMAN JOINT DISTRICT | C62: 193089125 | D62: 1601380 | E62: 826001373
A63: 415 | B63: HANSEN DISTRICT | C63: 100015015 | D63: 1601410 | E63: 826001325
A64: 508 | B64: HAYDEN CANYON CHARTER SCHOOL, INC. | C64: 80998762 | D64: 1600184 | E64: 462661679
A65: 479 | B65: HERITAGE ACADEMY, INC. | C65: 69071435 | D65: 1600159 | E65: 273203580
A66: 481 | B66: HERITAGE COMMUNITY CHARTER SCHOOL, INC. | C66: 58025766 | D66: 1600161 | E66: 273220966
A67: 305 | B67: HIGHLAND JOINT DISTRICT | C67: 193083409 | D67: 1601440 | E67: 820255978
A68: 370 | B68: HOMEDALE JOINT DISTRICT | C68: 100186048 | D68: 1601470 | E68: 826000860
A69: 73 | B69: HORSESHOE BEND SCHOOL DISTRICT | C69: 949307193 | D69: 1601500 | E69: 826000626
A70: 795 | B70: IDAHO ARTS CHARTER SCHOOL, INC. | C70: 191501993 | D70: 1600204 | E70: 201616506
A71: 596 | B71: IDAHO BUREAU OF EDUCATIONAL SERVICES FOR THE DEAF AND THE BLIND | C71: 78569416 | D71: NON-LEA | E71: 272336046
A72: 489 | B72: IDAHO COLLEGE AND CAREER READINESS ACADEMY, INC. | C72: 79255786 | D72: 1600171 | E72: 462298596
A73: 91 | B73: IDAHO FALLS DISTRICT | C73: 29642717 | D73: 1601530 | E73: 826001158
A74: 468 | B74: IDAHO SCIENCE AND TECHNOLOGY CHARTER SCHOOL, INC. | C74: 826960853 | D74: 1600145 | E74: 262852741
A75: 485 | B75: IDAHO STEM ACADEMY, INC. | C75: 78455129 | D75: 1600169 | E75: 274587929
A76: 452 | B76: IDAHO VIRTUAL ACADEMY, INC. | C76: 793722781 | D76: 1600004 | E76: 10720150
A77: 469 | B77: IDAHO VIRTUAL EDUCATION PARTNERS, INC. | C77: 832251305 | D77: 1600148 | E77: 263814847
A78: 453 | B78: IDAHO VIRTUAL HIGH SCHOOL, INC. | C78: 170660455 | D78: 1600005 | E78: 10577656
A79: 457 | B79: INSPIRE ACADEMICS, INC. | C79: 797530305 | D79: 1600011 | E79: 202193239
A80: 540 | B80: ISLAND PARK CHARTER SCHOOL, INC. | C80: 117224934 | D80: 1600192 | E80: 831266928
A81: 466 | B81: ISUCCEED VIRTUAL HIGH SCHOOL, INC. | C81: 878662498 | D81: 1600144 | E81: 262224774
A82: 251 | B82: JEFFERSON COUNTY JOINT DISTRICT | C82: 29738903 | D82: 1601570 | E82: 826000779
A83: 261 | B83: JEROME JOINT DISTRICT | C83: 100015056 | D83: 1601590 | E83: 826003634
A84: 2 | B84: JOINT SCHOOL DISTRICT NO. 2 | C84: 29604402 | D84: 1602100 | E84: 826001213
A85: 304 | B85: KAMIAH JOINT DISTRICT | C85: 159151398 | D85: 1601620 | E85: 826004161
A86: 391 | B86: KELLOGG JOINT DISTRICT | C86: 100186402 | D86: 1601650 | E86: 826000884
A87: 283 | B87: KENDRICK JOINT DISTRICT | C87: 100646397 | D87: 1601680 | E87: 826000816
A88: 414 | B88: KIMBERLY DISTRICT | C88: 879016921 | D88: 1601710 | E88: 826000895
A89: 274 | B89: KOOTENAI DISTRICT | C89: 100646405 | D89: 1601740 | E89: 826003651
A90: 3 | B90: KUNA JOINT DISTRICT | C90: 100015072 | D90: 1601770 | E90: 826001275
A91: 84 | B91: LAKE PEND OREILLE SCHOOL DISTRICT | C91: 832156884 | D91: 1600002 | E91: 820508739
A92: 272 | B92: LAKELAND DISTRICT | C92: 100015080 | D92: 1601800 | E92: 826000812
A93: 341 | B93: LAPWAI DISTRICT | C93: 100015098 | D93: 1601830 | E93: 826000843
A94: 478 | B94: LEGACY PUBLIC CHARTER SCHOOL, INC. | C94: 968870522 | D94: 1600158 | E94: 272515468
A95: 340 | B95: LEWISTON INDEPENDENT DISTRICT | C95: 100186600 | D95: 1601860 | E95: 826000839
A96: 458 | B96: LIBERTY CHARTER SCHOOL, INC. | C96: 105529221 | D96: 1600012 | E96: 820512446
A97: 182 | B97: MACKAY JOINT DISTRICT | C97: 25531166 | D97: 1601900 | E97: 826000738
A98: 321 | B98: MADISON DISTRICT | C98: 100646413 | D98: 1601920 | E98: 826000835
A99: 21 | B99: MARSH VALLEY JOINT DISTRICT | C99: 193088374 | D99: 1601950 | E99: 826000590
A100: 363 | B100: MARSING JOINT DISTRICT | C100: 86812005 | D100: 1601980 | E100: 826000855
A101: 421 | B101: MCCALL-DONNELLY JOINT SCHOOL DISTRICT | C101: 100599125 | D101: 1602030 | E101: 826000906
A102: 11 | B102: MEADOWS VALLEY DISTRICT | C102: 100015122 | D102: 1602060 | E102: 826000583
A103: 136 | B103: MELBA JOINT DISTRICT | C103: 184973659 | D103: 1602070 | E103: 826001130
A104: 785 | B104: MERIDIAN MEDICAL ARTS CHARTER HIGH SCHOOL, INC. | C104: 67651558 | D104: NON-LEA | E104: 571149368
A105: 768 | B105: MERIDIAN TECHNICAL CHARTER HIGH SCHOOL, INC. | C105: 44111453 | D105: NON-LEA | E105: 820512811
A106: 134 | B106: MIDDLETON DISTRICT | C106: 29646403 | D106: 1602130 | E106: 826003508
A107: 433 | B107: MIDVALE DISTRICT | C107: 183894732 | D107: 1602160 | E107: 826001364
A108: 331 | B108: MINIDOKA COUNTY JOINT DISTRICT | C108: 100015171 | D108: 1602190 | E108: 826000837
A109: 474 | B109: MONTICELLO MONTESSORI CHARTER SCHOOL, INC. | C109: 961942005 | D109: 1600154 | E109: 270186469
A110: 544 | B110: MOSAICS PUBLIC SCHOOL, INC. | C110: 117130660 | D110: 1600191 | E110: 832231987
A111: 813 | B111: MOSCOW CHARTER SCHOOL, INC. | C111: 93632698 | D111: NON-LEA | E111: 820505459
A112: 281 | B112: MOSCOW DISTRICT | C112: 29785391 | D112: 1602220 | E112: 826000814
A113: 193 | B113: MOUNTAIN HOME DISTRICT | C113: 127655744 | D113: 1602250 | E113: 826000742
A114: 244 | B114: MOUNTAIN VIEW SCHOOL DISTRICT | C114: 76641414 | D114: 1600139 | E114: 593838651
A115: 392 | B115: MULLAN DISTRICT | C115: 100015197 | D115: 1602280 | E115: 826000885
A116: 418 | B116: MURTAUGH JOINT DISTRICT | C116: 192846512 | D116: 1602310 | E116: 826000890
A117: 131 | B117: NAMPA SCHOOL DISTRICT | C117: 29646478 | D117: 1602340 | E117: 826000727
A118: 372 | B118: NEW PLYMOUTH DISTRICT | C118: 29880812 | D118: 1602370 | E118: 826000863
A119: 302 | B119: NEZPERCE JOINT DISTRICT | C119: 794728741 | D119: 1602400 | E119: 826001370
A120: 149 | B120: NORTH GEM DISTRICT | C120: 800469277 | D120: 1602430 | E120: 826001137
A121: 480 | B121: NORTH IDAHO STEM CHARTER ACADEMY, INC. | C121: 14744681 | D121: 1600160 | E121: 271042057
A122: 493 | B122: NORTH STAR CHARTER SCHOOL, INC. | C122: 114313609 | D122: 1600174 | E122: 113643458
A123: 465 | B123: NORTH VALLEY ACADEMY, INC. | C123: 830799883 | D123: 1600143 | E123: 260820021
A124: 135 | B124: NOTUS DISTRICT | C124: 100015239 | D124: 1602460 | E124: 826002944
A125: 351 | B125: ONEIDA COUNTY DISTRICT | C125: 100015247 | D125: 1602490 | E125: 826000844
A126: 171 | B126: OROFINO JOINT DISTRICT | C126: 97241129 | D126: 1602520 | E126: 826000734
A127: 472 | B127: PALOUSE PRAIRIE EDUCATIONAL ORGANIZATION, INC. | C127: 609526947 | D127: 1600151 | E127: 208870679
A128: 137 | B128: PARMA DISTRICT | C128: 100015254 | D128: 1602550 | E128: 826003335
A129: 497 | B129: PATHWAYS IN EDUCATION - NAMPA, INC. | C129: 80600403 | D129: 1600183 | E129: 814963154
A130: 371 | B130: PAYETTE JOINT DISTRICT | C130: 181918483 | D130: 1602580 | E130: 826000862
A131: 794 | B131: PAYETTE RIVER TECHNICAL ACADEMY, INC. | C131: 965786168 | D131: NON-LEA | E131: 271285798
A132: 511 | B132: PEACE VALLEY CHARTER SCHOOL, INC. | C132: 80965852 | D132: 1600178 | E132: 814365929
A133: 553 | B133: PINECREST ACADEMY OF IDAHO, INC. | C133: 117180145 | D133: 1600198 | E133: 842768672
A134: 364 | B134: PLEASANT VALLEY ELEMENTARY DISTRICT | C134: 179267117 | D134: 1602610 | E134: 826000847
A135: 44 | B135: PLUMMER-WORLEY JOINT DISTRICT | C135: 621456672 | D135: 1600815 | E135: 826000613
A136: 25 | B136: POCATELLO DISTRICT | C136: 29614922 | D136: 1602640 | E136: 826000591
A137: 273 | B137: POST FALLS DISTRICT | C137: 76666767 | D137: 1602670 | E137: 826000813
A138: 285 | B138: POTLATCH DISTRICT | C138: 100599133 | D138: 1602700 | E138: 826000817
A139: 191 | B139: Prairie Elementary District | C139: 159147461 | D139: 1602730 | E139: 826001384
A140: 201 | B140: PRESTON JOINT DISTRICT | C140: 157817024 | D140: 1600960 | E140: 826000749
A141: 513 | B141: PROJECT IMPACT STEM ACADEMY, INC. | C141: 80846237 | D141: 1600182 | E141: 821955574
A142: 316 | B142: RICHFIELD DISTRICT | C142: 29825924 | D142: 1602760 | E142: 826001279
A143: 252 | B143: RIRIE JOINT DISTRICT | C143: 926460742 | D143: 1602790 | E143: 820259363
A144: 382 | B144: ROCKLAND DISTRICT | C144: 100187848 | D144: 1602820 | E144: 826000866
A145: 454 | B145: ROLLING HILLS PUBLIC CHARTER SCHOOL, INC. | C145: 938170441 | D145: 1600006 | E145: 201868297
A146: 751 | B146: S E I TEC CHARTER SCHOOL, INC. | C146: 79245935 | D146: NON-LEA | E146: 452633651
A147: 291 | B147: SALMON DISTRICT | C147: 100015296 | D147: 1602850 | E147: 826000821
A148: 243 | B148: SALMON RIVER JOINT SCHOOL DISTRICT | C148: 806404062 | D148: 1600138 | E148: 593838650
A149: 487 | B149: SANDPOINT CHARTER SCHOOL, INC. | C149: 94295685 | D149: 1600165 | E149: 820505769
A150: 60 | B150: SHELLEY JOINT DISTRICT | C150: 181965740 | D150: 1602910 | E150: 826000619
A151: 312 | B151: SHOSHONE JOINT DISTRICT | C151: 193218260 | D151: 1602940 | E151: 826003374
A152: 52 | B152: SNAKE RIVER DISTRICT | C152: 29628674 | D152: 1602970 | E152: 826000615
A153: 150 | B153: SODA SPRINGS JOINT DISTRICT | C153: 878896901 | D153: 1603000 | E153: 826000731
A154: 292 | B154: SOUTH LEMHI DISTRICT | C154: 100187988 | D154: 1603030 | E154: 826000822
A155: 41 | B155: ST MARIES JOINT DISTRICT | C155: 10205979 | D155: 1603060 | E155: 826000612
A156: 322 | B156: SUGAR-SALEM JOINT DISTRICT | C156: 58571670 | D156: 1603090 | E156: 826000836
A157: 92 | B157: SWAN VALLEY ELEMENTARY DISTRICT | C157: 803155381 | D157: 1603120 | E157: 826000681
A158: 488 | B158: SYRINGA MOUNTAIN SCHOOL, INC. | C158: 79390538 | D158: 1600166 | E158: 352450616
A159: 461 | B159: TAYLOR'S CROSSING PUBLIC CHARTER SCHOOL, INC. | C159: 797535601 | D159: 1600015 | E159: 202701493
A160: 401 | B160: TETON COUNTY DISTRICT | C160: 100599166 | D160: 1603180 | E160: 826000887
A161: 460 | B161: THE ACADEMY, INC. | C161: 783840858 | D161: 1600014 | E161: 412193534
A162: 470 | B162: The Kootenai Bridge Academy, Inc. | C162: 831646554 | D162: 1600149 | E162: 263573121
A163: 494 | B163: THE POCATELLO COMMUNITY CHARTER SCHOOL, INC. | C163: 113912443 | D163: 1600176 | E163: 820506158
A164: 475 | B164: THE SAGE INTERNATIONAL SCHOOL OF BOISE, A PUBLIC CHARTER SCHOOL, INC. | C164: 32655155 | D164: 1600156 | E164: 270169469
A165: 473 | B165: THE VILLAGE CHARTER SCHOOL, INC. | C165: 968901947 | D165: 1600157 | E165: 270716284
A166: 559 | B166: THOMAS JEFFERSON CHARTER SCHOOL, INC. | C166: 784840469 | D166: 1600194 | E166: 200508843
A167: 416 | B167: THREE CREEK JOINT ELEMENTARY DISTRICT | C167: 193613791 | D167: 1603210 | E167: 826001249
A168: 532 | B168: TREASURE VALLEY CLASSICAL ACADEMY, INC. | C168: 81137699 | D168: 1600188 | E168: 814720145
A169: 287 | B169: TROY SCHOOL DISTRICT | C169: 824948165 | D169: 1600009 | E169: 820530483
A170: 411 | B170: TWIN FALLS DISTRICT | C170: 100015353 | D170: 1603240 | E170: 826000892
A171: 486 | B171: UPPER CARMEN PUBLIC CHARTER SCHOOL, INC. | C171: 186273954 | D171: 1600170 | E171: 760782276
A172: 262 | B172: VALLEY DISTRICT | C172: 800469400 | D172: 1603270 | E172: 826001371
A173: 139 | B173: VALLIVUE SCHOOL DISTRICT | C173: 155896269 | D173: 1600600 | E173: 826001904
A174: 451 | B174: VICTORY CHARTER SCHOOL, INC. | C174: 195571505 | D174: 1600003 | E174: 562423033
A175: 463 | B175: VISION CHARTER SCHOOL, INC. | C175: 7896716 | D175: 1600141 | E175: 680609551
A176: 393 | B176: WALLACE DISTRICT | C176: 47780739 | D176: 1603300 | E176: 826000886
A177: 431 | B177: WEISER DISTRICT | C177: 181914961 | D177: 1603330 | E177: 826000920
A178: 232 | B178: WENDELL DISTRICT | C178: 100015379 | D178: 1603360 | E178: 826004158
A179: 83 | B179: WEST BONNER COUNTY DISTRICT | C179: 98834174 | D179: 1600001 | E179: 820508740
A180: 253 | B180: WEST JEFFERSON DISTRICT | C180: 122332075 | D180: 1603400 | E180: 820379941
A181: 202 | B181: WEST SIDE JOINT DISTRICT | C181: 825388556 | D181: 1603420 | E181: 826000750
A182: 464 | B182: WHITE PINE CHARTER SCHOOL, INC. | C182: 170300300 | D182: 1600142 | E182: 680502170
A183: 288 | B183: WHITEPINE JOINT SCHOOL DISTRICT | C183: 37409539 | D183: 1600010 | E183: 820530482
A184: 133 | B184: WILDER DISTRICT | C184: 29650553 | D184: 1603480 | E184: 826003336
A185: 462 | B185: XAVIER CHARTER SCHOOL, INC. | C185: 3514777 | D185: 1600140 | E185: 205009576
A186: 4 | B186: TEST LEA | C186: 101010 | D186: 10101010

Sheet Awarded
A1: ID | B1: RecipientName | C1: DUNS | D1: CARES SA | E1: CARES FT | F1: CRRSA SA | G1: CRRSA FT | H1: ARP SA | I1: ARP FT | J1: ARP LL
A2: 58 | B2: ABERDEEN DISTRICT | C2: 801867284 | D2: 16019.45 | E2: 133884.35 | F2: 0 | G2: 503927.13 | H2: 0 | I2: 904805.38 | J2: 226021.35
A3: 495 | B3: ALTURAS INTERNATIONAL ACADEMY, INC. | C3: 71549639 | D3: 14265.4 | E3: 52913.28 | F3: 30309.96 | G3: 234551.48 | H3: 0 | I3: 421138.97 | J3: 105201.33
A4: 560 | B4: ALTURAS PREPARATORY ACADEMY, INC | C4: 36487482 | D4: 0 | E4: 0 | F4: 0 | G4: 96571.77 | H4: 115011 | I4: 173395.91 | J4: 43314.78
A5: 381 | B5: AMERICAN FALLS JOINT DISTRICT | C5: 144756442 | D5: 27962.95 | E5: 295973.63 | F5: 0 | G5: 1182846.05 | H5: 0 | I5: 2123808.82 | J5: 530530.3
A6: 482 | B6: AMERICAN HERITAGE CHARTER SCHOOL, INC. | C6: 79082049 | D6: 12476.08 | E6: 24524.16 | F6: 60969.05 | G6: 132273.91 | H6: 53776 | I6: 237499.19 | J6: 59327.62
A7: 492 | B7: ANSER OF IDAHO, INC. | C7: 832063890 | D7: 0 | E7: 19499 | F7: 54211.84 | G7: 145509.62 | H7: 24223 | I7: 261262.72 | J7: 65263.78
A8: 383 | B8: ARBON ELEMENTARY DISTRICT | C8: 189339153 | D8: 8190.19 | E8: 0 | F8: 8579.48 | G8: 0 | H8: 349143 | I8: 0 | J8: 0
A9: 394 | B9: AVERY SCHOOL DISTRICT | C9: 100599109 | D9: 8289.93 | E9: 0 | F9: 11056.14 | G9: 0 | H9: 349143 | I9: 0 | J9: 0
A10: 72 | B10: BASIN SCHOOL DISTRICT | C10: 100014778 | D10: 11634 | E10: 38320.31 | F10: 0 | G10: 213795.89 | H10: 0 | I10: 383871.79 | J10: 95891.94
A11: 33 | B11: BEAR LAKE COUNTY DISTRICT | C11: 183893577 | D11: 23689 | E11: 148980.83 | F11: 17582.63 | G11: 595396.45 | H11: 0 | I11: 1069038.68 | J11: 267047.3
A12: 477 | B12: BLACKFOOT CHARTER COMMUNITY LEARNING CENTER, INC. | C12: 142291967 | D12: 14317.04 | E12: 83477.64 | F12: 0 | G12: 428192.13 | H12: 0 | I12: 768822.82 | J12: 192052.98
A13: 55 | B13: BLACKFOOT DISTRICT | C13: 607630415 | D13: 50921.19 | E13: 470701.87 | F13: 0 | G13: 2297152.26 | H13: 0 | I13: 4124554.04 | J13: 1030319.4
A14: 61 | B14: BLAINE COUNTY DISTRICT | C14: 794328906 | D14: 46172.85 | E14: 239900.1 | F14: 339156.05 | G14: 928892.02 | H14: 0 | I14: 1667832.49 | J14: 416626.8
A15: 234 | B15: BLISS JOINT DISTRICT | C15: 40197688 | D15: 2307.95 | E15: 28873.62 | F15: 5462.73 | G15: 105941.8 | H15: 112575 | I15: 190220.4 | J15: 47517.31
A16: 1 | B16: Boise Independent District | C16: 122740046 | D16: 294674.17 | E16: 3814026.67 | F16: 0 | G16: 14756756.48 | H16: 0 | I16: 26495868.28 | J16: 6618703.57
A17: 93 | B17: BONNEVILLE JOINT DISTRICT | C17: 879016822 | D17: 159584.18 | E17: 1257543.06 | F17: 637538.11 | G17: 5025717.88 | H17: 0 | I17: 9023715.61 | J17: 2254136.31
A18: 101 | B18: BOUNDARY COUNTY DISTRICT | C18: 10206712 | D18: 27242.35 | E18: 340136.93 | F18: 0 | G18: 1591902.23 | H18: 0 | I18: 2858271.83 | J18: 714000.15
A19: 365 | B19: BRUNEAU-GRAND VIEW JOINT SCHOOL DISTRICT | C19: 29868007 | D19: 11633.18 | E19: 95210.67 | F19: 0 | G19: 380504.09 | H19: 0 | I19: 683197.61 | J19: 170664.18
A20: 412 | B20: BUHL JOINT DISTRICT | C20: 100014851 | D20: 22433.18 | E20: 256739.38 | F20: 0 | G20: 1101169.72 | H20: 0 | I20: 1977158.9 | J20: 493896.95
A21: 111 | B21: BUTTE COUNTY JOINT DISTRICT | C21: 29645454 | D21: 15078 | E21: 73248.14 | F21: 0 | G21: 287586.53 | H21: 0 | I21: 516363.3 | J21: 128988
A22: 132 | B22: CALDWELL DISTRICT | C22: 100014869 | D22: 76899.52 | E22: 1594660.9 | F22: 0 | G22: 6372999.03 | H22: 0 | I22: 11442768.53 | J22: 2858419.49
A23: 121 | B23: CAMAS COUNTY DISTRICT | C23: 100185412 | D23: 12806.92 | E23: 17712.17 | F23: 26920.63 | G23: 86464.08 | H23: 156070 | I23: 155246.88 | J23: 38781.13
A24: 432 | B24: CAMBRIDGE JOINT DISTRICT | C24: 112893883 | D24: 9401 | E24: 38776.78 | F24: 0 | G24: 144960.38 | H24: 25448 | I24: 260278.58 | J24: 65017.69
A25: 555 | B25: CANYON-OWYHEE SCHOOL SERVICE AGENCY (COSSA) | C25: 29765393 | D25: 9527.13 | E25: 0 | F25: 62107.33 | G25: 0 | H25: 0 | I25: 0 | J25: 0
A26: 566 | B26: CARDINAL ACADEMY INCORPORATED | C26: 108110500 | D26: 0 | E26: 0 | F26: 0 | G26: 61920.99 | H26: 141565 | I26: 111178.82 | J26: 27773.12
A27: 422 | B27: CASCADE DISTRICT | C27: 100014885 | D27: 10315 | E27: 138251.83 | F27: 0 | G27: 626608.51 | H27: 0 | I27: 1125080.61 | J27: 281046.4
A28: 151 | B28: CASSIA COUNTY JOINT DISTRICT | C28: 879016707 | D28: 72032.18 | E28: 733963.94 | F28: 0 | G28: 3092685.94 | H28: 0 | I28: 5552941.09 | J28: 1387132.41
A29: 417 | B29: CASTLEFORD DISTRICT | C29: 181912668 | D29: 14339.56 | E29: 56111.56 | F29: 0 | G29: 211342.39 | H29: 0 | I29: 379466.68 | J29: 94791.54
A30: 181 | B30: CHALLIS JOINT DISTRICT | C30: 193218112 | D30: 14207.13 | E30: 71388.23 | F30: 0 | G30: 475096.42 | H30: 0 | I30: 853039.4 | J30: 213090.64
A31: 483 | B31: CHIEF TAHGEE ELEMENTARY ACADEMY, INC. | C31: 78351211 | D31: 11571 | E31: 25107.76 | F31: 0 | G31: 142957.89 | H31: 29921 | I31: 256681.41 | J31: 64119.36
A32: 161 | B32: CLARK COUNTY DISTRICT | C32: 24714961 | D32: 9328.86 | E32: 25220.87 | F32: 2519.53 | G32: 113406.56 | H32: 95907 | I32: 203622.93 | J32: 50865.53
A33: 491 | B33: COEUR D'ALENE CHARTER ACADEMY, INC. | C33: 128705576 | D33: 0 | E33: 0 | F33: 233022.2 | G33: 0 | H33: 349143 | I33: 0 | J33: 0
A34: 271 | B34: COEUR D'ALENE DISTRICT | C34: 85188761 | D34: 132643.24 | E34: 1708356.53 | F34: 0 | G34: 6027011.42 | H34: 0 | I34: 10821544.72 | J34: 2703236.94
A35: 455 | B35: COMPASS PUBLIC CHARTER SCHOOL, INC. | C35: 165024576 | D35: 20560.18 | E35: 50263.56 | F35: 208202.54 | G35: 271142.62 | H35: 0 | I35: 486839.09 | J35: 121613.31
A36: 242 | B36: COTTONWOOD JOINT DISTRICT | C36: 100014901 | D36: 14934 | E36: 65726.43 | F36: 0 | G36: 256590.95 | H36: 0 | I36: 460710.82 | J36: 115085.93
A37: 13 | B37: COUNCIL DISTRICT | C37: 100185610 | D37: 11058.53 | E37: 41975.06 | F37: 0 | G37: 211004.63 | H37: 0 | I37: 378859.98 | J37: 94639.48
A38: 342 | B38: CULDESAC JOINT DISTRICT | C38: 92284785 | D38: 9134 | E38: 25141.79 | F38: 9186.91 | G38: 100125.75 | H38: 125563 | I38: 179777.3 | J38: 44908.36
A39: 314 | B39: DIETRICH DISTRICT | C39: 29816998 | D39: 10291.83 | E39: 33717.59 | F39: 0 | G39: 176958.21 | H39: 0 | I39: 317729.15 | J39: 79368.92
A40: 550 | B40: DORAL ACADEMY OF IDAHO, INC. | C40: 117165868 | D40: 2451.06 | E40: 0 | F40: 19447.78 | G40: 43863.46 | H40: 251198 | I40: 78759.26 | J40: 19673.17
A41: 523 | B41: ELEVATE ACADEMY INC. | C41: 18395435 | D41: 11146 | E41: 66698.42 | F41: 59774.62 | G41: 353194.79 | H41: 0 | I41: 634163.79 | J41: 158414.72
A42: 221 | B42: EMMETT INDEPENDENT DISTRICT | C42: 7643034 | D42: 35522 | E42: 508268.41 | F42: 0 | G42: 2042702.11 | H42: 0 | I42: 3667687.68 | J42: 916192.82
A43: 456 | B43: FALCON RIDGE PUBLIC CHARTER SCHOOL, INC. | C43: 182860341 | D43: 13833.45 | E43: 24404.04 | F43: 39094.64 | G43: 83678.83 | H43: 162288 | I43: 150247.09 | J43: 37531.67
A44: 531 | B44: FERN-WATERS PUBLIC CHARTER SCHOOL, INC. | C44: 116915742 | D44: 8660.69 | E44: 0 | F44: 0 | G44: 70299.8 | H44: 192165 | I44: 126223.25 | J44: 31530.49
A45: 413 | B45: FILER DISTRICT | C45: 100014943 | D45: 29357.08 | E45: 205175.48 | F45: 23990.7 | G45: 749793.01 | H45: 0 | I45: 1346258.89 | J45: 336297.53
A46: 59 | B46: FIRTH DISTRICT | C46: 100014950 | D46: 17665.2 | E46: 65504.2 | F46: 86891.26 | G46: 288679.98 | H46: 0 | I46: 518327.58 | J46: 129479.18
A47: 528 | B47: FORGE INTERNATIONAL, LLC | C47: 116766344 | D47: 10862.06 | E47: 21533.09 | F47: 47554.68 | G47: 125358.38 | H47: 106811 | I47: 225080.8 | J47: 56225.49
A48: 215 | B48: FREMONT COUNTY JOINT DISTRICT | C48: 184556975 | D48: 34248.9 | E48: 420348.22 | F48: 0 | G48: 1716747.47 | H48: 0 | I48: 3082432.56 | J48: 769995.55
A49: 373 | B49: FRUITLAND DISTRICT | C49: 100014968 | D49: 26764.42 | E49: 171639.08 | F49: 85238.46 | G49: 685949.7 | H49: 0 | I49: 1231627.06 | J49: 307662.1
A50: 499 | B50: FUTURE PUBLIC SCHOOL, INC. | C50: 80975896 | D50: 11360.78 | E50: 50575.88 | F50: 0 | G50: 307841.99 | H50: 0 | I50: 552731.44 | J50: 138073.31
A51: 71 | B51: GARDEN VALLEY DISTRICT | C51: 29632296 | D51: 11149.21 | E51: 81644.76 | F51: 0 | G51: 296463.45 | H51: 0 | I51: 532302.77 | J51: 132969.45
A52: 549 | B52: GEM PREP: MERIDIAN NORTH, LLC | C52: 117200585 | D52: 0 | E52: 0 | F52: 0 | G52: 66716.75 | H52: 65381 | I52: 119790.8 | J52: 29923.9
A53: 498 | B53: GEM PREP: MERIDIAN, LLC | C53: 81046990 | D53: 12283.65 | E53: 58410.92 | F53: 0 | G53: 254663.63 | H53: 0 | I53: 457249.81 | J53: 114221.62
A54: 796 | B54: GEM PREP: NAMPA, LLC | C54: 81304980 | D54: 12937.51 | E54: 0 | F54: 149104.77 | G54: 292348.21 | H54: 0 | I54: 524913.21 | J54: 131123.78
A55: 534 | B55: GEM PREP: ONLINE LLC | C55: 117035032 | D55: 11643.89 | E55: 99144.71 | F55: 0 | G55: 339968.1 | H55: 0 | I55: 610415.28 | J55: 152482.56
A56: 496 | B56: GEM PREP: POCATELLO, LLC | C56: 80511840 | D56: 11598.55 | E56: 55297.73 | F56: 0 | G56: 436314.36 | H56: 0 | I56: 783406.72 | J56: 195696.3
A57: 282 | B57: GENESEE JOINT DISTRICT | C57: 100185818 | D57: 11609.64 | E57: 36538.48 | F57: 32848.89 | G57: 129026.62 | H57: 61029 | I57: 231667.43 | J57: 57871.09
A58: 192 | B58: GLENS FERRY JOINT DISTRICT | C58: 605581743 | D58: 2918.7 | E58: 96142.63 | F58: 0 | G58: 523162.31 | H58: 0 | I58: 939342.4 | J58: 234648.5
A59: 231 | B59: GOODING JOINT DISTRICT | C59: 29720992 | D59: 11511.04 | E59: 234046.1 | F59: 0 | G59: 921900.33 | H59: 0 | I59: 1655277.94 | J59: 413490.66
A60: 148 | B60: GRACE JOINT DISTRICT | C60: 29651205 | D60: 16992.06 | E60: 52304.66 | F60: 60597.45 | G60: 209034.2 | H60: 0 | I60: 375321.88 | J60: 93756.16
A61: 233 | B61: HAGERMAN JOINT DISTRICT | C61: 193089125 | D61: 11367 | E61: 61579.17 | F61: 0 | G61: 276673.03 | H61: 0 | I61: 496769.6 | J61: 124093.21
A62: 415 | B62: HANSEN DISTRICT | C62: 100015015 | D62: 11955.98 | E62: 81002.1 | F62: 0 | G62: 305356.41 | H62: 0 | I62: 548270.27 | J62: 136958.9
A63: 508 | B63: HAYDEN CANYON CHARTER SCHOOL, INC. | C63: 80998762 | D63: 11545.18 | E63: 16069.49 | F63: 24469.5 | G63: 91541.48 | H63: 144732 | I63: 164363.44 | J63: 41057.96
A64: 479 | B64: HERITAGE ACADEMY, INC. | C64: 69071435 | D64: 9438.48 | E64: 45294.47 | F64: 0 | G64: 168856.02 | H64: 0 | I64: 303182.29 | J64: 75735.59
A65: 481 | B65: HERITAGE COMMUNITY CHARTER SCHOOL, INC. | C65: 58025766 | D65: 13432.2 | E65: 101831.46 | F65: 0 | G65: 406964.49 | H65: 0 | I65: 730706.66 | J65: 182531.51
A66: 305 | B66: HIGHLAND JOINT DISTRICT | C66: 193083409 | D66: 2588.84 | E66: 28647.39 | F66: 14693.54 | G66: 104405.35 | H66: 116008 | I66: 187460.21 | J66: 46828.06
A67: 370 | B67: HOMEDALE JOINT DISTRICT | C67: 100186048 | D67: 21792.41 | E67: 242004.26 | F67: 0 | G67: 908868.07 | H67: 0 | I67: 1631880.83 | J67: 407645.53
A68: 73 | B68: HORSESHOE BEND SCHOOL DISTRICT | C68: 949307193 | D68: 2718.18 | E68: 41712.79 | F68: 0 | G68: 166705.19 | H68: 0 | I68: 299319.82 | J68: 74770.24
A69: 795 | B69: IDAHO ARTS CHARTER SCHOOL, INC. | C69: 191501993 | D69: 4595.74 | E69: 0 | F69: 404118.79 | G69: 569979.39 | H69: 0 | I69: 1023401.8 | J69: 255647.15
A70: 596 | B70: IDAHO BUREAU OF EDUCATIONAL SERVICES FOR THE DEAF AND THE BLIND | C70: 78569416 | D70: 9076.78 | E70: 0 | F70: 0 | G70: 0 | H70: 590000 | I70: 0 | J70: 0
A71: 489 | B71: IDAHO COLLEGE AND CAREER READINESS ACADEMY, INC. | C71: 79255786 | D71: 9737 | E71: 0 | F71: 118353.79 | G71: 0 | H71: 349143 | I71: 0 | J71: 0
A72: 91 | B72: IDAHO FALLS DISTRICT | C72: 29642717 | D72: 123603.08 | E72: 1655222.02 | F72: 0 | G72: 6615025.29 | H72: 0 | I72: 11877328.04 | J72: 2966973.04
A73: 468 | B73: IDAHO SCIENCE AND TECHNOLOGY CHARTER SCHOOL, INC. | C73: 826960853 | D73: 14541.18 | E73: 43489.61 | F73: 0 | G73: 245996.17 | H73: 0 | I73: 441688.78 | J73: 110334.2
A74: 485 | B74: IDAHO STEM ACADEMY, INC. | C74: 78455129 | D74: 9508.1 | E74: 17464.92 | F74: 8218.09 | G74: 69797.67 | H74: 193287 | I74: 125321.21 | J74: 31305.41
A75: 452 | B75: IDAHO VIRTUAL ACADEMY, INC. | C75: 793722781 | D75: 27347 | E75: 437174.48 | F75: 15790.99 | G75: 1704487.95 | H75: 0 | I75: 3060421.05 | J75: 764497.55
A76: 469 | B76: IDAHO VIRTUAL EDUCATION PARTNERS, INC. | C76: 832251305 | D76: 10743.19 | E76: 0 | F76: 157865.97 | G76: 0 | H76: 349143 | I76: 0 | J76: 0
A77: 453 | B77: IDAHO VIRTUAL HIGH SCHOOL, INC. | C77: 170660455 | D77: 13690.12 | E77: 0 | F77: 240392.96 | G77: 0 | H77: 349143 | I77: 0 | J77: 0
A78: 457 | B78: INSPIRE ACADEMICS, INC. | C78: 797530305 | D78: 20680.87 | E78: 151454.37 | F78: 18913.86 | G78: 859701.71 | H78: 0 | I78: 1543601.54 | J78: 385593.49
A79: 540 | B79: ISLAND PARK CHARTER SCHOOL, INC. | C79: 117224934 | D79: 8189.18 | E79: 0 | F79: 6041.57 | G79: 0 | H79: 349143 | I79: 0 | J79: 0
A80: 466 | B80: ISUCCEED VIRTUAL HIGH SCHOOL, INC. | C80: 878662498 | D80: 0 | E80: 0 | F80: 0 | G80: 491878.08 | H80: 0 | I80: 883171.31 | J80: 220617.38
A81: 251 | B81: JEFFERSON COUNTY JOINT DISTRICT | C81: 29738903 | D81: 81273.73 | E81: 544638.72 | F81: 544478.69 | G81: 2025086.57 | H81: 0 | I81: 3636058.03 | J81: 908291.94
A82: 261 | B82: JEROME JOINT DISTRICT | C82: 100015056 | D82: 54623.74 | E82: 649537.33 | F82: 0 | G82: 2634062.5 | H82: 0 | I82: 4729478.96 | J82: 1181430.46
A83: 2 | B83: JOINT SCHOOL DISTRICT NO. 2 | C83: 29604402 | D83: 461978.11 | E83: 3080352.01 | F83: 2389437.21 | G83: 13883392.1 | H83: 0 | I83: 24927736.31 | J83: 6226981.84
A84: 304 | B84: KAMIAH JOINT DISTRICT | C84: 159151398 | D84: 12601.01 | E84: 257136.79 | F84: 0 | G84: 1235562.38 | H84: 0 | I84: 2218461.49 | J84: 554174.92
A85: 391 | B85: KELLOGG JOINT DISTRICT | C85: 100186402 | D85: 20249.94 | E85: 263958.78 | F85: 0 | G85: 1054899.86 | H85: 0 | I85: 1894080.64 | J85: 473144.39
A86: 283 | B86: KENDRICK JOINT DISTRICT | C86: 100646397 | D86: 10809.68 | E86: 29230.99 | F86: 35743.08 | G86: 101719.32 | H86: 122006 | I86: 182636.62 | J86: 45622.62
A87: 414 | B87: KIMBERLY DISTRICT | C87: 879016921 | D87: 34045.71 | E87: 140118.74 | F87: 223946.57 | G87: 583633.04 | H87: 0 | I87: 1047917.2 | J87: 261771.38
A88: 274 | B88: KOOTENAI DISTRICT | C88: 100646405 | D88: 9575.22 | E88: 43701.83 | F88: 0 | G88: 161283.02 | H88: 0 | I88: 289584.54 | J88: 72338.36
A89: 3 | B89: KUNA JOINT DISTRICT | C89: 100015072 | D89: 71160.8 | E89: 853029.09 | F89: 0 | G89: 2925376.39 | H89: 0 | I89: 5252536.02 | J89: 1312090.07
A90: 84 | B90: LAKE PEND OREILLE SCHOOL DISTRICT | C90: 832156884 | D90: 39116.19 | E90: 569861.6 | F90: 0 | G90: 2553329.28 | H90: 0 | I90: 4584522 | J90: 1145220.27
A91: 272 | B91: LAKELAND DISTRICT | C91: 100015080 | D91: 59617.91 | E91: 750789.2 | F91: 0 | G91: 2618696.01 | H91: 0 | I91: 4701888.99 | J91: 1174537.95
A92: 341 | B92: LAPWAI DISTRICT | C92: 100015098 | D92: 11991 | E92: 149100.96 | F92: 0 | G92: 555908.81 | H92: 0 | I92: 998137.52 | J92: 249335.85
A93: 478 | B93: LEGACY PUBLIC CHARTER SCHOOL, INC. | C93: 968870522 | D93: 11231 | E93: 36159.09 | F93: 12789.6 | G93: 129394.44 | H93: 60208 | I93: 232328.19 | J93: 58036.15
A94: 340 | B94: LEWISTON INDEPENDENT DISTRICT | C94: 100186600 | D94: 61618.18 | E94: 633464.85 | F94: 0 | G94: 2531617.55 | H94: 0 | I94: 4545538.83 | J94: 1135481.72
A95: 458 | B95: LIBERTY CHARTER SCHOOL, INC. | C95: 105529221 | D95: 12198 | E95: 42083.17 | F95: 68382.69 | G95: 144635.65 | H95: 26174 | I95: 259693.9 | J95: 64871.64
A96: 182 | B96: MACKAY JOINT DISTRICT | C96: 25531166 | D96: 13041.69 | E96: 24140.77 | F96: 41917.37 | G96: 82788.83 | H96: 164276 | I96: 148648.24 | J96: 37132.53
A97: 321 | B97: MADISON DISTRICT | C97: 100646413 | D97: 71227.18 | E97: 824270.59 | F97: 0 | G97: 3439153.63 | H97: 0 | I97: 6175025.89 | J97: 1542530.03
A98: 21 | B98: MARSH VALLEY JOINT DISTRICT | C98: 193088374 | D98: 22280.51 | E98: 165074.34 | F98: 0 | G98: 674402.79 | H98: 0 | I98: 1210895.04 | J98: 302483.21
A99: 363 | B99: MARSING JOINT DISTRICT | C99: 86812005 | D99: 17448.55 | E99: 228321.23 | F99: 0 | G99: 870296.49 | H99: 0 | I99: 1562624.58 | J99: 390345.23
A100: 421 | B100: MCCALL-DONNELLY JOINT SCHOOL DISTRICT | C100: 100599125 | D100: 25387 | E100: 104996.71 | F100: 185843.21 | G100: 364795.83 | H100: 0 | I100: 654993.93 | J100: 163618.62
A101: 11 | B101: MEADOWS VALLEY DISTRICT | C101: 100015122 | D101: 2377.49 | E101: 43197.31 | F101: 0 | G101: 193897.23 | H101: 0 | I101: 348144.39 | J101: 86966.69
A102: 136 | B102: MELBA JOINT DISTRICT | C102: 184973659 | D102: 17854.1 | E102: 95592.06 | F102: 43283.31 | G102: 382031.52 | H102: 0 | I102: 685939.79 | J102: 171348.43
A103: 785 | B103: MERIDIAN MEDICAL ARTS CHARTER HIGH SCHOOL, INC. | C103: 67651558 | D103: 10359.1 | E103: 0 | F103: 98899.88 | G103: 0 | H103: 0 | I103: 0 | J103: 0
A104: 768 | B104: MERIDIAN TECHNICAL CHARTER HIGH SCHOOL, INC. | C104: 44111453 | D104: 10258.58 | E104: 0 | F104: 103914.45 | G104: 0 | H104: 0 | I104: 0 | J104: 0
A105: 134 | B105: MIDDLETON DISTRICT | C105: 29646403 | D105: 53767.37 | E105: 295050.68 | F105: 458773.69 | G105: 1134277.03 | H105: 0 | I105: 2036602.77 | J105: 508746.37
A106: 433 | B106: MIDVALE DISTRICT | C106: 183894732 | D106: 2289.81 | E106: 27476.19 | F106: 7617.81 | G106: 109807.48 | H106: 103944 | I106: 197160.45 | J106: 49250.94
A107: 331 | B107: MINIDOKA COUNTY JOINT DISTRICT | C107: 100015171 | D107: 58755 | E107: 636068.52 | F107: 0 | G107: 2542021.9 | H107: 0 | I107: 4564219.48 | J107: 1140148.42
A108: 474 | B108: MONTICELLO MONTESSORI CHARTER SCHOOL, INC. | C108: 961942005 | D108: 5762.29 | E108: 36724.67 | F108: 0 | G108: 162291.28 | H108: 0 | I108: 291394.63 | J108: 72790.52
A109: 544 | B109: MOSAICS PUBLIC SCHOOL, INC. | C109: 117130660 | D109: 11310 | E109: 18330.8 | F109: 0 | G109: 132369.12 | H109: 93259 | I109: 237670.38 | J109: 59370.63
A110: 813 | B110: MOSCOW CHARTER SCHOOL, INC. | C110: 93632698 | D110: 2408 | E110: 0 | F110: 68148.91 | G110: 0 | H110: 0 | I110: 0 | J110: 0
A111: 281 | B111: MOSCOW DISTRICT | C111: 29785391 | D111: 34076.6 | E111: 284049.39 | F111: 0 | G111: 1135193.09 | H111: 0 | I111: 2038247.68 | J111: 509157.52
A112: 193 | B112: MOUNTAIN HOME DISTRICT | C112: 127655744 | D112: 50416.18 | E112: 634594 | F112: 0 | G112: 2953935.5 | H112: 0 | I112: 5303813.43 | J112: 1324899.74
A113: 244 | B113: MOUNTAIN VIEW SCHOOL DISTRICT | C113: 76641414 | D113: 10192.04 | E113: 206283.62 | F113: 0 | G113: 845885.7 | H113: 0 | I113: 1518794.8 | J113: 379397.24
A114: 392 | B114: MULLAN DISTRICT | C114: 100015197 | D114: 9139.84 | E114: 43537.66 | F114: 0 | G114: 201289.82 | H114: 0 | I114: 361417.77 | J114: 90282.9
A115: 418 | B115: MURTAUGH JOINT DISTRICT | C115: 192846512 | D115: 12191.18 | E115: 33043.9 | F115: 44684.98 | G115: 154800.47 | H115: 3526 | I115: 277944.05 | J115: 69431.3
A116: 131 | B116: NAMPA SCHOOL DISTRICT | C116: 29646478 | D116: 165115.23 | E116: 3419131.55 | F116: 0 | G116: 11974747.89 | H116: 0 | I116: 21500750.52 | J116: 5370916.93
A117: 372 | B117: NEW PLYMOUTH DISTRICT | C117: 29880812 | D117: 18268 | E117: 158924.03 | F117: 0 | G117: 616089.89 | H117: 0 | I117: 1106193.73 | J117: 276328.68
A118: 302 | B118: NEZPERCE JOINT DISTRICT | C118: 794728741 | D118: 9926.18 | E118: 18084.55 | F118: 36302.53 | G118: 72277.24 | H118: 187750 | I118: 129773.37 | J118: 32417.81
A119: 149 | B119: NORTH GEM DISTRICT | C119: 800469277 | D119: 12493.82 | E119: 16813.25 | F119: 39465.22 | G119: 59728.07 | H119: 215771 | I119: 107242.26 | J119: 26789.76
A120: 480 | B120: NORTH IDAHO STEM CHARTER ACADEMY, INC. | C120: 14744681 | D120: 15543 | E120: 0 | F120: 214656.55 | G120: 0 | H120: 349143 | I120: 0 | J120: 0
A121: 493 | B121: NORTH STAR CHARTER SCHOOL, INC. | C121: 114313609 | D121: 19249.49 | E121: 0 | F121: 314522.19 | G121: 0 | H121: 349143 | I121: 0 | J121: 0
A122: 465 | B122: NORTH VALLEY ACADEMY, INC. | C122: 830799883 | D122: 10743.19 | E122: 39577.6 | F122: 0 | G122: 158169.03 | H122: 0 | I122: 283994.06 | J122: 70941.85
A123: 135 | B123: NOTUS DISTRICT | C123: 100015239 | D123: 12811.35 | E123: 74132.05 | F123: 0 | G123: 257441.86 | H123: 0 | I123: 462238.59 | J123: 115468.07
A124: 351 | B124: ONEIDA COUNTY DISTRICT | C124: 100015247 | D124: 45103 | E124: 111597.48 | F124: 1875436.92 | G124: 445992.09 | H124: 0 | I124: 800782.85 | J124: 200036.88
A125: 171 | B125: OROFINO JOINT DISTRICT | C125: 97241129 | D125: 23275.19 | E125: 170795.21 | F125: 0 | G125: 836082.7 | H125: 0 | I125: 1501192.4 | J125: 374999.63
A126: 472 | B126: PALOUSE PRAIRIE EDUCATIONAL ORGANIZATION, INC. | C126: 609526947 | D126: 10049 | E126: 15434.83 | F126: 26183.55 | G126: 60535.88 | H126: 213967 | I126: 108692.94 | J126: 27151.89
A127: 137 | B127: PARMA DISTRICT | C127: 100015254 | D127: 19810.66 | E127: 154946.95 | F127: 0 | G127: 619238.96 | H127: 0 | I127: 1111849.28 | J127: 277741.2
A128: 497 | B128: PATHWAYS IN EDUCATION - NAMPA, INC. | C128: 80600403 | D128: 11054.51 | E128: 0 | F128: 26541.88 | G128: 125226.09 | H128: 69514 | I128: 224845.52 | J128: 56166.46
A129: 371 | B129: PAYETTE JOINT DISTRICT | C129: 181918483 | D129: 23894.84 | E129: 360135.45 | F129: 0 | G129: 1439265.62 | H129: 0 | I129: 2584213.28 | J129: 645540.21
A130: 794 | B130: PAYETTE RIVER TECHNICAL ACADEMY, INC. | C130: 965786168 | D130: 7765.2 | E130: 0 | F130: 76788.62 | G130: 0 | H130: 0 | I130: 0 | J130: 0
A131: 511 | B131: PEACE VALLEY CHARTER SCHOOL, INC. | C131: 80965852 | D131: 13949.18 | E131: 14548.93 | F131: 41796.91 | G131: 81235.34 | H131: 167745 | I131: 145860.01 | J131: 36436.28
A132: 553 | B132: PINECREST ACADEMY OF IDAHO, INC. | C132: 117180145 | D132: 10225.33 | E132: 0 | F132: 41082.29 | G132: 0 | H132: 349143 | I132: 0 | J132: 0
A133: 364 | B133: PLEASANT VALLEY ELEMENTARY DISTRICT | C133: 179267117 | D133: 8082.48 | E133: 0 | F133: 6402.97 | G133: 0 | H133: 349143 | I133: 0 | J133: 0
A134: 44 | B134: PLUMMER-WORLEY JOINT DISTRICT | C134: 621456672 | D134: 12294.73 | E134: 234952.03 | F134: 0 | G134: 938977.66 | H134: 0 | I134: 1685940.47 | J134: 421150.45
A135: 25 | B135: POCATELLO DISTRICT | C135: 29614922 | D135: 151276.86 | E135: 2135351.57 | F135: 0 | G135: 8533847.34 | H135: 0 | I135: 15322588 | J135: 3827603.61
A136: 273 | B136: POST FALLS DISTRICT | C136: 76666767 | D136: 77495.95 | E136: 951128.72 | F136: 0 | G136: 3626587.35 | H136: 0 | I136: 6511564.83 | J136: 1626597.66
A137: 285 | B137: POTLATCH DISTRICT | C137: 100599133 | D137: 13397.94 | E137: 50778.09 | F137: 11093.91 | G137: 239490.57 | H137: 0 | I137: 430007.24 | J137: 107416.14
A138: 191 | B138: Prairie Elementary District | C138: 159147461 | D138: 8054.17 | E138: 0 | F138: 6464.22 | G138: 0 | H138: 349143 | I138: 0 | J138: 0
A139: 201 | B139: PRESTON JOINT DISTRICT | C139: 157817024 | D139: 34493.94 | E139: 193525.53 | F139: 114368.27 | G139: 850112.19 | H139: 0 | I139: 1526383.59 | J139: 381292.93
A140: 513 | B140: PROJECT IMPACT STEM ACADEMY, INC. | C140: 80846237 | D140: 10382.5 | E140: 33472.34 | F140: 0 | G140: 161172.77 | H140: 72653 | I140: 289387.31 | J140: 72289.34
A141: 316 | B141: RICHFIELD DISTRICT | C141: 29825924 | D141: 10382.5 | E141: 39615.64 | F141: 0 | G141: 180879.01 | H141: 0 | I141: 324770.31 | J141: 81127.56
A142: 252 | B142: RIRIE JOINT DISTRICT | C142: 926460742 | D142: 16329.95 | E142: 43245.36 | F142: 139511.55 | G142: 169272.96 | H142: 0 | I142: 303931.16 | J142: 75922.66
A143: 382 | B143: ROCKLAND DISTRICT | C143: 100187848 | D143: 10384.68 | E143: 18439.92 | F143: 20329.82 | G143: 90037.1 | H143: 148091 | I143: 161662.32 | J143: 40383.71
A144: 454 | B144: ROLLING HILLS PUBLIC CHARTER SCHOOL, INC. | C144: 938170441 | D144: 10726.87 | E144: 24380.01 | F144: 1008.63 | G144: 132227.8 | H144: 53879 | I144: 237417.09 | J144: 59306.61
A145: 291 | B145: SALMON DISTRICT | C145: 100015296 | D145: 16677.44 | E145: 204267.55 | F145: 0 | G145: 816348.4 | H145: 0 | I145: 1465760.35 | J145: 366148.41
A146: 243 | B146: SALMON RIVER JOINT SCHOOL DISTRICT | C146: 806404062 | D146: 9527.13 | E146: 30432.22 | F146: 1660.97 | G146: 118267.47 | H146: 85053 | I146: 212350.05 | J146: 53045.33
A147: 487 | B147: SANDPOINT CHARTER SCHOOL, INC. | C147: 94295685 | D147: 11564.29 | E147: 63571.22 | F147: 0 | G147: 254059.27 | H147: 0 | I147: 456164.55 | J147: 113950.52
A148: 60 | B148: SHELLEY JOINT DISTRICT | C148: 181965740 | D148: 36743.19 | E148: 212552.05 | F148: 109002.52 | G148: 849455.71 | H148: 0 | I148: 1525204.23 | J148: 380997.82
A149: 312 | B149: SHOSHONE JOINT DISTRICT | C149: 193218260 | D149: 13522.87 | E149: 85063.26 | F149: 0 | G149: 342296.33 | H149: 0 | I149: 614596.12 | J149: 153526.94
A150: 52 | B150: SNAKE RIVER DISTRICT | C150: 29628674 | D150: 28486.22 | E150: 306166.08 | F150: 0 | G150: 1049966.79 | H150: 0 | I150: 1885224.37 | J150: 470931.59
A151: 150 | B151: SODA SPRINGS JOINT DISTRICT | C151: 878896901 | D151: 18687.3 | E151: 79805.87 | F151: 88872.79 | G151: 318939.9 | H151: 0 | I151: 572659.53 | J151: 143051.12
A152: 292 | B152: SOUTH LEMHI DISTRICT | C152: 100187988 | D152: 9180.55 | E152: 19764.28 | F152: 34384.29 | G152: 67777.13 | H152: 197797 | I152: 121695.01 | J152: 30400.08
A153: 41 | B153: ST MARIES JOINT DISTRICT | C153: 10205979 | D153: 4060.58 | E153: 132766.2 | F153: 0 | G153: 530594.99 | H153: 0 | I153: 952686.84 | J153: 237982.71
A154: 322 | B154: SUGAR-SALEM JOINT DISTRICT | C154: 58571670 | D154: 25796 | E154: 138760.35 | F154: 41816.3 | G154: 708218.69 | H154: 0 | I154: 1270139 | J154: 317535
A155: 92 | B155: SWAN VALLEY ELEMENTARY DISTRICT | C155: 803155381 | D155: 8694.94 | E155: 0 | F155: 27429.03 | G155: 0 | H155: 349143 | I155: 0 | J155: 0
A156: 488 | B156: SYRINGA MOUNTAIN SCHOOL, INC. | C156: 79390538 | D156: 9202.72 | E156: 20236.76 | F156: 0 | G156: 69888.87 | H156: 193081 | I156: 125486.4 | J156: 31346.42
A157: 461 | B157: TAYLOR'S CROSSING PUBLIC CHARTER SCHOOL, INC. | C157: 797535601 | D157: 14348 | E157: 41276.34 | F157: 20771.86 | G157: 159532.09 | H157: 0 | I157: 286441.89 | J157: 71553.07
A158: 401 | B158: TETON COUNTY DISTRICT | C158: 100599166 | D158: 29375.84 | E158: 205648.97 | F158: 7865.89 | G158: 821865.79 | H158: 0 | I158: 1475665.83 | J158: 368623.31
A159: 460 | B159: THE ACADEMY, INC. | C159: 783840858 | D159: 14072.97 | E159: 55028.45 | F159: 46848.23 | G159: 188711.59 | H159: 0 | I159: 338833.6 | J159: 84640.84
A160: 470 | B160: The Kootenai Bridge Academy, Inc. | C160: 831646554 | D160: 0 | E160: 0 | F160: 172909.67 | G160: 0 | H160: 349143 | I160: 0 | J160: 0
A161: 494 | B161: THE POCATELLO COMMUNITY CHARTER SCHOOL, INC. | C161: 113912443 | D161: 14384.38 | E161: 45432.61 | F161: 0 | G161: 228213.25 | H161: 0 | I161: 409757.78 | J161: 102358.29
A162: 475 | B162: THE SAGE INTERNATIONAL SCHOOL OF BOISE, A PUBLIC CHARTER SCHOOL, INC. | C162: 32655155 | D162: 18935.69 | E162: 91611.98 | F162: 35988.1 | G162: 436186.08 | H162: 0 | I162: 783175.45 | J162: 195638.28
A163: 473 | B163: THE VILLAGE CHARTER SCHOOL, INC. | C163: 968901947 | D163: 14419.19 | E163: 30972.77 | F163: 0 | G163: 169266.94 | H163: 0 | I163: 303919.15 | J163: 75919.66
A164: 559 | B164: THOMAS JEFFERSON CHARTER SCHOOL, INC. | C164: 784840469 | D164: 12327.97 | E164: 17379.83 | F164: 71734.24 | G164: 104027.5 | H164: 116851 | I164: 186782.42 | J164: 46658
A165: 416 | B165: THREE CREEK JOINT ELEMENTARY DISTRICT | C165: 193613791 | D165: 8088.43 | E165: 0 | F165: 6402.97 | G165: 0 | H165: 349143 | I165: 0 | J165: 0
A166: 532 | B166: TREASURE VALLEY CLASSICAL ACADEMY, INC. | C166: 81137699 | D166: 11430.3 | E166: 24026.65 | F166: 67238.28 | G166: 175433.78 | H166: 133422 | I166: 314992.98 | J166: 78682.67
A167: 287 | B167: TROY SCHOOL DISTRICT | C167: 824948165 | D167: 2641.55 | E167: 22104.68 | F167: 43346.61 | G167: 102372.79 | H167: 120547 | I167: 183809.98 | J167: 45915.73
A168: 411 | B168: TWIN FALLS DISTRICT | C168: 100015353 | D168: 116278.57 | E168: 1502821.68 | F168: 0 | G168: 7137839.82 | H168: 0 | I168: 12816045.72 | J168: 3201465.48
A169: 486 | B169: UPPER CARMEN PUBLIC CHARTER SCHOOL, INC. | C169: 186273954 | D169: 2140.65 | E169: 0 | F169: 20480.91 | G169: 0 | H169: 349143 | I169: 0 | J169: 0
A170: 262 | B170: VALLEY DISTRICT | C170: 800469400 | D170: 14941.03 | E170: 69420.22 | F170: 0 | G170: 318923.87 | H170: 0 | I170: 572629.5 | J170: 143044.12
A171: 139 | B171: VALLIVUE SCHOOL DISTRICT | C171: 155896269 | D171: 117127 | E171: 1014808.05 | F171: 20098.08 | G171: 4055640.42 | H171: 0 | I171: 7281933.44 | J171: 1819036.78
A172: 451 | B172: VICTORY CHARTER SCHOOL, INC. | C172: 195571505 | D172: 12442.72 | E172: 41490.56 | F172: 48000.8 | G172: 142294.4 | H172: 31402 | I172: 255490.03 | J172: 63822.25
A173: 463 | B173: VISION CHARTER SCHOOL, INC. | C173: 7896716 | D173: 18797.19 | E173: 59775.32 | F173: 89758.92 | G173: 242042.3 | H173: 0 | I173: 434588.55 | J173: 108560.55
A174: 393 | B174: WALLACE DISTRICT | C174: 47780739 | D174: 13578.28 | E174: 113956.9 | F174: 0 | G174: 537609.74 | H174: 0 | I174: 965281.45 | J174: 241128.86
A175: 431 | B175: WEISER DISTRICT | C175: 181914961 | D175: 5293.17 | E175: 228582.49 | F175: 0 | G175: 1059038.15 | H175: 0 | I175: 1901510.24 | J175: 475000.07
A176: 232 | B176: WENDELL DISTRICT | C176: 100015379 | D176: 20724 | E176: 154719.72 | F176: 0 | G176: 726153.95 | H176: 0 | I176: 1303814.71 | J176: 325694.67
A177: 83 | B177: WEST BONNER COUNTY DISTRICT | C177: 98834174 | D177: 19733.09 | E177: 377660.43 | F177: 0 | G177: 1371334.14 | H177: 0 | I177: 2462240.95 | J177: 615071.11
A178: 253 | B178: WEST JEFFERSON DISTRICT | C178: 122332075 | D178: 14799.96 | E178: 72103.97 | F178: 31944.39 | G178: 290735.59 | H178: 0 | I178: 522018.85 | J178: 130400.51
A179: 202 | B179: WEST SIDE JOINT DISTRICT | C179: 825388556 | D179: 16413.38 | E179: 59000.53 | F179: 73565.7 | G179: 265799.62 | H179: 0 | I179: 477244.97 | J179: 119216.44
A180: 464 | B180: WHITE PINE CHARTER SCHOOL, INC. | C180: 170300300 | D180: 17456.19 | E180: 37606.58 | F180: 98153.62 | G180: 164573.41 | H180: 0 | I180: 295493.38 | J180: 73814.89
A181: 288 | B181: WHITEPINE JOINT SCHOOL DISTRICT | C181: 37409539 | D181: 10676.68 | E181: 25686.35 | F181: 21995.94 | G181: 123604.45 | H181: 73136 | I181: 221932.15 | J181: 55439.2
A182: 133 | B182: WILDER DISTRICT | C182: 29650553 | D182: 13826.13 | E182: 179445.09 | F182: 0 | G182: 651591.58 | H182: 0 | I182: 1169936.58 | J182: 292251.48
A183: 462 | B183: XAVIER CHARTER SCHOOL, INC. | C183: 3514777 | D183: 6664.19 | E183: 53609 | F183: 101739.97 | G183: 190304.16 | H183: 0 | I183: 341692.91 | J183: 85355.12
A184: 4 | B184: TEST LEA | C184: 101010 | D184: 10000 | E184: 6000 | F184: 7000 | G184: 8000 | I184: 10000 | J184: 11000

Sheet Expended
A1: ID | B1: NAME | C1: Duns | D1: Vendor | E1: CARES Set Aside (LMS and SEL) | F1: CARES Flow Through | G1: CRRSA Set Aside | H1: CRRSA Flow Through | I1: ARP Set Aside | J1: ARP Flow Through | K1: ARP Learning Loss
A2: 58 | B2: ABERDEEN DISTRICT | C2: 801867284 | D2: 826000617 | E2: 8794.45 | F2: 137.35 | G2: 0 | H2: 165547.34 | I2: 0 | J2: 425263.64 | K2: 116536.58 | M2: 58 | N2: ABERDEEN DISTRICT | O2: 8794.45 | P2: 137.35 | Q2: 0 | R2: 165547.34 | S2: 0 | T2: 425263.64 | U2: 116536.58
A3: 495 | B3: ALTURAS INTERNATIONAL ACADEMY, INC. | C3: 71549639 | D3: 473126055 | E3: 11122.4 | F3: 54.28 | G3: 30309.96 | H3: 53349.9 | I3: 0 | J3: 378989.38 | K3: 10251.9 | M3: 495 | N3: ALTURAS INTERNATIONAL ACADEMY, INC. | O3: 11122.4 | P3: 54.28 | Q3: 30309.96 | R3: 53349.9 | S3: 0 | T3: 378989.38 | U3: 10251.9
A4: 560 | B4: ALTURAS PREPARATORY ACADEMY, INC | C4: 36487482 | D4: 853948402 | E4: 0 | F4: 0 | G4: 0 | H4: 216.77 | I4: 0 | J4: 104017.27 | K4: 13823.36 | M4: 560 | N4: ALTURAS PREPARATORY ACADEMY, INC | O4: 0 | P4: 0 | Q4: 0 | R4: 216.77 | S4: 0 | T4: 104017.27 | U4: 13823.36
A5: 381 | B5: AMERICAN FALLS JOINT DISTRICT | C5: 144756442 | D5: 826000865 | E5: 7315.83 | F5: 303.63 | G5: 0 | H5: 100309.74 | I5: 0 | J5: 1016601.29 | K5: 108940.11 | M5: 381 | N5: AMERICAN FALLS JOINT DISTRICT | O5: 7315.83 | P5: 303.63 | Q5: 0 | R5: 100309.74 | S5: 0 | T5: 1016601.29 | U5: 108940.11
A6: 482 | B6: AMERICAN HERITAGE CHARTER SCHOOL, INC. | C6: 79082049 | D6: 453753476 | E6: 441.08 | F6: 52.04 | G6: 60969.05 | H6: 100844.2 | I6: 53776 | J6: 237499.19 | K6: 29736.76 | M6: 482 | N6: AMERICAN HERITAGE CHARTER SCHOOL, INC. | O6: 441.08 | P6: 52.04 | Q6: 60969.05 | R6: 100844.2 | S6: 53776 | T6: 237499.19 | U6: 29736.76
A7: 492 | B7: ANSER OF IDAHO, INC. | C7: 832063890 | D7: 841390547 | E7: 0 | F7: 0 | G7: 43659.21 | H7: 15468.32 | I7: 6737.55 | J7: 33025.94 | K7: 0 | M7: 492 | N7: ANSER OF IDAHO, INC. | O7: 0 | P7: 0 | Q7: 43659.21 | R7: 15468.32 | S7: 6737.55 | T7: 33025.94 | U7: 0
A8: 383 | B8: ARBON ELEMENTARY DISTRICT | C8: 189339153 | D8: 826003195 | E8: 4032.19 | F8: 0 | G8: 332.34 | H8: 0 | I8: 94267.35 | J8: 0 | K8: 0 | M8: 383 | N8: ARBON ELEMENTARY DISTRICT | O8: 4032.19 | P8: 0 | Q8: 332.34 | R8: 0 | S8: 94267.35 | T8: 0 | U8: 0
A9: 394 | B9: AVERY SCHOOL DISTRICT | C9: 100599109 | D9: 826001332 | E9: 330.93 | F9: 0 | G9: 11056.14 | H9: 0 | I9: 272860.86 | J9: 0 | K9: 0 | M9: 394 | N9: AVERY SCHOOL DISTRICT | O9: 330.93 | P9: 0 | Q9: 11056.14 | R9: 0 | S9: 272860.86 | T9: 0 | U9: 0
A10: 72 | B10: BASIN SCHOOL DISTRICT | C10: 100014778 | D10: 826000632 | E10: 0 | F10: 39.31 | G10: 0 | H10: 479.89 | I10: 0 | J10: 125435.09 | K10: 34.94 | M10: 72 | N10: BASIN SCHOOL DISTRICT | O10: 0 | P10: 39.31 | Q10: 0 | R10: 479.89 | S10: 0 | T10: 125435.09 | U10: 34.94
A11: 33 | B11: BEAR LAKE COUNTY DISTRICT | C11: 183893577 | D11: 826001400 | E11: 2606 | F11: 152.83 | G11: 0 | H11: 1336.45 | I11: 0 | J11: 383037.43 | K11: 76910.69 | M11: 33 | N11: BEAR LAKE COUNTY DISTRICT | O11: 2606 | P11: 152.83 | Q11: 0 | R11: 1336.45 | S11: 0 | T11: 383037.43 | U11: 76910.69
A12: 477 | B12: BLACKFOOT CHARTER COMMUNITY LEARNING CENTER, INC. | C12: 142291967 | D12: 820524579 | E12: 8681.19 | F12: 85.64 | G12: 0 | H12: 161974.37 | I12: 0 | J12: 437823.64 | K12: 88925.97 | M12: 477 | N12: BLACKFOOT CHARTER COMMUNITY LEARNING CENTER, INC. | O12: 8681.19 | P12: 85.64 | Q12: 0 | R12: 161974.37 | S12: 0 | T12: 437823.64 | U12: 88925.97
A13: 55 | B13: BLACKFOOT DISTRICT | C13: 607630415 | D13: 826000616 | E13: 9942.33 | F13: 0 | G13: 0 | H13: 30581.18 | I13: 0 | J13: 2452363.66 | K13: 259417.58 | M13: 55 | N13: BLACKFOOT DISTRICT | O13: 9942.33 | P13: 0 | Q13: 0 | R13: 30581.18 | S13: 0 | T13: 2452363.66 | U13: 259417.58
A14: 61 | B14: BLAINE COUNTY DISTRICT | C14: 794328906 | D14: 826001220 | E14: 12881.17 | F14: 246.1 | G14: 236325.68 | H14: 800449.05 | I14: 0 | J14: 561398.09 | K14: 6807 | M14: 61 | N14: BLAINE COUNTY DISTRICT | O14: 12881.17 | P14: 246.1 | Q14: 236325.68 | R14: 800449.05 | S14: 0 | T14: 561398.09 | U14: 6807
A15: 234 | B15: BLISS JOINT DISTRICT | C15: 40197688 | D15: 826000767 | E15: 0 | F15: 0 | G15: 0 | H15: 21740 | I15: 0 | J15: 82421.1 | K15: 18920.97 | M15: 234 | N15: BLISS JOINT DISTRICT | O15: 0 | P15: 0 | Q15: 0 | R15: 21740 | S15: 0 | T15: 82421.1 | U15: 18920.97
A16: 1 | B16: Boise Independent District | C16: 122740046 | D16: 826000549 | E16: 0 | F16: 0 | G16: 0 | H16: 8455995.68 | I16: 0 | J16: 4960749.29 | K16: 1291315.46 | M16: 1 | N16: Boise Independent District | O16: 0 | P16: 0 | Q16: 0 | R16: 8455995.68 | S16: 0 | T16: 4960749.29 | U16: 1291315.46
A17: 93 | B17: BONNEVILLE JOINT DISTRICT | C17: 879016822 | D17: 826001206 | E17: 3053.18 | F17: 1290.06 | G17: 13040.11 | H17: 11280.88 | I17: 0 | J17: 5408338.72 | K17: 1269989.43 | M17: 93 | N17: BONNEVILLE JOINT DISTRICT | O17: 3053.18 | P17: 1290.06 | Q17: 13040.11 | R17: 11280.88 | S17: 0 | T17: 5408338.72 | U17: 1269989.43
A18: 101 | B18: BOUNDARY COUNTY DISTRICT | C18: 10206712 | D18: 826000683 | E18: 3799.35 | F18: 68090.3 | G18: 0 | H18: 765602.37 | I18: 0 | J18: 1689530.43 | K18: 239717.35 | M18: 101 | N18: BOUNDARY COUNTY DISTRICT | O18: 3799.35 | P18: 68090.3 | Q18: 0 | R18: 765602.37 | S18: 0 | T18: 1689530.43 | U18: 239717.35
A19: 365 | B19: BRUNEAU-GRAND VIEW JOINT SCHOOL DISTRICT | C19: 29868007 | D19: 826001219 | E19: 7225.18 | F19: 97.67 | G19: 0 | H19: 52167.19 | I19: 0 | J19: 233748.83 | K19: 18679.92 | M19: 365 | N19: BRUNEAU-GRAND VIEW JOINT SCHOOL DISTRICT | O19: 7225.18 | P19: 97.67 | Q19: 0 | R19: 52167.19 | S19: 0 | T19: 233748.83 | U19: 18679.92
A20: 412 | B20: BUHL JOINT DISTRICT | C20: 100014851 | D20: 826000893 | E20: 0 | F20: 0 | G20: 0 | H20: 375802.36 | I20: 0 | J20: 423054.03 | K20: 310362.25 | M20: 412 | N20: BUHL JOINT DISTRICT | O20: 0 | P20: 0 | Q20: 0 | R20: 375802.36 | S20: 0 | T20: 423054.03 | U20: 310362.25
A21: 111 | B21: BUTTE COUNTY JOINT DISTRICT | C21: 29645454 | D21: 826000685 | E21: 12260 | F21: 49682.62 | G21: 0 | H21: 217838.39 | I21: 0 | J21: 177554.26 | K21: 92949.96 | M21: 111 | N21: BUTTE COUNTY JOINT DISTRICT | O21: 12260 | P21: 49682.62 | Q21: 0 | R21: 217838.39 | S21: 0 | T21: 177554.26 | U21: 92949.96
A22: 132 | B22: CALDWELL DISTRICT | C22: 100014869 | D22: 826000728 | E22: 76899.52 | F22: 1635.9 | G22: 0 | H22: 3121573.07 | I22: 0 | J22: 356839.05 | K22: 1749390.46 | M22: 132 | N22: CALDWELL DISTRICT | O22: 76899.52 | P22: 1635.9 | Q22: 0 | R22: 3121573.07 | S22: 0 | T22: 356839.05 | U22: 1749390.46
A23: 121 | B23: CAMAS COUNTY DISTRICT | C23: 100185412 | D23: 826000686 | E23: 3146.92 | F23: 18.17 | G23: 550.63 | H23: 194.08 | I23: 112376.2 | J23: 43883.35 | K23: 14.13 | M23: 121 | N23: CAMAS COUNTY DISTRICT | O23: 3146.92 | P23: 18.17 | Q23: 550.63 | R23: 194.08 | S23: 112376.2 | T23: 43883.35 | U23: 14.13
A24: 432 | B24: CAMBRIDGE JOINT DISTRICT | C24: 112893883 | D24: 826000921 | E24: 261 | F24: 39.78 | G24: 0 | H24: 22753.15 | I24: 0 | J24: 0 | K24: 4723.88 | M24: 432 | N24: CAMBRIDGE JOINT DISTRICT | O24: 261 | P24: 39.78 | Q24: 0 | R24: 22753.15 | S24: 0 | T24: 0 | U24: 4723.88
A25: 555 | B25: CANYON-OWYHEE SCHOOL SERVICE AGENCY (COSSA) | C25: 29765393 | D25: 820299347 | E25: 331.07 | F25: 0 | G25: 1271.33 | H25: 0 | I25: 0 | J25: 0 | K25: 0 | M25: 555 | N25: CANYON-OWYHEE SCHOOL SERVICE AGENCY (COSSA) | O25: 331.07 | P25: 0 | Q25: 1271.33 | R25: 0 | S25: 0 | T25: 0 | U25: 0
A26: 566 | B26: CARDINAL ACADEMY INCORPORATED | C26: 108110500 | D26: 861222191 | E26: 0 | F26: 0 | G26: 0 | H26: 1219.3 | I26: 0 | J26: 0 | K26: 0 | M26: 566 | N26: CARDINAL ACADEMY INCORPORATED | O26: 0 | P26: 0 | Q26: 0 | R26: 1219.3 | S26: 0 | T26: 0 | U26: 0
A27: 422 | B27: CASCADE DISTRICT | C27: 100014885 | D27: 826000907 | E27: 2183 | F27: 141.83 | G27: 0 | H27: 176231.37 | I27: 0 | J27: 373069.27 | K27: 38267.67 | M27: 422 | N27: CASCADE DISTRICT | O27: 2183 | P27: 141.83 | Q27: 0 | R27: 176231.37 | S27: 0 | T27: 373069.27 | U27: 38267.67
A28: 151 | B28: CASSIA COUNTY JOINT DISTRICT | C28: 879016707 | D28: 826000732 | E28: 5089.18 | F28: 752.94 | G28: 0 | H28: 476056.11 | I28: 0 | J28: 2335522.76 | K28: 679428.52 | M28: 151 | N28: CASSIA COUNTY JOINT DISTRICT | O28: 5089.18 | P28: 752.94 | Q28: 0 | R28: 476056.11 | S28: 0 | T28: 2335522.76 | U28: 679428.52
A29: 417 | B29: CASTLEFORD DISTRICT | C29: 181912668 | D29: 826000891 | E29: 4011.46 | F29: 57.56 | G29: 0 | H29: 474.39 | I29: 0 | J29: 229019.85 | K29: 64884.12 | M29: 417 | N29: CASTLEFORD DISTRICT | O29: 4011.46 | P29: 57.56 | Q29: 0 | R29: 474.39 | S29: 0 | T29: 229019.85 | U29: 64884.12
A30: 181 | B30: CHALLIS JOINT DISTRICT | C30: 193218112 | D30: 826000736 | E30: 2952.13 | F30: 73.23 | G30: 0 | H30: 22398.01 | I30: 0 | J30: 241311.19 | K30: 190030.2 | M30: 181 | N30: CHALLIS JOINT DISTRICT | O30: 2952.13 | P30: 73.23 | Q30: 0 | R30: 22398.01 | S30: 0 | T30: 241311.19 | U30: 190030.2
A31: 483 | B31: CHIEF TAHGEE ELEMENTARY ACADEMY, INC. | C31: 78351211 | D31: 453150830 | E31: 2854 | F31: 25.76 | G31: 0 | H31: 49982.55 | I31: 7804.34 | J31: 151781.95 | K31: 43850.26 | M31: 483 | N31: CHIEF TAHGEE ELEMENTARY ACADEMY, INC. | O31: 2854 | P31: 25.76 | Q31: 0 | R31: 49982.55 | S31: 7804.34 | T31: 151781.95 | U31: 43850.26
A32: 161 | B32: CLARK COUNTY DISTRICT | C32: 24714961 | D32: 826000733 | E32: 5038.86 | F32: 25.87 | G32: 2519.13 | H32: 49760.23 | I32: 78109.73 | J32: 42960.96 | K32: 3954.24 | M32: 161 | N32: CLARK COUNTY DISTRICT | O32: 5038.86 | P32: 25.87 | Q32: 2519.13 | R32: 49760.23 | S32: 78109.73 | T32: 42960.96 | U32: 3954.24
A33: 491 | B33: COEUR D'ALENE CHARTER ACADEMY, INC. | C33: 128705576 | D33: 820509670 | E33: 0 | F33: 0 | G33: 102443.36 | H33: 0 | I33: 144562.52 | J33: 0 | K33: 0 | M33: 491 | N33: COEUR D'ALENE CHARTER ACADEMY, INC. | O33: 0 | P33: 0 | Q33: 102443.36 | R33: 0 | S33: 144562.52 | T33: 0 | U33: 0
A34: 271 | B34: COEUR D'ALENE DISTRICT | C34: 85188761 | D34: 826000811 | E34: 39656.06 | F34: 35637.16 | G34: 0 | H34: 1880666.59 | I34: 0 | J34: 2986513.1 | K34: 305044.97 | M34: 271 | N34: COEUR D'ALENE DISTRICT | O34: 39656.06 | P34: 35637.16 | Q34: 0 | R34: 1880666.59 | S34: 0 | T34: 2986513.1 | U34: 305044.97
A35: 455 | B35: COMPASS PUBLIC CHARTER SCHOOL, INC. | C35: 165024576 | D35: 731729632 | E35: 189.18 | F35: 51.56 | G35: 4258.54 | H35: 608.62 | I35: 0 | J35: 191979.19 | K35: 54102.58 | M35: 455 | N35: COMPASS PUBLIC CHARTER SCHOOL, INC. | O35: 189.18 | P35: 51.56 | Q35: 4258.54 | R35: 608.62 | S35: 0 | T35: 191979.19 | U35: 54102.58
A36: 242 | B36: COTTONWOOD JOINT DISTRICT | C36: 100014901 | D36: 826003404 | E36: 2953 | F36: 67.43 | G36: 0 | H36: 575.95 | I36: 0 | J36: 111367.02 | K36: 43571.04 | M36: 242 | N36: COTTONWOOD JOINT DISTRICT | O36: 2953 | P36: 67.43 | Q36: 0 | R36: 575.95 | S36: 0 | T36: 111367.02 | U36: 43571.04
A37: 13 | B37: COUNCIL DISTRICT | C37: 100185610 | D37: 826004153 | E37: 0 | F37: 0 | G37: 0 | H37: 26612.13 | I37: 0 | J37: 214728.73 | K37: 43177 | M37: 13 | N37: COUNCIL DISTRICT | O37: 0 | P37: 0 | Q37: 0 | R37: 26612.13 | S37: 0 | T37: 214728.73 | U37: 43177
A38: 342 | B38: CULDESAC JOINT DISTRICT | C38: 92284785 | D38: 826001189 | E38: 0 | F38: 25.79 | G38: 187.91 | H38: 22527.26 | I38: 32050 | J38: 0 | K38: 37140.8 | M38: 342 | N38: CULDESAC JOINT DISTRICT | O38: 0 | P38: 25.79 | Q38: 187.91 | R38: 22527.26 | S38: 32050 | T38: 0 | U38: 37140.8
A39: 314 | B39: DIETRICH DISTRICT | C39: 29816998 | D39: 826003139 | E39: 122.83 | F39: 34.59 | G39: 0 | H39: 89480.24 | I39: 0 | J39: 116218.97 | K39: 33990.59 | M39: 314 | N39: DIETRICH DISTRICT | O39: 122.83 | P39: 34.59 | Q39: 0 | R39: 89480.24 | S39: 0 | T39: 116218.97 | U39: 33990.59
A40: 550 | B40: DORAL ACADEMY OF IDAHO, INC. | C40: 117165868 | D40: 842149691 | E40: 0 | F40: 0 | G40: 19447.78 | H40: 0 | I40: 146046.69 | J40: 29749.05 | K40: 0 | M40: 550 | N40: DORAL ACADEMY OF IDAHO, INC. | O40: 0 | P40: 0 | Q40: 19447.78 | R40: 0 | S40: 146046.69 | T40: 29749.05 | U40: 0
A41: 523 | B41: ELEVATE ACADEMY INC. | C41: 18395435 | D41: 823036828 | E41: 0 | F41: 0 | G41: 59774.62 | H41: 205446.71 | I41: 0 | J41: 133638.42 | K41: 0 | M41: 523 | N41: ELEVATE ACADEMY INC. | O41: 0 | P41: 0 | Q41: 59774.62 | R41: 205446.71 | S41: 0 | T41: 133638.42 | U41: 0
A42: 221 | B42: EMMETT INDEPENDENT DISTRICT | C42: 7643034 | D42: 826001228 | E42: 16007.88 | F42: 521.41 | G42: 0 | H42: 269697.15 | I42: 0 | J42: 1283364.84 | K42: 294273.68 | M42: 221 | N42: EMMETT INDEPENDENT DISTRICT | O42: 16007.88 | P42: 521.41 | Q42: 0 | R42: 269697.15 | S42: 0 | T42: 1283364.84 | U42: 294273.68
A43: 456 | B43: FALCON RIDGE PUBLIC CHARTER SCHOOL, INC. | C43: 182860341 | D43: 270095874 | E43: 11248.45 | F43: 25.04 | G43: 799.64 | H43: 83678.83 | I43: 12310.92 | J43: 74657.91 | K43: 27527.9 | M43: 456 | N43: FALCON RIDGE PUBLIC CHARTER SCHOOL, INC. | O43: 11248.45 | P43: 25.04 | Q43: 799.64 | R43: 83678.83 | S43: 12310.92 | T43: 74657.91 | U43: 27527.9
A44: 531 | B44: FERN-WATERS PUBLIC CHARTER SCHOOL, INC. | C44: 116915742 | D44: 824261500 | E44: 394.09 | F44: 0 | G44: 0 | H44: 2490.78 | I44: 89947.19 | J44: 0 | K44: 5294.98 | M44: 531 | N44: FERN-WATERS PUBLIC CHARTER SCHOOL, INC. | O44: 394.09 | P44: 0 | Q44: 0 | R44: 2490.78 | S44: 89947.19 | T44: 0 | U44: 5294.98
A45: 413 | B45: FILER DISTRICT | C45: 100014943 | D45: 826000894 | E45: 29357.08 | F45: 1743.13 | G45: 0 | H45: 62928.26 | I45: 0 | J45: 0 | K45: 10820.25 | M45: 413 | N45: FILER DISTRICT | O45: 29357.08 | P45: 1743.13 | Q45: 0 | R45: 62928.26 | S45: 0 | T45: 0 | U45: 10820.25
A46: 59 | B46: FIRTH DISTRICT | C46: 100014950 | D46: 826000618 | E46: 751.2 | F46: 67.2 | G46: 1777.26 | H46: 22173.5 | I46: 0 | J46: 231000 | K46: 44330.45 | M46: 59 | N46: FIRTH DISTRICT | O46: 751.2 | P46: 67.2 | Q46: 1777.26 | R46: 22173.5 | S46: 0 | T46: 231000 | U46: 44330.45
A47: 528 | B47: FORGE INTERNATIONAL, LLC | C47: 116766344 | D47: 352643363 | E47: 323.06 | F47: 22.09 | G47: 17513.18 | H47: 19445.13 | I47: 106811 | J47: 33232.85 | K47: 20.49 | M47: 528 | N47: FORGE INTERNATIONAL, LLC | O47: 323.06 | P47: 22.09 | Q47: 17513.18 | R47: 19445.13 | S47: 106811 | T47: 33232.85 | U47: 20.49
A48: 215 | B48: FREMONT COUNTY JOINT DISTRICT | C48: 184556975 | D48: 826000751 | E48: 4520 | F48: 431.22 | G48: 0 | H48: 3853.47 | I48: 0 | J48: 2576008.25 | K48: 402378.96 | M48: 215 | N48: FREMONT COUNTY JOINT DISTRICT | O48: 4520 | P48: 431.22 | Q48: 0 | R48: 3853.47 | S48: 0 | T48: 2576008.25 | U48: 402378.96
A49: 373 | B49: FRUITLAND DISTRICT | C49: 100014968 | D49: 826000864 | E49: 6367.42 | F49: 176.08 | G49: 0 | H49: 481141.24 | I49: 0 | J49: 130140.04 | K49: 41824.77 | M49: 373 | N49: FRUITLAND DISTRICT | O49: 6367.42 | P49: 176.08 | Q49: 0 | R49: 481141.24 | S49: 0 | T49: 130140.04 | U49: 41824.77
A50: 499 | B50: FUTURE PUBLIC SCHOOL, INC. | C50: 80975896 | D50: 822354868 | E50: 6559.78 | F50: 4745.32 | G50: 0 | H50: 179141.31 | I50: 0 | J50: 170254.19 | K50: 104248.23 | M50: 499 | N50: FUTURE PUBLIC SCHOOL, INC. | O50: 6559.78 | P50: 4745.32 | Q50: 0 | R50: 179141.31 | S50: 0 | T50: 170254.19 | U50: 104248.23
A51: 71 | B51: GARDEN VALLEY DISTRICT | C51: 29632296 | D51: 826000631 | E51: 0 | F51: 0 | G51: 0 | H51: 74635.12 | I51: 0 | J51: 210886.75 | K51: 74541.77 | M51: 71 | N51: GARDEN VALLEY DISTRICT | O51: 0 | P51: 0 | Q51: 0 | R51: 74635.12 | S51: 0 | T51: 210886.75 | U51: 74541.77
A52: 549 | B52: GEM PREP: MERIDIAN NORTH, LLC | C52: 117200585 | D52: 842329869 | E52: 0 | F52: 0 | G52: 0 | H52: 149.75 | I52: 0 | J52: 10690.84 | K52: 3957.51 | M52: 549 | N52: GEM PREP: MERIDIAN NORTH, LLC | O52: 0 | P52: 0 | Q52: 0 | R52: 149.75 | S52: 0 | T52: 10690.84 | U52: 3957.51
A53: 498 | B53: GEM PREP: MERIDIAN, LLC | C53: 81046990 | D53: 371848621 | E53: 387.64 | F53: 0 | G53: 0 | H53: 27954.54 | I53: 0 | J53: 19834.3 | K53: 47871.46 | M53: 498 | N53: GEM PREP: MERIDIAN, LLC | O53: 387.64 | P53: 0 | Q53: 0 | R53: 27954.54 | S53: 0 | T53: 19834.3 | U53: 47871.46
A54: 796 | B54: GEM PREP: NAMPA, LLC | C54: 81304980 | D54: 473817130 | E54: 461.82 | F54: 0 | G54: 3049.77 | H54: 233917.23 | I54: 0 | J54: 1853.63 | K54: 71084.17 | M54: 796 | N54: GEM PREP: NAMPA, LLC | O54: 461.82 | P54: 0 | Q54: 3049.77 | R54: 233917.23 | S54: 0 | T54: 1853.63 | U54: 71084.17
A55: 534 | B55: GEM PREP: ONLINE LLC | C55: 117035032 | D55: 834122757 | E55: 365.79 | F55: 101.71 | G55: 0 | H55: 110782.38 | I55: 0 | J55: 14.94 | K55: 52102.28 | M55: 534 | N55: GEM PREP: ONLINE LLC | O55: 365.79 | P55: 101.71 | Q55: 0 | R55: 110782.38 | S55: 0 | T55: 14.94 | U55: 52102.28
A56: 496 | B56: GEM PREP: POCATELLO, LLC | C56: 80511840 | D56: 473829757 | E56: 408.51 | F56: 56.73 | G56: 0 | H56: 190172.93 | I56: 0 | J56: 3435.56 | K56: 67603.67 | M56: 496 | N56: GEM PREP: POCATELLO, LLC | O56: 408.51 | P56: 56.73 | Q56: 0 | R56: 190172.93 | S56: 0 | T56: 3435.56 | U56: 67603.67
A57: 282 | B57: GENESEE JOINT DISTRICT | C57: 100185818 | D57: 826000815 | E57: 0 | F57: 0 | G57: 32848.89 | H57: 3653.81 | I57: 60278.65 | J57: 0 | K57: 0 | M57: 282 | N57: GENESEE JOINT DISTRICT | O57: 0 | P57: 0 | Q57: 32848.89 | R57: 3653.81 | S57: 60278.65 | T57: 0 | U57: 0
A58: 192 | B58: GLENS FERRY JOINT DISTRICT | C58: 605581743 | D58: 826002941 | E58: 0 | F58: 0 | G58: 0 | H58: 102775.85 | I58: 0 | J58: 183243.49 | K58: 92690.58 | M58: 192 | N58: GLENS FERRY JOINT DISTRICT | O58: 0 | P58: 0 | Q58: 0 | R58: 102775.85 | S58: 0 | T58: 183243.49 | U58: 92690.58
A59: 231 | B59: GOODING JOINT DISTRICT | C59: 29720992 | D59: 826000771 | E59: 0 | F59: 0 | G59: 0 | H59: 51210.64 | I59: 0 | J59: 462640.82 | K59: 159100.69 | M59: 231 | N59: GOODING JOINT DISTRICT | O59: 0 | P59: 0 | Q59: 0 | R59: 51210.64 | S59: 0 | T59: 462640.82 | U59: 159100.69
A60: 148 | B60: GRACE JOINT DISTRICT | C60: 29651205 | D60: 826000730 | E60: 16992.06 | F60: 53.66 | G60: 0 | H60: 0 | I60: 0 | J60: 25129.21 | K60: 11338.21 | M60: 148 | N60: GRACE JOINT DISTRICT | O60: 16992.06 | P60: 53.66 | Q60: 0 | R60: 0 | S60: 0 | T60: 25129.21 | U60: 11338.21
A61: 233 | B61: HAGERMAN JOINT DISTRICT | C61: 193089125 | D61: 826001373 | E61: 318 | F61: 63.17 | G61: 0 | H61: 52801.57 | I61: 0 | J61: 45043.32 | K61: 26713.23 | M61: 233 | N61: HAGERMAN JOINT DISTRICT | O61: 318 | P61: 63.17 | Q61: 0 | R61: 52801.57 | S61: 0 | T61: 45043.32 | U61: 26713.23
A62: 415 | B62: HANSEN DISTRICT | C62: 100015015 | D62: 826001325 | E62: 9265.98 | F62: 83.1 | G62: 0 | H62: 170795.45 | I62: 0 | J62: 86026.36 | K62: 56159.37 | M62: 415 | N62: HANSEN DISTRICT | O62: 9265.98 | P62: 83.1 | Q62: 0 | R62: 170795.45 | S62: 0 | T62: 86026.36 | U62: 56159.37
A63: 508 | B63: HAYDEN CANYON CHARTER SCHOOL, INC. | C63: 80998762 | D63: 462661679 | E63: 189.18 | F63: 16.49 | G63: 0 | H63: 205.48 | I63: 0 | J63: 0 | K63: 0 | M63: 508 | N63: HAYDEN CANYON CHARTER SCHOOL, INC. | O63: 189.18 | P63: 16.49 | Q63: 0 | R63: 205.48 | S63: 0 | T63: 0 | U63: 0
A64: 479 | B64: HERITAGE ACADEMY, INC. | C64: 69071435 | D64: 273203580 | E64: 330.48 | F64: 46.47 | G64: 0 | H64: 927.31 | I64: 0 | J64: 89161.25 | K64: 32909.64 | M64: 479 | N64: HERITAGE ACADEMY, INC. | O64: 330.48 | P64: 46.47 | Q64: 0 | R64: 927.31 | S64: 0 | T64: 89161.25 | U64: 32909.64
A65: 481 | B65: HERITAGE COMMUNITY CHARTER SCHOOL, INC. | C65: 58025766 | D65: 273220966 | E65: 10485.2 | F65: 104.46 | G65: 0 | H65: 16863.89 | I65: 0 | J65: 190147.41 | K65: 182531.51 | M65: 481 | N65: HERITAGE COMMUNITY CHARTER SCHOOL, INC. | O65: 10485.2 | P65: 104.46 | Q65: 0 | R65: 16863.89 | S65: 0 | T65: 190147.41 | U65: 182531.51
A66: 305 | B66: HIGHLAND JOINT DISTRICT | C66: 193083409 | D66: 820255978 | E66: 1824.1 | F66: 29.39 | G66: 14693.54 | H66: 48553.63 | I66: 0 | J66: 112905.75 | K66: 9733.06 | M66: 305 | N66: HIGHLAND JOINT DISTRICT | O66: 1824.1 | P66: 29.39 | Q66: 14693.54 | R66: 48553.63 | S66: 0 | T66: 112905.75 | U66: 9733.06
A67: 370 | B67: HOMEDALE JOINT DISTRICT | C67: 100186048 | D67: 826000860 | E67: 781.41 | F67: 248.26 | G67: 0 | H67: 73980.02 | I67: 0 | J67: 55244.85 | K67: 268770 | M67: 370 | N67: HOMEDALE JOINT DISTRICT | O67: 781.41 | P67: 248.26 | Q67: 0 | R67: 73980.02 | S67: 0 | T67: 55244.85 | U67: 268770
A68: 73 | B68: HORSESHOE BEND SCHOOL DISTRICT | C68: 949307193 | D68: 826000626 | E68: 189.18 | F68: 42.79 | G68: 0 | H68: 374.19 | I68: 0 | J68: 193281.05 | K68: 48471.09 | M68: 73 | N68: HORSESHOE BEND SCHOOL DISTRICT | O68: 189.18 | P68: 42.79 | Q68: 0 | R68: 374.19 | S68: 0 | T68: 193281.05 | U68: 48471.09
A69: 795 | B69: IDAHO ARTS CHARTER SCHOOL, INC. | C69: 191501993 | D69: 201616506 | E69: 40 | F69: 0 | G69: 0 | H69: 3448.35 | I69: 0 | J69: 791487.31 | K69: 255647.15 | M69: 795 | N69: IDAHO ARTS CHARTER SCHOOL, INC. | O69: 40 | P69: 0 | Q69: 0 | R69: 3448.35 | S69: 0 | T69: 791487.31 | U69: 255647.15
A70: 596 | B70: IDAHO BUREAU OF EDUCATIONAL SERVICES FOR THE DEAF AND THE BLIND | C70: 78569416 | D70: 272336046 | E70: 2681.28 | F70: 0 | G70: 0 | H70: 0 | I70: 11872 | J70: 0 | K70: 0 | M70: 596 | N70: IDAHO BUREAU OF EDUCATIONAL SERVICES FOR THE DEAF AND THE BLIND | O70: 2681.28 | P70: 0 | Q70: 0 | R70: 0 | S70: 11872 | T70: 0 | U70: 0
A71: 489 | B71: IDAHO COLLEGE AND CAREER READINESS ACADEMY, INC. | C71: 79255786 | D71: 462298596 | E71: 0 | F71: 0 | G71: 2420.79 | H71: 0 | I71: 166692.6 | J71: 0 | K71: 0 | M71: 489 | N71: IDAHO COLLEGE AND CAREER READINESS ACADEMY, INC. | O71: 0 | P71: 0 | Q71: 2420.79 | R71: 0 | S71: 166692.6 | T71: 0 | U71: 0
A72: 91 | B72: IDAHO FALLS DISTRICT | C72: 29642717 | D72: 826001158 | E72: 4495.08 | F72: 1698.02 | G72: 0 | H72: 3803432.44 | I72: 0 | J72: 4790160.24 | K72: 2011064.65 | M72: 91 | N72: IDAHO FALLS DISTRICT | O72: 4495.08 | P72: 1698.02 | Q72: 0 | R72: 3803432.44 | S72: 0 | T72: 4790160.24 | U72: 2011064.65
A73: 468 | B73: IDAHO SCIENCE AND TECHNOLOGY CHARTER SCHOOL, INC. | C73: 826960853 | D73: 262852741 | E73: 2795.18 | F73: 44.61 | G73: 0 | H73: 552.17 | I73: 0 | J73: 300511.78 | K73: 40.2 | M73: 468 | N73: IDAHO SCIENCE AND TECHNOLOGY CHARTER SCHOOL, INC. | O73: 2795.18 | P73: 44.61 | Q73: 0 | R73: 552.17 | S73: 0 | T73: 300511.78 | U73: 40.2
A74: 485 | B74: IDAHO STEM ACADEMY, INC. | C74: 78455129 | D74: 274587929 | E74: 9508.1 | F74: 17.92 | G74: 0 | H74: 26579.07 | I74: 167013.77 | J74: 0 | K74: 14472.67 | M74: 485 | N74: IDAHO STEM ACADEMY, INC. | O74: 9508.1 | P74: 17.92 | Q74: 0 | R74: 26579.07 | S74: 167013.77 | T74: 0 | U74: 14472.67
A75: 452 | B75: IDAHO VIRTUAL ACADEMY, INC. | C75: 793722781 | D75: 10720150 | E75: 786 | F75: 448.48 | G75: 322.99 | H75: 311428.21 | I75: 0 | J75: 2411365.24 | K75: 366974.9 | M75: 452 | N75: IDAHO VIRTUAL ACADEMY, INC. | O75: 786 | P75: 448.48 | Q75: 322.99 | R75: 311428.21 | S75: 0 | T75: 2411365.24 | U75: 366974.9
A76: 469 | B76: IDAHO VIRTUAL EDUCATION PARTNERS, INC. | C76: 832251305 | D76: 263814847 | E76: 10733.33 | F76: 0 | G76: 128558.59 | H76: 0 | I76: 135692.84 | J76: 0 | K76: 0 | M76: 469 | N76: IDAHO VIRTUAL EDUCATION PARTNERS, INC. | O76: 10733.33 | P76: 0 | Q76: 128558.59 | R76: 0 | S76: 135692.84 | T76: 0 | U76: 0
A77: 453 | B77: IDAHO VIRTUAL HIGH SCHOOL, INC. | C77: 170660455 | D77: 10577656 | E77: 0 | F77: 0 | G77: 4916.96 | H77: 0 | I77: 59173.04 | J77: 0 | K77: 0 | M77: 453 | N77: IDAHO VIRTUAL HIGH SCHOOL, INC. | O77: 0 | P77: 0 | Q77: 4916.96 | R77: 0 | S77: 59173.04 | T77: 0 | U77: 0
A78: 457 | B78: INSPIRE ACADEMICS, INC. | C78: 797530305 | D78: 202193239 | E78: 16038.87 | F78: 0 | G78: 0 | H78: 98689.88 | I78: 0 | J78: 642963.3 | K78: 0 | M78: 457 | N78: INSPIRE ACADEMICS, INC. | O78: 16038.87 | P78: 0 | Q78: 0 | R78: 98689.88 | S78: 0 | T78: 642963.3 | U78: 0
A79: 540 | B79: ISLAND PARK CHARTER SCHOOL, INC. | C79: 117224934 | D79: 831266928 | E79: 285.18 | F79: 0 | G79: 2353.43 | H79: 0 | I79: 0 | J79: 0 | K79: 0 | M79: 540 | N79: ISLAND PARK CHARTER SCHOOL, INC. | O79: 285.18 | P79: 0 | Q79: 2353.43 | R79: 0 | S79: 0 | T79: 0 | U79: 0
A80: 466 | B80: ISUCCEED VIRTUAL HIGH SCHOOL, INC. | C80: 878662498 | D80: 262224774 | E80: 0 | F80: 0 | G80: 0 | H80: 375839.86 | I80: 0 | J80: 0 | K80: 0 | M80: 466 | N80: ISUCCEED VIRTUAL HIGH SCHOOL, INC. | O80: 0 | P80: 0 | Q80: 0 | R80: 375839.86 | S80: 0 | T80: 0 | U80: 0
A81: 251 | B81: JEFFERSON COUNTY JOINT DISTRICT | C81: 29738903 | D81: 826000779 | E81: 17197.41 | F81: 558.72 | G81: 0 | H81: 0 | I81: 0 | J81: 1939356.13 | K81: 131192.96 | M81: 251 | N81: JEFFERSON COUNTY JOINT DISTRICT | O81: 17197.41 | P81: 558.72 | Q81: 0 | R81: 0 | S81: 0 | T81: 1939356.13 | U81: 131192.96
A82: 261 | B82: JEROME JOINT DISTRICT | C82: 100015056 | D82: 826003634 | E82: 1978.74 | F82: 666.33 | G82: 0 | H82: 557169.34 | I82: 0 | J82: 141832.62 | K82: 276653.32 | M82: 261 | N82: JEROME JOINT DISTRICT | O82: 1978.74 | P82: 666.33 | Q82: 0 | R82: 557169.34 | S82: 0 | T82: 141832.62 | U82: 276653.32
A83: 2 | B83: JOINT SCHOOL DISTRICT NO. 2 | C83: 29604402 | D83: 826001213 | E83: 27551.02 | F83: 21581.65 | G83: 1186958.36 | H83: 10366378.52 | I83: 0 | J83: 11913174.43 | K83: 682396 | M83: 2 | N83: JOINT SCHOOL DISTRICT NO. 2 | O83: 27551.02 | P83: 21581.65 | Q83: 1186958.36 | R83: 10366378.52 | S83: 0 | T83: 11913174.43 | U83: 682396
A84: 304 | B84: KAMIAH JOINT DISTRICT | C84: 159151398 | D84: 826004161 | E84: 2978.86 | F84: 2860.91 | G84: 0 | H84: 435856.75 | I84: 0 | J84: 90354.26 | K84: 135591.29 | M84: 304 | N84: KAMIAH JOINT DISTRICT | O84: 2978.86 | P84: 2860.91 | Q84: 0 | R84: 435856.75 | S84: 0 | T84: 90354.26 | U84: 135591.29
A85: 391 | B85: KELLOGG JOINT DISTRICT | C85: 100186402 | D85: 826000884 | E85: 20249.94 | F85: 270.78 | G85: 0 | H85: 2367.86 | I85: 0 | J85: 1069824 | K85: 132683.33 | M85: 391 | N85: KELLOGG JOINT DISTRICT | O85: 20249.94 | P85: 270.78 | Q85: 0 | R85: 2367.86 | S85: 0 | T85: 1069824 | U85: 132683.33
A86: 283 | B86: KENDRICK JOINT DISTRICT | C86: 100646397 | D86: 826000816 | E86: 6189.63 | F86: 578.31 | G86: 20365 | H86: 51395.26 | I86: 22862.69 | J86: 0 | K86: 2512.58 | M86: 283 | N86: KENDRICK JOINT DISTRICT | O86: 6189.63 | P86: 578.31 | Q86: 20365 | R86: 51395.26 | S86: 22862.69 | T86: 0 | U86: 2512.58
A87: 414 | B87: KIMBERLY DISTRICT | C87: 879016921 | D87: 826000895 | E87: 3560.71 | F87: 143.74 | G87: 4418.35 | H87: 179588.52 | I87: 0 | J87: 98120 | K87: 50198.82 | M87: 414 | N87: KIMBERLY DISTRICT | O87: 3560.71 | P87: 143.74 | Q87: 4418.35 | R87: 179588.52 | S87: 0 | T87: 98120 | U87: 50198.82
A88: 274 | B88: KOOTENAI DISTRICT | C88: 100646405 | D88: 826003651 | E88: 0 | F88: 44.83 | G88: 0 | H88: 36445.78 | I88: 0 | J88: 107070.95 | K88: 38738.99 | M88: 274 | N88: KOOTENAI DISTRICT | O88: 0 | P88: 44.83 | Q88: 0 | R88: 36445.78 | S88: 0 | T88: 107070.95 | U88: 38738.99
A89: 3 | B89: KUNA JOINT DISTRICT | C89: 100015072 | D89: 826001275 | E89: 2581.8 | F89: 875.09 | G89: 0 | H89: 1260484.03 | I89: 0 | J89: 1003747.75 | K89: 999680.16 | M89: 3 | N89: KUNA JOINT DISTRICT | O89: 2581.8 | P89: 875.09 | Q89: 0 | R89: 1260484.03 | S89: 0 | T89: 1003747.75 | U89: 999680.16
A90: 84 | B90: LAKE PEND OREILLE SCHOOL DISTRICT | C90: 832156884 | D90: 820508739 | E90: 24936.19 | F90: 584.6 | G90: 0 | H90: 0 | I90: 0 | J90: 2700377.97 | K90: 446781.62 | M90: 84 | N90: LAKE PEND OREILLE SCHOOL DISTRICT | O90: 24936.19 | P90: 584.6 | Q90: 0 | R90: 0 | S90: 0 | T90: 2700377.97 | U90: 446781.62
A91: 272 | B91: LAKELAND DISTRICT | C91: 100015080 | D91: 826000812 | E91: 2160.91 | F91: 770.2 | G91: 0 | H91: 597855.64 | I91: 0 | J91: 2022571.65 | K91: 1042717.32 | M91: 272 | N91: LAKELAND DISTRICT | O91: 2160.91 | P91: 770.2 | Q91: 0 | R91: 597855.64 | S91: 0 | T91: 2022571.65 | U91: 1042717.32
A92: 341 | B92: LAPWAI DISTRICT | C92: 100015098 | D92: 826000843 | E92: 0 | F92: 152.96 | G92: 0 | H92: 1247.81 | I92: 0 | J92: 696561.72 | K92: 106293.61 | M92: 341 | N92: LAPWAI DISTRICT | O92: 0 | P92: 152.96 | Q92: 0 | R92: 1247.81 | S92: 0 | T92: 696561.72 | U92: 106293.61
A93: 478 | B93: LEGACY PUBLIC CHARTER SCHOOL, INC. | C93: 968870522 | D93: 272515468 | E93: 0 | F93: 37.09 | G93: 6789.6 | H93: 1477.61 | I93: 20042.86 | J93: 64567.47 | K93: 28774 | M93: 478 | N93: LEGACY PUBLIC CHARTER SCHOOL, INC. | O93: 0 | P93: 37.09 | Q93: 6789.6 | R93: 1477.61 | S93: 20042.86 | T93: 64567.47 | U93: 28774
A94: 340 | B94: LEWISTON INDEPENDENT DISTRICT | C94: 100186600 | D94: 826000839 | E94: 27593.83 | F94: 649.85 | G94: 0 | H94: 251149.06 | I94: 0 | J94: 1022859.74 | K94: 751827.95 | M94: 340 | N94: LEWISTON INDEPENDENT DISTRICT | O94: 27593.83 | P94: 649.85 | Q94: 0 | R94: 251149.06 | S94: 0 | T94: 1022859.74 | U94: 751827.95
A95: 458 | B95: LIBERTY CHARTER SCHOOL, INC. | C95: 105529221 | D95: 820512446 | E95: 0 | F95: 43.17 | G95: 68382.69 | H95: 324.65 | I95: 26174 | J95: 23280.97 | K95: 21156.04 | M95: 458 | N95: LIBERTY CHARTER SCHOOL, INC. | O95: 0 | P95: 43.17 | Q95: 68382.69 | R95: 324.65 | S95: 26174 | T95: 23280.97 | U95: 21156.04
A96: 182 | B96: MACKAY JOINT DISTRICT | C96: 25531166 | D96: 826000738 | E96: 13000.16 | F96: 13119.6 | G96: 0 | H96: 82603 | I96: 100000 | J96: 148000 | K96: 10101.37 | M96: 182 | N96: MACKAY JOINT DISTRICT | O96: 13000.16 | P96: 13119.6 | Q96: 0 | R96: 82603 | S96: 100000 | T96: 148000 | U96: 10101.37
A97: 321 | B97: MADISON DISTRICT | C97: 100646413 | D97: 826000835 | E97: 4783.18 | F97: 845.59 | G97: 0 | H97: 7719.63 | I97: 0 | J97: 3328648.31 | K97: 1048080.92 | M97: 321 | N97: MADISON DISTRICT | O97: 4783.18 | P97: 845.59 | Q97: 0 | R97: 7719.63 | S97: 0 | T97: 3328648.31 | U97: 1048080.92
A98: 21 | B98: MARSH VALLEY JOINT DISTRICT | C98: 193088374 | D98: 826000590 | E98: 0 | F98: 120 | G98: 0 | H98: 1513.79 | I98: 0 | J98: 1037929.44 | K98: 0 | M98: 21 | N98: MARSH VALLEY JOINT DISTRICT | O98: 0 | P98: 120 | Q98: 0 | R98: 1513.79 | S98: 0 | T98: 1037929.44 | U98: 0
A99: 363 | B99: MARSING JOINT DISTRICT | C99: 86812005 | D99: 826000855 | E99: 62.55 | F99: 234.23 | G99: 0 | H99: 70686.34 | I99: 0 | J99: 583780.46 | K99: 47775.09 | M99: 363 | N99: MARSING JOINT DISTRICT | O99: 62.55 | P99: 234.23 | Q99: 0 | R99: 70686.34 | S99: 0 | T99: 583780.46 | U99: 47775.09
A100: 421 | B100: MCCALL-DONNELLY JOINT SCHOOL DISTRICT | C100: 100599125 | D100: 826000906 | E100: 2606 | F100: 107.71 | G100: 64974.39 | H100: 112547.62 | I100: 0 | J100: 198057.6 | K100: 29432.97 | M100: 421 | N100: MCCALL-DONNELLY JOINT SCHOOL DISTRICT | O100: 2606 | P100: 107.71 | Q100: 64974.39 | R100: 112547.62 | S100: 0 | T100: 198057.6 | U100: 29432.97
A101: 11 | B101: MEADOWS VALLEY DISTRICT | C101: 100015122 | D101: 826000583 | E101: 39.49 | F101: 44.6 | G101: 0 | H101: 102901.85 | I101: 0 | J101: 0 | K101: 18375.14 | M101: 11 | N101: MEADOWS VALLEY DISTRICT | O101: 39.49 | P101: 44.6 | Q101: 0 | R101: 102901.85 | S101: 0 | T101: 0 | U101: 18375.14
A102: 136 | B102: MELBA JOINT DISTRICT | C102: 184973659 | D102: 826001130 | E102: 638.1 | F102: 98.06 | G102: 885.31 | H102: 137076.52 | I102: 0 | J102: 143222.38 | K102: 41454.67 | M102: 136 | N102: MELBA JOINT DISTRICT | O102: 638.1 | P102: 98.06 | Q102: 885.31 | R102: 137076.52 | S102: 0 | T102: 143222.38 | U102: 41454.67
A103: 785 | B103: MERIDIAN MEDICAL ARTS CHARTER HIGH SCHOOL, INC. | C103: 67651558 | D103: 571149368 | E103: 3332.39 | F103: 0 | G103: 23854.87 | H103: 0 | I103: 0 | J103: 0 | K103: 0 | M103: 785 | N103: MERIDIAN MEDICAL ARTS CHARTER HIGH SCHOOL, INC. | O103: 3332.39 | P103: 0 | Q103: 23854.87 | R103: 0 | S103: 0 | T103: 0 | U103: 0
A104: 768 | B104: MERIDIAN TECHNICAL CHARTER HIGH SCHOOL, INC. | C104: 44111453 | D104: 820512811 | E104: 0 | F104: 0 | G104: 65450.31 | H104: 0 | I104: 0 | J104: 0 | K104: 0 | M104: 768 | N104: MERIDIAN TECHNICAL CHARTER HIGH SCHOOL, INC. | O104: 0 | P104: 0 | Q104: 65450.31 | R104: 0 | S104: 0 | T104: 0 | U104: 0
A105: 134 | B105: MIDDLETON DISTRICT | C105: 29646403 | D105: 826003508 | E105: 1947.37 | F105: 302.68 | G105: 9383.69 | H105: 235859.8 | I105: 0 | J105: 2207.55 | K105: 0 | M105: 134 | N105: MIDDLETON DISTRICT | O105: 1947.37 | P105: 302.68 | Q105: 9383.69 | R105: 235859.8 | S105: 0 | T105: 2207.55 | U105: 0
A106: 433 | B106: MIDVALE DISTRICT | C106: 183894732 | D106: 826001364 | E106: 0 | F106: 0 | G106: 155.81 | H106: 1769.63 | I106: 0 | J106: 13855 | K106: 18758.82 | M106: 433 | N106: MIDVALE DISTRICT | O106: 0 | P106: 0 | Q106: 155.81 | R106: 1769.63 | S106: 0 | T106: 13855 | U106: 18758.82
A107: 331 | B107: MINIDOKA COUNTY JOINT DISTRICT | C107: 100015171 | D107: 826000837 | E107: 2606 | F107: 652.52 | G107: 0 | H107: 376928.55 | I107: 0 | J107: 2173499.43 | K107: 280671.55 | M107: 331 | N107: MINIDOKA COUNTY JOINT DISTRICT | O107: 2606 | P107: 652.52 | Q107: 0 | R107: 376928.55 | S107: 0 | T107: 2173499.43 | U107: 280671.55
A108: 474 | B108: MONTICELLO MONTESSORI CHARTER SCHOOL, INC. | C108: 961942005 | D108: 270186469 | E108: 3196.29 | F108: 37.67 | G108: 0 | H108: 32622.28 | I108: 0 | J108: 136276.94 | K108: 14932.26 | M108: 474 | N108: MONTICELLO MONTESSORI CHARTER SCHOOL, INC. | O108: 3196.29 | P108: 37.67 | Q108: 0 | R108: 32622.28 | S108: 0 | T108: 136276.94 | U108: 14932.26
A109: 544 | B109: MOSAICS PUBLIC SCHOOL, INC. | C109: 117130660 | D109: 832231987 | E109: 23 | F109: 18.8 | G109: 0 | H109: 40639.3 | I109: 0 | J109: 126291.75 | K109: 26294.65 | M109: 544 | N109: MOSAICS PUBLIC SCHOOL, INC. | O109: 23 | P109: 18.8 | Q109: 0 | R109: 40639.3 | S109: 0 | T109: 126291.75 | U109: 26294.65
A110: 813 | B110: MOSCOW CHARTER SCHOOL, INC. | C110: 93632698 | D110: 820505459 | E110: 0 | F110: 0 | G110: 25565.15 | H110: 0 | I110: 0 | J110: 0 | K110: 0 | M110: 813 | N110: MOSCOW CHARTER SCHOOL, INC. | O110: 0 | P110: 0 | Q110: 25565.15 | R110: 0 | S110: 0 | T110: 0 | U110: 0
A111: 281 | B111: MOSCOW DISTRICT | C111: 29785391 | D111: 826000814 | E111: 8811.6 | F111: 291.39 | G111: 0 | H111: 130011.84 | I111: 0 | J111: 307428.58 | K111: 177935.94 | M111: 281 | N111: MOSCOW DISTRICT | O111: 8811.6 | P111: 291.39 | Q111: 0 | R111: 130011.84 | S111: 0 | T111: 307428.58 | U111: 177935.94
A112: 193 | B112: MOUNTAIN HOME DISTRICT | C112: 127655744 | D112: 826000742 | E112: 189.18 | F112: 651 | G112: 0 | H112: 987226.88 | I112: 0 | J112: 3364581.4 | K112: 387233.96 | M112: 193 | N112: MOUNTAIN HOME DISTRICT | O112: 189.18 | P112: 651 | Q112: 0 | R112: 987226.88 | S112: 0 | T112: 3364581.4 | U112: 387233.96
A113: 244 | B113: MOUNTAIN VIEW SCHOOL DISTRICT | C113: 76641414 | D113: 593838651 | E113: 2835.18 | F113: 211.62 | G113: 0 | H113: 405436.41 | I113: 0 | J113: 198806.55 | K113: 310797.87 | M113: 244 | N113: MOUNTAIN VIEW SCHOOL DISTRICT | O113: 2835.18 | P113: 211.62 | Q113: 0 | R113: 405436.41 | S113: 0 | T113: 198806.55 | U113: 310797.87
A114: 392 | B114: MULLAN DISTRICT | C114: 100015197 | D114: 826000885 | E114: 1222.63 | F114: 44.66 | G114: 0 | H114: 101070.58 | I114: 0 | J114: 0 | K114: 0 | M114: 392 | N114: MULLAN DISTRICT | O114: 1222.63 | P114: 44.66 | Q114: 0 | R114: 101070.58 | S114: 0 | T114: 0 | U114: 0
A115: 418 | B115: MURTAUGH JOINT DISTRICT | C115: 192846512 | D115: 826000890 | E115: 526.18 | F115: 33.9 | G115: 913.98 | H115: 347.47 | I115: 3526 | J115: 140548.85 | K115: 40185.63 | M115: 418 | N115: MURTAUGH JOINT DISTRICT | O115: 526.18 | P115: 33.9 | Q115: 913.98 | R115: 347.47 | S115: 3526 | T115: 140548.85 | U115: 40185.63
A116: 131 | B116: NAMPA SCHOOL DISTRICT | C116: 29646478 | D116: 826000727 | E116: 1342.56 | F116: 7397.53 | G116: 0 | H116: 4067279.62 | I116: 0 | J116: 6985000.21 | K116: 1358981.71 | M116: 131 | N116: NAMPA SCHOOL DISTRICT | O116: 1342.56 | P116: 7397.53 | Q116: 0 | R116: 4067279.62 | S116: 0 | T116: 6985000.21 | U116: 1358981.71
A117: 372 | B117: NEW PLYMOUTH DISTRICT | C117: 29880812 | D117: 826000863 | E117: 0 | F117: 0 | G117: 0 | H117: 196936.9 | I117: 0 | J117: 560534.48 | K117: 224720.29 | M117: 372 | N117: NEW PLYMOUTH DISTRICT | O117: 0 | P117: 0 | Q117: 0 | R117: 196936.9 | S117: 0 | T117: 560534.48 | U117: 224720.29
A118: 302 | B118: NEZPERCE JOINT DISTRICT | C118: 794728741 | D118: 826001370 | E118: 460.18 | F118: 18.55 | G118: 36302.53 | H118: 72277.24 | I118: 17915.05 | J118: 99056.05 | K118: 11.81 | M118: 302 | N118: NEZPERCE JOINT DISTRICT | O118: 460.18 | P118: 18.55 | Q118: 36302.53 | R118: 72277.24 | S118: 17915.05 | T118: 99056.05 | U118: 11.81
A119: 149 | B119: NORTH GEM DISTRICT | C119: 800469277 | D119: 826001137 | E119: 11738.74 | F119: 17.25 | G119: 13575.77 | H119: 28700.07 | I119: 0 | J119: 33902.31 | K119: 11377.36 | M119: 149 | N119: NORTH GEM DISTRICT | O119: 11738.74 | P119: 17.25 | Q119: 13575.77 | R119: 28700.07 | S119: 0 | T119: 33902.31 | U119: 11377.36
A120: 480 | B120: NORTH IDAHO STEM CHARTER ACADEMY, INC. | C120: 14744681 | D120: 271042057 | E120: 1440 | F120: 0 | G120: 4390.55 | H120: 0 | I120: 191587.58 | J120: 0 | K120: 0 | M120: 480 | N120: NORTH IDAHO STEM CHARTER ACADEMY, INC. | O120: 1440 | P120: 0 | Q120: 4390.55 | R120: 0 | S120: 191587.58 | T120: 0 | U120: 0
A121: 493 | B121: NORTH STAR CHARTER SCHOOL, INC. | C121: 114313609 | D121: 113643458 | E121: 852.49 | F121: 0 | G121: 6433.19 | H121: 0 | I121: 284792.93 | J121: 0 | K121: 0 | M121: 493 | N121: NORTH STAR CHARTER SCHOOL, INC. | O121: 852.49 | P121: 0 | Q121: 6433.19 | R121: 0 | S121: 284792.93 | T121: 0 | U121: 0
A122: 465 | B122: NORTH VALLEY ACADEMY, INC. | C122: 830799883 | D122: 260820021 | E122: 1150 | F122: 0 | G122: 0 | H122: 39357.91 | I122: 0 | J122: 104137.43 | K122: 0 | M122: 465 | N122: NORTH VALLEY ACADEMY, INC. | O122: 1150 | P122: 0 | Q122: 0 | R122: 39357.91 | S122: 0 | T122: 104137.43 | U122: 0
A123: 135 | B123: NOTUS DISTRICT | C123: 100015239 | D123: 826002944 | E123: 8356.49 | F123: 0 | G123: 0 | H123: 233134.95 | I123: 0 | J123: 196639.27 | K123: 115468.07 | M123: 135 | N123: NOTUS DISTRICT | O123: 8356.49 | P123: 0 | Q123: 0 | R123: 233134.95 | S123: 0 | T123: 196639.27 | U123: 115468.07
A124: 351 | B124: ONEIDA COUNTY DISTRICT | C124: 100015247 | D124: 826000844 | E124: 1306 | F124: 114.48 | G124: 38357 | H124: 300562.26 | I124: 0 | J124: 104823.42 | K124: 0 | M124: 351 | N124: ONEIDA COUNTY DISTRICT | O124: 1306 | P124: 114.48 | Q124: 38357 | R124: 300562.26 | S124: 0 | T124: 104823.42 | U124: 0
A125: 171 | B125: OROFINO JOINT DISTRICT | C125: 97241129 | D125: 826000734 | E125: 2678.19 | F125: 175.21 | G125: 0 | H125: 341756.37 | I125: 0 | J125: 1207691.96 | K125: 73473.85 | M125: 171 | N125: OROFINO JOINT DISTRICT | O125: 2678.19 | P125: 175.21 | Q125: 0 | R125: 341756.37 | S125: 0 | T125: 1207691.96 | U125: 73473.85
A126: 472 | B126: PALOUSE PRAIRIE EDUCATIONAL ORGANIZATION, INC. | C126: 609526947 | D126: 208870679 | E126: 444.25 | F126: 15.83 | G126: 6478.12 | H126: 20481.95 | I126: 0 | J126: 65211.11 | K126: 11801.34 | M126: 472 | N126: PALOUSE PRAIRIE EDUCATIONAL ORGANIZATION, INC. | O126: 444.25 | P126: 15.83 | Q126: 6478.12 | R126: 20481.95 | S126: 0 | T126: 65211.11 | U126: 11801.34
A127: 137 | B127: PARMA DISTRICT | C127: 100015254 | D127: 826003335 | E127: 708.66 | F127: 158.95 | G127: 0 | H127: 129830.66 | I127: 0 | J127: 498355.3 | K127: 92616.24 | M127: 137 | N127: PARMA DISTRICT | O127: 708.66 | P127: 158.95 | Q127: 0 | R127: 129830.66 | S127: 0 | T127: 498355.3 | U127: 92616.24
A128: 497 | B128: PATHWAYS IN EDUCATION - NAMPA, INC. | C128: 80600403 | D128: 814963154 | E128: 410.55 | F128: 0 | G128: 8217.41 | H128: 109290 | I128: 16407.49 | J128: 0 | K128: 9060 | M128: 497 | N128: PATHWAYS IN EDUCATION - NAMPA, INC. | O128: 410.55 | P128: 0 | Q128: 8217.41 | R128: 109290 | S128: 16407.49 | T128: 0 | U128: 9060
A129: 371 | B129: PAYETTE JOINT DISTRICT | C129: 181918483 | D129: 826000862 | E129: 5891.84 | F129: 369.45 | G129: 0 | H129: 53842.32 | I129: 0 | J129: 746389.32 | K129: 378466.9 | M129: 371 | N129: PAYETTE JOINT DISTRICT | O129: 5891.84 | P129: 369.45 | Q129: 0 | R129: 53842.32 | S129: 0 | T129: 746389.32 | U129: 378466.9
A130: 794 | B130: PAYETTE RIVER TECHNICAL ACADEMY, INC. | C130: 965786168 | D130: 271285798 | E130: 4590 | F130: 0 | G130: 0 | H130: 0 | I130: 0 | J130: 0 | K130: 0 | M130: 794 | N130: PAYETTE RIVER TECHNICAL ACADEMY, INC. | O130: 4590 | P130: 0 | Q130: 0 | R130: 0 | S130: 0 | T130: 0 | U130: 0
A131: 511 | B131: PEACE VALLEY CHARTER SCHOOL, INC. | C131: 80965852 | D131: 814365929 | E131: 2795.18 | F131: 14.93 | G131: 41796.91 | H131: 61267.32 | I131: 72023 | J131: 50346.76 | K131: 36436.28 | M131: 511 | N131: PEACE VALLEY CHARTER SCHOOL, INC. | O131: 2795.18 | P131: 14.93 | Q131: 41796.91 | R131: 61267.32 | S131: 72023 | T131: 50346.76 | U131: 36436.28
A132: 553 | B132: PINECREST ACADEMY OF IDAHO, INC. | C132: 117180145 | D132: 842768672 | E132: 2451.06 | F132: 0 | G132: 0 | H132: 0 | I132: 144285.83 | J132: 0 | K132: 0 | M132: 553 | N132: PINECREST ACADEMY OF IDAHO, INC. | O132: 2451.06 | P132: 0 | Q132: 0 | R132: 0 | S132: 144285.83 | T132: 0 | U132: 0
A133: 364 | B133: PLEASANT VALLEY ELEMENTARY DISTRICT | C133: 179267117 | D133: 826000847 | E133: 0 | F133: 0 | G133: 6402.97 | H133: 0 | I133: 94756.4 | J133: 0 | K133: 0 | M133: 364 | N133: PLEASANT VALLEY ELEMENTARY DISTRICT | O133: 0 | P133: 0 | Q133: 6402.97 | R133: 0 | S133: 94756.4 | T133: 0 | U133: 0
A134: 44 | B134: PLUMMER-WORLEY JOINT DISTRICT | C134: 621456672 | D134: 826000613 | E134: 3675.03 | F134: 241.03 | G134: 0 | H134: 752267.3 | I134: 0 | J134: 148213.38 | K134: 98164.25 | M134: 44 | N134: PLUMMER-WORLEY JOINT DISTRICT | O134: 3675.03 | P134: 241.03 | Q134: 0 | R134: 752267.3 | S134: 0 | T134: 148213.38 | U134: 98164.25
A135: 25 | B135: POCATELLO DISTRICT | C135: 29614922 | D135: 826000591 | E135: 20863.16 | F135: 2190.57 | G135: 0 | H135: 19155.34 | I135: 0 | J135: 10305028.09 | K135: 977898.77 | M135: 25 | N135: POCATELLO DISTRICT | O135: 20863.16 | P135: 2190.57 | Q135: 0 | R135: 19155.34 | S135: 0 | T135: 10305028.09 | U135: 977898.77
A136: 273 | B136: POST FALLS DISTRICT | C136: 76666767 | D136: 826000813 | E136: 294.52 | F136: 0 | G136: 0 | H136: 294283.54 | I136: 0 | J136: 2554761.3 | K136: 1314137.79 | M136: 273 | N136: POST FALLS DISTRICT | O136: 294.52 | P136: 0 | Q136: 0 | R136: 294283.54 | S136: 0 | T136: 2554761.3 | U136: 1314137.79
A137: 285 | B137: POTLATCH DISTRICT | C137: 100599133 | D137: 826000817 | E137: 8269.94 | F137: 52.09 | G137: 0 | H137: 62780.48 | I137: 0 | J137: 404359.49 | K137: 25473.6 | M137: 285 | N137: POTLATCH DISTRICT | O137: 8269.94 | P137: 52.09 | Q137: 0 | R137: 62780.48 | S137: 0 | T137: 404359.49 | U137: 25473.6
A138: 191 | B138: Prairie Elementary District | C138: 159147461 | D138: 826001384 | E138: 0 | F138: 0 | G138: 0 | H138: 0 | I138: 0 | J138: 0 | K138: 0 | M138: 191 | N138: Prairie Elementary District | O138: 0 | P138: 0 | Q138: 0 | R138: 0 | S138: 0 | T138: 0 | U138: 0
A139: 201 | B139: PRESTON JOINT DISTRICT | C139: 157817024 | D139: 826000749 | E139: 0 | F139: 0 | G139: 0 | H139: 0 | I139: 0 | J139: 183232.57 | K139: 71745.61 | M139: 201 | N139: PRESTON JOINT DISTRICT | O139: 0 | P139: 0 | Q139: 0 | R139: 0 | S139: 0 | T139: 183232.57 | U139: 71745.61
A140: 513 | B140: PROJECT IMPACT STEM ACADEMY, INC. | C140: 80846237 | D140: 821955574 | E140: 324.21 | F140: 0 | G140: 0 | H140: 361.77 | I140: 72653 | J140: 155169.72 | K140: 9613.22 | M140: 513 | N140: PROJECT IMPACT STEM ACADEMY, INC. | O140: 324.21 | P140: 0 | Q140: 0 | R140: 361.77 | S140: 72653 | T140: 155169.72 | U140: 9613.22
A141: 316 | B141: RICHFIELD DISTRICT | C141: 29825924 | D141: 826001279 | E141: 7625.75 | F141: 0 | G141: 0 | H141: 38964.85 | I141: 0 | J141: 61109.24 | K141: 8698.36 | M141: 316 | N141: RICHFIELD DISTRICT | O141: 7625.75 | P141: 0 | Q141: 0 | R141: 38964.85 | S141: 0 | T141: 61109.24 | U141: 8698.36
A142: 252 | B142: RIRIE JOINT DISTRICT | C142: 926460742 | D142: 820259363 | E142: 3590.29 | F142: 44.36 | G142: 5853.29 | H142: 0 | I142: 0 | J142: 19024.76 | K142: 18150.15 | M142: 252 | N142: RIRIE JOINT DISTRICT | O142: 3590.29 | P142: 44.36 | Q142: 5853.29 | R142: 0 | S142: 0 | T142: 19024.76 | U142: 18150.15
A143: 382 | B143: ROCKLAND DISTRICT | C143: 100187848 | D143: 826000866 | E143: 8483 | F143: 3018.42 | G143: 6657.05 | H143: 64899.97 | I143: 0 | J143: 47574.78 | K143: 5280.19 | M143: 382 | N143: ROCKLAND DISTRICT | O143: 8483 | P143: 3018.42 | Q143: 6657.05 | R143: 64899.97 | S143: 0 | T143: 47574.78 | U143: 5280.19
A144: 454 | B144: ROLLING HILLS PUBLIC CHARTER SCHOOL, INC. | C144: 938170441 | D144: 201868297 | E144: 318.87 | F144: 25.01 | G144: 1008.63 | H144: 10300.64 | I144: 53877.38 | J144: 228853.49 | K144: 56252.27 | M144: 454 | N144: ROLLING HILLS PUBLIC CHARTER SCHOOL, INC. | O144: 318.87 | P144: 25.01 | Q144: 1008.63 | R144: 10300.64 | S144: 53877.38 | T144: 228853.49 | U144: 56252.27
A145: 291 | B145: SALMON DISTRICT | C145: 100015296 | D145: 826000821 | E145: 1847.44 | F145: 209.55 | G145: 0 | H145: 197743.47 | I145: 0 | J145: 0 | K145: 11533 | M145: 291 | N145: SALMON DISTRICT | O145: 1847.44 | P145: 209.55 | Q145: 0 | R145: 197743.47 | S145: 0 | T145: 0 | U145: 11533
A146: 243 | B146: SALMON RIVER JOINT SCHOOL DISTRICT | C146: 806404062 | D146: 593838650 | E146: 2617.13 | F146: 31.22 | G146: 1660.97 | H146: 265.47 | I146: 85053 | J146: 212350.05 | K146: 53045.33 | M146: 243 | N146: SALMON RIVER JOINT SCHOOL DISTRICT | O146: 2617.13 | P146: 31.22 | Q146: 1660.97 | R146: 265.47 | S146: 85053 | T146: 212350.05 | U146: 53045.33
A147: 487 | B147: SANDPOINT CHARTER SCHOOL, INC. | C147: 94295685 | D147: 820505769 | E147: 407.29 | F147: 65.22 | G147: 0 | H147: 72019.96 | I147: 0 | J147: 216769.79 | K147: 17827.04 | M147: 487 | N147: SANDPOINT CHARTER SCHOOL, INC. | O147: 407.29 | P147: 65.22 | Q147: 0 | R147: 72019.96 | S147: 0 | T147: 216769.79 | U147: 17827.04
A148: 60 | B148: SHELLEY JOINT DISTRICT | C148: 181965740 | D148: 826000619 | E148: 3774.19 | F148: 218.05 | G148: 8947.42 | H148: 166905.8 | I148: 0 | J148: 1215323.74 | K148: 318883.53 | M148: 60 | N148: SHELLEY JOINT DISTRICT | O148: 3774.19 | P148: 218.05 | Q148: 8947.42 | R148: 166905.8 | S148: 0 | T148: 1215323.74 | U148: 318883.53
A149: 312 | B149: SHOSHONE JOINT DISTRICT | C149: 193218260 | D149: 826003374 | E149: 479.87 | F149: 87.26 | G149: 0 | H149: 0 | I149: 0 | J149: 44512.21 | K149: 110790.88 | M149: 312 | N149: SHOSHONE JOINT DISTRICT | O149: 479.87 | P149: 87.26 | Q149: 0 | R149: 0 | S149: 0 | T149: 44512.21 | U149: 110790.88
A150: 52 | B150: SNAKE RIVER DISTRICT | C150: 29628674 | D150: 826000615 | E150: 0 | F150: 0 | G150: 0 | H150: 111964.67 | I150: 0 | J150: 2184.37 | K150: 171.59 | M150: 52 | N150: SNAKE RIVER DISTRICT | O150: 0 | P150: 0 | Q150: 0 | R150: 111964.67 | S150: 0 | T150: 2184.37 | U150: 171.59
A151: 150 | B151: SODA SPRINGS JOINT DISTRICT | C151: 878896901 | D151: 826000731 | E151: 764.3 | F151: 81.87 | G151: 482.93 | H151: 6170.9 | I151: 0 | J151: 100341.14 | K151: 7117.78 | M151: 150 | N151: SODA SPRINGS JOINT DISTRICT | O151: 764.3 | P151: 81.87 | Q151: 482.93 | R151: 6170.9 | S151: 0 | T151: 100341.14 | U151: 7117.78
A152: 292 | B152: SOUTH LEMHI DISTRICT | C152: 100187988 | D152: 826000822 | E152: 2552.98 | F152: 20.28 | G152: 14.28 | H152: 2563.86 | I152: 67298.54 | J152: 58069.26 | K152: 30400.08 | M152: 292 | N152: SOUTH LEMHI DISTRICT | O152: 2552.98 | P152: 20.28 | Q152: 14.28 | R152: 2563.86 | S152: 67298.54 | T152: 58069.26 | U152: 30400.08
A153: 41 | B153: ST MARIES JOINT DISTRICT | C153: 10205979 | D153: 826000612 | E153: 66.58 | F153: 51543.77 | G153: 0 | H153: 530594.99 | I153: 0 | J153: 802903.01 | K153: 196572.39 | M153: 41 | N153: ST MARIES JOINT DISTRICT | O153: 66.58 | P153: 51543.77 | Q153: 0 | R153: 530594.99 | S153: 0 | T153: 802903.01 | U153: 196572.39
A154: 322 | B154: SUGAR-SALEM JOINT DISTRICT | C154: 58571670 | D154: 826000836 | E154: 0 | F154: 142.35 | G154: 855.3 | H154: 255261.08 | I154: 0 | J154: 113368.72 | K154: 253003.1 | M154: 322 | N154: SUGAR-SALEM JOINT DISTRICT | O154: 0 | P154: 142.35 | Q154: 855.3 | R154: 255261.08 | S154: 0 | T154: 113368.72 | U154: 253003.1
A155: 92 | B155: SWAN VALLEY ELEMENTARY DISTRICT | C155: 803155381 | D155: 826000681 | E155: 606.94 | F155: 0 | G155: 561.03 | H155: 0 | I155: 113655.49 | J155: 0 | K155: 0 | M155: 92 | N155: SWAN VALLEY ELEMENTARY DISTRICT | O155: 606.94 | P155: 0 | Q155: 561.03 | R155: 0 | S155: 113655.49 | T155: 0 | U155: 0
A156: 488 | B156: SYRINGA MOUNTAIN SCHOOL, INC. | C156: 79390538 | D156: 352450616 | E156: 37.61 | F156: 20.76 | G156: 0 | H156: 29861.09 | I156: 0 | J156: 124147.61 | K156: 18347.92 | M156: 488 | N156: SYRINGA MOUNTAIN SCHOOL, INC. | O156: 37.61 | P156: 20.76 | Q156: 0 | R156: 29861.09 | S156: 0 | T156: 124147.61 | U156: 18347.92
A157: 461 | B157: TAYLOR'S CROSSING PUBLIC CHARTER SCHOOL, INC. | C157: 797535601 | D157: 202701493 | E157: 2606 | F157: 42.34 | G157: 424.86 | H157: 23185.26 | I157: 0 | J157: 84450.1 | K157: 0 | M157: 461 | N157: TAYLOR'S CROSSING PUBLIC CHARTER SCHOOL, INC. | O157: 2606 | P157: 42.34 | Q157: 424.86 | R157: 23185.26 | S157: 0 | T157: 84450.1 | U157: 0
A158: 401 | B158: TETON COUNTY DISTRICT | C158: 100599166 | D158: 826000887 | E158: 1057.84 | F158: 210.97 | G158: 160.89 | H158: 1844.79 | I158: 0 | J158: 362287.71 | K158: 168649.31 | M158: 401 | N158: TETON COUNTY DISTRICT | O158: 1057.84 | P158: 210.97 | Q158: 160.89 | R158: 1844.79 | S158: 0 | T158: 362287.71 | U158: 168649.31
A159: 460 | B159: THE ACADEMY, INC. | C159: 783840858 | D159: 412193534 | E159: 498.97 | F159: 55028.45 | G159: 0 | H159: 0 | I159: 0 | J159: 0 | K159: 0 | M159: 460 | N159: THE ACADEMY, INC. | O159: 498.97 | P159: 55028.45 | Q159: 0 | R159: 0 | S159: 0 | T159: 0 | U159: 0
A160: 470 | B160: The Kootenai Bridge Academy, Inc. | C160: 831646554 | D160: 263573121 | E160: 0 | F160: 0 | G160: 0 | H160: 0 | I160: 0 | J160: 0 | K160: 0 | M160: 470 | N160: The Kootenai Bridge Academy, Inc. | O160: 0 | P160: 0 | Q160: 0 | R160: 0 | S160: 0 | T160: 0 | U160: 0
A161: 494 | B161: THE POCATELLO COMMUNITY CHARTER SCHOOL, INC. | C161: 113912443 | D161: 820506158 | E161: 3929.89 | F161: 46.61 | G161: 0 | H161: 512.25 | I161: 0 | J161: 190511.94 | K161: 78956.48 | M161: 494 | N161: THE POCATELLO COMMUNITY CHARTER SCHOOL, INC. | O161: 3929.89 | P161: 46.61 | Q161: 0 | R161: 512.25 | S161: 0 | T161: 190511.94 | U161: 78956.48
A162: 475 | B162: THE SAGE INTERNATIONAL SCHOOL OF BOISE, A PUBLIC CHARTER SCHOOL, INC. | C162: 32655155 | D162: 270169469 | E162: 569.69 | F162: 93.98 | G162: 35988.1 | H162: 329058.11 | I162: 0 | J162: 142205.46 | K162: 51471.34 | M162: 475 | N162: THE SAGE INTERNATIONAL SCHOOL OF BOISE, A PUBLIC CHARTER SCHOOL, INC. | O162: 569.69 | P162: 93.98 | Q162: 35988.1 | R162: 329058.11 | S162: 0 | T162: 142205.46 | U162: 51471.34
A163: 473 | B163: THE VILLAGE CHARTER SCHOOL, INC. | C163: 968901947 | D163: 270716284 | E163: 3121.19 | F163: 31.77 | G163: 0 | H163: 0 | I163: 0 | J163: 93955 | K163: 69906.06 | M163: 473 | N163: THE VILLAGE CHARTER SCHOOL, INC. | O163: 3121.19 | P163: 31.77 | Q163: 0 | R163: 0 | S163: 0 | T163: 93955 | U163: 69906.06
A164: 559 | B164: THOMAS JEFFERSON CHARTER SCHOOL, INC. | C164: 784840469 | D164: 200508843 | E164: 472 | F164: 17.83 | G164: 0 | H164: 0 | I164: 14529.36 | J164: 6183.71 | K164: 325 | M164: 559 | N164: THOMAS JEFFERSON CHARTER SCHOOL, INC. | O164: 472 | P164: 17.83 | Q164: 0 | R164: 0 | S164: 14529.36 | T164: 6183.71 | U164: 325
A165: 416 | B165: THREE CREEK JOINT ELEMENTARY DISTRICT | C165: 193613791 | D165: 826001249 | E165: 0 | F165: 0 | G165: 0 | H165: 0 | I165: 0 | J165: 0 | K165: 0 | M165: 416 | N165: THREE CREEK JOINT ELEMENTARY DISTRICT | O165: 0 | P165: 0 | Q165: 0 | R165: 0 | S165: 0 | T165: 0 | U165: 0
A166: 532 | B166: TREASURE VALLEY CLASSICAL ACADEMY, INC. | C166: 81137699 | D166: 814720145 | E166: 11430.3 | F166: 2231.43 | G166: 53522.59 | H166: 175433.78 | I166: 0 | J166: 0 | K166: 8311.82 | M166: 532 | N166: TREASURE VALLEY CLASSICAL ACADEMY, INC. | O166: 11430.3 | P166: 2231.43 | Q166: 53522.59 | R166: 175433.78 | S166: 0 | T166: 0 | U166: 8311.82
A167: 287 | B167: TROY SCHOOL DISTRICT | C167: 824948165 | D167: 820530483 | E167: 0 | F167: 0 | G167: 0 | H167: 43.08 | I167: 0 | J167: 37311.42 | K167: 29429.62 | M167: 287 | N167: TROY SCHOOL DISTRICT | O167: 0 | P167: 0 | Q167: 0 | R167: 43.08 | S167: 0 | T167: 37311.42 | U167: 29429.62
A168: 411 | B168: TWIN FALLS DISTRICT | C168: 100015353 | D168: 826000892 | E168: 4227.57 | F168: 1541.68 | G168: 0 | H168: 1646195.11 | I168: 0 | J168: 3970009.38 | K168: 1147718.01 | M168: 411 | N168: TWIN FALLS DISTRICT | O168: 4227.57 | P168: 1541.68 | Q168: 0 | R168: 1646195.11 | S168: 0 | T168: 3970009.38 | U168: 1147718.01
A169: 486 | B169: UPPER CARMEN PUBLIC CHARTER SCHOOL, INC. | C169: 186273954 | D169: 760782276 | E169: 0 | F169: 0 | G169: 1639.39 | H169: 0 | I169: 38699.19 | J169: 0 | K169: 0 | M169: 486 | N169: UPPER CARMEN PUBLIC CHARTER SCHOOL, INC. | O169: 0 | P169: 0 | Q169: 1639.39 | R169: 0 | S169: 38699.19 | T169: 0 | U169: 0
A170: 262 | B170: VALLEY DISTRICT | C170: 800469400 | D170: 826001371 | E170: 738.03 | F170: 71.22 | G170: 0 | H170: 83666.83 | I170: 0 | J170: 146135.15 | K170: 143044.12 | M170: 262 | N170: VALLEY DISTRICT | O170: 738.03 | P170: 71.22 | Q170: 0 | R170: 83666.83 | S170: 0 | T170: 146135.15 | U170: 143044.12
A171: 139 | B171: VALLIVUE SCHOOL DISTRICT | C171: 155896269 | D171: 826001904 | E171: 5943 | F171: 1041.05 | G171: 411.08 | H171: 3204007.42 | I171: 0 | J171: 4275956.51 | K171: 207206.36 | M171: 139 | N171: VALLIVUE SCHOOL DISTRICT | O171: 5943 | P171: 1041.05 | Q171: 411.08 | R171: 3204007.42 | S171: 0 | T171: 4275956.51 | U171: 207206.36
A172: 451 | B172: VICTORY CHARTER SCHOOL, INC. | C172: 195571505 | D172: 562423033 | E172: 393.72 | F172: 42.56 | G172: 981.8 | H172: 319.4 | I172: 0 | J172: 296.03 | K172: 18846.76 | M172: 451 | N172: VICTORY CHARTER SCHOOL, INC. | O172: 393.72 | P172: 42.56 | Q172: 981.8 | R172: 319.4 | S172: 0 | T172: 296.03 | U172: 18846.76
A173: 463 | B173: VISION CHARTER SCHOOL, INC. | C173: 7896716 | D173: 680609551 | E173: 2795.19 | F173: 61.32 | G173: 1835.92 | H173: 28543.44 | I173: 0 | J173: 134867.13 | K173: 108560.55 | M173: 463 | N173: VISION CHARTER SCHOOL, INC. | O173: 2795.19 | P173: 61.32 | Q173: 1835.92 | R173: 28543.44 | S173: 0 | T173: 134867.13 | U173: 108560.55
A174: 393 | B174: WALLACE DISTRICT | C174: 47780739 | D174: 826000886 | E174: 481.28 | F174: 116.9 | G174: 0 | H174: 337217.13 | I174: 0 | J174: 2027.22 | K174: 96315.05 | M174: 393 | N174: WALLACE DISTRICT | O174: 481.28 | P174: 116.9 | Q174: 0 | R174: 337217.13 | S174: 0 | T174: 2027.22 | U174: 96315.05
A175: 431 | B175: WEISER DISTRICT | C175: 181914961 | D175: 826000920 | E175: 194.73 | F175: 0 | G175: 0 | H175: 329722.83 | I175: 0 | J175: 213566.8 | K175: 105315.11 | M175: 431 | N175: WEISER DISTRICT | O175: 194.73 | P175: 0 | Q175: 0 | R175: 329722.83 | S175: 0 | T175: 213566.8 | U175: 105315.11
A176: 232 | B176: WENDELL DISTRICT | C176: 100015379 | D176: 826004158 | E176: 4932 | F176: 158.72 | G176: 0 | H176: 61070.95 | I176: 0 | J176: 947473.17 | K176: 76745 | M176: 232 | N176: WENDELL DISTRICT | O176: 4932 | P176: 158.72 | Q176: 0 | R176: 61070.95 | S176: 0 | T176: 947473.17 | U176: 76745
A177: 83 | B177: WEST BONNER COUNTY DISTRICT | C177: 98834174 | D177: 820508740 | E177: 0 | F177: 61700.88 | G177: 0 | H177: 970676.82 | I177: 0 | J177: 0 | K177: 498139.62 | M177: 83 | N177: WEST BONNER COUNTY DISTRICT | O177: 0 | P177: 61700.88 | Q177: 0 | R177: 970676.82 | S177: 0 | T177: 0 | U177: 498139.62
A178: 253 | B178: WEST JEFFERSON DISTRICT | C178: 122332075 | D178: 820379941 | E178: 682.96 | F178: 73.97 | G178: 0 | H178: 0 | I178: 0 | J178: 78169.19 | K178: 130353 | M178: 253 | N178: WEST JEFFERSON DISTRICT | O178: 682.96 | P178: 73.97 | Q178: 0 | R178: 0 | S178: 0 | T178: 78169.19 | U178: 130353
A179: 202 | B179: WEST SIDE JOINT DISTRICT | C179: 825388556 | D179: 826000750 | E179: 584.38 | F179: 60.53 | G179: 1504.7 | H179: 127722.62 | I179: 0 | J179: 476692 | K179: 119173 | M179: 202 | N179: WEST SIDE JOINT DISTRICT | O179: 584.38 | P179: 60.53 | Q179: 1504.7 | R179: 127722.62 | S179: 0 | T179: 476692 | U179: 119173
A180: 464 | B180: WHITE PINE CHARTER SCHOOL, INC. | C180: 170300300 | D180: 680502170 | E180: 2795.19 | F180: 38.58 | G180: 2007.62 | H180: 369.41 | I180: 0 | J180: 342.38 | K180: 26.89 | M180: 464 | N180: WHITE PINE CHARTER SCHOOL, INC. | O180: 2795.19 | P180: 38.58 | Q180: 2007.62 | R180: 369.41 | S180: 0 | T180: 342.38 | U180: 26.89
A181: 288 | B181: WHITEPINE JOINT SCHOOL DISTRICT | C181: 37409539 | D181: 820530482 | E181: 0 | F181: 0 | G181: 449.94 | H181: 7035.7 | I181: 0 | J181: 188578.39 | K181: 45857.12 | M181: 288 | N181: WHITEPINE JOINT SCHOOL DISTRICT | O181: 0 | P181: 0 | Q181: 449.94 | R181: 7035.7 | S181: 0 | T181: 188578.39 | U181: 45857.12
A182: 133 | B182: WILDER DISTRICT | C182: 29650553 | D182: 826003336 | E182: 490.13 | F182: 184.12 | G182: 0 | H182: 229398.93 | I182: 0 | J182: 591047.93 | K182: 179376.13 | M182: 133 | N182: WILDER DISTRICT | O182: 490.13 | P182: 184.12 | Q182: 0 | R182: 229398.93 | S182: 0 | T182: 591047.93 | U182: 179376.13
A183: 462 | B183: XAVIER CHARTER SCHOOL, INC. | C183: 3514777 | D183: 205009576 | E183: 1584 | F183: 0 | G183: 256.56 | H183: 58196.37 | I183: 0 | J183: 77732.4 | K183: 62198.78 | M183: 462 | N183: XAVIER CHARTER SCHOOL, INC. | O183: 1584 | P183: 0 | Q183: 256.56 | R183: 58196.37 | S183: 0 | T183: 77732.4 | U183: 62198.78
A184: 4 | B184: Test LEA | C184: 11011 | D184: 11011 | E184: 10000 | F184: 5000 | G184: 3000 | H184: 8000 | K184: 0

Sheet Prior
A1: ID | B1: Name | C1: DUNS | D1: vendor | E1: CARES Set Aside (LMS and SEL) | F1: CARES Flow Through | G1: CRRSA Set Aside | H1: CRRSA Flow Through | I1: ARP Set Aside | J1: ARP Flow Through | K1: ARP Learning Loss
A2: 58 | B2: ABERDEEN DISTRICT | C2: 801867284 | D2: 826000617 | E2: 7225 | F2: 133747 | G2: 0 | H2: 338379.79 | I2: 0 | J2: 479541.74 | K2: 86565.35
A3: 495 | B3: ALTURAS INTERNATIONAL ACADEMY, INC. | C3: 71549639 | D3: 473126055 | E3: 3143 | F3: 52859 | G3: 0 | H3: 181201.58 | I3: 0 | J3: 0 | K3: 0
A4: 560 | B4: ALTURAS PREPARATORY ACADEMY, INC | C4: 36487482 | D4: 853948402 | E4: 0 | F4: 0 | G4: 0 | H4: 96355 | I4: 0 | J4: 41530.12 | K4: 4566.45
A5: 381 | B5: AMERICAN FALLS JOINT DISTRICT | C5: 144756442 | D5: 826000865 | E5: 20647.12 | F5: 295670 | G5: 0 | H5: 1082536.31 | I5: 0 | J5: 705325.07 | K5: 203355.12
A6: 482 | B6: AMERICAN HERITAGE CHARTER SCHOOL, INC. | C6: 79082049 | D6: 453753476 | E6: 12035 | F6: 24472.12 | G6: 0 | H6: 31429.71 | I6: 0 | J6: 0 | K6: 0
A7: 492 | B7: ANSER OF IDAHO, INC. | C7: 832063890 | D7: 841390547 | E7: 0 | F7: 19479 | G7: 0 | H7: 128805.88 | I7: 0 | J7: 0 | K7: 65126.95
A8: 383 | B8: ARBON ELEMENTARY DISTRICT | C8: 189339153 | D8: 826003195 | E8: 4158 | F8: 0 | G8: 761.22 | H8: 0 | I8: 0 | J8: 0 | K8: 0
A9: 394 | B9: AVERY SCHOOL DISTRICT | C9: 100599109 | D9: 826001332 | E9: 7959 | F9: 0 | G9: 0 | H9: 0 | I9: 76282.14 | J9: 0 | K9: 0
A10: 72 | B10: BASIN SCHOOL DISTRICT | C10: 100014778 | D10: 826000632 | E10: 11634 | F10: 38281 | G10: 0 | H10: 213315.8 | I10: 0 | J10: 186675.32 | K10: 95857
A11: 33 | B11: BEAR LAKE COUNTY DISTRICT | C11: 183893577 | D11: 826001400 | E11: 21083 | F11: 148828 | G11: 17223 | H11: 594060 | I11: 0 | J11: 0 | K11: 0
A12: 477 | B12: BLACKFOOT CHARTER COMMUNITY LEARNING CENTER, INC. | C12: 142291967 | D12: 820524579 | E12: 5635.85 | F12: 83392 | G12: 0 | H12: 266217.76 | I12: 0 | J12: 0 | K12: 103127.01
A13: 55 | B13: BLACKFOOT DISTRICT | C13: 607630415 | D13: 826000616 | E13: 25888.82 | F13: 470219 | G13: 0 | H13: 2260354.08 | I13: 0 | J13: 1521400.88 | K13: 770526.42
A14: 61 | B14: BLAINE COUNTY DISTRICT | C14: 794328906 | D14: 826001220 | E14: 32610.15 | F14: 239654 | G14: 0 | H14: 0 | I14: 0 | J14: 0 | K14: 0
A15: 234 | B15: BLISS JOINT DISTRICT | C15: 40197688 | D15: 826000767 | E15: 688.22 | F15: 28844 | G15: 1119.63 | H15: 75163.32 | I15: 106503.17 | J15: 0 | K15: 21437.85
A16: 1 | B16: Boise Independent District | C16: 122740046 | D16: 826000549 | E16: 283938 | F16: 3810114 | G16: 0 | H16: 5325500.68 | I16: 0 | J16: 0 | K16: 380332.88
A17: 93 | B17: BONNEVILLE JOINT DISTRICT | C17: 879016822 | D17: 826001206 | E17: 156531 | F17: 1256253 | G17: 624498 | H17: 5014437 | I17: 0 | J17: 459929.56 | K17: 934892.49
A18: 101 | B18: BOUNDARY COUNTY DISTRICT | C18: 10206712 | D18: 826000683 | E18: 23443 | F18: 272046.63 | G18: 0 | H18: 713677.67 | I18: 0 | J18: 53911.15 | K18: 0
A19: 365 | B19: BRUNEAU-GRAND VIEW JOINT SCHOOL DISTRICT | C19: 29868007 | D19: 826001219 | E19: 4408 | F19: 95113 | G19: 0 | H19: 328336.9 | I19: 0 | J19: 100736.84 | K19: 0
A20: 412 | B20: BUHL JOINT DISTRICT | C20: 100014851 | D20: 826000893 | E20: 21629 | F20: 256476 | G20: 0 | H20: 725367.36 | I20: 0 | J20: 0 | K20: 0
A21: 111 | B21: BUTTE COUNTY JOINT DISTRICT | C21: 29645454 | D21: 826000685 | E21: 2818 | F21: 23565.52 | G21: 0 | H21: 0 | I21: 0 | J21: 0 | K21: 0
A22: 132 | B22: CALDWELL DISTRICT | C22: 100014869 | D22: 826000728 | E22: 0 | F22: 1593025 | G22: 0 | H22: 3251425.96 | I22: 0 | J22: 0 | K22: 0
A23: 121 | B23: CAMAS COUNTY DISTRICT | C23: 100185412 | D23: 826000686 | E23: 9660 | F23: 17694 | G23: 26370 | H23: 86270 | I23: 10455 | J23: 0 | K23: 38767
A24: 432 | B24: CAMBRIDGE JOINT DISTRICT | C24: 112893883 | D24: 826000921 | E24: 9140 | F24: 38737 | G24: 0 | H24: 27121.18 | I24: 0 | J24: 25972.83 | K24: 3377.35
A25: 555 | B25: CANYON-OWYHEE SCHOOL SERVICE AGENCY (COSSA) | C25: 29765393 | D25: 820299347 | E25: 9158 | F25: 0 | G25: 60836 | H25: 0 | I25: 0 | J25: 0 | K25: 0
A26: 566 | B26: CARDINAL ACADEMY INCORPORATED | C26: 108110500 | D26: 861222191 | E26: 0 | F26: 0 | G26: 0 | H26: 57285.48 | I26: 0 | J26: 31840.26 | K26: 27763
A27: 422 | B27: CASCADE DISTRICT | C27: 100014885 | D27: 826000907 | E27: 8132 | F27: 138110 | G27: 0 | H27: 373421.82 | I27: 0 | J27: 436.98 | K27: 12065.88
A28: 151 | B28: CASSIA COUNTY JOINT DISTRICT | C28: 879016707 | D28: 826000732 | E28: 66943 | F28: 733211 | G28: 0 | H28: 2345721.06 | I28: 0 | J28: 2702426.95 | K28: 676.48
A29: 417 | B29: CASTLEFORD DISTRICT | C29: 181912668 | D29: 826000891 | E29: 10326.94 | F29: 56054 | G29: 0 | H29: 210868 | I29: 0 | J29: 23412.82 | K29: 21086.57
A30: 181 | B30: CHALLIS JOINT DISTRICT | C30: 193218112 | D30: 826000736 | E30: 11255 | F30: 71315 | G30: 0 | H30: 452661.89 | I30: 0 | J30: 0 | K30: 0
A31: 483 | B31: CHIEF TAHGEE ELEMENTARY ACADEMY, INC. | C31: 78351211 | D31: 453150830 | E31: 8717 | F31: 25082 | G31: 0 | H31: 89844.82 | I31: 22116.66 | J31: 79350.02 | K31: 20269.1
A32: 161 | B32: CLARK COUNTY DISTRICT | C32: 24714961 | D32: 826000733 | E32: 4290 | F32: 25195 | G32: 0 | H32: 63646.33 | I32: 0 | J32: 15440.02 | K32: 0
A33: 491 | B33: COEUR D'ALENE CHARTER ACADEMY, INC. | C33: 128705576 | D33: 820509670 | E33: 0 | F33: 0 | G33: 130578.84 | H33: 0 | I33: 0 | J33: 0 | K33: 0
A34: 271 | B34: COEUR D'ALENE DISTRICT | C34: 85188761 | D34: 826000811 | E34: 92987.18 | F34: 1672719.37 | G34: 0 | H34: 4132816.41 | I34: 0 | J34: 1372198.48 | K34: 95409.71
A35: 455 | B35: COMPASS PUBLIC CHARTER SCHOOL, INC. | C35: 165024576 | D35: 731729632 | E35: 20371 | F35: 50212 | G35: 203944 | H35: 270534 | I35: 0 | J35: 80106.29 | K35: 67510.73
A36: 242 | B36: COTTONWOOD JOINT DISTRICT | C36: 100014901 | D36: 826003404 | E36: 11981 | F36: 65659 | G36: 0 | H36: 256015 | I36: 0 | J36: 91044.03 | K36: 71514.89
A37: 13 | B37: COUNCIL DISTRICT | C37: 100185610 | D37: 826004153 | E37: 10669 | F37: 41932 | G37: 0 | H37: 184392.14 | I37: 0 | J37: 0 | K37: 0
A38: 342 | B38: CULDESAC JOINT DISTRICT | C38: 92284785 | D38: 826001189 | E38: 9134 | F38: 25116 | G38: 8999 | H38: 0 | I38: 0 | J38: 0 | K38: 0
A39: 314 | B39: DIETRICH DISTRICT | C39: 29816998 | D39: 826003139 | E39: 10169 | F39: 33683 | G39: 0 | H39: 0 | I39: 0 | J39: 78885.03 | K39: 3365
A40: 550 | B40: DORAL ACADEMY OF IDAHO, INC. | C40: 117165868 | D40: 842149691 | E40: 2411 | F40: 0 | G40: 0 | H40: 43765 | I40: 0 | J40: 49009.31 | K40: 19666
A41: 523 | B41: ELEVATE ACADEMY INC. | C41: 18395435 | D41: 823036828 | E41: 11146 | F41: 66630 | G41: 0 | H41: 147748.08 | I41: 0 | J41: 0 | K41: 0
A42: 221 | B42: EMMETT INDEPENDENT DISTRICT | C42: 7643034 | D42: 826001228 | E42: 19514.12 | F42: 507747 | G42: 0 | H42: 1773004.96 | I42: 0 | J42: 494240.49 | K42: 110730.81
A43: 456 | B43: FALCON RIDGE PUBLIC CHARTER SCHOOL, INC. | C43: 182860341 | D43: 270095874 | E43: 2585 | F43: 24379 | G43: 38295 | H43: 0 | I43: 0 | J43: 0 | K43: 0
A44: 531 | B44: FERN-WATERS PUBLIC CHARTER SCHOOL, INC. | C44: 116915742 | D44: 824261500 | E44: 8230.77 | F44: 0 | G44: 0 | H44: 67809.02 | I44: 9910.87 | J44: 126076.99 | K44: 9408.36
A45: 413 | B45: FILER DISTRICT | C45: 100014943 | D45: 826000894 | E45: 0 | F45: 203432.35 | G45: 0 | H45: 0 | I45: 0 | J45: 0 | K45: 0
A46: 59 | B46: FIRTH DISTRICT | C46: 100014950 | D46: 826000618 | E46: 16914 | F46: 65437 | G46: 85114 | H46: 179883.22 | I46: 0 | J46: 0 | K46: 32860.4
A47: 528 | B47: FORGE INTERNATIONAL, LLC | C47: 116766344 | D47: 352643363 | E47: 10539 | F47: 21511 | G47: 30041.5 | H47: 105913.25 | I47: 0 | J47: 191847.95 | K47: 56205
A48: 215 | B48: FREMONT COUNTY JOINT DISTRICT | C48: 184556975 | D48: 826000751 | E48: 29728.9 | F48: 419917 | G48: 0 | H48: 1712894 | I48: 0 | J48: 189961.17 | K48: 338022.02
A49: 373 | B49: FRUITLAND DISTRICT | C49: 100014968 | D49: 826000864 | E49: 20397 | F49: 171463 | G49: 20069.3 | H49: 180161.46 | I49: 0 | J49: 700529.94 | K49: 0
A50: 499 | B50: FUTURE PUBLIC SCHOOL, INC. | C50: 80975896 | D50: 822354868 | E50: 4801 | F50: 45830.56 | G50: 0 | H50: 128700.68 | I50: 0 | J50: 0 | K50: 0
A51: 71 | B51: GARDEN VALLEY DISTRICT | C51: 29632296 | D51: 826000631 | E51: 11019 | F51: 81561 | G51: 0 | H51: 169069.65 | I51: 0 | J51: 317887.14 | K51: 46085.03
A52: 549 | B52: GEM PREP: MERIDIAN NORTH, LLC | C52: 117200585 | D52: 842329869 | E52: 0 | F52: 0 | G52: 0 | H52: 66567 | I52: 65381 | J52: 109099.96 | K52: 15368.07
A53: 498 | B53: GEM PREP: MERIDIAN, LLC | C53: 81046990 | D53: 371848621 | E53: 11849 | F53: 58351 | G53: 0 | H53: 226709.09 | I53: 0 | J53: 256212.35 | K53: 10139.05
A54: 796 | B54: GEM PREP: NAMPA, LLC | C54: 81304980 | D54: 473817130 | E54: 12452.64 | F54: 0 | G54: 146055 | H54: 58430.98 | I54: 0 | J54: 316704.26 | K54: 12501.45
A55: 534 | B55: GEM PREP: ONLINE LLC | C55: 117035032 | D55: 834122757 | E55: 11151.47 | F55: 99043 | G55: 0 | H55: 229185.72 | I55: 0 | J55: 609445 | K55: 16217.04
A56: 496 | B56: GEM PREP: POCATELLO, LLC | C56: 80511840 | D56: 473829757 | E56: 10944.61 | F56: 55241 | G56: 0 | H56: 246141.43 | I56: 0 | J56: 351760.15 | K56: 9048.07
A57: 282 | B57: GENESEE JOINT DISTRICT | C57: 100185818 | D57: 826000815 | E57: 11200 | F57: 36501 | G57: 0 | H57: 125372.81 | I57: 0 | J57: 0 | K57: 0
A58: 192 | B58: GLENS FERRY JOINT DISTRICT | C58: 605581743 | D58: 826002941 | E58: 0 | F58: 96044 | G58: 0 | H58: 274333.86 | I58: 0 | J58: 216105.5 | K58: 132320.58
A59: 231 | B59: GOODING JOINT DISTRICT | C59: 29720992 | D59: 826000771 | E59: 11511.04 | F59: 233806 | G59: 0 | H59: 811617.49 | I59: 0 | J59: 300571.72 | K59: 51639.23
A60: 148 | B60: GRACE JOINT DISTRICT | C60: 29651205 | D60: 826000730 | E60: 0 | F60: 52251 | G60: 59358 | H60: 208565 | I60: 0 | J60: 0 | K60: 0
A61: 233 | B61: HAGERMAN JOINT DISTRICT | C61: 193089125 | D61: 826001373 | E61: 11049 | F61: 61516 | G61: 0 | H61: 223871.46 | I61: 0 | J61: 36013 | K61: 79703.41
A62: 415 | B62: HANSEN DISTRICT | C62: 100015015 | D62: 826001325 | E62: 2690 | F62: 80919 | G62: 0 | H62: 40245.15 | I62: 0 | J62: 557.78 | K62: 80799.53
A63: 508 | B63: HAYDEN CANYON CHARTER SCHOOL, INC. | C63: 80998762 | D63: 462661679 | E63: 11356 | F63: 16053 | G63: 23969 | H63: 91336 | I63: 0 | J63: 0 | K63: 0
A64: 479 | B64: HERITAGE ACADEMY, INC. | C64: 69071435 | D64: 273203580 | E64: 9108 | F64: 45248 | G64: 0 | H64: 167928.71 | I64: 0 | J64: 185209.92 | K64: 42825.95
A65: 481 | B65: HERITAGE COMMUNITY CHARTER SCHOOL, INC. | C65: 58025766 | D65: 273220966 | E65: 2947 | F65: 101727 | G65: 0 | H65: 322187.11 | I65: 0 | J65: 0 | K65: 0
A66: 305 | B66: HIGHLAND JOINT DISTRICT | C66: 193083409 | D66: 820255978 | E66: 764.74 | F66: 28618 | G66: 0 | H66: 55851.72 | I66: 0 | J66: 0 | K66: 0
A67: 370 | B67: HOMEDALE JOINT DISTRICT | C67: 100186048 | D67: 826000860 | E67: 21011 | F67: 241756 | G67: 0 | H67: 0 | I67: 0 | J67: 94980.02 | K67: 78765.37
A68: 73 | B68: HORSESHOE BEND SCHOOL DISTRICT | C68: 949307193 | D68: 826000626 | E68: 2529 | F68: 41670 | G68: 0 | H68: 166331 | I68: 0 | J68: 67107.73 | K68: 26299.15
A69: 795 | B69: IDAHO ARTS CHARTER SCHOOL, INC. | C69: 191501993 | D69: 201616506 | E69: 4520 | F69: 0 | G69: 395853 | H69: 565251.65 | I69: 0 | J69: 0 | K69: 0
A70: 596 | B70: IDAHO BUREAU OF EDUCATIONAL SERVICES FOR THE DEAF AND THE BLIND | C70: 78569416 | D70: 272336046 | E70: 6395.5 | F70: 0 | G70: 0 | H70: 0 | I70: 0 | J70: 0 | K70: 0
A71: 489 | B71: IDAHO COLLEGE AND CAREER READINESS ACADEMY, INC. | C71: 79255786 | D71: 462298596 | E71: 9737 | F71: 0 | G71: 115933 | H71: 0 | I71: 160489.18 | J71: 0 | K71: 0
A72: 91 | B72: IDAHO FALLS DISTRICT | C72: 29642717 | D72: 826001158 | E72: 119108 | F72: 1653524 | G72: 0 | H72: 1146322.66 | I72: 0 | J72: 1943036.25 | K72: 0
A73: 468 | B73: IDAHO SCIENCE AND TECHNOLOGY CHARTER SCHOOL, INC. | C73: 826960853 | D73: 262852741 | E73: 11746 | F73: 43445 | G73: 0 | H73: 245444 | I73: 0 | J73: 141177 | K73: 110294
A74: 485 | B74: IDAHO STEM ACADEMY, INC. | C74: 78455129 | D74: 274587929 | E74: 0 | F74: 17447 | G74: 0 | H74: 43218.6 | I74: 0 | J74: 98717.94 | K74: 3174
A75: 452 | B75: IDAHO VIRTUAL ACADEMY, INC. | C75: 793722781 | D75: 10720150 | E75: 26561 | F75: 436726 | G75: 5233959.35 | H75: 1393059.74 | I75: 0 | J75: 338978.52 | K75: 397522.65
A76: 469 | B76: IDAHO VIRTUAL EDUCATION PARTNERS, INC. | C76: 832251305 | D76: 263814847 | E76: 0 | F76: 0 | G76: 29307.3 | H76: 0 | I76: 0 | J76: 0 | K76: 0
A77: 453 | B77: IDAHO VIRTUAL HIGH SCHOOL, INC. | C77: 170660455 | D77: 10577656 | E77: 13020 | F77: 0 | G77: 235476 | H77: 0 | I77: 0 | J77: 0 | K77: 0
A78: 457 | B78: INSPIRE ACADEMICS, INC. | C78: 797530305 | D78: 202193239 | E78: 4640 | F78: 151299 | G78: 871112.06 | H78: 759082.12 | I78: 0 | J78: 0 | K78: 0
A79: 540 | B79: ISLAND PARK CHARTER SCHOOL, INC. | C79: 117224934 | D79: 831266928 | E79: 7904 | F79: 0 | G79: 3688.14 | H79: 0 | I79: 0 | J79: 0 | K79: 0
A80: 466 | B80: ISUCCEED VIRTUAL HIGH SCHOOL, INC. | C80: 878662498 | D80: 262224774 | E80: 0 | F80: 0 | G80: 0 | H80: 8542.51 | I80: 0 | J80: 0 | K80: 0
A81: 251 | B81: JEFFERSON COUNTY JOINT DISTRICT | C81: 29738903 | D81: 826000779 | E81: 64076.32 | F81: 544080 | G81: 533342 | H81: 2020541 | I81: 0 | J81: 0 | K81: 0
A82: 261 | B82: JEROME JOINT DISTRICT | C82: 100015056 | D82: 826003634 | E82: 52645 | F82: 648871 | G82: 0 | H82: 1079708.3 | I82: 0 | J82: 113240.79 | K82: 179656
A83: 2 | B83: JOINT SCHOOL DISTRICT NO. 2 | C83: 29604402 | D83: 826001213 | E83: 434427.09 | F83: 3058770.36 | G83: 0 | H83: 3517013.58 | I83: 0 | J83: 0 | K83: 431771.05
A84: 304 | B84: KAMIAH JOINT DISTRICT | C84: 159151398 | D84: 826004161 | E84: 9433.93 | F84: 254012.09 | G84: 0 | H84: 72732.53 | I84: 0 | J84: 573513.77 | K84: 163947.61
A85: 391 | B85: KELLOGG JOINT DISTRICT | C85: 100186402 | D85: 826000884 | E85: 0 | F85: 263688 | G85: 0 | H85: 1052532 | I85: 0 | J85: 786491.59 | K85: 0
A86: 283 | B86: KENDRICK JOINT DISTRICT | C86: 100646397 | D86: 826000816 | E86: 4620.05 | F86: 28652.68 | G86: 0 | H86: 0 | I86: 0 | J86: 0 | K86: 0
A87: 414 | B87: KIMBERLY DISTRICT | C87: 879016921 | D87: 826000895 | E87: 30485 | F87: 139975 | G87: 219360.73 | H87: 377412.2 | I87: 0 | J87: 0 | K87: 136891.33
A88: 274 | B88: KOOTENAI DISTRICT | C88: 100646405 | D88: 826003651 | E88: 9537 | F88: 43657 | G88: 0 | H88: 124837.24 | I88: 0 | J88: 80968.65 | K88: 33599.37
A89: 3 | B89: KUNA JOINT DISTRICT | C89: 100015072 | D89: 826001275 | E89: 68579 | F89: 852154 | G89: 0 | H89: 1664892.36 | I89: 0 | J89: 0 | K89: 312409.91
A90: 84 | B90: LAKE PEND OREILLE SCHOOL DISTRICT | C90: 832156884 | D90: 820508739 | E90: 14180 | F90: 569277 | G90: 0 | H90: 2547598 | I90: 0 | J90: 644692.11 | K90: 547667.97
A91: 272 | B91: LAKELAND DISTRICT | C91: 100015080 | D91: 826000812 | E91: 57457 | F91: 750019 | G91: 0 | H91: 2020840.37 | I91: 0 | J91: 0 | K91: 0
A92: 341 | B92: LAPWAI DISTRICT | C92: 100015098 | D92: 826000843 | E92: 11991 | F92: 148948 | G92: 0 | H92: 554661 | I92: 0 | J92: 198785.39 | K92: 0
A93: 478 | B93: LEGACY PUBLIC CHARTER SCHOOL, INC. | C93: 968870522 | D93: 272515468 | E93: 11231 | F93: 36122 | G93: 6000 | H93: 127916.83 | I93: 0 | J93: 162985.56 | K93: 22786.08
A94: 340 | B94: LEWISTON INDEPENDENT DISTRICT | C94: 100186600 | D94: 826000839 | E94: 34024.35 | F94: 632815 | G94: 0 | H94: 2280468.49 | I94: 0 | J94: 141083.07 | K94: 383653.77
A95: 458 | B95: LIBERTY CHARTER SCHOOL, INC. | C95: 105529221 | D95: 820512446 | E95: 12198 | F95: 42040 | G95: 0 | H95: 144311 | I95: 0 | J95: 236412.93 | K95: 34248.12
A96: 182 | B96: MACKAY JOINT DISTRICT | C96: 25531166 | D96: 826000738 | E96: 0 | F96: 11021.17 | G96: 0 | H96: 0 | I96: 0 | J96: 0 | K96: 0
A97: 321 | B97: MADISON DISTRICT | C97: 100646413 | D97: 826000835 | E97: 66444 | F97: 823425 | G97: 0 | H97: 3431434 | I97: 0 | J97: 1303169.9 | K97: 494449.11
A98: 21 | B98: MARSH VALLEY JOINT DISTRICT | C98: 193088374 | D98: 826000590 | E98: 22203 | F98: 164905 | G98: 0 | H98: 672889 | I98: 0 | J98: 172965.6 | K98: 224641.8
A99: 363 | B99: MARSING JOINT DISTRICT | C99: 86812005 | D99: 826000855 | E99: 17386 | F99: 228087 | G99: 0 | H99: 799610.15 | I99: 0 | J99: 0 | K99: 0
A100: 421 | B100: MCCALL-DONNELLY JOINT SCHOOL DISTRICT | C100: 100599125 | D100: 826000906 | E100: 22781 | F100: 104889 | G100: 120868.82 | H100: 252248.21 | I100: 0 | J100: 364682.36 | K100: 59077.83
A101: 11 | B101: MEADOWS VALLEY DISTRICT | C101: 100015122 | D101: 826000583 | E101: 2338 | F101: 43152.71 | G101: 0 | H101: 89684.88 | I101: 0 | J101: 0 | K101: 0
A102: 136 | B102: MELBA JOINT DISTRICT | C102: 184973659 | D102: 826001130 | E102: 17216 | F102: 95494 | G102: 42398 | H102: 244955 | I102: 0 | J102: 0 | K102: 0
A103: 785 | B103: MERIDIAN MEDICAL ARTS CHARTER HIGH SCHOOL, INC. | C103: 67651558 | D103: 571149368 | E103: 7026.71 | F103: 0 | G103: 75045.01 | H103: 0 | I103: 0 | J103: 0 | K103: 0
A104: 768 | B104: MERIDIAN TECHNICAL CHARTER HIGH SCHOOL, INC. | C104: 44111453 | D104: 820512811 | E104: 9899 | F104: 0 | G104: 38464.14 | H104: 0 | I104: 0 | J104: 0 | K104: 0
A105: 134 | B105: MIDDLETON DISTRICT | C105: 29646403 | D105: 826003508 | E105: 51820 | F105: 294748 | G105: 449390 | H105: 0 | I105: 0 | J105: 0 | K105: 0
A106: 433 | B106: MIDVALE DISTRICT | C106: 183894732 | D106: 826001364 | E106: 2250 | F106: 27448 | G106: 7462 | H106: 108037.85 | I106: 0 | J106: 168704.52 | K106: 5399.89
A107: 331 | B107: MINIDOKA COUNTY JOINT DISTRICT | C107: 100015171 | D107: 826000837 | E107: 56149 | F107: 635416 | G107: 0 | H107: 2137633.79 | I107: 0 | J107: 0 | K107: 842508
A108: 474 | B108: MONTICELLO MONTESSORI CHARTER SCHOOL, INC. | C108: 961942005 | D108: 270186469 | E108: 2566 | F108: 36687 | G108: 0 | H108: 126571.04 | I108: 0 | J108: 100482.13 | K108: 162.4
A109: 544 | B109: MOSAICS PUBLIC SCHOOL, INC. | C109: 117130660 | D109: 832231987 | E109: 11287 | F109: 18312 | G109: 0 | H109: 91729.82 | I109: 0 | J109: 0 | K109: 0
A110: 813 | B110: MOSCOW CHARTER SCHOOL, INC. | C110: 93632698 | D110: 820505459 | E110: 2408 | F110: 0 | G110: 41189.85 | H110: 0 | I110: 0 | J110: 0 | K110: 0
A111: 281 | B111: MOSCOW DISTRICT | C111: 29785391 | D111: 826000814 | E111: 25265 | F111: 283757.79 | G111: 0 | H111: 841189.48 | I111: 0 | J111: 41999.08 | K111: 82331.46
A112: 193 | B112: MOUNTAIN HOME DISTRICT | C112: 127655744 | D112: 826000742 | E112: 50227 | F112: 633943 | G112: 0 | H112: 655600.48 | I112: 0 | J112: 0 | K112: 750563.01
A113: 244 | B113: MOUNTAIN VIEW SCHOOL DISTRICT | C113: 76641414 | D113: 593838651 | E113: 7356.86 | F113: 206072 | G113: 0 | H113: 440449.29 | I113: 0 | J113: 134828.95 | K113: 0
A114: 392 | B114: MULLAN DISTRICT | C114: 100015197 | D114: 826000885 | E114: 7917.21 | F114: 43493 | G114: 0 | H114: 54880.83 | I114: 0 | J114: 0 | K114: 0
A115: 418 | B115: MURTAUGH JOINT DISTRICT | C115: 192846512 | D115: 826000890 | E115: 11665 | F115: 33010 | G115: 43771 | H115: 154453 | I115: 0 | J115: 11325.15 | K115: 0
A116: 131 | B116: NAMPA SCHOOL DISTRICT | C116: 29646478 | D116: 826000727 | E116: 163772.67 | F116: 3411509.79 | G116: 0 | H116: 7905900.87 | I116: 0 | J116: 1411838.92 | K116: 1088758.53
A117: 372 | B117: NEW PLYMOUTH DISTRICT | C117: 29880812 | D117: 826000863 | E117: 18268 | F117: 158761 | G117: 0 | H117: 419152.99 | I117: 0 | J117: 23371.79 | K117: 10253.78
A118: 302 | B118: NEZPERCE JOINT DISTRICT | C118: 794728741 | D118: 826001370 | E118: 9466 | F118: 18066 | G118: 0 | H118: 0 | I118: 0 | J118: 27297.94 | K118: 32406
A119: 149 | B119: NORTH GEM DISTRICT | C119: 800469277 | D119: 826001137 | E119: 755.08 | F119: 16796 | G119: 0 | H119: 31028 | I119: 0 | J119: 0 | K119: 0
A120: 480 | B120: NORTH IDAHO STEM CHARTER ACADEMY, INC. | C120: 14744681 | D120: 271042057 | E120: 14103 | F120: 0 | G120: 210266 | H120: 0 | I120: 0 | J120: 0 | K120: 0
A121: 493 | B121: NORTH STAR CHARTER SCHOOL, INC. | C121: 114313609 | D121: 113643458 | E121: 18397 | F121: 0 | G121: 308089 | H121: 0 | I121: 64350.07 | J121: 0 | K121: 0
A122: 465 | B122: NORTH VALLEY ACADEMY, INC. | C122: 830799883 | D122: 260820021 | E122: 9163.95 | F122: 39537 | G122: 0 | H122: 98297.46 | I122: 0 | J122: 160000 | K122: 0
A123: 135 | B123: NOTUS DISTRICT | C123: 100015239 | D123: 826002944 | E123: 0 | F123: 74056 | G123: 0 | H123: 24306.91 | I123: 0 | J123: 0 | K123: 0
A124: 351 | B124: ONEIDA COUNTY DISTRICT | C124: 100015247 | D124: 826000844 | E124: 43797 | F124: 111483 | G124: 1837077 | H124: 0 | I124: 0 | J124: 0 | K124: 158706.6
A125: 171 | B125: OROFINO JOINT DISTRICT | C125: 97241129 | D125: 826000734 | E125: 20597 | F125: 170620 | G125: 0 | H125: 421545.53 | I125: 0 | J125: 51910.51 | K125: 39587.09
A126: 472 | B126: PALOUSE PRAIRIE EDUCATIONAL ORGANIZATION, INC. | C126: 609526947 | D126: 208870679 | E126: 9604.75 | F126: 15419 | G126: 19705.43 | H126: 40053.93 | I126: 0 | J126: 16638.48 | K126: 13334.24
A127: 137 | B127: PARMA DISTRICT | C127: 100015254 | D127: 826003335 | E127: 19102 | F127: 154788 | G127: 0 | H127: 432539.07 | I127: 0 | J127: 0 | K127: 0
A128: 497 | B128: PATHWAYS IN EDUCATION - NAMPA, INC. | C128: 80600403 | D128: 814963154 | E128: 10608.44 | F128: 0 | G128: 14194 | H128: 12480 | I128: 0 | J128: 49930 | K128: 1426
A129: 371 | B129: PAYETTE JOINT DISTRICT | C129: 181918483 | D129: 826000862 | E129: 18003 | F129: 359766 | G129: 0 | H129: 1385423.3 | I129: 0 | J129: 0 | K129: 267073.31
A130: 794 | B130: PAYETTE RIVER TECHNICAL ACADEMY, INC. | C130: 965786168 | D130: 271285798 | E130: 0 | F130: 0 | G130: 75218 | H130: 0 | I130: 0 | J130: 0 | K130: 0
A131: 511 | B131: PEACE VALLEY CHARTER SCHOOL, INC. | C131: 80965852 | D131: 814365929 | E131: 11154 | F131: 14534 | G131: 0 | H131: 19968.02 | I131: 0 | J131: 95513.25 | K131: 0
A132: 553 | B132: PINECREST ACADEMY OF IDAHO, INC. | C132: 117180145 | D132: 842768672 | E132: 0 | F132: 0 | G132: 35067.45 | H132: 0 | I132: 66886.96 | J132: 0 | K132: 0
A133: 364 | B133: PLEASANT VALLEY ELEMENTARY DISTRICT | C133: 179267117 | D133: 826000847 | E133: 2044 | F133: 0 | G133: 0 | H133: 0 | I133: 0 | J133: 0 | K133: 0
A134: 44 | B134: PLUMMER-WORLEY JOINT DISTRICT | C134: 621456672 | D134: 826000613 | E134: 8567 | F134: 234711 | G134: 0 | H134: 186710.36 | I134: 0 | J134: 0 | K134: 26316.46
A135: 25 | B135: POCATELLO DISTRICT | C135: 29614922 | D135: 826000591 | E135: 130413.7 | F135: 2133161 | G135: 0 | H135: 8514692 | I135: 0 | J135: 205464.11 | K135: 186271.81
A136: 273 | B136: POST FALLS DISTRICT | C136: 76666767 | D136: 826000813 | E136: 74683 | F136: 950153 | G136: 0 | H136: 3332303.81 | I136: 0 | J136: 659089.7 | K136: 311867.21
A137: 285 | B137: POTLATCH DISTRICT | C137: 100599133 | D137: 826000817 | E137: 5128 | F137: 50726 | G137: 10867 | H137: 71082.92 | I137: 0 | J137: 25647.75 | K137: 22879.78
A138: 191 | B138: Prairie Elementary District | C138: 159147461 | D138: 826001384 | E138: 0 | F138: 0 | G138: 0 | H138: 0 | I138: 0 | J138: 0 | K138: 0
A139: 201 | B139: PRESTON JOINT DISTRICT | C139: 157817024 | D139: 826000749 | E139: 33250 | F139: 193327 | G139: 112029 | H139: 848204 | I139: 0 | J139: 0 | K139: 0
A140: 513 | B140: PROJECT IMPACT STEM ACADEMY, INC. | C140: 80846237 | D140: 821955574 | E140: 10017 | F140: 33438 | G140: 0 | H140: 160811 | I140: 0 | J140: 127726.93 | K140: 36168.32
A141: 316 | B141: RICHFIELD DISTRICT | C141: 29825924 | D141: 826001279 | E141: 2439 | F141: 39575 | G141: 0 | H141: 0 | I141: 0 | J141: 61105.74 | K141: 72399.64
A142: 252 | B142: RIRIE JOINT DISTRICT | C142: 926460742 | D142: 820259363 | E142: 12737 | F142: 43201 | G142: 130042 | H142: 168893 | I142: 0 | J142: 0 | K142: 15081.78
A143: 382 | B143: ROCKLAND DISTRICT | C143: 100187848 | D143: 826000866 | E143: 0 | F143: 15421.5 | G143: 0 | H143: 22871.11 | I143: 0 | J143: 0 | K143: 0
A144: 454 | B144: ROLLING HILLS PUBLIC CHARTER SCHOOL, INC. | C144: 938170441 | D144: 201868297 | E144: 10408 | F144: 24355 | G144: 0 | H144: 121927.16 | I144: 0 | J144: 0 | K144: 0
A145: 291 | B145: SALMON DISTRICT | C145: 100015296 | D145: 826000821 | E145: 14830 | F145: 204058 | G145: 0 | H145: 411281.92 | I145: 0 | J145: 0 | K145: 0
A146: 243 | B146: SALMON RIVER JOINT SCHOOL DISTRICT | C146: 806404062 | D146: 593838650 | E146: 6910 | F146: 30401 | G146: 0 | H146: 118002 | I146: 0 | J146: 0 | K146: 0
A147: 487 | B147: SANDPOINT CHARTER SCHOOL, INC. | C147: 94295685 | D147: 820505769 | E147: 11157 | F147: 63506 | G147: 0 | H147: 182039.31 | I147: 0 | J147: 0 | K147: 15776.96
A148: 60 | B148: SHELLEY JOINT DISTRICT | C148: 181965740 | D148: 826000619 | E148: 32969 | F148: 212333.28 | G148: 100055.1 | H148: 682549.91 | I148: 0 | J148: 247758.52 | K148: 62114.29
A149: 312 | B149: SHOSHONE JOINT DISTRICT | C149: 193218260 | D149: 826003374 | E149: 13043 | F149: 84976 | G149: 0 | H149: 95790.35 | I149: 0 | J149: 149451.98 | K149: 36487.68
A150: 52 | B150: SNAKE RIVER DISTRICT | C150: 29628674 | D150: 826000615 | E150: 27461 | F150: 305852 | G150: 0 | H150: 938002.12 | I150: 0 | J150: 1883040 | K150: 470760
A151: 150 | B151: SODA SPRINGS JOINT DISTRICT | C151: 878896901 | D151: 826000731 | E151: 17923 | F151: 79724 | G151: 87055 | H151: 312769 | I151: 0 | J151: 0 | K151: 0
A152: 292 | B152: SOUTH LEMHI DISTRICT | C152: 100187988 | D152: 826000822 | E152: 4753 | F152: 19744 | G152: 33666.72 | H152: 65213.27 | I152: 0 | J152: 63625.75 | K152: 0
A153: 41 | B153: ST MARIES JOINT DISTRICT | C153: 10205979 | D153: 826000612 | E153: 3994 | F153: 81222.43 | G153: 0 | H153: 0 | I153: 0 | J153: 0 | K153: 0
A154: 322 | B154: SUGAR-SALEM JOINT DISTRICT | C154: 58571670 | D154: 826000836 | E154: 25796 | F154: 138618 | G154: 40961 | H154: 452957.61 | I154: 0 | J154: 7514.52 | K154: 64531.9
A155: 92 | B155: SWAN VALLEY ELEMENTARY DISTRICT | C155: 803155381 | D155: 826000681 | E155: 8088 | F155: 0 | G155: 26868 | H155: 0 | I155: 217582.73 | J155: 0 | K155: 0
A156: 488 | B156: SYRINGA MOUNTAIN SCHOOL, INC. | C156: 79390538 | D156: 352450616 | E156: 2226 | F156: 20216 | G156: 0 | H156: 40027.78 | I156: 0 | J156: 0 | K156: 0
A157: 461 | B157: TAYLOR'S CROSSING PUBLIC CHARTER SCHOOL, INC. | C157: 797535601 | D157: 202701493 | E157: 11742 | F157: 41234 | G157: 20347 | H157: 136346.83 | I157: 0 | J157: 65703.4 | K157: 71527
A158: 401 | B158: TETON COUNTY DISTRICT | C158: 100599166 | D158: 826000887 | E158: 28318 | F158: 205438 | G158: 7705 | H158: 820021 | I158: 0 | J158: 792144.82 | K158: 199974
A159: 460 | B159: THE ACADEMY, INC. | C159: 783840858 | D159: 412193534 | E159: 13574 | F159: 0 | G159: 0 | H159: 0 | I159: 0 | J159: 0 | K159: 0
A160: 470 | B160: The Kootenai Bridge Academy, Inc. | C160: 831646554 | D160: 263573121 | E160: 0 | F160: 0 | G160: 0 | H160: 0 | I160: 0 | J160: 0 | K160: 0
A161: 494 | B161: THE POCATELLO COMMUNITY CHARTER SCHOOL, INC. | C161: 113912443 | D161: 820506158 | E161: 10454.49 | F161: 45386 | G161: 0 | H161: 227701 | I161: 0 | J161: 22188.67 | K161: 2085.24
A162: 475 | B162: THE SAGE INTERNATIONAL SCHOOL OF BOISE, A PUBLIC CHARTER SCHOOL, INC. | C162: 32655155 | D162: 270169469 | E162: 18366 | F162: 91518 | G162: 0 | H162: 107127.97 | I162: 0 | J162: 458091.01 | K162: 144166.94
A163: 473 | B163: THE VILLAGE CHARTER SCHOOL, INC. | C163: 968901947 | D163: 270716284 | E163: 11298 | F163: 30941 | G163: 0 | H163: 168887 | I163: 0 | J163: 21746.64 | K163: 6013.6
A164: 559 | B164: THOMAS JEFFERSON CHARTER SCHOOL, INC. | C164: 784840469 | D164: 200508843 | E164: 7499 | F164: 17362 | G164: 70267 | H164: 103794 | I164: 3024.25 | J164: 0 | K164: 0
A165: 416 | B165: THREE CREEK JOINT ELEMENTARY DISTRICT | C165: 193613791 | D165: 826001249 | E165: 5783 | F165: 0 | G165: 6272 | H165: 0 | I165: 0 | J165: 0 | K165: 0
A166: 532 | B166: TREASURE VALLEY CLASSICAL ACADEMY, INC. | C166: 81137699 | D166: 814720145 | E166: 0 | F166: 21795.22 | G166: 0 | H166: 0 | I166: 0 | J166: 0 | K166: 0
A167: 287 | B167: TROY SCHOOL DISTRICT | C167: 824948165 | D167: 820530483 | E167: 2598 | F167: 22082 | G167: 0 | H167: 98506.42 | I167: 12671.35 | J167: 92985.21 | K167: 16486.11
A168: 411 | B168: TWIN FALLS DISTRICT | C168: 100015353 | D168: 826000892 | E168: 112051 | F168: 1501280 | G168: 0 | H168: 5491644.71 | I168: 0 | J168: 330062.73 | K168: 2377.13
A169: 486 | B169: UPPER CARMEN PUBLIC CHARTER SCHOOL, INC. | C169: 186273954 | D169: 760782276 | E169: 2111 | F169: 0 | G169: 18841.52 | H169: 0 | I169: 48180.82 | J169: 0 | K169: 0
A170: 262 | B170: VALLEY DISTRICT | C170: 800469400 | D170: 826001371 | E170: 14203 | F170: 69349 | G170: 0 | H170: 235257.04 | I170: 0 | J170: 0 | K170: 0
A171: 139 | B171: VALLIVUE SCHOOL DISTRICT | C171: 155896269 | D171: 826001904 | E171: 111184 | F171: 1013647 | G171: 19687 | H171: 851633 | I171: 0 | J171: 632171.61 | K171: 221365.22
A172: 451 | B172: VICTORY CHARTER SCHOOL, INC. | C172: 195571505 | D172: 562423033 | E172: 12049 | F172: 41448 | G172: 47019 | H172: 141975 | I172: 31402 | J172: 255194 | K172: 25260.69
A173: 463 | B173: VISION CHARTER SCHOOL, INC. | C173: 7896716 | D173: 680609551 | E173: 16002 | F173: 59714 | G173: 87923 | H173: 213498.86 | I173: 0 | J173: 0 | K173: 0
A174: 393 | B174: WALLACE DISTRICT | C174: 47780739 | D174: 826000886 | E174: 13097 | F174: 113840 | G174: 0 | H174: 199752.61 | I174: 0 | J174: 0 | K174: 0
A175: 431 | B175: WEISER DISTRICT | C175: 181914961 | D175: 826000920 | E175: 5098.44 | F175: 228348 | G175: 0 | H175: 724597.41 | I175: 0 | J175: 3249 | K175: 34003.99
A176: 232 | B176: WENDELL DISTRICT | C176: 100015379 | D176: 826004158 | E176: 15792 | F176: 154561 | G176: 0 | H176: 665083 | I176: 0 | J176: 0 | K176: 96700.98
A177: 83 | B177: WEST BONNER COUNTY DISTRICT | C177: 98834174 | D177: 820508740 | E177: 19027 | F177: 315959.55 | G177: 0 | H177: 4818.83 | I177: 0 | J177: 0 | K177: 116931.49
A178: 253 | B178: WEST JEFFERSON DISTRICT | C178: 122332075 | D178: 820379941 | E178: 14117 | F178: 72030 | G178: 31291 | H178: 290083 | I178: 0 | J178: 0 | K178: 0
A179: 202 | B179: WEST SIDE JOINT DISTRICT | C179: 825388556 | D179: 826000750 | E179: 15829 | F179: 58940 | G179: 72061 | H179: 138077 | I179: 0 | J179: 0 | K179: 0
A180: 464 | B180: WHITE PINE CHARTER SCHOOL, INC. | C180: 170300300 | D180: 680502170 | E180: 14661 | F180: 37568 | G180: 96146 | H180: 164204 | I180: 0 | J180: 295151 | K180: 73788
A181: 288 | B181: WHITEPINE JOINT SCHOOL DISTRICT | C181: 37409539 | D181: 820530482 | E181: 10301 | F181: 25660 | G181: 21546 | H181: 116568.75 | I181: 0 | J181: 22986.43 | K181: 9582.08
A182: 133 | B182: WILDER DISTRICT | C182: 29650553 | D182: 826003336 | E182: 13336 | F182: 179260.97 | G182: 0 | H182: 422192.65 | I182: 0 | J182: 383553.71 | K182: 0
A183: 462 | B183: XAVIER CHARTER SCHOOL, INC. | C183: 3514777 | D183: 205009576 | E183: 5023 | F183: 53554 | G183: 99659 | H183: 86796.21 | I183: 0 | J183: 13939.57 | K183: 23156.19
A186: 4 | B186: TEST LEA | C186: 101010 | D186: 2020202020 | E186: 0 | F186: 0 | G186: 0 | H186: 0 | I186: 0 | J186: 0 | K186: 11000

Sheet Remaining
D1: awarded | K1: Expended | R1: Prior | Y1: Remaining
A2: ID | B2: Name | C2: DUNS | D2: CARES Set Aside (LMS and SEL) | E2: CARES Flow Through | F2: CRRSA Set Aside | G2: CRRSA Flow Through | H2: ARP Set Aside | I2: ARP Flow Through | J2: ARP Learning Loss | K2: CARES Set Aside (LMS and SEL) | L2: CARES Flow Through | M2: CRRSA Set Aside | N2: CRRSA Flow Through | O2: ARP Set Aside | P2: ARP Flow Through | Q2: ARP Learning Loss | R2: CARES Set Aside (LMS and SEL) | S2: CARES Flow Through | T2: CRRSA Set Aside | U2: CRRSA Flow Through | V2: ARP Set Aside | W2: ARP Flow Through | X2: ARP Learning Loss | Y2: CARES Set Aside (LMS and SEL) | Z2: CARES Flow Through | AA2: CRRSA Set Aside | AB2: CRRSA Flow Through | AC2: ARP Set Aside | AD2: ARP Flow Through | AE2: ARP Learning Loss
A3: 58 | B3: ABERDEEN DISTRICT | C3: 801867284 | D3: =IFERROR(VLOOKUP($A3,Awarded!$A$2:$J$196,4,FALSE),0) -> 16019.45 | E3: =IFERROR(VLOOKUP($A3,Awarded!$A$2:$J$196,5,FALSE),0) -> 133884.35 | F3: =IFERROR(VLOOKUP($A3,Awarded!$A$2:$J$196,6,FALSE),0) -> 0 | G3: =IFERROR(VLOOKUP($A3,Awarded!$A$2:$J$196,7,FALSE),0) -> 503927.13 | H3: =IFERROR(VLOOKUP($A3,Awarded!$A$2:$J$196,8,FALSE),0) -> 0 | I3: =IFERROR(VLOOKUP($A3,Awarded!$A$2:$J$196,9,FALSE),0) -> 904805.38 | J3: =IFERROR(VLOOKUP($A3,Awarded!$A$2:$J$196,10,FALSE),0) -> 226021.35 | K3: =IFERROR(VLOOKUP($A3,Expended!$A$2:$J$198,5,FALSE),0) -> 8794.45 | L3: =IFERROR(VLOOKUP($A3,Expended!$A$2:$J$198,6,FALSE),0) -> 137.35 | M3: =IFERROR(VLOOKUP($A3,Expended!$A$2:$J$198,7,FALSE),0) -> 0 | N3: =IFERROR(VLOOKUP($A3,Expended!$A$2:$J$198,8,FALSE),0) -> 165547.34 | O3: =IFERROR(VLOOKUP($A3,Expended!$A$2:$J$198,9,FALSE),0) -> 0 | P3: =IFERROR(VLOOKUP($A3,Expended!$A$2:$J$198,10,FALSE),0) -> 425263.64 | Q3: =IFERROR(VLOOKUP($A3,Expended!$A$2:$L$198,11,FALSE),0) -> 116536.58 | R3: =VLOOKUP($A3,Prior!$A$1:$K$199,5,FALSE) -> 7225 | S3: =VLOOKUP($A3,Prior!$A$1:$K$199,6,FALSE) -> 133747 | T3: =VLOOKUP($A3,Prior!$A$1:$K$199,7,FALSE) -> 0 | U3: =VLOOKUP($A3,Prior!$A$1:$K$199,8,FALSE) -> 338379.79 | V3: =VLOOKUP($A3,Prior!$A$1:$K$199,9,FALSE) -> 0 | W3: =VLOOKUP($A3,Prior!$A$1:$K$199,10,FALSE) -> 479541.74 | X3: =VLOOKUP($A3,Prior!$A$1:$K$199,11,FALSE) -> 86565.35 | Y3: =D3-K3-R3 -> 0 | Z3: =E3-L3-S3 -> 0 | AA3: =F3-M3-T3 -> 0 | AB3: =G3-N3-U3 -> 0 | AC3: =H3-O3-V3 -> 0 | AD3: =I3-P3-W3 -> 0 | AE3: =J3-Q3-X3 -> 22919.42
A4: 495 | B4: ALTURAS INTERNATIONAL ACADEMY, INC. | C4: 71549639 | D4: =IFERROR(VLOOKUP($A4,Awarded!$A$2:$J$196,4,FALSE),0) -> 14265.4 | E4: =IFERROR(VLOOKUP($A4,Awarded!$A$2:$J$196,5,FALSE),0) -> 52913.28 | F4: =IFERROR(VLOOKUP($A4,Awarded!$A$2:$J$196,6,FALSE),0) -> 30309.96 | G4: =IFERROR(VLOOKUP($A4,Awarded!$A$2:$J$196,7,FALSE),0) -> 234551.48 | H4: =IFERROR(VLOOKUP($A4,Awarded!$A$2:$J$196,8,FALSE),0) -> 0 | I4: =IFERROR(VLOOKUP($A4,Awarded!$A$2:$J$196,9,FALSE),0) -> 421138.97 | J4: =IFERROR(VLOOKUP($A4,Awarded!$A$2:$J$196,10,FALSE),0) -> 105201.33 | K4: =IFERROR(VLOOKUP($A4,Expended!$A$2:$J$198,5,FALSE),0) -> 11122.4 | L4: =IFERROR(VLOOKUP($A4,Expended!$A$2:$J$198,6,FALSE),0) -> 54.28 | M4: =IFERROR(VLOOKUP($A4,Expended!$A$2:$J$198,7,FALSE),0) -> 30309.96 | N4: =IFERROR(VLOOKUP($A4,Expended!$A$2:$J$198,8,FALSE),0) -> 53349.9 | O4: =IFERROR(VLOOKUP($A4,Expended!$A$2:$J$198,9,FALSE),0) -> 0 | P4: =IFERROR(VLOOKUP($A4,Expended!$A$2:$J$198,10,FALSE),0) -> 378989.38 | Q4: =IFERROR(VLOOKUP($A4,Expended!$A$2:$L$198,11,FALSE),0) -> 10251.9 | R4: =VLOOKUP($A4,Prior!$A$1:$K$199,5,FALSE) -> 3143 | S4: =VLOOKUP($A4,Prior!$A$1:$K$199,6,FALSE) -> 52859 | T4: =VLOOKUP($A4,Prior!$A$1:$K$199,7,FALSE) -> 0 | U4: =VLOOKUP($A4,Prior!$A$1:$K$199,8,FALSE) -> 181201.58 | V4: =VLOOKUP($A4,Prior!$A$1:$K$199,9,FALSE) -> 0 | W4: =VLOOKUP($A4,Prior!$A$1:$K$199,10,FALSE) -> 0 | X4: =VLOOKUP($A4,Prior!$A$1:$K$199,11,FALSE) -> 0 | Y4: 0 | Z4: 0 | AA4: 0 | AB4: 0 | AC4: 0 | AD4: 42149.59 | AE4: 94949.43
A5: 560 | B5: ALTURAS PREPARATORY ACADEMY, INC | C5: 36487482 | D5: =IFERROR(VLOOKUP($A5,Awarded!$A$2:$J$196,4,FALSE),0) -> 0 | E5: =IFERROR(VLOOKUP($A5,Awarded!$A$2:$J$196,5,FALSE),0) -> 0 | F5: =IFERROR(VLOOKUP($A5,Awarded!$A$2:$J$196,6,FALSE),0) -> 0 | G5: =IFERROR(VLOOKUP($A5,Awarded!$A$2:$J$196,7,FALSE),0) -> 96571.77 | H5: =IFERROR(VLOOKUP($A5,Awarded!$A$2:$J$196,8,FALSE),0) -> 115011 | I5: =IFERROR(VLOOKUP($A5,Awarded!$A$2:$J$196,9,FALSE),0) -> 173395.91 | J5: =IFERROR(VLOOKUP($A5,Awarded!$A$2:$J$196,10,FALSE),0) -> 43314.78 | K5: =IFERROR(VLOOKUP($A5,Expended!$A$2:$J$198,5,FALSE),0) -> 0 | L5: =IFERROR(VLOOKUP($A5,Expended!$A$2:$J$198,6,FALSE),0) -> 0 | M5: =IFERROR(VLOOKUP($A5,Expended!$A$2:$J$198,7,FALSE),0) -> 0 | N5: =IFERROR(VLOOKUP($A5,Expended!$A$2:$J$198,8,FALSE),0) -> 216.77 | O5: =IFERROR(VLOOKUP($A5,Expended!$A$2:$J$198,9,FALSE),0) -> 0 | P5: =IFERROR(VLOOKUP($A5,Expended!$A$2:$J$198,10,FALSE),0) -> 104017.27 | Q5: =IFERROR(VLOOKUP($A5,Expended!$A$2:$L$198,11,FALSE),0) -> 13823.36 | R5: =VLOOKUP($A5,Prior!$A$1:$K$199,5,FALSE) -> 0 | S5: =VLOOKUP($A5,Prior!$A$1:$K$199,6,FALSE) -> 0 | T5: =VLOOKUP($A5,Prior!$A$1:$K$199,7,FALSE) -> 0 | U5: =VLOOKUP($A5,Prior!$A$1:$K$199,8,FALSE) -> 96355 | V5: =VLOOKUP($A5,Prior!$A$1:$K$199,9,FALSE) -> 0 | W5: =VLOOKUP($A5,Prior!$A$1:$K$199,10,FALSE) -> 41530.12 | X5: =VLOOKUP($A5,Prior!$A$1:$K$199,11,FALSE) -> 4566.45 | Y5: 0 | Z5: 0 | AA5: 0 | AB5: 0 | AC5: 115011 | AD5: 27848.52 | AE5: 24924.97
A6: 381 | B6: AMERICAN FALLS JOINT DISTRICT | C6: 144756442 | D6: =IFERROR(VLOOKUP($A6,Awarded!$A$2:$J$196,4,FALSE),0) -> 27962.95 | E6: =IFERROR(VLOOKUP($A6,Awarded!$A$2:$J$196,5,FALSE),0) -> 295973.63 | F6: =IFERROR(VLOOKUP($A6,Awarded!$A$2:$J$196,6,FALSE),0) -> 0 | G6: =IFERROR(VLOOKUP($A6,Awarded!$A$2:$J$196,7,FALSE),0) -> 1182846.05 | H6: =IFERROR(VLOOKUP($A6,Awarded!$A$2:$J$196,8,FALSE),0) -> 0 | I6: =IFERROR(VLOOKUP($A6,Awarded!$A$2:$J$196,9,FALSE),0) -> 2123808.82 | J6: =IFERROR(VLOOKUP($A6,Awarded!$A$2:$J$196,10,FALSE),0) -> 530530.3 | K6: =IFERROR(VLOOKUP($A6,Expended!$A$2:$J$198,5,FALSE),0) -> 7315.83 | L6: =IFERROR(VLOOKUP($A6,Expended!$A$2:$J$198,6,FALSE),0) -> 303.63 | M6: =IFERROR(VLOOKUP($A6,Expended!$A$2:$J$198,7,FALSE),0) -> 0 | N6: =IFERROR(VLOOKUP($A6,Expended!$A$2:$J$198,8,FALSE),0) -> 100309.74 | O6: =IFERROR(VLOOKUP($A6,Expended!$A$2:$J$198,9,FALSE),0) -> 0 | P6: =IFERROR(VLOOKUP($A6,Expended!$A$2:$J$198,10,FALSE),0) -> 1016601.29 | Q6: =IFERROR(VLOOKUP($A6,Expended!$A$2:$L$198,11,FALSE),0) -> 108940.11 | R6: =VLOOKUP($A6,Prior!$A$1:$K$199,5,FALSE) -> 20647.12 | S6: =VLOOKUP($A6,Prior!$A$1:$K$199,6,FALSE) -> 295670 | T6: =VLOOKUP($A6,Prior!$A$1:$K$199,7,FALSE) -> 0 | U6: =VLOOKUP($A6,Prior!$A$1:$K$199,8,FALSE) -> 1082536.31 | V6: =VLOOKUP($A6,Prior!$A$1:$K$199,9,FALSE) -> 0 | W6: =VLOOKUP($A6,Prior!$A$1:$K$199,10,FALSE) -> 705325.07 | X6: =VLOOKUP($A6,Prior!$A$1:$K$199,11,FALSE) -> 203355.12 | Y6: 0 | Z6: 0 | AA6: 0 | AB6: 0 | AC6: 0 | AD6: 401882.46 | AE6: 218235.07
A7: 482 | B7: AMERICAN HERITAGE CHARTER SCHOOL, INC. | C7: 79082049 | D7: =IFERROR(VLOOKUP($A7,Awarded!$A$2:$J$196,4,FALSE),0) -> 12476.08 | E7: =IFERROR(VLOOKUP($A7,Awarded!$A$2:$J$196,5,FALSE),0) -> 24524.16 | F7: =IFERROR(VLOOKUP($A7,Awarded!$A$2:$J$196,6,FALSE),0) -> 60969.05 | G7: =IFERROR(VLOOKUP($A7,Awarded!$A$2:$J$196,7,FALSE),0) -> 132273.91 | H7: =IFERROR(VLOOKUP($A7,Awarded!$A$2:$J$196,8,FALSE),0) -> 53776 | I7: =IFERROR(VLOOKUP($A7,Awarded!$A$2:$J$196,9,FALSE),0) -> 237499.19 | J7: =IFERROR(VLOOKUP($A7,Awarded!$A$2:$J$196,10,FALSE),0) -> 59327.62 | K7: =IFERROR(VLOOKUP($A7,Expended!$A$2:$J$198,5,FALSE),0) -> 441.08 | L7: =IFERROR(VLOOKUP($A7,Expended!$A$2:$J$198,6,FALSE),0) -> 52.04 | M7: =IFERROR(VLOOKUP($A7,Expended!$A$2:$J$198,7,FALSE),0) -> 60969.05 | N7: =IFERROR(VLOOKUP($A7,Expended!$A$2:$J$198,8,FALSE),0) -> 100844.2 | O7: =IFERROR(VLOOKUP($A7,Expended!$A$2:$J$198,9,FALSE),0) -> 53776 | P7: =IFERROR(VLOOKUP($A7,Expended!$A$2:$J$198,10,FALSE),0) -> 237499.19 | Q7: =IFERROR(VLOOKUP($A7,Expended!$A$2:$L$198,11,FALSE),0) -> 29736.76 | R7: =VLOOKUP($A7,Prior!$A$1:$K$199,5,FALSE) -> 12035 | S7: =VLOOKUP($A7,Prior!$A$1:$K$199,6,FALSE) -> 24472.12 | T7: =VLOOKUP($A7,Prior!$A$1:$K$199,7,FALSE) -> 0 | U7: =VLOOKUP($A7,Prior!$A$1:$K$199,8,FALSE) -> 31429.71 | V7: =VLOOKUP($A7,Prior!$A$1:$K$199,9,FALSE) -> 0 | W7: =VLOOKUP($A7,Prior!$A$1:$K$199,10,FALSE) -> 0 | X7: =VLOOKUP($A7,Prior!$A$1:$K$199,11,FALSE) -> 0 | Y7: 0 | Z7: 0 | AA7: 0 | AB7: 0 | AC7: 0 | AD7: 0 | AE7: 29590.86
A8: 492 | B8: ANSER OF IDAHO, INC. | C8: 832063890 | D8: =IFERROR(VLOOKUP($A8,Awarded!$A$2:$J$196,4,FALSE),0) -> 0 | E8: =IFERROR(VLOOKUP($A8,Awarded!$A$2:$J$196,5,FALSE),0) -> 19499 | F8: =IFERROR(VLOOKUP($A8,Awarded!$A$2:$J$196,6,FALSE),0) -> 54211.84 | G8: =IFERROR(VLOOKUP($A8,Awarded!$A$2:$J$196,7,FALSE),0) -> 145509.62 | H8: =IFERROR(VLOOKUP($A8,Awarded!$A$2:$J$196,8,FALSE),0) -> 24223 | I8: =IFERROR(VLOOKUP($A8,Awarded!$A$2:$J$196,9,FALSE),0) -> 261262.72 | J8: =IFERROR(VLOOKUP($A8,Awarded!$A$2:$J$196,10,FALSE),0) -> 65263.78 | K8: =IFERROR(VLOOKUP($A8,Expended!$A$2:$J$198,5,FALSE),0) -> 0 | L8: =IFERROR(VLOOKUP($A8,Expended!$A$2:$J$198,6,FALSE),0) -> 0 | M8: =IFERROR(VLOOKUP($A8,Expended!$A$2:$J$198,7,FALSE),0) -> 43659.21 | N8: =IFERROR(VLOOKUP($A8,Expended!$A$2:$J$198,8,FALSE),0) -> 15468.32 | O8: =IFERROR(VLOOKUP($A8,Expended!$A$2:$J$198,9,FALSE),0) -> 6737.55 | P8: =IFERROR(VLOOKUP($A8,Expended!$A$2:$J$198,10,FALSE),0) -> 33025.94 | Q8: =IFERROR(VLOOKUP($A8,Expended!$A$2:$L$198,11,FALSE),0) -> 0 | R8: =VLOOKUP($A8,Prior!$A$1:$K$199,5,FALSE) -> 0 | S8: =VLOOKUP($A8,Prior!$A$1:$K$199,6,FALSE) -> 19479 | T8: =VLOOKUP($A8,Prior!$A$1:$K$199,7,FALSE) -> 0 | U8: =VLOOKUP($A8,Prior!$A$1:$K$199,8,FALSE) -> 128805.88 | V8: =VLOOKUP($A8,Prior!$A$1:$K$199,9,FALSE) -> 0 | W8: =VLOOKUP($A8,Prior!$A$1:$K$199,10,FALSE) -> 0 | X8: =VLOOKUP($A8,Prior!$A$1:$K$199,11,FALSE) -> 65126.95 | Y8: 0 | Z8: 20 | AA8: 10552.63 | AB8: 1235.42 | AC8: 17485.45 | AD8: 228236.78 | AE8: 136.83
A9: 383 | B9: ARBON ELEMENTARY DISTRICT | C9: 189339153 | D9: =IFERROR(VLOOKUP($A9,Awarded!$A$2:$J$196,4,FALSE),0) -> 8190.19 | E9: =IFERROR(VLOOKUP($A9,Awarded!$A$2:$J$196,5,FALSE),0) -> 0 | F9: =IFERROR(VLOOKUP($A9,Awarded!$A$2:$J$196,6,FALSE),0) -> 8579.48 | G9: =IFERROR(VLOOKUP($A9,Awarded!$A$2:$J$196,7,FALSE),0) -> 0 | H9: =IFERROR(VLOOKUP($A9,Awarded!$A$2:$J$196,8,FALSE),0) -> 349143 | I9: =IFERROR(VLOOKUP($A9,Awarded!$A$2:$J$196,9,FALSE),0) -> 0 | J9: =IFERROR(VLOOKUP($A9,Awarded!$A$2:$J$196,10,FALSE),0) -> 0 | K9: =IFERROR(VLOOKUP($A9,Expended!$A$2:$J$198,5,FALSE),0) -> 4032.19 | L9: =IFERROR(VLOOKUP($A9,Expended!$A$2:$J$198,6,FALSE),0) -> 0 | M9: =IFERROR(VLOOKUP($A9,Expended!$A$2:$J$198,7,FALSE),0) -> 332.34 | N9: =IFERROR(VLOOKUP($A9,Expended!$A$2:$J$198,8,FALSE),0) -> 0 | O9: =IFERROR(VLOOKUP($A9,Expended!$A$2:$J$198,9,FALSE),0) -> 94267.35 | P9: =IFERROR(VLOOKUP($A9,Expended!$A$2:$J$198,10,FALSE),0) -> 0 | Q9: =IFERROR(VLOOKUP($A9,Expended!$A$2:$L$198,11,FALSE),0) -> 0 | R9: =VLOOKUP($A9,Prior!$A$1:$K$199,5,FALSE) -> 4158 | S9: =VLOOKUP($A9,Prior!$A$1:$K$199,6,FALSE) -> 0 | T9: =VLOOKUP($A9,Prior!$A$1:$K$199,7,FALSE) -> 761.22 | U9: =VLOOKUP($A9,Prior!$A$1:$K$199,8,FALSE) -> 0 | V9: =VLOOKUP($A9,Prior!$A$1:$K$199,9,FALSE) -> 0 | W9: =VLOOKUP($A9,Prior!$A$1:$K$199,10,FALSE) -> 0 | X9: =VLOOKUP($A9,Prior!$A$1:$K$199,11,FALSE) -> 0 | Y9: 0 | Z9: 0 | AA9: 7485.92 | AB9: 0 | AC9: 254875.65 | AD9: 0 | AE9: 0
A10: 394 | B10: AVERY SCHOOL DISTRICT | C10: 100599109 | D10: =IFERROR(VLOOKUP($A10,Awarded!$A$2:$J$196,4,FALSE),0) -> 8289.93 | E10: =IFERROR(VLOOKUP($A10,Awarded!$A$2:$J$196,5,FALSE),0) -> 0 | F10: =IFERROR(VLOOKUP($A10,Awarded!$A$2:$J$196,6,FALSE),0) -> 11056.14 | G10: =IFERROR(VLOOKUP($A10,Awarded!$A$2:$J$196,7,FALSE),0) -> 0 | H10: =IFERROR(VLOOKUP($A10,Awarded!$A$2:$J$196,8,FALSE),0) -> 349143 | I10: =IFERROR(VLOOKUP($A10,Awarded!$A$2:$J$196,9,FALSE),0) -> 0 | J10: =IFERROR(VLOOKUP($A10,Awarded!$A$2:$J$196,10,FALSE),0) -> 0 | K10: =IFERROR(VLOOKUP($A10,Expended!$A$2:$J$198,5,FALSE),0) -> 330.93 | L10: =IFERROR(VLOOKUP($A10,Expended!$A$2:$J$198,6,FALSE),0) -> 0 | M10: =IFERROR(VLOOKUP($A10,Expended!$A$2:$J$198,7,FALSE),0) -> 11056.14 | N10: =IFERROR(VLOOKUP($A10,Expended!$A$2:$J$198,8,FALSE),0) -> 0 | O10: =IFERROR(VLOOKUP($A10,Expended!$A$2:$J$198,9,FALSE),0) -> 272860.86 | P10: =IFERROR(VLOOKUP($A10,Expended!$A$2:$J$198,10,FALSE),0) -> 0 | Q10: =IFERROR(VLOOKUP($A10,Expended!$A$2:$L$198,11,FALSE),0) -> 0 | R10: =VLOOKUP($A10,Prior!$A$1:$K$199,5,FALSE) -> 7959 | S10: =VLOOKUP($A10,Prior!$A$1:$K$199,6,FALSE) -> 0 | T10: =VLOOKUP($A10,Prior!$A$1:$K$199,7,FALSE) -> 0 | U10: =VLOOKUP($A10,Prior!$A$1:$K$199,8,FALSE) -> 0 | V10: =VLOOKUP($A10,Prior!$A$1:$K$199,9,FALSE) -> 76282.14 | W10: =VLOOKUP($A10,Prior!$A$1:$K$199,10,FALSE) -> 0 | X10: =VLOOKUP($A10,Prior!$A$1:$K$199,11,FALSE) -> 0 | Y10: 0 | Z10: 0 | AA10: 0 | AB10: 0 | AC10: 0 | AD10: 0 | AE10: 0
A11: 72 | B11: BASIN SCHOOL DISTRICT | C11: 100014778 | D11: =IFERROR(VLOOKUP($A11,Awarded!$A$2:$J$196,4,FALSE),0) -> 11634 | E11: =IFERROR(VLOOKUP($A11,Awarded!$A$2:$J$196,5,FALSE),0) -> 38320.31 | F11: =IFERROR(VLOOKUP($A11,Awarded!$A$2:$J$196,6,FALSE),0) -> 0 | G11: =IFERROR(VLOOKUP($A11,Awarded!$A$2:$J$196,7,FALSE),0) -> 213795.89 | H11: =IFERROR(VLOOKUP($A11,Awarded!$A$2:$J$196,8,FALSE),0) -> 0 | I11: =IFERROR(VLOOKUP($A11,Awarded!$A$2:$J$196,9,FALSE),0) -> 383871.79 | J11: =IFERROR(VLOOKUP($A11,Awarded!$A$2:$J$196,10,FALSE),0) -> 95891.94 | K11: =IFERROR(VLOOKUP($A11,Expended!$A$2:$J$198,5,FALSE),0) -> 0 | L11: =IFERROR(VLOOKUP($A11,Expended!$A$2:$J$198,6,FALSE),0) -> 39.31 | M11: =IFERROR(VLOOKUP($A11,Expended!$A$2:$J$198,7,FALSE),0) -> 0 | N11: =IFERROR(VLOOKUP($A11,Expended!$A$2:$J$198,8,FALSE),0) -> 479.89 | O11: =IFERROR(VLOOKUP($A11,Expended!$A$2:$J$198,9,FALSE),0) -> 0 | P11: =IFERROR(VLOOKUP($A11,Expended!$A$2:$J$198,10,FALSE),0) -> 125435.09 | Q11: =IFERROR(VLOOKUP($A11,Expended!$A$2:$L$198,11,FALSE),0) -> 34.94 | R11: =VLOOKUP($A11,Prior!$A$1:$K$199,5,FALSE) -> 11634 | S11: =VLOOKUP($A11,Prior!$A$1:$K$199,6,FALSE) -> 38281 | T11: =VLOOKUP($A11,Prior!$A$1:$K$199,7,FALSE) -> 0 | U11: =VLOOKUP($A11,Prior!$A$1:$K$199,8,FALSE) -> 213315.8 | V11: =VLOOKUP($A11,Prior!$A$1:$K$199,9,FALSE) -> 0 | W11: =VLOOKUP($A11,Prior!$A$1:$K$199,10,FALSE) -> 186675.32 | X11: =VLOOKUP($A11,Prior!$A$1:$K$199,11,FALSE) -> 95857 | Y11: 0 | Z11: 0 | AA11: 0 | AB11: 0.2 | AC11: 0 | AD11: 71761.38 | AE11: 0
A12: 33 | B12: BEAR LAKE COUNTY DISTRICT | C12: 183893577 | D12: =IFERROR(VLOOKUP($A12,Awarded!$A$2:$J$196,4,FALSE),0) -> 23689 | E12: =IFERROR(VLOOKUP($A12,Awarded!$A$2:$J$196,5,FALSE),0) -> 148980.83 | F12: =IFERROR(VLOOKUP($A12,Awarded!$A$2:$J$196,6,FALSE),0) -> 17582.63 | G12: =IFERROR(VLOOKUP($A12,Awarded!$A$2:$J$196,7,FALSE),0) -> 595396.45 | H12: =IFERROR(VLOOKUP($A12,Awarded!$A$2:$J$196,8,FALSE),0) -> 0 | I12: =IFERROR(VLOOKUP($A12,Awarded!$A$2:$J$196,9,FALSE),0) -> 1069038.68 | J12: =IFERROR(VLOOKUP($A12,Awarded!$A$2:$J$196,10,FALSE),0) -> 267047.3 | K12: =IFERROR(VLOOKUP($A12,Expended!$A$2:$J$198,5,FALSE),0) -> 2606 | L12: =IFERROR(VLOOKUP($A12,Expended!$A$2:$J$198,6,FALSE),0) -> 152.83 | M12: =IFERROR(VLOOKUP($A12,Expended!$A$2:$J$198,7,FALSE),0) -> 0 | N12: =IFERROR(VLOOKUP($A12,Expended!$A$2:$J$198,8,FALSE),0) -> 1336.45 | O12: =IFERROR(VLOOKUP($A12,Expended!$A$2:$J$198,9,FALSE),0) -> 0 | P12: =IFERROR(VLOOKUP($A12,Expended!$A$2:$J$198,10,FALSE),0) -> 383037.43 | Q12: =IFERROR(VLOOKUP($A12,Expended!$A$2:$L$198,11,FALSE),0) -> 76910.69 | R12: =VLOOKUP($A12,Prior!$A$1:$K$199,5,FALSE) -> 21083 | S12: =VLOOKUP($A12,Prior!$A$1:$K$199,6,FALSE) -> 148828 | T12: =VLOOKUP($A12,Prior!$A$1:$K$199,7,FALSE) -> 17223 | U12: =VLOOKUP($A12,Prior!$A$1:$K$199,8,FALSE) -> 594060 | V12: =VLOOKUP($A12,Prior!$A$1:$K$199,9,FALSE) -> 0 | W12: =VLOOKUP($A12,Prior!$A$1:$K$199,10,FALSE) -> 0 | X12: =VLOOKUP($A12,Prior!$A$1:$K$199,11,FALSE) -> 0 | Y12: 0 | Z12: 0 | AA12: 359.63 | AB12: 0 | AC12: 0 | AD12: 686001.25 | AE12: 190136.61
A13: 477 | B13: BLACKFOOT CHARTER COMMUNITY LEARNING CENTER, INC. | C13: 142291967 | D13: =IFERROR(VLOOKUP($A13,Awarded!$A$2:$J$196,4,FALSE),0) -> 14317.04 | E13: =IFERROR(VLOOKUP($A13,Awarded!$A$2:$J$196,5,FALSE),0) -> 83477.64 | F13: =IFERROR(VLOOKUP($A13,Awarded!$A$2:$J$196,6,FALSE),0) -> 0 | G13: =IFERROR(VLOOKUP($A13,Awarded!$A$2:$J$196,7,FALSE),0) -> 428192.13 | H13: =IFERROR(VLOOKUP($A13,Awarded!$A$2:$J$196,8,FALSE),0) -> 0 | I13: =IFERROR(VLOOKUP($A13,Awarded!$A$2:$J$196,9,FALSE),0) -> 768822.82 | J13: =IFERROR(VLOOKUP($A13,Awarded!$A$2:$J$196,10,FALSE),0) -> 192052.98 | K13: =IFERROR(VLOOKUP($A13,Expended!$A$2:$J$198,5,FALSE),0) -> 8681.19 | L13: =IFERROR(VLOOKUP($A13,Expended!$A$2:$J$198,6,FALSE),0) -> 85.64 | M13: =IFERROR(VLOOKUP($A13,Expended!$A$2:$J$198,7,FALSE),0) -> 0 | N13: =IFERROR(VLOOKUP($A13,Expended!$A$2:$J$198,8,FALSE),0) -> 161974.37 | O13: =IFERROR(VLOOKUP($A13,Expended!$A$2:$J$198,9,FALSE),0) -> 0 | P13: =IFERROR(VLOOKUP($A13,Expended!$A$2:$J$198,10,FALSE),0) -> 437823.64 | Q13: =IFERROR(VLOOKUP($A13,Expended!$A$2:$L$198,11,FALSE),0) -> 88925.97 | R13: =VLOOKUP($A13,Prior!$A$1:$K$199,5,FALSE) -> 5635.85 | S13: =VLOOKUP($A13,Prior!$A$1:$K$199,6,FALSE) -> 83392 | T13: =VLOOKUP($A13,Prior!$A$1:$K$199,7,FALSE) -> 0 | U13: =VLOOKUP($A13,Prior!$A$1:$K$199,8,FALSE) -> 266217.76 | V13: =VLOOKUP($A13,Prior!$A$1:$K$199,9,FALSE) -> 0 | W13: =VLOOKUP($A13,Prior!$A$1:$K$199,10,FALSE) -> 0 | X13: =VLOOKUP($A13,Prior!$A$1:$K$199,11,FALSE) -> 103127.01 | Y13: 0 | Z13: 0 | AA13: 0 | AB13: 0 | AC13: 0 | AD13: 330999.18 | AE13: 0
A14: 55 | B14: BLACKFOOT DISTRICT | C14: 607630415 | D14: =IFERROR(VLOOKUP($A14,Awarded!$A$2:$J$196,4,FALSE),0) -> 50921.19 | E14: =IFERROR(VLOOKUP($A14,Awarded!$A$2:$J$196,5,FALSE),0) -> 470701.87 | F14: =IFERROR(VLOOKUP($A14,Awarded!$A$2:$J$196,6,FALSE),0) -> 0 | G14: =IFERROR(VLOOKUP($A14,Awarded!$A$2:$J$196,7,FALSE),0) -> 2297152.26 | H14: =IFERROR(VLOOKUP($A14,Awarded!$A$2:$J$196,8,FALSE),0) -> 0 | I14: =IFERROR(VLOOKUP($A14,Awarded!$A$2:$J$196,9,FALSE),0) -> 4124554.04 | J14: =IFERROR(VLOOKUP($A14,Awarded!$A$2:$J$196,10,FALSE),0) -> 1030319.4 | K14: =IFERROR(VLOOKUP($A14,Expended!$A$2:$J$198,5,FALSE),0) -> 9942.33 | L14: =IFERROR(VLOOKUP($A14,Expended!$A$2:$J$198,6,FALSE),0) -> 0 | M14: =IFERROR(VLOOKUP($A14,Expended!$A$2:$J$198,7,FALSE),0) -> 0 | N14: =IFERROR(VLOOKUP($A14,Expended!$A$2:$J$198,8,FALSE),0) -> 30581.18 | O14: =IFERROR(VLOOKUP($A14,Expended!$A$2:$J$198,9,FALSE),0) -> 0 | P14: =IFERROR(VLOOKUP($A14,Expended!$A$2:$J$198,10,FALSE),0) -> 2452363.66 | Q14: =IFERROR(VLOOKUP($A14,Expended!$A$2:$L$198,11,FALSE),0) -> 259417.58 | R14: =VLOOKUP($A14,Prior!$A$1:$K$199,5,FALSE) -> 25888.82 | S14: =VLOOKUP($A14,Prior!$A$1:$K$199,6,FALSE) -> 470219 | T14: =VLOOKUP($A14,Prior!$A$1:$K$199,7,FALSE) -> 0 | U14: =VLOOKUP($A14,Prior!$A$1:$K$199,8,FALSE) -> 2260354.08 | V14: =VLOOKUP($A14,Prior!$A$1:$K$199,9,FALSE) -> 0 | W14: =VLOOKUP($A14,Prior!$A$1:$K$199,10,FALSE) -> 1521400.88 | X14: =VLOOKUP($A14,Prior!$A$1:$K$199,11,FALSE) -> 770526.42 | Y14: 15090.04 | Z14: 482.87 | AA14: 0 | AB14: 6217 | AC14: 0 | AD14: 150789.5 | AE14: 375.4
A15: 61 | B15: BLAINE COUNTY DISTRICT | C15: 794328906 | D15: =IFERROR(VLOOKUP($A15,Awarded!$A$2:$J$196,4,FALSE),0) -> 46172.85 | E15: =IFERROR(VLOOKUP($A15,Awarded!$A$2:$J$196,5,FALSE),0) -> 239900.1 | F15: =IFERROR(VLOOKUP($A15,Awarded!$A$2:$J$196,6,FALSE),0) -> 339156.05 | G15: =IFERROR(VLOOKUP($A15,Awarded!$A$2:$J$196,7,FALSE),0) -> 928892.02 | H15: =IFERROR(VLOOKUP($A15,Awarded!$A$2:$J$196,8,FALSE),0) -> 0 | I15: =IFERROR(VLOOKUP($A15,Awarded!$A$2:$J$196,9,FALSE),0) -> 1667832.49 | J15: =IFERROR(VLOOKUP($A15,Awarded!$A$2:$J$196,10,FALSE),0) -> 416626.8 | K15: =IFERROR(VLOOKUP($A15,Expended!$A$2:$J$198,5,FALSE),0) -> 12881.17 | L15: =IFERROR(VLOOKUP($A15,Expended!$A$2:$J$198,6,FALSE),0) -> 246.1 | M15: =IFERROR(VLOOKUP($A15,Expended!$A$2:$J$198,7,FALSE),0) -> 236325.68 | N15: =IFERROR(VLOOKUP($A15,Expended!$A$2:$J$198,8,FALSE),0) -> 800449.05 | O15: =IFERROR(VLOOKUP($A15,Expended!$A$2:$J$198,9,FALSE),0) -> 0 | P15: =IFERROR(VLOOKUP($A15,Expended!$A$2:$J$198,10,FALSE),0) -> 561398.09 | Q15: =IFERROR(VLOOKUP($A15,Expended!$A$2:$L$198,11,FALSE),0) -> 6807 | R15: =VLOOKUP($A15,Prior!$A$1:$K$199,5,FALSE) -> 32610.15 | S15: =VLOOKUP($A15,Prior!$A$1:$K$199,6,FALSE) -> 239654 | T15: =VLOOKUP($A15,Prior!$A$1:$K$199,7,FALSE) -> 0 | U15: =VLOOKUP($A15,Prior!$A$1:$K$199,8,FALSE) -> 0 | V15: =VLOOKUP($A15,Prior!$A$1:$K$199,9,FALSE) -> 0 | W15: =VLOOKUP($A15,Prior!$A$1:$K$199,10,FALSE) -> 0 | X15: =VLOOKUP($A15,Prior!$A$1:$K$199,11,FALSE) -> 0 | Y15: 681.53 | Z15: 0 | AA15: 102830.37 | AB15: 128442.97 | AC15: 0 | AD15: 1106434.4 | AE15: 409819.8
A16: 234 | B16: BLISS JOINT DISTRICT | C16: 40197688 | D16: =IFERROR(VLOOKUP($A16,Awarded!$A$2:$J$196,4,FALSE),0) -> 2307.95 | E16: =IFERROR(VLOOKUP($A16,Awarded!$A$2:$J$196,5,FALSE),0) -> 28873.62 | F16: =IFERROR(VLOOKUP($A16,Awarded!$A$2:$J$196,6,FALSE),0) -> 5462.73 | G16: =IFERROR(VLOOKUP($A16,Awarded!$A$2:$J$196,7,FALSE),0) -> 105941.8 | H16: =IFERROR(VLOOKUP($A16,Awarded!$A$2:$J$196,8,FALSE),0) -> 112575 | I16: =IFERROR(VLOOKUP($A16,Awarded!$A$2:$J$196,9,FALSE),0) -> 190220.4 | J16: =IFERROR(VLOOKUP($A16,Awarded!$A$2:$J$196,10,FALSE),0) -> 47517.31 | K16: =IFERROR(VLOOKUP($A16,Expended!$A$2:$J$198,5,FALSE),0) -> 0 | L16: =IFERROR(VLOOKUP($A16,Expended!$A$2:$J$198,6,FALSE),0) -> 0 | M16: =IFERROR(VLOOKUP($A16,Expended!$A$2:$J$198,7,FALSE),0) -> 0 | N16: =IFERROR(VLOOKUP($A16,Expended!$A$2:$J$198,8,FALSE),0) -> 21740 | O16: =IFERROR(VLOOKUP($A16,Expended!$A$2:$J$198,9,FALSE),0) -> 0 | P16: =IFERROR(VLOOKUP($A16,Expended!$A$2:$J$198,10,FALSE),0) -> 82421.1 | Q16: =IFERROR(VLOOKUP($A16,Expended!$A$2:$L$198,11,FALSE),0) -> 18920.97 | R16: =VLOOKUP($A16,Prior!$A$1:$K$199,5,FALSE) -> 688.22 | S16: =VLOOKUP($A16,Prior!$A$1:$K$199,6,FALSE) -> 28844 | T16: =VLOOKUP($A16,Prior!$A$1:$K$199,7,FALSE) -> 1119.63 | U16: =VLOOKUP($A16,Prior!$A$1:$K$199,8,FALSE) -> 75163.32 | V16: =VLOOKUP($A16,Prior!$A$1:$K$199,9,FALSE) -> 106503.17 | W16: =VLOOKUP($A16,Prior!$A$1:$K$199,10,FALSE) -> 0 | X16: =VLOOKUP($A16,Prior!$A$1:$K$199,11,FALSE) -> 21437.85 | Y16: 1619.73 | Z16: 29.62 | AA16: 4343.1 | AB16: 9038.48 | AC16: 6071.83 | AD16: 107799.3 | AE16: 7158.49
A17: 1 | B17: Boise Independent District | C17: 122740046 | D17: =IFERROR(VLOOKUP($A17,Awarded!$A$2:$J$196,4,FALSE),0) -> 294674.17 | E17: =IFERROR(VLOOKUP($A17,Awarded!$A$2:$J$196,5,FALSE),0) -> 3814026.67 | F17: =IFERROR(VLOOKUP($A17,Awarded!$A$2:$J$196,6,FALSE),0) -> 0 | G17: =IFERROR(VLOOKUP($A17,Awarded!$A$2:$J$196,7,FALSE),0) -> 14756756.48 | H17: =IFERROR(VLOOKUP($A17,Awarded!$A$2:$J$196,8,FALSE),0) -> 0 | I17: =IFERROR(VLOOKUP($A17,Awarded!$A$2:$J$196,9,FALSE),0) -> 26495868.28 | J17: =IFERROR(VLOOKUP($A17,Awarded!$A$2:$J$196,10,FALSE),0) -> 6618703.57 | K17: =IFERROR(VLOOKUP($A17,Expended!$A$2:$J$198,5,FALSE),0) -> 0 | L17: =IFERROR(VLOOKUP($A17,Expended!$A$2:$J$198,6,FALSE),0) -> 0 | M17: =IFERROR(VLOOKUP($A17,Expended!$A$2:$J$198,7,FALSE),0) -> 0 | N17: =IFERROR(VLOOKUP($A17,Expended!$A$2:$J$198,8,FALSE),0) -> 8455995.68 | O17: =IFERROR(VLOOKUP($A17,Expended!$A$2:$J$198,9,FALSE),0) -> 0 | P17: =IFERROR(VLOOKUP($A17,Expended!$A$2:$J$198,10,FALSE),0) -> 4960749.29 | Q17: =IFERROR(VLOOKUP($A17,Expended!$A$2:$L$198,11,FALSE),0) -> 1291315.46 | R17: =VLOOKUP($A17,Prior!$A$1:$K$199,5,FALSE) -> 283938 | S17: =VLOOKUP($A17,Prior!$A$1:$K$199,6,FALSE) -> 3810114 | T17: =VLOOKUP($A17,Prior!$A$1:$K$199,7,FALSE) -> 0 | U17: =VLOOKUP($A17,Prior!$A$1:$K$199,8,FALSE) -> 5325500.68 | V17: =VLOOKUP($A17,Prior!$A$1:$K$199,9,FALSE) -> 0 | W17: =VLOOKUP($A17,Prior!$A$1:$K$199,10,FALSE) -> 0 | X17: =VLOOKUP($A17,Prior!$A$1:$K$199,11,FALSE) -> 380332.88 | Y17: 10736.17 | Z17: 3912.67 | AA17: 0 | AB17: 975260.12 | AC17: 0 | AD17: 21535118.99 | AE17: 4947055.23
A18: 93 | B18: BONNEVILLE JOINT DISTRICT | C18: 879016822 | D18: =IFERROR(VLOOKUP($A18,Awarded!$A$2:$J$196,4,FALSE),0) -> 159584.18 | E18: =IFERROR(VLOOKUP($A18,Awarded!$A$2:$J$196,5,FALSE),0) -> 1257543.06 | F18: =IFERROR(VLOOKUP($A18,Awarded!$A$2:$J$196,6,FALSE),0) -> 637538.11 | G18: =IFERROR(VLOOKUP($A18,Awarded!$A$2:$J$196,7,FALSE),0) -> 5025717.88 | H18: =IFERROR(VLOOKUP($A18,Awarded!$A$2:$J$196,8,FALSE),0) -> 0 | I18: =IFERROR(VLOOKUP($A18,Awarded!$A$2:$J$196,9,FALSE),0) -> 9023715.61 | J18: =IFERROR(VLOOKUP($A18,Awarded!$A$2:$J$196,10,FALSE),0) -> 2254136.31 | K18: =IFERROR(VLOOKUP($A18,Expended!$A$2:$J$198,5,FALSE),0) -> 3053.18 | L18: =IFERROR(VLOOKUP($A18,Expended!$A$2:$J$198,6,FALSE),0) -> 1290.06 | M18: =IFERROR(VLOOKUP($A18,Expended!$A$2:$J$198,7,FALSE),0) -> 13040.11 | N18: =IFERROR(VLOOKUP($A18,Expended!$A$2:$J$198,8,FALSE),0) -> 11280.88 | O18: =IFERROR(VLOOKUP($A18,Expended!$A$2:$J$198,9,FALSE),0) -> 0 | P18: =IFERROR(VLOOKUP($A18,Expended!$A$2:$J$198,10,FALSE),0) -> 5408338.72 | Q18: =IFERROR(VLOOKUP($A18,Expended!$A$2:$L$198,11,FALSE),0) -> 1269989.43 | R18: =VLOOKUP($A18,Prior!$A$1:$K$199,5,FALSE) -> 156531 | S18: =VLOOKUP($A18,Prior!$A$1:$K$199,6,FALSE) -> 1256253 | T18: =VLOOKUP($A18,Prior!$A$1:$K$199,7,FALSE) -> 624498 | U18: =VLOOKUP($A18,Prior!$A$1:$K$199,8,FALSE) -> 5014437 | V18: =VLOOKUP($A18,Prior!$A$1:$K$199,9,FALSE) -> 0 | W18: =VLOOKUP($A18,Prior!$A$1:$K$199,10,FALSE) -> 459929.56 | X18: =VLOOKUP($A18,Prior!$A$1:$K$199,11,FALSE) -> 934892.49 | Y18: 0 | Z18: 0 | AA18: 0 | AB18: 0 | AC18: 0 | AD18: 3155447.33 | AE18: 49254.39
A19: 101 | B19: BOUNDARY COUNTY DISTRICT | C19: 10206712 | D19: =IFERROR(VLOOKUP($A19,Awarded!$A$2:$J$196,4,FALSE),0) -> 27242.35 | E19: =IFERROR(VLOOKUP($A19,Awarded!$A$2:$J$196,5,FALSE),0) -> 340136.93 | F19: =IFERROR(VLOOKUP($A19,Awarded!$A$2:$J$196,6,FALSE),0) -> 0 | G19: =IFERROR(VLOOKUP($A19,Awarded!$A$2:$J$196,7,FALSE),0) -> 1591902.23 | H19: =IFERROR(VLOOKUP($A19,Awarded!$A$2:$J$196,8,FALSE),0) -> 0 | I19: =IFERROR(VLOOKUP($A19,Awarded!$A$2:$J$196,9,FALSE),0) -> 2858271.83 | J19: =IFERROR(VLOOKUP($A19,Awarded!$A$2:$J$196,10,FALSE),0) -> 714000.15 | K19: =IFERROR(VLOOKUP($A19,Expended!$A$2:$J$198,5,FALSE),0) -> 3799.35 | L19: =IFERROR(VLOOKUP($A19,Expended!$A$2:$J$198,6,FALSE),0) -> 68090.3 | M19: =IFERROR(VLOOKUP($A19,Expended!$A$2:$J$198,7,FALSE),0) -> 0 | N19: =IFERROR(VLOOKUP($A19,Expended!$A$2:$J$198,8,FALSE),0) -> 765602.37 | O19: =IFERROR(VLOOKUP($A19,Expended!$A$2:$J$198,9,FALSE),0) -> 0 | P19: =IFERROR(VLOOKUP($A19,Expended!$A$2:$J$198,10,FALSE),0) -> 1689530.43 | Q19: =IFERROR(VLOOKUP($A19,Expended!$A$2:$L$198,11,FALSE),0) -> 239717.35 | R19: =VLOOKUP($A19,Prior!$A$1:$K$199,5,FALSE) -> 23443 | S19: =VLOOKUP($A19,Prior!$A$1:$K$199,6,FALSE) -> 272046.63 | T19: =VLOOKUP($A19,Prior!$A$1:$K$199,7,FALSE) -> 0 | U19: =VLOOKUP($A19,Prior!$A$1:$K$199,8,FALSE) -> 713677.67 | V19: =VLOOKUP($A19,Prior!$A$1:$K$199,9,FALSE) -> 0 | W19: =VLOOKUP($A19,Prior!$A$1:$K$199,10,FALSE) -> 53911.15 | X19: =VLOOKUP($A19,Prior!$A$1:$K$199,11,FALSE) -> 0 | Y19: 0 | Z19: 0 | AA19: 0 | AB19: 112622.19 | AC19: 0 | AD19: 1114830.25 | AE19: 474282.8
A20: 365 | B20: BRUNEAU-GRAND VIEW JOINT SCHOOL DISTRICT | C20: 29868007 | D20: =IFERROR(VLOOKUP($A20,Awarded!$A$2:$J$196,4,FALSE),0) -> 11633.18 | E20: =IFERROR(VLOOKUP($A20,Awarded!$A$2:$J$196,5,FALSE),0) -> 95210.67 | F20: =IFERROR(VLOOKUP($A20,Awarded!$A$2:$J$196,6,FALSE),0) -> 0 | G20: =IFERROR(VLOOKUP($A20,Awarded!$A$2:$J$196,7,FALSE),0) -> 380504.09 | H20: =IFERROR(VLOOKUP($A20,Awarded!$A$2:$J$196,8,FALSE),0) -> 0 | I20: =IFERROR(VLOOKUP($A20,Awarded!$A$2:$J$196,9,FALSE),0) -> 683197.61 | J20: =IFERROR(VLOOKUP($A20,Awarded!$A$2:$J$196,10,FALSE),0) -> 170664.18 | K20: =IFERROR(VLOOKUP($A20,Expended!$A$2:$J$198,5,FALSE),0) -> 7225.18 | L20: =IFERROR(VLOOKUP($A20,Expended!$A$2:$J$198,6,FALSE),0) -> 97.67 | M20: =IFERROR(VLOOKUP($A20,Expended!$A$2:$J$198,7,FALSE),0) -> 0 | N20: =IFERROR(VLOOKUP($A20,Expended!$A$2:$J$198,8,FALSE),0) -> 52167.19 | O20: =IFERROR(VLOOKUP($A20,Expended!$A$2:$J$198,9,FALSE),0) -> 0 | P20: =IFERROR(VLOOKUP($A20,Expended!$A$2:$J$198,10,FALSE),0) -> 233748.83 | Q20: =IFERROR(VLOOKUP($A20,Expended!$A$2:$L$198,11,FALSE),0) -> 18679.92 | R20: =VLOOKUP($A20,Prior!$A$1:$K$199,5,FALSE) -> 4408 | S20: =VLOOKUP($A20,Prior!$A$1:$K$199,6,FALSE) -> 95113 | T20: =VLOOKUP($A20,Prior!$A$1:$K$199,7,FALSE) -> 0 | U20: =VLOOKUP($A20,Prior!$A$1:$K$199,8,FALSE) -> 328336.9 | V20: =VLOOKUP($A20,Prior!$A$1:$K$199,9,FALSE) -> 0 | W20: =VLOOKUP($A20,Prior!$A$1:$K$199,10,FALSE) -> 100736.84 | X20: =VLOOKUP($A20,Prior!$A$1:$K$199,11,FALSE) -> 0 | Y20: 0 | Z20: 0 | AA20: 0 | AB20: 0 | AC20: 0 | AD20: 348711.94 | AE20: 151984.26
A21: 412 | B21: BUHL JOINT DISTRICT | C21: 100014851 | D21: =IFERROR(VLOOKUP($A21,Awarded!$A$2:$J$196,4,FALSE),0) -> 22433.18 | E21: =IFERROR(VLOOKUP($A21,Awarded!$A$2:$J$196,5,FALSE),0) -> 256739.38 | F21: =IFERROR(VLOOKUP($A21,Awarded!$A$2:$J$196,6,FALSE),0) -> 0 | G21: =IFERROR(VLOOKUP($A21,Awarded!$A$2:$J$196,7,FALSE),0) -> 1101169.72 | H21: =IFERROR(VLOOKUP($A21,Awarded!$A$2:$J$196,8,FALSE),0) -> 0 | I21: =IFERROR(VLOOKUP($A21,Awarded!$A$2:$J$196,9,FALSE),0) -> 1977158.9 | J21: =IFERROR(VLOOKUP($A21,Awarded!$A$2:$J$196,10,FALSE),0) -> 493896.95 | K21: =IFERROR(VLOOKUP($A21,Expended!$A$2:$J$198,5,FALSE),0) -> 0 | L21: =IFERROR(VLOOKUP($A21,Expended!$A$2:$J$198,6,FALSE),0) -> 0 | M21: =IFERROR(VLOOKUP($A21,Expended!$A$2:$J$198,7,FALSE),0) -> 0 | N21: =IFERROR(VLOOKUP($A21,Expended!$A$2:$J$198,8,FALSE),0) -> 375802.36 | O21: =IFERROR(VLOOKUP($A21,Expended!$A$2:$J$198,9,FALSE),0) -> 0 | P21: =IFERROR(VLOOKUP($A21,Expended!$A$2:$J$198,10,FALSE),0) -> 423054.03 | Q21: =IFERROR(VLOOKUP($A21,Expended!$A$2:$L$198,11,FALSE),0) -> 310362.25 | R21: =VLOOKUP($A21,Prior!$A$1:$K$199,5,FALSE) -> 21629 | S21: =VLOOKUP($A21,Prior!$A$1:$K$199,6,FALSE) -> 256476 | T21: =VLOOKUP($A21,Prior!$A$1:$K$199,7,FALSE) -> 0 | U21: =VLOOKUP($A21,Prior!$A$1:$K$199,8,FALSE) -> 725367.36 | V21: =VLOOKUP($A21,Prior!$A$1:$K$199,9,FALSE) -> 0 | W21: =VLOOKUP($A21,Prior!$A$1:$K$199,10,FALSE) -> 0 | X21: =VLOOKUP($A21,Prior!$A$1:$K$199,11,FALSE) -> 0 | Y21: 804.18 | Z21: 263.38 | AA21: 0 | AB21: 0 | AC21: 0 | AD21: 1554104.87 | AE21: 183534.7
A22: 111 | B22: BUTTE COUNTY JOINT DISTRICT | C22: 29645454 | D22: =IFERROR(VLOOKUP($A22,Awarded!$A$2:$J$196,4,FALSE),0) -> 15078 | E22: =IFERROR(VLOOKUP($A22,Awarded!$A$2:$J$196,5,FALSE),0) -> 73248.14 | F22: =IFERROR(VLOOKUP($A22,Awarded!$A$2:$J$196,6,FALSE),0) -> 0 | G22: =IFERROR(VLOOKUP($A22,Awarded!$A$2:$J$196,7,FALSE),0) -> 287586.53 | H22: =IFERROR(VLOOKUP($A22,Awarded!$A$2:$J$196,8,FALSE),0) -> 0 | I22: =IFERROR(VLOOKUP($A22,Awarded!$A$2:$J$196,9,FALSE),0) -> 516363.3 | J22: =IFERROR(VLOOKUP($A22,Awarded!$A$2:$J$196,10,FALSE),0) -> 128988 | K22: =IFERROR(VLOOKUP($A22,Expended!$A$2:$J$198,5,FALSE),0) -> 12260 | L22: =IFERROR(VLOOKUP($A22,Expended!$A$2:$J$198,6,FALSE),0) -> 49682.62 | M22: =IFERROR(VLOOKUP($A22,Expended!$A$2:$J$198,7,FALSE),0) -> 0 | N22: =IFERROR(VLOOKUP($A22,Expended!$A$2:$J$198,8,FALSE),0) -> 217838.39 | O22: =IFERROR(VLOOKUP($A22,Expended!$A$2:$J$198,9,FALSE),0) -> 0 | P22: =IFERROR(VLOOKUP($A22,Expended!$A$2:$J$198,10,FALSE),0) -> 177554.26 | Q22: =IFERROR(VLOOKUP($A22,Expended!$A$2:$L$198,11,FALSE),0) -> 92949.96 | R22: =VLOOKUP($A22,Prior!$A$1:$K$199,5,FALSE) -> 2818 | S22: =VLOOKUP($A22,Prior!$A$1:$K$199,6,FALSE) -> 23565.52 | T22: =VLOOKUP($A22,Prior!$A$1:$K$199,7,FALSE) -> 0 | U22: =VLOOKUP($A22,Prior!$A$1:$K$199,8,FALSE) -> 0 | V22: =VLOOKUP($A22,Prior!$A$1:$K$199,9,FALSE) -> 0 | W22: =VLOOKUP($A22,Prior!$A$1:$K$199,10,FALSE) -> 0 | X22: =VLOOKUP($A22,Prior!$A$1:$K$199,11,FALSE) -> 0 | Y22: 0 | Z22: 0 | AA22: 0 | AB22: 69748.14 | AC22: 0 | AD22: 338809.04 | AE22: 36038.04
A23: 132 | B23: CALDWELL DISTRICT | C23: 100014869 | D23: =IFERROR(VLOOKUP($A23,Awarded!$A$2:$J$196,4,FALSE),0) -> 76899.52 | E23: =IFERROR(VLOOKUP($A23,Awarded!$A$2:$J$196,5,FALSE),0) -> 1594660.9 | F23: =IFERROR(VLOOKUP($A23,Awarded!$A$2:$J$196,6,FALSE),0) -> 0 | G23: =IFERROR(VLOOKUP($A23,Awarded!$A$2:$J$196,7,FALSE),0) -> 6372999.03 | H23: =IFERROR(VLOOKUP($A23,Awarded!$A$2:$J$196,8,FALSE),0) -> 0 | I23: =IFERROR(VLOOKUP($A23,Awarded!$A$2:$J$196,9,FALSE),0) -> 11442768.53 | J23: =IFERROR(VLOOKUP($A23,Awarded!$A$2:$J$196,10,FALSE),0) -> 2858419.49 | K23: =IFERROR(VLOOKUP($A23,Expended!$A$2:$J$198,5,FALSE),0) -> 76899.52 | L23: =IFERROR(VLOOKUP($A23,Expended!$A$2:$J$198,6,FALSE),0) -> 1635.9 | M23: =IFERROR(VLOOKUP($A23,Expended!$A$2:$J$198,7,FALSE),0) -> 0 | N23: =IFERROR(VLOOKUP($A23,Expended!$A$2:$J$198,8,FALSE),0) -> 3121573.07 | O23: =IFERROR(VLOOKUP($A23,Expended!$A$2:$J$198,9,FALSE),0) -> 0 | P23: =IFERROR(VLOOKUP($A23,Expended!$A$2:$J$198,10,FALSE),0) -> 356839.05 | Q23: =IFERROR(VLOOKUP($A23,Expended!$A$2:$L$198,11,FALSE),0) -> 1749390.46 | R23: =VLOOKUP($A23,Prior!$A$1:$K$199,5,FALSE) -> 0 | S23: =VLOOKUP($A23,Prior!$A$1:$K$199,6,FALSE) -> 1593025 | T23: =VLOOKUP($A23,Prior!$A$1:$K$199,7,FALSE) -> 0 | U23: =VLOOKUP($A23,Prior!$A$1:$K$199,8,FALSE) -> 3251425.96 | V23: =VLOOKUP($A23,Prior!$A$1:$K$199,9,FALSE) -> 0 | W23: =VLOOKUP($A23,Prior!$A$1:$K$199,10,FALSE) -> 0 | X23: =VLOOKUP($A23,Prior!$A$1:$K$199,11,FALSE) -> 0 | Y23: 0 | Z23: 0 | AA23: 0 | AB23: 0 | AC23: 0 | AD23: 11085929.48 | AE23: 1109029.03
A24: 121 | B24: CAMAS COUNTY DISTRICT | C24: 100185412 | D24: =IFERROR(VLOOKUP($A24,Awarded!$A$2:$J$196,4,FALSE),0) -> 12806.92 | E24: =IFERROR(VLOOKUP($A24,Awarded!$A$2:$J$196,5,FALSE),0) -> 17712.17 | F24: =IFERROR(VLOOKUP($A24,Awarded!$A$2:$J$196,6,FALSE),0) -> 26920.63 | G24: =IFERROR(VLOOKUP($A24,Awarded!$A$2:$J$196,7,FALSE),0) -> 86464.08 | H24: =IFERROR(VLOOKUP($A24,Awarded!$A$2:$J$196,8,FALSE),0) -> 156070 | I24: =IFERROR(VLOOKUP($A24,Awarded!$A$2:$J$196,9,FALSE),0) -> 155246.88 | J24: =IFERROR(VLOOKUP($A24,Awarded!$A$2:$J$196,10,FALSE),0) -> 38781.13 | K24: =IFERROR(VLOOKUP($A24,Expended!$A$2:$J$198,5,FALSE),0) -> 3146.92 | L24: =IFERROR(VLOOKUP($A24,Expended!$A$2:$J$198,6,FALSE),0) -> 18.17 | M24: =IFERROR(VLOOKUP($A24,Expended!$A$2:$J$198,7,FALSE),0) -> 550.63 | N24: =IFERROR(VLOOKUP($A24,Expended!$A$2:$J$198,8,FALSE),0) -> 194.08 | O24: =IFERROR(VLOOKUP($A24,Expended!$A$2:$J$198,9,FALSE),0) -> 112376.2 | P24: =IFERROR(VLOOKUP($A24,Expended!$A$2:$J$198,10,FALSE),0) -> 43883.35 | Q24: =IFERROR(VLOOKUP($A24,Expended!$A$2:$L$198,11,FALSE),0) -> 14.13 | R24: =VLOOKUP($A24,Prior!$A$1:$K$199,5,FALSE) -> 9660 | S24: =VLOOKUP($A24,Prior!$A$1:$K$199,6,FALSE) -> 17694 | T24: =VLOOKUP($A24,Prior!$A$1:$K$199,7,FALSE) -> 26370 | U24: =VLOOKUP($A24,Prior!$A$1:$K$199,8,FALSE) -> 86270 | V24: =VLOOKUP($A24,Prior!$A$1:$K$199,9,FALSE) -> 10455 | W24: =VLOOKUP($A24,Prior!$A$1:$K$199,10,FALSE) -> 0 | X24: =VLOOKUP($A24,Prior!$A$1:$K$199,11,FALSE) -> 38767 | Y24: 0 | Z24: 0 | AA24: 0 | AB24: 0 | AC24: 33238.8 | AD24: 111363.53 | AE24: 0
A25: 432 | B25: CAMBRIDGE JOINT DISTRICT | C25: 112893883 | D25: =IFERROR(VLOOKUP($A25,Awarded!$A$2:$J$196,4,FALSE),0) -> 9401 | E25: =IFERROR(VLOOKUP($A25,Awarded!$A$2:$J$196,5,FALSE),0) -> 38776.78 | F25: =IFERROR(VLOOKUP($A25,Awarded!$A$2:$J$196,6,FALSE),0) -> 0 | G25: =IFERROR(VLOOKUP($A25,Awarded!$A$2:$J$196,7,FALSE),0) -> 144960.38 | H25: =IFERROR(VLOOKUP($A25,Awarded!$A$2:$J$196,8,FALSE),0) -> 25448 | I25: =IFERROR(VLOOKUP($A25,Awarded!$A$2:$J$196,9,FALSE),0) -> 260278.58 | J25: =IFERROR(VLOOKUP($A25,Awarded!$A$2:$J$196,10,FALSE),0) -> 65017.69 | K25: =IFERROR(VLOOKUP($A25,Expended!$A$2:$J$198,5,FALSE),0) -> 261 | L25: =IFERROR(VLOOKUP($A25,Expended!$A$2:$J$198,6,FALSE),0) -> 39.78 | M25: =IFERROR(VLOOKUP($A25,Expended!$A$2:$J$198,7,FALSE),0) -> 0 | N25: =IFERROR(VLOOKUP($A25,Expended!$A$2:$J$198,8,FALSE),0) -> 22753.15 | O25: =IFERROR(VLOOKUP($A25,Expended!$A$2:$J$198,9,FALSE),0) -> 0 | P25: =IFERROR(VLOOKUP($A25,Expended!$A$2:$J$198,10,FALSE),0) -> 0 | Q25: =IFERROR(VLOOKUP($A25,Expended!$A$2:$L$198,11,FALSE),0) -> 4723.88 | R25: =VLOOKUP($A25,Prior!$A$1:$K$199,5,FALSE) -> 9140 | S25: =VLOOKUP($A25,Prior!$A$1:$K$199,6,FALSE) -> 38737 | T25: =VLOOKUP($A25,Prior!$A$1:$K$199,7,FALSE) -> 0 | U25: =VLOOKUP($A25,Prior!$A$1:$K$199,8,FALSE) -> 27121.18 | V25: =VLOOKUP($A25,Prior!$A$1:$K$199,9,FALSE) -> 0 | W25: =VLOOKUP($A25,Prior!$A$1:$K$199,10,FALSE) -> 25972.83 | X25: =VLOOKUP($A25,Prior!$A$1:$K$199,11,FALSE) -> 3377.35 | Y25: 0 | Z25: 0 | AA25: 0 | AB25: 95086.05 | AC25: 25448 | AD25: 234305.75 | AE25: 56916.46
A26: 555 | B26: CANYON-OWYHEE SCHOOL SERVICE AGENCY (COSSA) | C26: 29765393 | D26: =IFERROR(VLOOKUP($A26,Awarded!$A$2:$J$196,4,FALSE),0) -> 9527.13 | E26: =IFERROR(VLOOKUP($A26,Awarded!$A$2:$J$196,5,FALSE),0) -> 0 | F26: =IFERROR(VLOOKUP($A26,Awarded!$A$2:$J$196,6,FALSE),0) -> 62107.33 | G26: =IFERROR(VLOOKUP($A26,Awarded!$A$2:$J$196,7,FALSE),0) -> 0 | H26: =IFERROR(VLOOKUP($A26,Awarded!$A$2:$J$196,8,FALSE),0) -> 0 | I26: =IFERROR(VLOOKUP($A26,Awarded!$A$2:$J$196,9,FALSE),0) -> 0 | J26: =IFERROR(VLOOKUP($A26,Awarded!$A$2:$J$196,10,FALSE),0) -> 0 | K26: =IFERROR(VLOOKUP($A26,Expended!$A$2:$J$198,5,FALSE),0) -> 331.07 | L26: =IFERROR(VLOOKUP($A26,Expended!$A$2:$J$198,6,FALSE),0) -> 0 | M26: =IFERROR(VLOOKUP($A26,Expended!$A$2:$J$198,7,FALSE),0) -> 1271.33 | N26: =IFERROR(VLOOKUP($A26,Expended!$A$2:$J$198,8,FALSE),0) -> 0 | O26: =IFERROR(VLOOKUP($A26,Expended!$A$2:$J$198,9,FALSE),0) -> 0 | P26: =IFERROR(VLOOKUP($A26,Expended!$A$2:$J$198,10,FALSE),0) -> 0 | Q26: =IFERROR(VLOOKUP($A26,Expended!$A$2:$L$198,11,FALSE),0) -> 0 | R26: =VLOOKUP($A26,Prior!$A$1:$K$199,5,FALSE) -> 9158 | S26: =VLOOKUP($A26,Prior!$A$1:$K$199,6,FALSE) -> 0 | T26: =VLOOKUP($A26,Prior!$A$1:$K$199,7,FALSE) -> 60836 | U26: =VLOOKUP($A26,Prior!$A$1:$K$199,8,FALSE) -> 0 | V26: =VLOOKUP($A26,Prior!$A$1:$K$199,9,FALSE) -> 0 | W26: =VLOOKUP($A26,Prior!$A$1:$K$199,10,FALSE) -> 0 | X26: =VLOOKUP($A26,Prior!$A$1:$K$199,11,FALSE) -> 0 | Y26: 38.06 | Z26: 0 | AA26: 0 | AB26: 0 | AC26: 0 | AD26: 0 | AE26: 0
A27: 566 | B27: CARDINAL ACADEMY INCORPORATED | C27: 108110500 | D27: =IFERROR(VLOOKUP($A27,Awarded!$A$2:$J$196,4,FALSE),0) -> 0 | E27: =IFERROR(VLOOKUP($A27,Awarded!$A$2:$J$196,5,FALSE),0) -> 0 | F27: =IFERROR(VLOOKUP($A27,Awarded!$A$2:$J$196,6,FALSE),0) -> 0 | G27: =IFERROR(VLOOKUP($A27,Awarded!$A$2:$J$196,7,FALSE),0) -> 61920.99 | H27: =IFERROR(VLOOKUP($A27,Awarded!$A$2:$J$196,8,FALSE),0) -> 141565 | I27: =IFERROR(VLOOKUP($A27,Awarded!$A$2:$J$196,9,FALSE),0) -> 111178.82 | J27: =IFERROR(VLOOKUP($A27,Awarded!$A$2:$J$196,10,FALSE),0) -> 27773.12 | K27: =IFERROR(VLOOKUP($A27,Expended!$A$2:$J$198,5,FALSE),0) -> 0 | L27: =IFERROR(VLOOKUP($A27,Expended!$A$2:$J$198,6,FALSE),0) -> 0 | M27: =IFERROR(VLOOKUP($A27,Expended!$A$2:$J$198,7,FALSE),0) -> 0 | N27: =IFERROR(VLOOKUP($A27,Expended!$A$2:$J$198,8,FALSE),0) -> 1219.3 | O27: =IFERROR(VLOOKUP($A27,Expended!$A$2:$J$198,9,FALSE),0) -> 0 | P27: =IFERROR(VLOOKUP($A27,Expended!$A$2:$J$198,10,FALSE),0) -> 0 | Q27: =IFERROR(VLOOKUP($A27,Expended!$A$2:$L$198,11,FALSE),0) -> 0 | R27: =VLOOKUP($A27,Prior!$A$1:$K$199,5,FALSE) -> 0 | S27: =VLOOKUP($A27,Prior!$A$1:$K$199,6,FALSE) -> 0 | T27: =VLOOKUP($A27,Prior!$A$1:$K$199,7,FALSE) -> 0 | U27: =VLOOKUP($A27,Prior!$A$1:$K$199,8,FALSE) -> 57285.48 | V27: =VLOOKUP($A27,Prior!$A$1:$K$199,9,FALSE) -> 0 | W27: =VLOOKUP($A27,Prior!$A$1:$K$199,10,FALSE) -> 31840.26 | X27: =VLOOKUP($A27,Prior!$A$1:$K$199,11,FALSE) -> 27763 | Y27: 0 | Z27: 0 | AA27: 0 | AB27: 3416.21 | AC27: 141565 | AD27: 79338.56 | AE27: 10.12
A28: 422 | B28: CASCADE DISTRICT | C28: 100014885 | D28: =IFERROR(VLOOKUP($A28,Awarded!$A$2:$J$196,4,FALSE),0) -> 10315 | E28: =IFERROR(VLOOKUP($A28,Awarded!$A$2:$J$196,5,FALSE),0) -> 138251.83 | F28: =IFERROR(VLOOKUP($A28,Awarded!$A$2:$J$196,6,FALSE),0) -> 0 | G28: =IFERROR(VLOOKUP($A28,Awarded!$A$2:$J$196,7,FALSE),0) -> 626608.51 | H28: =IFERROR(VLOOKUP($A28,Awarded!$A$2:$J$196,8,FALSE),0) -> 0 | I28: =IFERROR(VLOOKUP($A28,Awarded!$A$2:$J$196,9,FALSE),0) -> 1125080.61 | J28: =IFERROR(VLOOKUP($A28,Awarded!$A$2:$J$196,10,FALSE),0) -> 281046.4 | K28: =IFERROR(VLOOKUP($A28,Expended!$A$2:$J$198,5,FALSE),0) -> 2183 | L28: =IFERROR(VLOOKUP($A28,Expended!$A$2:$J$198,6,FALSE),0) -> 141.83 | M28: =IFERROR(VLOOKUP($A28,Expended!$A$2:$J$198,7,FALSE),0) -> 0 | N28: =IFERROR(VLOOKUP($A28,Expended!$A$2:$J$198,8,FALSE),0) -> 176231.37 | O28: =IFERROR(VLOOKUP($A28,Expended!$A$2:$J$198,9,FALSE),0) -> 0 | P28: =IFERROR(VLOOKUP($A28,Expended!$A$2:$J$198,10,FALSE),0) -> 373069.27 | Q28: =IFERROR(VLOOKUP($A28,Expended!$A$2:$L$198,11,FALSE),0) -> 38267.67 | R28: =VLOOKUP($A28,Prior!$A$1:$K$199,5,FALSE) -> 8132 | S28: =VLOOKUP($A28,Prior!$A$1:$K$199,6,FALSE) -> 138110 | T28: =VLOOKUP($A28,Prior!$A$1:$K$199,7,FALSE) -> 0 | U28: =VLOOKUP($A28,Prior!$A$1:$K$199,8,FALSE) -> 373421.82 | V28: =VLOOKUP($A28,Prior!$A$1:$K$199,9,FALSE) -> 0 | W28: =VLOOKUP($A28,Prior!$A$1:$K$199,10,FALSE) -> 436.98 | X28: =VLOOKUP($A28,Prior!$A$1:$K$199,11,FALSE) -> 12065.88 | Y28: 0 | Z28: 0 | AA28: 0 | AB28: 76955.32 | AC28: 0 | AD28: 751574.36 | AE28: 230712.85
A29: 151 | B29: CASSIA COUNTY JOINT DISTRICT | C29: 879016707 | D29: =IFERROR(VLOOKUP($A29,Awarded!$A$2:$J$196,4,FALSE),0) -> 72032.18 | E29: =IFERROR(VLOOKUP($A29,Awarded!$A$2:$J$196,5,FALSE),0) -> 733963.94 | F29: =IFERROR(VLOOKUP($A29,Awarded!$A$2:$J$196,6,FALSE),0) -> 0 | G29: =IFERROR(VLOOKUP($A29,Awarded!$A$2:$J$196,7,FALSE),0) -> 3092685.94 | H29: =IFERROR(VLOOKUP($A29,Awarded!$A$2:$J$196,8,FALSE),0) -> 0 | I29: =IFERROR(VLOOKUP($A29,Awarded!$A$2:$J$196,9,FALSE),0) -> 5552941.09 | J29: =IFERROR(VLOOKUP($A29,Awarded!$A$2:$J$196,10,FALSE),0) -> 1387132.41 | K29: =IFERROR(VLOOKUP($A29,Expended!$A$2:$J$198,5,FALSE),0) -> 5089.18 | L29: =IFERROR(VLOOKUP($A29,Expended!$A$2:$J$198,6,FALSE),0) -> 752.94 | M29: =IFERROR(VLOOKUP($A29,Expended!$A$2:$J$198,7,FALSE),0) -> 0 | N29: =IFERROR(VLOOKUP($A29,Expended!$A$2:$J$198,8,FALSE),0) -> 476056.11 | O29: =IFERROR(VLOOKUP($A29,Expended!$A$2:$J$198,9,FALSE),0) -> 0 | P29: =IFERROR(VLOOKUP($A29,Expended!$A$2:$J$198,10,FALSE),0) -> 2335522.76 | Q29: =IFERROR(VLOOKUP($A29,Expended!$A$2:$L$198,11,FALSE),0) -> 679428.52 | R29: =VLOOKUP($A29,Prior!$A$1:$K$199,5,FALSE) -> 66943 | S29: =VLOOKUP($A29,Prior!$A$1:$K$199,6,FALSE) -> 733211 | T29: =VLOOKUP($A29,Prior!$A$1:$K$199,7,FALSE) -> 0 | U29: =VLOOKUP($A29,Prior!$A$1:$K$199,8,FALSE) -> 2345721.06 | V29: =VLOOKUP($A29,Prior!$A$1:$K$199,9,FALSE) -> 0 | W29: =VLOOKUP($A29,Prior!$A$1:$K$199,10,FALSE) -> 2702426.95 | X29: =VLOOKUP($A29,Prior!$A$1:$K$199,11,FALSE) -> 676.48 | Y29: 0 | Z29: 0 | AA29: 0 | AB29: 270908.77 | AC29: 0 | AD29: 514991.38 | AE29: 707027.41
A30: 417 | B30: CASTLEFORD DISTRICT | C30: 181912668 | D30: =IFERROR(VLOOKUP($A30,Awarded!$A$2:$J$196,4,FALSE),0) -> 14339.56 | E30: =IFERROR(VLOOKUP($A30,Awarded!$A$2:$J$196,5,FALSE),0) -> 56111.56 | F30: =IFERROR(VLOOKUP($A30,Awarded!$A$2:$J$196,6,FALSE),0) -> 0 | G30: =IFERROR(VLOOKUP($A30,Awarded!$A$2:$J$196,7,FALSE),0) -> 211342.39 | H30: =IFERROR(VLOOKUP($A30,Awarded!$A$2:$J$196,8,FALSE),0) -> 0 | I30: =IFERROR(VLOOKUP($A30,Awarded!$A$2:$J$196,9,FALSE),0) -> 379466.68 | J30: =IFERROR(VLOOKUP($A30,Awarded!$A$2:$J$196,10,FALSE),0) -> 94791.54 | K30: =IFERROR(VLOOKUP($A30,Expended!$A$2:$J$198,5,FALSE),0) -> 4011.46 | L30: =IFERROR(VLOOKUP($A30,Expended!$A$2:$J$198,6,FALSE),0) -> 57.56 | M30: =IFERROR(VLOOKUP($A30,Expended!$A$2:$J$198,7,FALSE),0) -> 0 | N30: =IFERROR(VLOOKUP($A30,Expended!$A$2:$J$198,8,FALSE),0) -> 474.39 | O30: =IFERROR(VLOOKUP($A30,Expended!$A$2:$J$198,9,FALSE),0) -> 0 | P30: =IFERROR(VLOOKUP($A30,Expended!$A$2:$J$198,10,FALSE),0) -> 229019.85 | Q30: =IFERROR(VLOOKUP($A30,Expended!$A$2:$L$198,11,FALSE),0) -> 64884.12 | R30: =VLOOKUP($A30,Prior!$A$1:$K$199,5,FALSE) -> 10326.94 | S30: =VLOOKUP($A30,Prior!$A$1:$K$199,6,FALSE) -> 56054 | T30: =VLOOKUP($A30,Prior!$A$1:$K$199,7,FALSE) -> 0 | U30: =VLOOKUP($A30,Prior!$A$1:$K$199,8,FALSE) -> 210868 | V30: =VLOOKUP($A30,Prior!$A$1:$K$199,9,FALSE) -> 0 | W30: =VLOOKUP($A30,Prior!$A$1:$K$199,10,FALSE) -> 23412.82 | X30: =VLOOKUP($A30,Prior!$A$1:$K$199,11,FALSE) -> 21086.57 | Y30: 1.16 | Z30: 0 | AA30: 0 | AB30: 0 | AC30: 0 | AD30: 127034.01 | AE30: 8820.85
A31: 181 | B31: CHALLIS JOINT DISTRICT | C31: 193218112 | D31: =IFERROR(VLOOKUP($A31,Awarded!$A$2:$J$196,4,FALSE),0) -> 14207.13 | E31: =IFERROR(VLOOKUP($A31,Awarded!$A$2:$J$196,5,FALSE),0) -> 71388.23 | F31: =IFERROR(VLOOKUP($A31,Awarded!$A$2:$J$196,6,FALSE),0) -> 0 | G31: =IFERROR(VLOOKUP($A31,Awarded!$A$2:$J$196,7,FALSE),0) -> 475096.42 | H31: =IFERROR(VLOOKUP($A31,Awarded!$A$2:$J$196,8,FALSE),0) -> 0 | I31: =IFERROR(VLOOKUP($A31,Awarded!$A$2:$J$196,9,FALSE),0) -> 853039.4 | J31: =IFERROR(VLOOKUP($A31,Awarded!$A$2:$J$196,10,FALSE),0) -> 213090.64 | K31: =IFERROR(VLOOKUP($A31,Expended!$A$2:$J$198,5,FALSE),0) -> 2952.13 | L31: =IFERROR(VLOOKUP($A31,Expended!$A$2:$J$198,6,FALSE),0) -> 73.23 | M31: =IFERROR(VLOOKUP($A31,Expended!$A$2:$J$198,7,FALSE),0) -> 0 | N31: =IFERROR(VLOOKUP($A31,Expended!$A$2:$J$198,8,FALSE),0) -> 22398.01 | O31: =IFERROR(VLOOKUP($A31,Expended!$A$2:$J$198,9,FALSE),0) -> 0 | P31: =IFERROR(VLOOKUP($A31,Expended!$A$2:$J$198,10,FALSE),0) -> 241311.19 | Q31: =IFERROR(VLOOKUP($A31,Expended!$A$2:$L$198,11,FALSE),0) -> 190030.2 | R31: =VLOOKUP($A31,Prior!$A$1:$K$199,5,FALSE) -> 11255 | S31: =VLOOKUP($A31,Prior!$A$1:$K$199,6,FALSE) -> 71315 | T31: =VLOOKUP($A31,Prior!$A$1:$K$199,7,FALSE) -> 0 | U31: =VLOOKUP($A31,Prior!$A$1:$K$199,8,FALSE) -> 452661.89 | V31: =VLOOKUP($A31,Prior!$A$1:$K$199,9,FALSE) -> 0 | W31: =VLOOKUP($A31,Prior!$A$1:$K$199,10,FALSE) -> 0 | X31: =VLOOKUP($A31,Prior!$A$1:$K$199,11,FALSE) -> 0 | Y31: 0 | Z31: 0 | AA31: 0 | AB31: 36.52 | AC31: 0 | AD31: 611728.21 | AE31: 23060.44
A32: 483 | B32: CHIEF TAHGEE ELEMENTARY ACADEMY, INC. | C32: 78351211 | D32: =IFERROR(VLOOKUP($A32,Awarded!$A$2:$J$196,4,FALSE),0) -> 11571 | E32: =IFERROR(VLOOKUP($A32,Awarded!$A$2:$J$196,5,FALSE),0) -> 25107.76 | F32: =IFERROR(VLOOKUP($A32,Awarded!$A$2:$J$196,6,FALSE),0) -> 0 | G32: =IFERROR(VLOOKUP($A32,Awarded!$A$2:$J$196,7,FALSE),0) -> 142957.89 | H32: =IFERROR(VLOOKUP($A32,Awarded!$A$2:$J$196,8,FALSE),0) -> 29921 | I32: =IFERROR(VLOOKUP($A32,Awarded!$A$2:$J$196,9,FALSE),0) -> 256681.41 | J32: =IFERROR(VLOOKUP($A32,Awarded!$A$2:$J$196,10,FALSE),0) -> 64119.36 | K32: =IFERROR(VLOOKUP($A32,Expended!$A$2:$J$198,5,FALSE),0) -> 2854 | L32: =IFERROR(VLOOKUP($A32,Expended!$A$2:$J$198,6,FALSE),0) -> 25.76 | M32: =IFERROR(VLOOKUP($A32,Expended!$A$2:$J$198,7,FALSE),0) -> 0 | N32: =IFERROR(VLOOKUP($A32,Expended!$A$2:$J$198,8,FALSE),0) -> 49982.55 | O32: =IFERROR(VLOOKUP($A32,Expended!$A$2:$J$198,9,FALSE),0) -> 7804.34 | P32: =IFERROR(VLOOKUP($A32,Expended!$A$2:$J$198,10,FALSE),0) -> 151781.95 | Q32: =IFERROR(VLOOKUP($A32,Expended!$A$2:$L$198,11,FALSE),0) -> 43850.26 | R32: =VLOOKUP($A32,Prior!$A$1:$K$199,5,FALSE) -> 8717 | S32: =VLOOKUP($A32,Prior!$A$1:$K$199,6,FALSE) -> 25082 | T32: =VLOOKUP($A32,Prior!$A$1:$K$199,7,FALSE) -> 0 | U32: =VLOOKUP($A32,Prior!$A$1:$K$199,8,FALSE) -> 89844.82 | V32: =VLOOKUP($A32,Prior!$A$1:$K$199,9,FALSE) -> 22116.66 | W32: =VLOOKUP($A32,Prior!$A$1:$K$199,10,FALSE) -> 79350.02 | X32: =VLOOKUP($A32,Prior!$A$1:$K$199,11,FALSE) -> 20269.1 | Y32: 0 | Z32: 0 | AA32: 0 | AB32: 3130.52 | AC32: 0 | AD32: 25549.44 | AE32: 0
A33: 161 | B33: CLARK COUNTY DISTRICT | C33: 24714961 | D33: =IFERROR(VLOOKUP($A33,Awarded!$A$2:$J$196,4,FALSE),0) -> 9328.86 | E33: =IFERROR(VLOOKUP($A33,Awarded!$A$2:$J$196,5,FALSE),0) -> 25220.87 | F33: =IFERROR(VLOOKUP($A33,Awarded!$A$2:$J$196,6,FALSE),0) -> 2519.53 | G33: =IFERROR(VLOOKUP($A33,Awarded!$A$2:$J$196,7,FALSE),0) -> 113406.56 | H33: =IFERROR(VLOOKUP($A33,Awarded!$A$2:$J$196,8,FALSE),0) -> 95907 | I33: =IFERROR(VLOOKUP($A33,Awarded!$A$2:$J$196,9,FALSE),0) -> 203622.93 | J33: =IFERROR(VLOOKUP($A33,Awarded!$A$2:$J$196,10,FALSE),0) -> 50865.53 | K33: =IFERROR(VLOOKUP($A33,Expended!$A$2:$J$198,5,FALSE),0) -> 5038.86 | L33: =IFERROR(VLOOKUP($A33,Expended!$A$2:$J$198,6,FALSE),0) -> 25.87 | M33: =IFERROR(VLOOKUP($A33,Expended!$A$2:$J$198,7,FALSE),0) -> 2519.13 | N33: =IFERROR(VLOOKUP($A33,Expended!$A$2:$J$198,8,FALSE),0) -> 49760.23 | O33: =IFERROR(VLOOKUP($A33,Expended!$A$2:$J$198,9,FALSE),0) -> 78109.73 | P33: =IFERROR(VLOOKUP($A33,Expended!$A$2:$J$198,10,FALSE),0) -> 42960.96 | Q33: =IFERROR(VLOOKUP($A33,Expended!$A$2:$L$198,11,FALSE),0) -> 3954.24 | R33: =VLOOKUP($A33,Prior!$A$1:$K$199,5,FALSE) -> 4290 | S33: =VLOOKUP($A33,Prior!$A$1:$K$199,6,FALSE) -> 25195 | T33: =VLOOKUP($A33,Prior!$A$1:$K$199,7,FALSE) -> 0 | U33: =VLOOKUP($A33,Prior!$A$1:$K$199,8,FALSE) -> 63646.33 | V33: =VLOOKUP($A33,Prior!$A$1:$K$199,9,FALSE) -> 0 | W33: =VLOOKUP($A33,Prior!$A$1:$K$199,10,FALSE) -> 15440.02 | X33: =VLOOKUP($A33,Prior!$A$1:$K$199,11,FALSE) -> 0 | Y33: 0 | Z33: 0 | AA33: 0.4 | AB33: 0 | AC33: 17797.27 | AD33: 145221.95 | AE33: 46911.29
A34: 491 | B34: COEUR D'ALENE CHARTER ACADEMY, INC. | C34: 128705576 | D34: =IFERROR(VLOOKUP($A34,Awarded!$A$2:$J$196,4,FALSE),0) -> 0 | E34: =IFERROR(VLOOKUP($A34,Awarded!$A$2:$J$196,5,FALSE),0) -> 0 | F34: =IFERROR(VLOOKUP($A34,Awarded!$A$2:$J$196,6,FALSE),0) -> 233022.2 | G34: =IFERROR(VLOOKUP($A34,Awarded!$A$2:$J$196,7,FALSE),0) -> 0 | H34: =IFERROR(VLOOKUP($A34,Awarded!$A$2:$J$196,8,FALSE),0) -> 349143 | I34: =IFERROR(VLOOKUP($A34,Awarded!$A$2:$J$196,9,FALSE),0) -> 0 | J34: =IFERROR(VLOOKUP($A34,Awarded!$A$2:$J$196,10,FALSE),0) -> 0 | K34: =IFERROR(VLOOKUP($A34,Expended!$A$2:$J$198,5,FALSE),0) -> 0 | L34: =IFERROR(VLOOKUP($A34,Expended!$A$2:$J$198,6,FALSE),0) -> 0 | M34: =IFERROR(VLOOKUP($A34,Expended!$A$2:$J$198,7,FALSE),0) -> 102443.36 | N34: =IFERROR(VLOOKUP($A34,Expended!$A$2:$J$198,8,FALSE),0) -> 0 | O34: =IFERROR(VLOOKUP($A34,Expended!$A$2:$J$198,9,FALSE),0) -> 144562.52 | P34: =IFERROR(VLOOKUP($A34,Expended!$A$2:$J$198,10,FALSE),0) -> 0 | Q34: =IFERROR(VLOOKUP($A34,Expended!$A$2:$L$198,11,FALSE),0) -> 0 | R34: =VLOOKUP($A34,Prior!$A$1:$K$199,5,FALSE) -> 0 | S34: =VLOOKUP($A34,Prior!$A$1:$K$199,6,FALSE) -> 0 | T34: =VLOOKUP($A34,Prior!$A$1:$K$199,7,FALSE) -> 130578.84 | U34: =VLOOKUP($A34,Prior!$A$1:$K$199,8,FALSE) -> 0 | V34: =VLOOKUP($A34,Prior!$A$1:$K$199,9,FALSE) -> 0 | W34: =VLOOKUP($A34,Prior!$A$1:$K$199,10,FALSE) -> 0 | X34: =VLOOKUP($A34,Prior!$A$1:$K$199,11,FALSE) -> 0 | Y34: 0 | Z34: 0 | AA34: 0 | AB34: 0 | AC34: 204580.48 | AD34: 0 | AE34: 0
A35: 271 | B35: COEUR D'ALENE DISTRICT | C35: 85188761 | D35: =IFERROR(VLOOKUP($A35,Awarded!$A$2:$J$196,4,FALSE),0) -> 132643.24 | E35: =IFERROR(VLOOKUP($A35,Awarded!$A$2:$J$196,5,FALSE),0) -> 1708356.53 | F35: =IFERROR(VLOOKUP($A35,Awarded!$A$2:$J$196,6,FALSE),0) -> 0 | G35: =IFERROR(VLOOKUP($A35,Awarded!$A$2:$J$196,7,FALSE),0) -> 6027011.42 | H35: =IFERROR(VLOOKUP($A35,Awarded!$A$2:$J$196,8,FALSE),0) -> 0 | I35: =IFERROR(VLOOKUP($A35,Awarded!$A$2:$J$196,9,FALSE),0) -> 10821544.72 | J35: =IFERROR(VLOOKUP($A35,Awarded!$A$2:$J$196,10,FALSE),0) -> 2703236.94 | K35: =IFERROR(VLOOKUP($A35,Expended!$A$2:$J$198,5,FALSE),0) -> 39656.06 | L35: =IFERROR(VLOOKUP($A35,Expended!$A$2:$J$198,6,FALSE),0) -> 35637.16 | M35: =IFERROR(VLOOKUP($A35,Expended!$A$2:$J$198,7,FALSE),0) -> 0 | N35: =IFERROR(VLOOKUP($A35,Expended!$A$2:$J$198,8,FALSE),0) -> 1880666.59 | O35: =IFERROR(VLOOKUP($A35,Expended!$A$2:$J$198,9,FALSE),0) -> 0 | P35: =IFERROR(VLOOKUP($A35,Expended!$A$2:$J$198,10,FALSE),0) -> 2986513.1 | Q35: =IFERROR(VLOOKUP($A35,Expended!$A$2:$L$198,11,FALSE),0) -> 305044.97 | R35: =VLOOKUP($A35,Prior!$A$1:$K$199,5,FALSE) -> 92987.18 | S35: =VLOOKUP($A35,Prior!$A$1:$K$199,6,FALSE) -> 1672719.37 | T35: =VLOOKUP($A35,Prior!$A$1:$K$199,7,FALSE) -> 0 | U35: =VLOOKUP($A35,Prior!$A$1:$K$199,8,FALSE) -> 4132816.41 | V35: =VLOOKUP($A35,Prior!$A$1:$K$199,9,FALSE) -> 0 | W35: =VLOOKUP($A35,Prior!$A$1:$K$199,10,FALSE) -> 1372198.48 | X35: =VLOOKUP($A35,Prior!$A$1:$K$199,11,FALSE) -> 95409.71 | Y35: =D35-K35-R35 -> 0 | Z35: =E35-L35-S35 -> 0 | AA35: =F35-M35-T35 -> 0 | AB35: =G35-N35-U35 -> 13528.42 | AC35: =H35-O35-V35 -> 0 | AD35: =I35-P35-W35 -> 6462833.14 | AE35: =J35-Q35-X35 -> 2302782.26
A36: 455 | B36: COMPASS PUBLIC CHARTER SCHOOL, INC. | C36: 165024576 | D36: =IFERROR(VLOOKUP($A36,Awarded!$A$2:$J$196,4,FALSE),0) -> 20560.18 | E36: =IFERROR(VLOOKUP($A36,Awarded!$A$2:$J$196,5,FALSE),0) -> 50263.56 | F36: =IFERROR(VLOOKUP($A36,Awarded!$A$2:$J$196,6,FALSE),0) -> 208202.54 | G36: =IFERROR(VLOOKUP($A36,Awarded!$A$2:$J$196,7,FALSE),0) -> 271142.62 | H36: =IFERROR(VLOOKUP($A36,Awarded!$A$2:$J$196,8,FALSE),0) -> 0 | I36: =IFERROR(VLOOKUP($A36,Awarded!$A$2:$J$196,9,FALSE),0) -> 486839.09 | J36: =IFERROR(VLOOKUP($A36,Awarded!$A$2:$J$196,10,FALSE),0) -> 121613.31 | K36: =IFERROR(VLOOKUP($A36,Expended!$A$2:$J$198,5,FALSE),0) -> 189.18 | L36: =IFERROR(VLOOKUP($A36,Expended!$A$2:$J$198,6,FALSE),0) -> 51.56 | M36: =IFERROR(VLOOKUP($A36,Expended!$A$2:$J$198,7,FALSE),0) -> 4258.54 | N36: =IFERROR(VLOOKUP($A36,Expended!$A$2:$J$198,8,FALSE),0) -> 608.62 | O36: =IFERROR(VLOOKUP($A36,Expended!$A$2:$J$198,9,FALSE),0) -> 0 | P36: =IFERROR(VLOOKUP($A36,Expended!$A$2:$J$198,10,FALSE),0) -> 191979.19 | Q36: =IFERROR(VLOOKUP($A36,Expended!$A$2:$L$198,11,FALSE),0) -> 54102.58 | R36: =VLOOKUP($A36,Prior!$A$1:$K$199,5,FALSE) -> 20371 | S36: =VLOOKUP($A36,Prior!$A$1:$K$199,6,FALSE) -> 50212 | T36: =VLOOKUP($A36,Prior!$A$1:$K$199,7,FALSE) -> 203944 | U36: =VLOOKUP($A36,Prior!$A$1:$K$199,8,FALSE) -> 270534 | V36: =VLOOKUP($A36,Prior!$A$1:$K$199,9,FALSE) -> 0 | W36: =VLOOKUP($A36,Prior!$A$1:$K$199,10,FALSE) -> 80106.29 | X36: =VLOOKUP($A36,Prior!$A$1:$K$199,11,FALSE) -> 67510.73 | Y36: 0 | Z36: 0 | AA36: 0 | AB36: 0 | AC36: 0 | AD36: 214753.61 | AE36: 0
A37: 242 | B37: COTTONWOOD JOINT DISTRICT | C37: 100014901 | D37: =IFERROR(VLOOKUP($A37,Awarded!$A$2:$J$196,4,FALSE),0) -> 14934 | E37: =IFERROR(VLOOKUP($A37,Awarded!$A$2:$J$196,5,FALSE),0) -> 65726.43 | F37: =IFERROR(VLOOKUP($A37,Awarded!$A$2:$J$196,6,FALSE),0) -> 0 | G37: =IFERROR(VLOOKUP($A37,Awarded!$A$2:$J$196,7,FALSE),0) -> 256590.95 | H37: =IFERROR(VLOOKUP($A37,Awarded!$A$2:$J$196,8,FALSE),0) -> 0 | I37: =IFERROR(VLOOKUP($A37,Awarded!$A$2:$J$196,9,FALSE),0) -> 460710.82 | J37: =IFERROR(VLOOKUP($A37,Awarded!$A$2:$J$196,10,FALSE),0) -> 115085.93 | K37: =IFERROR(VLOOKUP($A37,Expended!$A$2:$J$198,5,FALSE),0) -> 2953 | L37: =IFERROR(VLOOKUP($A37,Expended!$A$2:$J$198,6,FALSE),0) -> 67.43 | M37: =IFERROR(VLOOKUP($A37,Expended!$A$2:$J$198,7,FALSE),0) -> 0 | N37: =IFERROR(VLOOKUP($A37,Expended!$A$2:$J$198,8,FALSE),0) -> 575.95 | O37: =IFERROR(VLOOKUP($A37,Expended!$A$2:$J$198,9,FALSE),0) -> 0 | P37: =IFERROR(VLOOKUP($A37,Expended!$A$2:$J$198,10,FALSE),0) -> 111367.02 | Q37: =IFERROR(VLOOKUP($A37,Expended!$A$2:$L$198,11,FALSE),0) -> 43571.04 | R37: =VLOOKUP($A37,Prior!$A$1:$K$199,5,FALSE) -> 11981 | S37: =VLOOKUP($A37,Prior!$A$1:$K$199,6,FALSE) -> 65659 | T37: =VLOOKUP($A37,Prior!$A$1:$K$199,7,FALSE) -> 0 | U37: =VLOOKUP($A37,Prior!$A$1:$K$199,8,FALSE) -> 256015 | V37: =VLOOKUP($A37,Prior!$A$1:$K$199,9,FALSE) -> 0 | W37: =VLOOKUP($A37,Prior!$A$1:$K$199,10,FALSE) -> 91044.03 | X37: =VLOOKUP($A37,Prior!$A$1:$K$199,11,FALSE) -> 71514.89 | Y37: 0 | Z37: 0 | AA37: 0 | AB37: 0 | AC37: 0 | AD37: 258299.77 | AE37: 0
A38: 13 | B38: COUNCIL DISTRICT | C38: 100185610 | D38: =IFERROR(VLOOKUP($A38,Awarded!$A$2:$J$196,4,FALSE),0) -> 11058.53 | E38: =IFERROR(VLOOKUP($A38,Awarded!$A$2:$J$196,5,FALSE),0) -> 41975.06 | F38: =IFERROR(VLOOKUP($A38,Awarded!$A$2:$J$196,6,FALSE),0) -> 0 | G38: =IFERROR(VLOOKUP($A38,Awarded!$A$2:$J$196,7,FALSE),0) -> 211004.63 | H38: =IFERROR(VLOOKUP($A38,Awarded!$A$2:$J$196,8,FALSE),0) -> 0 | I38: =IFERROR(VLOOKUP($A38,Awarded!$A$2:$J$196,9,FALSE),0) -> 378859.98 | J38: =IFERROR(VLOOKUP($A38,Awarded!$A$2:$J$196,10,FALSE),0) -> 94639.48 | K38: =IFERROR(VLOOKUP($A38,Expended!$A$2:$J$198,5,FALSE),0) -> 0 | L38: =IFERROR(VLOOKUP($A38,Expended!$A$2:$J$198,6,FALSE),0) -> 0 | M38: =IFERROR(VLOOKUP($A38,Expended!$A$2:$J$198,7,FALSE),0) -> 0 | N38: =IFERROR(VLOOKUP($A38,Expended!$A$2:$J$198,8,FALSE),0) -> 26612.13 | O38: =IFERROR(VLOOKUP($A38,Expended!$A$2:$J$198,9,FALSE),0) -> 0 | P38: =IFERROR(VLOOKUP($A38,Expended!$A$2:$J$198,10,FALSE),0) -> 214728.73 | Q38: =IFERROR(VLOOKUP($A38,Expended!$A$2:$L$198,11,FALSE),0) -> 43177 | R38: =VLOOKUP($A38,Prior!$A$1:$K$199,5,FALSE) -> 10669 | S38: =VLOOKUP($A38,Prior!$A$1:$K$199,6,FALSE) -> 41932 | T38: =VLOOKUP($A38,Prior!$A$1:$K$199,7,FALSE) -> 0 | U38: =VLOOKUP($A38,Prior!$A$1:$K$199,8,FALSE) -> 184392.14 | V38: =VLOOKUP($A38,Prior!$A$1:$K$199,9,FALSE) -> 0 | W38: =VLOOKUP($A38,Prior!$A$1:$K$199,10,FALSE) -> 0 | X38: =VLOOKUP($A38,Prior!$A$1:$K$199,11,FALSE) -> 0 | Y38: 389.53 | Z38: 43.06 | AA38: 0 | AB38: 0.36 | AC38: 0 | AD38: 164131.25 | AE38: 51462.48
A39: 342 | B39: CULDESAC JOINT DISTRICT | C39: 92284785 | D39: =IFERROR(VLOOKUP($A39,Awarded!$A$2:$J$196,4,FALSE),0) -> 9134 | E39: =IFERROR(VLOOKUP($A39,Awarded!$A$2:$J$196,5,FALSE),0) -> 25141.79 | F39: =IFERROR(VLOOKUP($A39,Awarded!$A$2:$J$196,6,FALSE),0) -> 9186.91 | G39: =IFERROR(VLOOKUP($A39,Awarded!$A$2:$J$196,7,FALSE),0) -> 100125.75 | H39: =IFERROR(VLOOKUP($A39,Awarded!$A$2:$J$196,8,FALSE),0) -> 125563 | I39: =IFERROR(VLOOKUP($A39,Awarded!$A$2:$J$196,9,FALSE),0) -> 179777.3 | J39: =IFERROR(VLOOKUP($A39,Awarded!$A$2:$J$196,10,FALSE),0) -> 44908.36 | K39: =IFERROR(VLOOKUP($A39,Expended!$A$2:$J$198,5,FALSE),0) -> 0 | L39: =IFERROR(VLOOKUP($A39,Expended!$A$2:$J$198,6,FALSE),0) -> 25.79 | M39: =IFERROR(VLOOKUP($A39,Expended!$A$2:$J$198,7,FALSE),0) -> 187.91 | N39: =IFERROR(VLOOKUP($A39,Expended!$A$2:$J$198,8,FALSE),0) -> 22527.26 | O39: =IFERROR(VLOOKUP($A39,Expended!$A$2:$J$198,9,FALSE),0) -> 32050 | P39: =IFERROR(VLOOKUP($A39,Expended!$A$2:$J$198,10,FALSE),0) -> 0 | Q39: =IFERROR(VLOOKUP($A39,Expended!$A$2:$L$198,11,FALSE),0) -> 37140.8 | R39: =VLOOKUP($A39,Prior!$A$1:$K$199,5,FALSE) -> 9134 | S39: =VLOOKUP($A39,Prior!$A$1:$K$199,6,FALSE) -> 25116 | T39: =VLOOKUP($A39,Prior!$A$1:$K$199,7,FALSE) -> 8999 | U39: =VLOOKUP($A39,Prior!$A$1:$K$199,8,FALSE) -> 0 | V39: =VLOOKUP($A39,Prior!$A$1:$K$199,9,FALSE) -> 0 | W39: =VLOOKUP($A39,Prior!$A$1:$K$199,10,FALSE) -> 0 | X39: =VLOOKUP($A39,Prior!$A$1:$K$199,11,FALSE) -> 0 | Y39: 0 | Z39: 0 | AA39: 0 | AB39: 77598.49 | AC39: 93513 | AD39: 179777.3 | AE39: 7767.56
A40: 314 | B40: DIETRICH DISTRICT | C40: 29816998 | D40: =IFERROR(VLOOKUP($A40,Awarded!$A$2:$J$196,4,FALSE),0) -> 10291.83 | E40: =IFERROR(VLOOKUP($A40,Awarded!$A$2:$J$196,5,FALSE),0) -> 33717.59 | F40: =IFERROR(VLOOKUP($A40,Awarded!$A$2:$J$196,6,FALSE),0) -> 0 | G40: =IFERROR(VLOOKUP($A40,Awarded!$A$2:$J$196,7,FALSE),0) -> 176958.21 | H40: =IFERROR(VLOOKUP($A40,Awarded!$A$2:$J$196,8,FALSE),0) -> 0 | I40: =IFERROR(VLOOKUP($A40,Awarded!$A$2:$J$196,9,FALSE),0) -> 317729.15 | J40: =IFERROR(VLOOKUP($A40,Awarded!$A$2:$J$196,10,FALSE),0) -> 79368.92 | K40: =IFERROR(VLOOKUP($A40,Expended!$A$2:$J$198,5,FALSE),0) -> 122.83 | L40: =IFERROR(VLOOKUP($A40,Expended!$A$2:$J$198,6,FALSE),0) -> 34.59 | M40: =IFERROR(VLOOKUP($A40,Expended!$A$2:$J$198,7,FALSE),0) -> 0 | N40: =IFERROR(VLOOKUP($A40,Expended!$A$2:$J$198,8,FALSE),0) -> 89480.24 | O40: =IFERROR(VLOOKUP($A40,Expended!$A$2:$J$198,9,FALSE),0) -> 0 | P40: =IFERROR(VLOOKUP($A40,Expended!$A$2:$J$198,10,FALSE),0) -> 116218.97 | Q40: =IFERROR(VLOOKUP($A40,Expended!$A$2:$L$198,11,FALSE),0) -> 33990.59 | R40: =VLOOKUP($A40,Prior!$A$1:$K$199,5,FALSE) -> 10169 | S40: =VLOOKUP($A40,Prior!$A$1:$K$199,6,FALSE) -> 33683 | T40: =VLOOKUP($A40,Prior!$A$1:$K$199,7,FALSE) -> 0 | U40: =VLOOKUP($A40,Prior!$A$1:$K$199,8,FALSE) -> 0 | V40: =VLOOKUP($A40,Prior!$A$1:$K$199,9,FALSE) -> 0 | W40: =VLOOKUP($A40,Prior!$A$1:$K$199,10,FALSE) -> 78885.03 | X40: =VLOOKUP($A40,Prior!$A$1:$K$199,11,FALSE) -> 3365 | Y40: 0 | Z40: 0 | AA40: 0 | AB40: 87477.97 | AC40: 0 | AD40: 122625.15 | AE40: 42013.33
A41: 550 | B41: DORAL ACADEMY OF IDAHO, INC. | C41: 117165868 | D41: =IFERROR(VLOOKUP($A41,Awarded!$A$2:$J$196,4,FALSE),0) -> 2451.06 | E41: =IFERROR(VLOOKUP($A41,Awarded!$A$2:$J$196,5,FALSE),0) -> 0 | F41: =IFERROR(VLOOKUP($A41,Awarded!$A$2:$J$196,6,FALSE),0) -> 19447.78 | G41: =IFERROR(VLOOKUP($A41,Awarded!$A$2:$J$196,7,FALSE),0) -> 43863.46 | H41: =IFERROR(VLOOKUP($A41,Awarded!$A$2:$J$196,8,FALSE),0) -> 251198 | I41: =IFERROR(VLOOKUP($A41,Awarded!$A$2:$J$196,9,FALSE),0) -> 78759.26 | J41: =IFERROR(VLOOKUP($A41,Awarded!$A$2:$J$196,10,FALSE),0) -> 19673.17 | K41: =IFERROR(VLOOKUP($A41,Expended!$A$2:$J$198,5,FALSE),0) -> 0 | L41: =IFERROR(VLOOKUP($A41,Expended!$A$2:$J$198,6,FALSE),0) -> 0 | M41: =IFERROR(VLOOKUP($A41,Expended!$A$2:$J$198,7,FALSE),0) -> 19447.78 | N41: =IFERROR(VLOOKUP($A41,Expended!$A$2:$J$198,8,FALSE),0) -> 0 | O41: =IFERROR(VLOOKUP($A41,Expended!$A$2:$J$198,9,FALSE),0) -> 146046.69 | P41: =IFERROR(VLOOKUP($A41,Expended!$A$2:$J$198,10,FALSE),0) -> 29749.05 | Q41: =IFERROR(VLOOKUP($A41,Expended!$A$2:$L$198,11,FALSE),0) -> 0 | R41: =VLOOKUP($A41,Prior!$A$1:$K$199,5,FALSE) -> 2411 | S41: =VLOOKUP($A41,Prior!$A$1:$K$199,6,FALSE) -> 0 | T41: =VLOOKUP($A41,Prior!$A$1:$K$199,7,FALSE) -> 0 | U41: =VLOOKUP($A41,Prior!$A$1:$K$199,8,FALSE) -> 43765 | V41: =VLOOKUP($A41,Prior!$A$1:$K$199,9,FALSE) -> 0 | W41: =VLOOKUP($A41,Prior!$A$1:$K$199,10,FALSE) -> 49009.31 | X41: =VLOOKUP($A41,Prior!$A$1:$K$199,11,FALSE) -> 19666 | Y41: 40.06 | Z41: 0 | AA41: 0 | AB41: 98.46 | AC41: 105151.31 | AD41: 0.9 | AE41: 7.17
A42: 523 | B42: ELEVATE ACADEMY INC. | C42: 18395435 | D42: =IFERROR(VLOOKUP($A42,Awarded!$A$2:$J$196,4,FALSE),0) -> 11146 | E42: =IFERROR(VLOOKUP($A42,Awarded!$A$2:$J$196,5,FALSE),0) -> 66698.42 | F42: =IFERROR(VLOOKUP($A42,Awarded!$A$2:$J$196,6,FALSE),0) -> 59774.62 | G42: =IFERROR(VLOOKUP($A42,Awarded!$A$2:$J$196,7,FALSE),0) -> 353194.79 | H42: =IFERROR(VLOOKUP($A42,Awarded!$A$2:$J$196,8,FALSE),0) -> 0 | I42: =IFERROR(VLOOKUP($A42,Awarded!$A$2:$J$196,9,FALSE),0) -> 634163.79 | J42: =IFERROR(VLOOKUP($A42,Awarded!$A$2:$J$196,10,FALSE),0) -> 158414.72 | K42: =IFERROR(VLOOKUP($A42,Expended!$A$2:$J$198,5,FALSE),0) -> 0 | L42: =IFERROR(VLOOKUP($A42,Expended!$A$2:$J$198,6,FALSE),0) -> 0 | M42: =IFERROR(VLOOKUP($A42,Expended!$A$2:$J$198,7,FALSE),0) -> 59774.62 | N42: =IFERROR(VLOOKUP($A42,Expended!$A$2:$J$198,8,FALSE),0) -> 205446.71 | O42: =IFERROR(VLOOKUP($A42,Expended!$A$2:$J$198,9,FALSE),0) -> 0 | P42: =IFERROR(VLOOKUP($A42,Expended!$A$2:$J$198,10,FALSE),0) -> 133638.42 | Q42: =IFERROR(VLOOKUP($A42,Expended!$A$2:$L$198,11,FALSE),0) -> 0 | R42: =VLOOKUP($A42,Prior!$A$1:$K$199,5,FALSE) -> 11146 | S42: =VLOOKUP($A42,Prior!$A$1:$K$199,6,FALSE) -> 66630 | T42: =VLOOKUP($A42,Prior!$A$1:$K$199,7,FALSE) -> 0 | U42: =VLOOKUP($A42,Prior!$A$1:$K$199,8,FALSE) -> 147748.08 | V42: =VLOOKUP($A42,Prior!$A$1:$K$199,9,FALSE) -> 0 | W42: =VLOOKUP($A42,Prior!$A$1:$K$199,10,FALSE) -> 0 | X42: =VLOOKUP($A42,Prior!$A$1:$K$199,11,FALSE) -> 0 | Y42: 0 | Z42: 68.42 | AA42: 7.275957614e-12 | AB42: 0 | AC42: 0 | AD42: 500525.37 | AE42: 158414.72
A43: 221 | B43: EMMETT INDEPENDENT DISTRICT | C43: 7643034 | D43: =IFERROR(VLOOKUP($A43,Awarded!$A$2:$J$196,4,FALSE),0) -> 35522 | E43: =IFERROR(VLOOKUP($A43,Awarded!$A$2:$J$196,5,FALSE),0) -> 508268.41 | F43: =IFERROR(VLOOKUP($A43,Awarded!$A$2:$J$196,6,FALSE),0) -> 0 | G43: =IFERROR(VLOOKUP($A43,Awarded!$A$2:$J$196,7,FALSE),0) -> 2042702.11 | H43: =IFERROR(VLOOKUP($A43,Awarded!$A$2:$J$196,8,FALSE),0) -> 0 | I43: =IFERROR(VLOOKUP($A43,Awarded!$A$2:$J$196,9,FALSE),0) -> 3667687.68 | J43: =IFERROR(VLOOKUP($A43,Awarded!$A$2:$J$196,10,FALSE),0) -> 916192.82 | K43: =IFERROR(VLOOKUP($A43,Expended!$A$2:$J$198,5,FALSE),0) -> 16007.88 | L43: =IFERROR(VLOOKUP($A43,Expended!$A$2:$J$198,6,FALSE),0) -> 521.41 | M43: =IFERROR(VLOOKUP($A43,Expended!$A$2:$J$198,7,FALSE),0) -> 0 | N43: =IFERROR(VLOOKUP($A43,Expended!$A$2:$J$198,8,FALSE),0) -> 269697.15 | O43: =IFERROR(VLOOKUP($A43,Expended!$A$2:$J$198,9,FALSE),0) -> 0 | P43: =IFERROR(VLOOKUP($A43,Expended!$A$2:$J$198,10,FALSE),0) -> 1283364.84 | Q43: =IFERROR(VLOOKUP($A43,Expended!$A$2:$L$198,11,FALSE),0) -> 294273.68 | R43: =VLOOKUP($A43,Prior!$A$1:$K$199,5,FALSE) -> 19514.12 | S43: =VLOOKUP($A43,Prior!$A$1:$K$199,6,FALSE) -> 507747 | T43: =VLOOKUP($A43,Prior!$A$1:$K$199,7,FALSE) -> 0 | U43: =VLOOKUP($A43,Prior!$A$1:$K$199,8,FALSE) -> 1773004.96 | V43: =VLOOKUP($A43,Prior!$A$1:$K$199,9,FALSE) -> 0 | W43: =VLOOKUP($A43,Prior!$A$1:$K$199,10,FALSE) -> 494240.49 | X43: =VLOOKUP($A43,Prior!$A$1:$K$199,11,FALSE) -> 110730.81 | Y43: 0 | Z43: 0 | AA43: 0 | AB43: 0 | AC43: 0 | AD43: 1890082.35 | AE43: 511188.33
A44: 456 | B44: FALCON RIDGE PUBLIC CHARTER SCHOOL, INC. | C44: 182860341 | D44: =IFERROR(VLOOKUP($A44,Awarded!$A$2:$J$196,4,FALSE),0) -> 13833.45 | E44: =IFERROR(VLOOKUP($A44,Awarded!$A$2:$J$196,5,FALSE),0) -> 24404.04 | F44: =IFERROR(VLOOKUP($A44,Awarded!$A$2:$J$196,6,FALSE),0) -> 39094.64 | G44: =IFERROR(VLOOKUP($A44,Awarded!$A$2:$J$196,7,FALSE),0) -> 83678.83 | H44: =IFERROR(VLOOKUP($A44,Awarded!$A$2:$J$196,8,FALSE),0) -> 162288 | I44: =IFERROR(VLOOKUP($A44,Awarded!$A$2:$J$196,9,FALSE),0) -> 150247.09 | J44: =IFERROR(VLOOKUP($A44,Awarded!$A$2:$J$196,10,FALSE),0) -> 37531.67 | K44: =IFERROR(VLOOKUP($A44,Expended!$A$2:$J$198,5,FALSE),0) -> 11248.45 | L44: =IFERROR(VLOOKUP($A44,Expended!$A$2:$J$198,6,FALSE),0) -> 25.04 | M44: =IFERROR(VLOOKUP($A44,Expended!$A$2:$J$198,7,FALSE),0) -> 799.64 | N44: =IFERROR(VLOOKUP($A44,Expended!$A$2:$J$198,8,FALSE),0) -> 83678.83 | O44: =IFERROR(VLOOKUP($A44,Expended!$A$2:$J$198,9,FALSE),0) -> 12310.92 | P44: =IFERROR(VLOOKUP($A44,Expended!$A$2:$J$198,10,FALSE),0) -> 74657.91 | Q44: =IFERROR(VLOOKUP($A44,Expended!$A$2:$L$198,11,FALSE),0) -> 27527.9 | R44: =VLOOKUP($A44,Prior!$A$1:$K$199,5,FALSE) -> 2585 | S44: =VLOOKUP($A44,Prior!$A$1:$K$199,6,FALSE) -> 24379 | T44: =VLOOKUP($A44,Prior!$A$1:$K$199,7,FALSE) -> 38295 | U44: =VLOOKUP($A44,Prior!$A$1:$K$199,8,FALSE) -> 0 | V44: =VLOOKUP($A44,Prior!$A$1:$K$199,9,FALSE) -> 0 | W44: =VLOOKUP($A44,Prior!$A$1:$K$199,10,FALSE) -> 0 | X44: =VLOOKUP($A44,Prior!$A$1:$K$199,11,FALSE) -> 0 | Y44: 0 | Z44: 0 | AA44: 0 | AB44: 0 | AC44: 149977.08 | AD44: 75589.18 | AE44: 10003.77
A45: 531 | B45: FERN-WATERS PUBLIC CHARTER SCHOOL, INC. | C45: 116915742 | D45: =IFERROR(VLOOKUP($A45,Awarded!$A$2:$J$196,4,FALSE),0) -> 8660.69 | E45: =IFERROR(VLOOKUP($A45,Awarded!$A$2:$J$196,5,FALSE),0) -> 0 | F45: =IFERROR(VLOOKUP($A45,Awarded!$A$2:$J$196,6,FALSE),0) -> 0 | G45: =IFERROR(VLOOKUP($A45,Awarded!$A$2:$J$196,7,FALSE),0) -> 70299.8 | H45: =IFERROR(VLOOKUP($A45,Awarded!$A$2:$J$196,8,FALSE),0) -> 192165 | I45: =IFERROR(VLOOKUP($A45,Awarded!$A$2:$J$196,9,FALSE),0) -> 126223.25 | J45: =IFERROR(VLOOKUP($A45,Awarded!$A$2:$J$196,10,FALSE),0) -> 31530.49 | K45: =IFERROR(VLOOKUP($A45,Expended!$A$2:$J$198,5,FALSE),0) -> 394.09 | L45: =IFERROR(VLOOKUP($A45,Expended!$A$2:$J$198,6,FALSE),0) -> 0 | M45: =IFERROR(VLOOKUP($A45,Expended!$A$2:$J$198,7,FALSE),0) -> 0 | N45: =IFERROR(VLOOKUP($A45,Expended!$A$2:$J$198,8,FALSE),0) -> 2490.78 | O45: =IFERROR(VLOOKUP($A45,Expended!$A$2:$J$198,9,FALSE),0) -> 89947.19 | P45: =IFERROR(VLOOKUP($A45,Expended!$A$2:$J$198,10,FALSE),0) -> 0 | Q45: =IFERROR(VLOOKUP($A45,Expended!$A$2:$L$198,11,FALSE),0) -> 5294.98 | R45: =VLOOKUP($A45,Prior!$A$1:$K$199,5,FALSE) -> 8230.77 | S45: =VLOOKUP($A45,Prior!$A$1:$K$199,6,FALSE) -> 0 | T45: =VLOOKUP($A45,Prior!$A$1:$K$199,7,FALSE) -> 0 | U45: =VLOOKUP($A45,Prior!$A$1:$K$199,8,FALSE) -> 67809.02 | V45: =VLOOKUP($A45,Prior!$A$1:$K$199,9,FALSE) -> 9910.87 | W45: =VLOOKUP($A45,Prior!$A$1:$K$199,10,FALSE) -> 126076.99 | X45: =VLOOKUP($A45,Prior!$A$1:$K$199,11,FALSE) -> 9408.36 | Y45: 35.83 | Z45: 0 | AA45: 0 | AB45: 0 | AC45: 92306.94 | AD45: 146.26 | AE45: 16827.15
A46: 413 | B46: FILER DISTRICT | C46: 100014943 | D46: =IFERROR(VLOOKUP($A46,Awarded!$A$2:$J$196,4,FALSE),0) -> 29357.08 | E46: =IFERROR(VLOOKUP($A46,Awarded!$A$2:$J$196,5,FALSE),0) -> 205175.48 | F46: =IFERROR(VLOOKUP($A46,Awarded!$A$2:$J$196,6,FALSE),0) -> 23990.7 | G46: =IFERROR(VLOOKUP($A46,Awarded!$A$2:$J$196,7,FALSE),0) -> 749793.01 | H46: =IFERROR(VLOOKUP($A46,Awarded!$A$2:$J$196,8,FALSE),0) -> 0 | I46: =IFERROR(VLOOKUP($A46,Awarded!$A$2:$J$196,9,FALSE),0) -> 1346258.89 | J46: =IFERROR(VLOOKUP($A46,Awarded!$A$2:$J$196,10,FALSE),0) -> 336297.53 | K46: =IFERROR(VLOOKUP($A46,Expended!$A$2:$J$198,5,FALSE),0) -> 29357.08 | L46: =IFERROR(VLOOKUP($A46,Expended!$A$2:$J$198,6,FALSE),0) -> 1743.13 | M46: =IFERROR(VLOOKUP($A46,Expended!$A$2:$J$198,7,FALSE),0) -> 0 | N46: =IFERROR(VLOOKUP($A46,Expended!$A$2:$J$198,8,FALSE),0) -> 62928.26 | O46: =IFERROR(VLOOKUP($A46,Expended!$A$2:$J$198,9,FALSE),0) -> 0 | P46: =IFERROR(VLOOKUP($A46,Expended!$A$2:$J$198,10,FALSE),0) -> 0 | Q46: =IFERROR(VLOOKUP($A46,Expended!$A$2:$L$198,11,FALSE),0) -> 10820.25 | R46: =VLOOKUP($A46,Prior!$A$1:$K$199,5,FALSE) -> 0 | S46: =VLOOKUP($A46,Prior!$A$1:$K$199,6,FALSE) -> 203432.35 | T46: =VLOOKUP($A46,Prior!$A$1:$K$199,7,FALSE) -> 0 | U46: =VLOOKUP($A46,Prior!$A$1:$K$199,8,FALSE) -> 0 | V46: =VLOOKUP($A46,Prior!$A$1:$K$199,9,FALSE) -> 0 | W46: =VLOOKUP($A46,Prior!$A$1:$K$199,10,FALSE) -> 0 | X46: =VLOOKUP($A46,Prior!$A$1:$K$199,11,FALSE) -> 0 | Y46: 0 | Z46: 0 | AA46: 23990.7 | AB46: 686864.75 | AC46: 0 | AD46: 1346258.89 | AE46: 325477.28
A47: 59 | B47: FIRTH DISTRICT | C47: 100014950 | D47: =IFERROR(VLOOKUP($A47,Awarded!$A$2:$J$196,4,FALSE),0) -> 17665.2 | E47: =IFERROR(VLOOKUP($A47,Awarded!$A$2:$J$196,5,FALSE),0) -> 65504.2 | F47: =IFERROR(VLOOKUP($A47,Awarded!$A$2:$J$196,6,FALSE),0) -> 86891.26 | G47: =IFERROR(VLOOKUP($A47,Awarded!$A$2:$J$196,7,FALSE),0) -> 288679.98 | H47: =IFERROR(VLOOKUP($A47,Awarded!$A$2:$J$196,8,FALSE),0) -> 0 | I47: =IFERROR(VLOOKUP($A47,Awarded!$A$2:$J$196,9,FALSE),0) -> 518327.58 | J47: =IFERROR(VLOOKUP($A47,Awarded!$A$2:$J$196,10,FALSE),0) -> 129479.18 | K47: =IFERROR(VLOOKUP($A47,Expended!$A$2:$J$198,5,FALSE),0) -> 751.2 | L47: =IFERROR(VLOOKUP($A47,Expended!$A$2:$J$198,6,FALSE),0) -> 67.2 | M47: =IFERROR(VLOOKUP($A47,Expended!$A$2:$J$198,7,FALSE),0) -> 1777.26 | N47: =IFERROR(VLOOKUP($A47,Expended!$A$2:$J$198,8,FALSE),0) -> 22173.5 | O47: =IFERROR(VLOOKUP($A47,Expended!$A$2:$J$198,9,FALSE),0) -> 0 | P47: =IFERROR(VLOOKUP($A47,Expended!$A$2:$J$198,10,FALSE),0) -> 231000 | Q47: =IFERROR(VLOOKUP($A47,Expended!$A$2:$L$198,11,FALSE),0) -> 44330.45 | R47: =VLOOKUP($A47,Prior!$A$1:$K$199,5,FALSE) -> 16914 | S47: =VLOOKUP($A47,Prior!$A$1:$K$199,6,FALSE) -> 65437 | T47: =VLOOKUP($A47,Prior!$A$1:$K$199,7,FALSE) -> 85114 | U47: =VLOOKUP($A47,Prior!$A$1:$K$199,8,FALSE) -> 179883.22 | V47: =VLOOKUP($A47,Prior!$A$1:$K$199,9,FALSE) -> 0 | W47: =VLOOKUP($A47,Prior!$A$1:$K$199,10,FALSE) -> 0 | X47: =VLOOKUP($A47,Prior!$A$1:$K$199,11,FALSE) -> 32860.4 | Y47: 0 | Z47: 0 | AA47: 0 | AB47: 86623.26 | AC47: 0 | AD47: 287327.58 | AE47: 52288.33
A48: 528 | B48: FORGE INTERNATIONAL, LLC | C48: 116766344 | D48: =IFERROR(VLOOKUP($A48,Awarded!$A$2:$J$196,4,FALSE),0) -> 10862.06 | E48: =IFERROR(VLOOKUP($A48,Awarded!$A$2:$J$196,5,FALSE),0) -> 21533.09 | F48: =IFERROR(VLOOKUP($A48,Awarded!$A$2:$J$196,6,FALSE),0) -> 47554.68 | G48: =IFERROR(VLOOKUP($A48,Awarded!$A$2:$J$196,7,FALSE),0) -> 125358.38 | H48: =IFERROR(VLOOKUP($A48,Awarded!$A$2:$J$196,8,FALSE),0) -> 106811 | I48: =IFERROR(VLOOKUP($A48,Awarded!$A$2:$J$196,9,FALSE),0) -> 225080.8 | J48: =IFERROR(VLOOKUP($A48,Awarded!$A$2:$J$196,10,FALSE),0) -> 56225.49 | K48: =IFERROR(VLOOKUP($A48,Expended!$A$2:$J$198,5,FALSE),0) -> 323.06 | L48: =IFERROR(VLOOKUP($A48,Expended!$A$2:$J$198,6,FALSE),0) -> 22.09 | M48: =IFERROR(VLOOKUP($A48,Expended!$A$2:$J$198,7,FALSE),0) -> 17513.18 | N48: =IFERROR(VLOOKUP($A48,Expended!$A$2:$J$198,8,FALSE),0) -> 19445.13 | O48: =IFERROR(VLOOKUP($A48,Expended!$A$2:$J$198,9,FALSE),0) -> 106811 | P48: =IFERROR(VLOOKUP($A48,Expended!$A$2:$J$198,10,FALSE),0) -> 33232.85 | Q48: =IFERROR(VLOOKUP($A48,Expended!$A$2:$L$198,11,FALSE),0) -> 20.49 | R48: =VLOOKUP($A48,Prior!$A$1:$K$199,5,FALSE) -> 10539 | S48: =VLOOKUP($A48,Prior!$A$1:$K$199,6,FALSE) -> 21511 | T48: =VLOOKUP($A48,Prior!$A$1:$K$199,7,FALSE) -> 30041.5 | U48: =VLOOKUP($A48,Prior!$A$1:$K$199,8,FALSE) -> 105913.25 | V48: =VLOOKUP($A48,Prior!$A$1:$K$199,9,FALSE) -> 0 | W48: =VLOOKUP($A48,Prior!$A$1:$K$199,10,FALSE) -> 191847.95 | X48: =VLOOKUP($A48,Prior!$A$1:$K$199,11,FALSE) -> 56205 | Y48: 0 | Z48: 0 | AA48: 0 | AB48: 0 | AC48: 0 | AD48: 0 | AE48: 0
A49: 215 | B49: FREMONT COUNTY JOINT DISTRICT | C49: 184556975 | D49: =IFERROR(VLOOKUP($A49,Awarded!$A$2:$J$196,4,FALSE),0) -> 34248.9 | E49: =IFERROR(VLOOKUP($A49,Awarded!$A$2:$J$196,5,FALSE),0) -> 420348.22 | F49: =IFERROR(VLOOKUP($A49,Awarded!$A$2:$J$196,6,FALSE),0) -> 0 | G49: =IFERROR(VLOOKUP($A49,Awarded!$A$2:$J$196,7,FALSE),0) -> 1716747.47 | H49: =IFERROR(VLOOKUP($A49,Awarded!$A$2:$J$196,8,FALSE),0) -> 0 | I49: =IFERROR(VLOOKUP($A49,Awarded!$A$2:$J$196,9,FALSE),0) -> 3082432.56 | J49: =IFERROR(VLOOKUP($A49,Awarded!$A$2:$J$196,10,FALSE),0) -> 769995.55 | K49: =IFERROR(VLOOKUP($A49,Expended!$A$2:$J$198,5,FALSE),0) -> 4520 | L49: =IFERROR(VLOOKUP($A49,Expended!$A$2:$J$198,6,FALSE),0) -> 431.22 | M49: =IFERROR(VLOOKUP($A49,Expended!$A$2:$J$198,7,FALSE),0) -> 0 | N49: =IFERROR(VLOOKUP($A49,Expended!$A$2:$J$198,8,FALSE),0) -> 3853.47 | O49: =IFERROR(VLOOKUP($A49,Expended!$A$2:$J$198,9,FALSE),0) -> 0 | P49: =IFERROR(VLOOKUP($A49,Expended!$A$2:$J$198,10,FALSE),0) -> 2576008.25 | Q49: =IFERROR(VLOOKUP($A49,Expended!$A$2:$L$198,11,FALSE),0) -> 402378.96 | R49: =VLOOKUP($A49,Prior!$A$1:$K$199,5,FALSE) -> 29728.9 | S49: =VLOOKUP($A49,Prior!$A$1:$K$199,6,FALSE) -> 419917 | T49: =VLOOKUP($A49,Prior!$A$1:$K$199,7,FALSE) -> 0 | U49: =VLOOKUP($A49,Prior!$A$1:$K$199,8,FALSE) -> 1712894 | V49: =VLOOKUP($A49,Prior!$A$1:$K$199,9,FALSE) -> 0 | W49: =VLOOKUP($A49,Prior!$A$1:$K$199,10,FALSE) -> 189961.17 | X49: =VLOOKUP($A49,Prior!$A$1:$K$199,11,FALSE) -> 338022.02 | Y49: 0 | Z49: 0 | AA49: 0 | AB49: 0 | AC49: 0 | AD49: 316463.14 | AE49: 29594.57
A50: 373 | B50: FRUITLAND DISTRICT | C50: 100014968 | D50: =IFERROR(VLOOKUP($A50,Awarded!$A$2:$J$196,4,FALSE),0) -> 26764.42 | E50: =IFERROR(VLOOKUP($A50,Awarded!$A$2:$J$196,5,FALSE),0) -> 171639.08 | F50: =IFERROR(VLOOKUP($A50,Awarded!$A$2:$J$196,6,FALSE),0) -> 85238.46 | G50: =IFERROR(VLOOKUP($A50,Awarded!$A$2:$J$196,7,FALSE),0) -> 685949.7 | H50: =IFERROR(VLOOKUP($A50,Awarded!$A$2:$J$196,8,FALSE),0) -> 0 | I50: =IFERROR(VLOOKUP($A50,Awarded!$A$2:$J$196,9,FALSE),0) -> 1231627.06 | J50: =IFERROR(VLOOKUP($A50,Awarded!$A$2:$J$196,10,FALSE),0) -> 307662.1 | K50: =IFERROR(VLOOKUP($A50,Expended!$A$2:$J$198,5,FALSE),0) -> 6367.42 | L50: =IFERROR(VLOOKUP($A50,Expended!$A$2:$J$198,6,FALSE),0) -> 176.08 | M50: =IFERROR(VLOOKUP($A50,Expended!$A$2:$J$198,7,FALSE),0) -> 0 | N50: =IFERROR(VLOOKUP($A50,Expended!$A$2:$J$198,8,FALSE),0) -> 481141.24 | O50: =IFERROR(VLOOKUP($A50,Expended!$A$2:$J$198,9,FALSE),0) -> 0 | P50: =IFERROR(VLOOKUP($A50,Expended!$A$2:$J$198,10,FALSE),0) -> 130140.04 | Q50: =IFERROR(VLOOKUP($A50,Expended!$A$2:$L$198,11,FALSE),0) -> 41824.77 | R50: =VLOOKUP($A50,Prior!$A$1:$K$199,5,FALSE) -> 20397 | S50: =VLOOKUP($A50,Prior!$A$1:$K$199,6,FALSE) -> 171463 | T50: =VLOOKUP($A50,Prior!$A$1:$K$199,7,FALSE) -> 20069.3 | U50: =VLOOKUP($A50,Prior!$A$1:$K$199,8,FALSE) -> 180161.46 | V50: =VLOOKUP($A50,Prior!$A$1:$K$199,9,FALSE) -> 0 | W50: =VLOOKUP($A50,Prior!$A$1:$K$199,10,FALSE) -> 700529.94 | X50: =VLOOKUP($A50,Prior!$A$1:$K$199,11,FALSE) -> 0 | Y50: 0 | Z50: 0 | AA50: 65169.16 | AB50: 24647 | AC50: 0 | AD50: 400957.08 | AE50: 265837.33
A51: 499 | B51: FUTURE PUBLIC SCHOOL, INC. | C51: 80975896 | D51: =IFERROR(VLOOKUP($A51,Awarded!$A$2:$J$196,4,FALSE),0) -> 11360.78 | E51: =IFERROR(VLOOKUP($A51,Awarded!$A$2:$J$196,5,FALSE),0) -> 50575.88 | F51: =IFERROR(VLOOKUP($A51,Awarded!$A$2:$J$196,6,FALSE),0) -> 0 | G51: =IFERROR(VLOOKUP($A51,Awarded!$A$2:$J$196,7,FALSE),0) -> 307841.99 | H51: =IFERROR(VLOOKUP($A51,Awarded!$A$2:$J$196,8,FALSE),0) -> 0 | I51: =IFERROR(VLOOKUP($A51,Awarded!$A$2:$J$196,9,FALSE),0) -> 552731.44 | J51: =IFERROR(VLOOKUP($A51,Awarded!$A$2:$J$196,10,FALSE),0) -> 138073.31 | K51: =IFERROR(VLOOKUP($A51,Expended!$A$2:$J$198,5,FALSE),0) -> 6559.78 | L51: =IFERROR(VLOOKUP($A51,Expended!$A$2:$J$198,6,FALSE),0) -> 4745.32 | M51: =IFERROR(VLOOKUP($A51,Expended!$A$2:$J$198,7,FALSE),0) -> 0 | N51: =IFERROR(VLOOKUP($A51,Expended!$A$2:$J$198,8,FALSE),0) -> 179141.31 | O51: =IFERROR(VLOOKUP($A51,Expended!$A$2:$J$198,9,FALSE),0) -> 0 | P51: =IFERROR(VLOOKUP($A51,Expended!$A$2:$J$198,10,FALSE),0) -> 170254.19 | Q51: =IFERROR(VLOOKUP($A51,Expended!$A$2:$L$198,11,FALSE),0) -> 104248.23 | R51: =VLOOKUP($A51,Prior!$A$1:$K$199,5,FALSE) -> 4801 | S51: =VLOOKUP($A51,Prior!$A$1:$K$199,6,FALSE) -> 45830.56 | T51: =VLOOKUP($A51,Prior!$A$1:$K$199,7,FALSE) -> 0 | U51: =VLOOKUP($A51,Prior!$A$1:$K$199,8,FALSE) -> 128700.68 | V51: =VLOOKUP($A51,Prior!$A$1:$K$199,9,FALSE) -> 0 | W51: =VLOOKUP($A51,Prior!$A$1:$K$199,10,FALSE) -> 0 | X51: =VLOOKUP($A51,Prior!$A$1:$K$199,11,FALSE) -> 0 | Y51: 0 | Z51: 0 | AA51: 0 | AB51: 0 | AC51: 0 | AD51: 382477.25 | AE51: 33825.08
A52: 71 | B52: GARDEN VALLEY DISTRICT | C52: 29632296 | D52: =IFERROR(VLOOKUP($A52,Awarded!$A$2:$J$196,4,FALSE),0) -> 11149.21 | E52: =IFERROR(VLOOKUP($A52,Awarded!$A$2:$J$196,5,FALSE),0) -> 81644.76 | F52: =IFERROR(VLOOKUP($A52,Awarded!$A$2:$J$196,6,FALSE),0) -> 0 | G52: =IFERROR(VLOOKUP($A52,Awarded!$A$2:$J$196,7,FALSE),0) -> 296463.45 | H52: =IFERROR(VLOOKUP($A52,Awarded!$A$2:$J$196,8,FALSE),0) -> 0 | I52: =IFERROR(VLOOKUP($A52,Awarded!$A$2:$J$196,9,FALSE),0) -> 532302.77 | J52: =IFERROR(VLOOKUP($A52,Awarded!$A$2:$J$196,10,FALSE),0) -> 132969.45 | K52: =IFERROR(VLOOKUP($A52,Expended!$A$2:$J$198,5,FALSE),0) -> 0 | L52: =IFERROR(VLOOKUP($A52,Expended!$A$2:$J$198,6,FALSE),0) -> 0 | M52: =IFERROR(VLOOKUP($A52,Expended!$A$2:$J$198,7,FALSE),0) -> 0 | N52: =IFERROR(VLOOKUP($A52,Expended!$A$2:$J$198,8,FALSE),0) -> 74635.12 | O52: =IFERROR(VLOOKUP($A52,Expended!$A$2:$J$198,9,FALSE),0) -> 0 | P52: =IFERROR(VLOOKUP($A52,Expended!$A$2:$J$198,10,FALSE),0) -> 210886.75 | Q52: =IFERROR(VLOOKUP($A52,Expended!$A$2:$L$198,11,FALSE),0) -> 74541.77 | R52: =VLOOKUP($A52,Prior!$A$1:$K$199,5,FALSE) -> 11019 | S52: =VLOOKUP($A52,Prior!$A$1:$K$199,6,FALSE) -> 81561 | T52: =VLOOKUP($A52,Prior!$A$1:$K$199,7,FALSE) -> 0 | U52: =VLOOKUP($A52,Prior!$A$1:$K$199,8,FALSE) -> 169069.65 | V52: =VLOOKUP($A52,Prior!$A$1:$K$199,9,FALSE) -> 0 | W52: =VLOOKUP($A52,Prior!$A$1:$K$199,10,FALSE) -> 317887.14 | X52: =VLOOKUP($A52,Prior!$A$1:$K$199,11,FALSE) -> 46085.03 | Y52: 130.21 | Z52: 83.76 | AA52: 0 | AB52: 52758.68 | AC52: 0 | AD52: 3528.88 | AE52: 12342.65
A53: 549 | B53: GEM PREP: MERIDIAN NORTH, LLC | C53: 117200585 | D53: =IFERROR(VLOOKUP($A53,Awarded!$A$2:$J$196,4,FALSE),0) -> 0 | E53: =IFERROR(VLOOKUP($A53,Awarded!$A$2:$J$196,5,FALSE),0) -> 0 | F53: =IFERROR(VLOOKUP($A53,Awarded!$A$2:$J$196,6,FALSE),0) -> 0 | G53: =IFERROR(VLOOKUP($A53,Awarded!$A$2:$J$196,7,FALSE),0) -> 66716.75 | H53: =IFERROR(VLOOKUP($A53,Awarded!$A$2:$J$196,8,FALSE),0) -> 65381 | I53: =IFERROR(VLOOKUP($A53,Awarded!$A$2:$J$196,9,FALSE),0) -> 119790.8 | J53: =IFERROR(VLOOKUP($A53,Awarded!$A$2:$J$196,10,FALSE),0) -> 29923.9 | K53: =IFERROR(VLOOKUP($A53,Expended!$A$2:$J$198,5,FALSE),0) -> 0 | L53: =IFERROR(VLOOKUP($A53,Expended!$A$2:$J$198,6,FALSE),0) -> 0 | M53: =IFERROR(VLOOKUP($A53,Expended!$A$2:$J$198,7,FALSE),0) -> 0 | N53: =IFERROR(VLOOKUP($A53,Expended!$A$2:$J$198,8,FALSE),0) -> 149.75 | O53: =IFERROR(VLOOKUP($A53,Expended!$A$2:$J$198,9,FALSE),0) -> 0 | P53: =IFERROR(VLOOKUP($A53,Expended!$A$2:$J$198,10,FALSE),0) -> 10690.84 | Q53: =IFERROR(VLOOKUP($A53,Expended!$A$2:$L$198,11,FALSE),0) -> 3957.51 | R53: =VLOOKUP($A53,Prior!$A$1:$K$199,5,FALSE) -> 0 | S53: =VLOOKUP($A53,Prior!$A$1:$K$199,6,FALSE) -> 0 | T53: =VLOOKUP($A53,Prior!$A$1:$K$199,7,FALSE) -> 0 | U53: =VLOOKUP($A53,Prior!$A$1:$K$199,8,FALSE) -> 66567 | V53: =VLOOKUP($A53,Prior!$A$1:$K$199,9,FALSE) -> 65381 | W53: =VLOOKUP($A53,Prior!$A$1:$K$199,10,FALSE) -> 109099.96 | X53: =VLOOKUP($A53,Prior!$A$1:$K$199,11,FALSE) -> 15368.07 | Y53: 0 | Z53: 0 | AA53: 0 | AB53: 0 | AC53: 0 | AD53: 0 | AE53: 10598.32
A54: 498 | B54: GEM PREP: MERIDIAN, LLC | C54: 81046990 | D54: =IFERROR(VLOOKUP($A54,Awarded!$A$2:$J$196,4,FALSE),0) -> 12283.65 | E54: =IFERROR(VLOOKUP($A54,Awarded!$A$2:$J$196,5,FALSE),0) -> 58410.92 | F54: =IFERROR(VLOOKUP($A54,Awarded!$A$2:$J$196,6,FALSE),0) -> 0 | G54: =IFERROR(VLOOKUP($A54,Awarded!$A$2:$J$196,7,FALSE),0) -> 254663.63 | H54: =IFERROR(VLOOKUP($A54,Awarded!$A$2:$J$196,8,FALSE),0) -> 0 | I54: =IFERROR(VLOOKUP($A54,Awarded!$A$2:$J$196,9,FALSE),0) -> 457249.81 | J54: =IFERROR(VLOOKUP($A54,Awarded!$A$2:$J$196,10,FALSE),0) -> 114221.62 | K54: =IFERROR(VLOOKUP($A54,Expended!$A$2:$J$198,5,FALSE),0) -> 387.64 | L54: =IFERROR(VLOOKUP($A54,Expended!$A$2:$J$198,6,FALSE),0) -> 0 | M54: =IFERROR(VLOOKUP($A54,Expended!$A$2:$J$198,7,FALSE),0) -> 0 | N54: =IFERROR(VLOOKUP($A54,Expended!$A$2:$J$198,8,FALSE),0) -> 27954.54 | O54: =IFERROR(VLOOKUP($A54,Expended!$A$2:$J$198,9,FALSE),0) -> 0 | P54: =IFERROR(VLOOKUP($A54,Expended!$A$2:$J$198,10,FALSE),0) -> 19834.3 | Q54: =IFERROR(VLOOKUP($A54,Expended!$A$2:$L$198,11,FALSE),0) -> 47871.46 | R54: =VLOOKUP($A54,Prior!$A$1:$K$199,5,FALSE) -> 11849 | S54: =VLOOKUP($A54,Prior!$A$1:$K$199,6,FALSE) -> 58351 | T54: =VLOOKUP($A54,Prior!$A$1:$K$199,7,FALSE) -> 0 | U54: =VLOOKUP($A54,Prior!$A$1:$K$199,8,FALSE) -> 226709.09 | V54: =VLOOKUP($A54,Prior!$A$1:$K$199,9,FALSE) -> 0 | W54: =VLOOKUP($A54,Prior!$A$1:$K$199,10,FALSE) -> 256212.35 | X54: =VLOOKUP($A54,Prior!$A$1:$K$199,11,FALSE) -> 10139.05 | Y54: 47.01 | Z54: 59.92 | AA54: 0 | AB54: 0 | AC54: 0 | AD54: 181203.16 | AE54: 56211.11
A55: 796 | B55: GEM PREP: NAMPA, LLC | C55: 81304980 | D55: =IFERROR(VLOOKUP($A55,Awarded!$A$2:$J$196,4,FALSE),0) -> 12937.51 | E55: =IFERROR(VLOOKUP($A55,Awarded!$A$2:$J$196,5,FALSE),0) -> 0 | F55: =IFERROR(VLOOKUP($A55,Awarded!$A$2:$J$196,6,FALSE),0) -> 149104.77 | G55: =IFERROR(VLOOKUP($A55,Awarded!$A$2:$J$196,7,FALSE),0) -> 292348.21 | H55: =IFERROR(VLOOKUP($A55,Awarded!$A$2:$J$196,8,FALSE),0) -> 0 | I55: =IFERROR(VLOOKUP($A55,Awarded!$A$2:$J$196,9,FALSE),0) -> 524913.21 | J55: =IFERROR(VLOOKUP($A55,Awarded!$A$2:$J$196,10,FALSE),0) -> 131123.78 | K55: =IFERROR(VLOOKUP($A55,Expended!$A$2:$J$198,5,FALSE),0) -> 461.82 | L55: =IFERROR(VLOOKUP($A55,Expended!$A$2:$J$198,6,FALSE),0) -> 0 | M55: =IFERROR(VLOOKUP($A55,Expended!$A$2:$J$198,7,FALSE),0) -> 3049.77 | N55: =IFERROR(VLOOKUP($A55,Expended!$A$2:$J$198,8,FALSE),0) -> 233917.23 | O55: =IFERROR(VLOOKUP($A55,Expended!$A$2:$J$198,9,FALSE),0) -> 0 | P55: =IFERROR(VLOOKUP($A55,Expended!$A$2:$J$198,10,FALSE),0) -> 1853.63 | Q55: =IFERROR(VLOOKUP($A55,Expended!$A$2:$L$198,11,FALSE),0) -> 71084.17 | R55: =VLOOKUP($A55,Prior!$A$1:$K$199,5,FALSE) -> 12452.64 | S55: =VLOOKUP($A55,Prior!$A$1:$K$199,6,FALSE) -> 0 | T55: =VLOOKUP($A55,Prior!$A$1:$K$199,7,FALSE) -> 146055 | U55: =VLOOKUP($A55,Prior!$A$1:$K$199,8,FALSE) -> 58430.98 | V55: =VLOOKUP($A55,Prior!$A$1:$K$199,9,FALSE) -> 0 | W55: =VLOOKUP($A55,Prior!$A$1:$K$199,10,FALSE) -> 316704.26 | X55: =VLOOKUP($A55,Prior!$A$1:$K$199,11,FALSE) -> 12501.45 | Y55: 23.05 | Z55: 0 | AA55: 0 | AB55: 0 | AC55: 0 | AD55: 206355.32 | AE55: 47538.16
A56: 534 | B56: GEM PREP: ONLINE LLC | C56: 117035032 | D56: =IFERROR(VLOOKUP($A56,Awarded!$A$2:$J$196,4,FALSE),0) -> 11643.89 | E56: =IFERROR(VLOOKUP($A56,Awarded!$A$2:$J$196,5,FALSE),0) -> 99144.71 | F56: =IFERROR(VLOOKUP($A56,Awarded!$A$2:$J$196,6,FALSE),0) -> 0 | G56: =IFERROR(VLOOKUP($A56,Awarded!$A$2:$J$196,7,FALSE),0) -> 339968.1 | H56: =IFERROR(VLOOKUP($A56,Awarded!$A$2:$J$196,8,FALSE),0) -> 0 | I56: =IFERROR(VLOOKUP($A56,Awarded!$A$2:$J$196,9,FALSE),0) -> 610415.28 | J56: =IFERROR(VLOOKUP($A56,Awarded!$A$2:$J$196,10,FALSE),0) -> 152482.56 | K56: =IFERROR(VLOOKUP($A56,Expended!$A$2:$J$198,5,FALSE),0) -> 365.79 | L56: =IFERROR(VLOOKUP($A56,Expended!$A$2:$J$198,6,FALSE),0) -> 101.71 | M56: =IFERROR(VLOOKUP($A56,Expended!$A$2:$J$198,7,FALSE),0) -> 0 | N56: =IFERROR(VLOOKUP($A56,Expended!$A$2:$J$198,8,FALSE),0) -> 110782.38 | O56: =IFERROR(VLOOKUP($A56,Expended!$A$2:$J$198,9,FALSE),0) -> 0 | P56: =IFERROR(VLOOKUP($A56,Expended!$A$2:$J$198,10,FALSE),0) -> 14.94 | Q56: =IFERROR(VLOOKUP($A56,Expended!$A$2:$L$198,11,FALSE),0) -> 52102.28 | R56: =VLOOKUP($A56,Prior!$A$1:$K$199,5,FALSE) -> 11151.47 | S56: =VLOOKUP($A56,Prior!$A$1:$K$199,6,FALSE) -> 99043 | T56: =VLOOKUP($A56,Prior!$A$1:$K$199,7,FALSE) -> 0 | U56: =VLOOKUP($A56,Prior!$A$1:$K$199,8,FALSE) -> 229185.72 | V56: =VLOOKUP($A56,Prior!$A$1:$K$199,9,FALSE) -> 0 | W56: =VLOOKUP($A56,Prior!$A$1:$K$199,10,FALSE) -> 609445 | X56: =VLOOKUP($A56,Prior!$A$1:$K$199,11,FALSE) -> 16217.04 | Y56: 126.63 | Z56: 0 | AA56: 0 | AB56: 0 | AC56: 0 | AD56: 955.34 | AE56: 84163.24
A57: 496 | B57: GEM PREP: POCATELLO, LLC | C57: 80511840 | D57: =IFERROR(VLOOKUP($A57,Awarded!$A$2:$J$196,4,FALSE),0) -> 11598.55 | E57: =IFERROR(VLOOKUP($A57,Awarded!$A$2:$J$196,5,FALSE),0) -> 55297.73 | F57: =IFERROR(VLOOKUP($A57,Awarded!$A$2:$J$196,6,FALSE),0) -> 0 | G57: =IFERROR(VLOOKUP($A57,Awarded!$A$2:$J$196,7,FALSE),0) -> 436314.36 | H57: =IFERROR(VLOOKUP($A57,Awarded!$A$2:$J$196,8,FALSE),0) -> 0 | I57: =IFERROR(VLOOKUP($A57,Awarded!$A$2:$J$196,9,FALSE),0) -> 783406.72 | J57: =IFERROR(VLOOKUP($A57,Awarded!$A$2:$J$196,10,FALSE),0) -> 195696.3 | K57: =IFERROR(VLOOKUP($A57,Expended!$A$2:$J$198,5,FALSE),0) -> 408.51 | L57: =IFERROR(VLOOKUP($A57,Expended!$A$2:$J$198,6,FALSE),0) -> 56.73 | M57: =IFERROR(VLOOKUP($A57,Expended!$A$2:$J$198,7,FALSE),0) -> 0 | N57: =IFERROR(VLOOKUP($A57,Expended!$A$2:$J$198,8,FALSE),0) -> 190172.93 | O57: =IFERROR(VLOOKUP($A57,Expended!$A$2:$J$198,9,FALSE),0) -> 0 | P57: =IFERROR(VLOOKUP($A57,Expended!$A$2:$J$198,10,FALSE),0) -> 3435.56 | Q57: =IFERROR(VLOOKUP($A57,Expended!$A$2:$L$198,11,FALSE),0) -> 67603.67 | R57: =VLOOKUP($A57,Prior!$A$1:$K$199,5,FALSE) -> 10944.61 | S57: =VLOOKUP($A57,Prior!$A$1:$K$199,6,FALSE) -> 55241 | T57: =VLOOKUP($A57,Prior!$A$1:$K$199,7,FALSE) -> 0 | U57: =VLOOKUP($A57,Prior!$A$1:$K$199,8,FALSE) -> 246141.43 | V57: =VLOOKUP($A57,Prior!$A$1:$K$199,9,FALSE) -> 0 | W57: =VLOOKUP($A57,Prior!$A$1:$K$199,10,FALSE) -> 351760.15 | X57: =VLOOKUP($A57,Prior!$A$1:$K$199,11,FALSE) -> 9048.07 | Y57: 245.43 | Z57: 0 | AA57: 0 | AB57: 0 | AC57: 0 | AD57: 428211.01 | AE57: 119044.56
A58: 282 | B58: GENESEE JOINT DISTRICT | C58: 100185818 | D58: =IFERROR(VLOOKUP($A58,Awarded!$A$2:$J$196,4,FALSE),0) -> 11609.64 | E58: =IFERROR(VLOOKUP($A58,Awarded!$A$2:$J$196,5,FALSE),0) -> 36538.48 | F58: =IFERROR(VLOOKUP($A58,Awarded!$A$2:$J$196,6,FALSE),0) -> 32848.89 | G58: =IFERROR(VLOOKUP($A58,Awarded!$A$2:$J$196,7,FALSE),0) -> 129026.62 | H58: =IFERROR(VLOOKUP($A58,Awarded!$A$2:$J$196,8,FALSE),0) -> 61029 | I58: =IFERROR(VLOOKUP($A58,Awarded!$A$2:$J$196,9,FALSE),0) -> 231667.43 | J58: =IFERROR(VLOOKUP($A58,Awarded!$A$2:$J$196,10,FALSE),0) -> 57871.09 | K58: =IFERROR(VLOOKUP($A58,Expended!$A$2:$J$198,5,FALSE),0) -> 0 | L58: =IFERROR(VLOOKUP($A58,Expended!$A$2:$J$198,6,FALSE),0) -> 0 | M58: =IFERROR(VLOOKUP($A58,Expended!$A$2:$J$198,7,FALSE),0) -> 32848.89 | N58: =IFERROR(VLOOKUP($A58,Expended!$A$2:$J$198,8,FALSE),0) -> 3653.81 | O58: =IFERROR(VLOOKUP($A58,Expended!$A$2:$J$198,9,FALSE),0) -> 60278.65 | P58: =IFERROR(VLOOKUP($A58,Expended!$A$2:$J$198,10,FALSE),0) -> 0 | Q58: =IFERROR(VLOOKUP($A58,Expended!$A$2:$L$198,11,FALSE),0) -> 0 | R58: =VLOOKUP($A58,Prior!$A$1:$K$199,5,FALSE) -> 11200 | S58: =VLOOKUP($A58,Prior!$A$1:$K$199,6,FALSE) -> 36501 | T58: =VLOOKUP($A58,Prior!$A$1:$K$199,7,FALSE) -> 0 | U58: =VLOOKUP($A58,Prior!$A$1:$K$199,8,FALSE) -> 125372.81 | V58: =VLOOKUP($A58,Prior!$A$1:$K$199,9,FALSE) -> 0 | W58: =VLOOKUP($A58,Prior!$A$1:$K$199,10,FALSE) -> 0 | X58: =VLOOKUP($A58,Prior!$A$1:$K$199,11,FALSE) -> 0 | Y58: 409.64 | Z58: 37.48 | AA58: 0 | AB58: 0 | AC58: 750.35 | AD58: 231667.43 | AE58: 57871.09
A59: 192 | B59: GLENS FERRY JOINT DISTRICT | C59: 605581743 | D59: =IFERROR(VLOOKUP($A59,Awarded!$A$2:$J$196,4,FALSE),0) -> 2918.7 | E59: =IFERROR(VLOOKUP($A59,Awarded!$A$2:$J$196,5,FALSE),0) -> 96142.63 | F59: =IFERROR(VLOOKUP($A59,Awarded!$A$2:$J$196,6,FALSE),0) -> 0 | G59: =IFERROR(VLOOKUP($A59,Awarded!$A$2:$J$196,7,FALSE),0) -> 523162.31 | H59: =IFERROR(VLOOKUP($A59,Awarded!$A$2:$J$196,8,FALSE),0) -> 0 | I59: =IFERROR(VLOOKUP($A59,Awarded!$A$2:$J$196,9,FALSE),0) -> 939342.4 | J59: =IFERROR(VLOOKUP($A59,Awarded!$A$2:$J$196,10,FALSE),0) -> 234648.5 | K59: =IFERROR(VLOOKUP($A59,Expended!$A$2:$J$198,5,FALSE),0) -> 0 | L59: =IFERROR(VLOOKUP($A59,Expended!$A$2:$J$198,6,FALSE),0) -> 0 | M59: =IFERROR(VLOOKUP($A59,Expended!$A$2:$J$198,7,FALSE),0) -> 0 | N59: =IFERROR(VLOOKUP($A59,Expended!$A$2:$J$198,8,FALSE),0) -> 102775.85 | O59: =IFERROR(VLOOKUP($A59,Expended!$A$2:$J$198,9,FALSE),0) -> 0 | P59: =IFERROR(VLOOKUP($A59,Expended!$A$2:$J$198,10,FALSE),0) -> 183243.49 | Q59: =IFERROR(VLOOKUP($A59,Expended!$A$2:$L$198,11,FALSE),0) -> 92690.58 | R59: =VLOOKUP($A59,Prior!$A$1:$K$199,5,FALSE) -> 0 | S59: =VLOOKUP($A59,Prior!$A$1:$K$199,6,FALSE) -> 96044 | T59: =VLOOKUP($A59,Prior!$A$1:$K$199,7,FALSE) -> 0 | U59: =VLOOKUP($A59,Prior!$A$1:$K$199,8,FALSE) -> 274333.86 | V59: =VLOOKUP($A59,Prior!$A$1:$K$199,9,FALSE) -> 0 | W59: =VLOOKUP($A59,Prior!$A$1:$K$199,10,FALSE) -> 216105.5 | X59: =VLOOKUP($A59,Prior!$A$1:$K$199,11,FALSE) -> 132320.58 | Y59: 2918.7 | Z59: 98.63 | AA59: 0 | AB59: 146052.6 | AC59: 0 | AD59: 539993.41 | AE59: 9637.34
A60: 231 | B60: GOODING JOINT DISTRICT | C60: 29720992 | D60: =IFERROR(VLOOKUP($A60,Awarded!$A$2:$J$196,4,FALSE),0) -> 11511.04 | E60: =IFERROR(VLOOKUP($A60,Awarded!$A$2:$J$196,5,FALSE),0) -> 234046.1 | F60: =IFERROR(VLOOKUP($A60,Awarded!$A$2:$J$196,6,FALSE),0) -> 0 | G60: =IFERROR(VLOOKUP($A60,Awarded!$A$2:$J$196,7,FALSE),0) -> 921900.33 | H60: =IFERROR(VLOOKUP($A60,Awarded!$A$2:$J$196,8,FALSE),0) -> 0 | I60: =IFERROR(VLOOKUP($A60,Awarded!$A$2:$J$196,9,FALSE),0) -> 1655277.94 | J60: =IFERROR(VLOOKUP($A60,Awarded!$A$2:$J$196,10,FALSE),0) -> 413490.66 | K60: =IFERROR(VLOOKUP($A60,Expended!$A$2:$J$198,5,FALSE),0) -> 0 | L60: =IFERROR(VLOOKUP($A60,Expended!$A$2:$J$198,6,FALSE),0) -> 0 | M60: =IFERROR(VLOOKUP($A60,Expended!$A$2:$J$198,7,FALSE),0) -> 0 | N60: =IFERROR(VLOOKUP($A60,Expended!$A$2:$J$198,8,FALSE),0) -> 51210.64 | O60: =IFERROR(VLOOKUP($A60,Expended!$A$2:$J$198,9,FALSE),0) -> 0 | P60: =IFERROR(VLOOKUP($A60,Expended!$A$2:$J$198,10,FALSE),0) -> 462640.82 | Q60: =IFERROR(VLOOKUP($A60,Expended!$A$2:$L$198,11,FALSE),0) -> 159100.69 | R60: =VLOOKUP($A60,Prior!$A$1:$K$199,5,FALSE) -> 11511.04 | S60: =VLOOKUP($A60,Prior!$A$1:$K$199,6,FALSE) -> 233806 | T60: =VLOOKUP($A60,Prior!$A$1:$K$199,7,FALSE) -> 0 | U60: =VLOOKUP($A60,Prior!$A$1:$K$199,8,FALSE) -> 811617.49 | V60: =VLOOKUP($A60,Prior!$A$1:$K$199,9,FALSE) -> 0 | W60: =VLOOKUP($A60,Prior!$A$1:$K$199,10,FALSE) -> 300571.72 | X60: =VLOOKUP($A60,Prior!$A$1:$K$199,11,FALSE) -> 51639.23 | Y60: 0 | Z60: 240.1 | AA60: 0 | AB60: 59072.2 | AC60: 0 | AD60: 892065.4 | AE60: 202750.74
A61: 148 | B61: GRACE JOINT DISTRICT | C61: 29651205 | D61: =IFERROR(VLOOKUP($A61,Awarded!$A$2:$J$196,4,FALSE),0) -> 16992.06 | E61: =IFERROR(VLOOKUP($A61,Awarded!$A$2:$J$196,5,FALSE),0) -> 52304.66 | F61: =IFERROR(VLOOKUP($A61,Awarded!$A$2:$J$196,6,FALSE),0) -> 60597.45 | G61: =IFERROR(VLOOKUP($A61,Awarded!$A$2:$J$196,7,FALSE),0) -> 209034.2 | H61: =IFERROR(VLOOKUP($A61,Awarded!$A$2:$J$196,8,FALSE),0) -> 0 | I61: =IFERROR(VLOOKUP($A61,Awarded!$A$2:$J$196,9,FALSE),0) -> 375321.88 | J61: =IFERROR(VLOOKUP($A61,Awarded!$A$2:$J$196,10,FALSE),0) -> 93756.16 | K61: =IFERROR(VLOOKUP($A61,Expended!$A$2:$J$198,5,FALSE),0) -> 16992.06 | L61: =IFERROR(VLOOKUP($A61,Expended!$A$2:$J$198,6,FALSE),0) -> 53.66 | M61: =IFERROR(VLOOKUP($A61,Expended!$A$2:$J$198,7,FALSE),0) -> 0 | N61: =IFERROR(VLOOKUP($A61,Expended!$A$2:$J$198,8,FALSE),0) -> 0 | O61: =IFERROR(VLOOKUP($A61,Expended!$A$2:$J$198,9,FALSE),0) -> 0 | P61: =IFERROR(VLOOKUP($A61,Expended!$A$2:$J$198,10,FALSE),0) -> 25129.21 | Q61: =IFERROR(VLOOKUP($A61,Expended!$A$2:$L$198,11,FALSE),0) -> 11338.21 | R61: =VLOOKUP($A61,Prior!$A$1:$K$199,5,FALSE) -> 0 | S61: =VLOOKUP($A61,Prior!$A$1:$K$199,6,FALSE) -> 52251 | T61: =VLOOKUP($A61,Prior!$A$1:$K$199,7,FALSE) -> 59358 | U61: =VLOOKUP($A61,Prior!$A$1:$K$199,8,FALSE) -> 208565 | V61: =VLOOKUP($A61,Prior!$A$1:$K$199,9,FALSE) -> 0 | W61: =VLOOKUP($A61,Prior!$A$1:$K$199,10,FALSE) -> 0 | X61: =VLOOKUP($A61,Prior!$A$1:$K$199,11,FALSE) -> 0 | Y61: 0 | Z61: 0 | AA61: 1239.45 | AB61: 469.2 | AC61: 0 | AD61: 350192.67 | AE61: 82417.95
A62: 233 | B62: HAGERMAN JOINT DISTRICT | C62: 193089125 | D62: =IFERROR(VLOOKUP($A62,Awarded!$A$2:$J$196,4,FALSE),0) -> 11367 | E62: =IFERROR(VLOOKUP($A62,Awarded!$A$2:$J$196,5,FALSE),0) -> 61579.17 | F62: =IFERROR(VLOOKUP($A62,Awarded!$A$2:$J$196,6,FALSE),0) -> 0 | G62: =IFERROR(VLOOKUP($A62,Awarded!$A$2:$J$196,7,FALSE),0) -> 276673.03 | H62: =IFERROR(VLOOKUP($A62,Awarded!$A$2:$J$196,8,FALSE),0) -> 0 | I62: =IFERROR(VLOOKUP($A62,Awarded!$A$2:$J$196,9,FALSE),0) -> 496769.6 | J62: =IFERROR(VLOOKUP($A62,Awarded!$A$2:$J$196,10,FALSE),0) -> 124093.21 | K62: =IFERROR(VLOOKUP($A62,Expended!$A$2:$J$198,5,FALSE),0) -> 318 | L62: =IFERROR(VLOOKUP($A62,Expended!$A$2:$J$198,6,FALSE),0) -> 63.17 | M62: =IFERROR(VLOOKUP($A62,Expended!$A$2:$J$198,7,FALSE),0) -> 0 | N62: =IFERROR(VLOOKUP($A62,Expended!$A$2:$J$198,8,FALSE),0) -> 52801.57 | O62: =IFERROR(VLOOKUP($A62,Expended!$A$2:$J$198,9,FALSE),0) -> 0 | P62: =IFERROR(VLOOKUP($A62,Expended!$A$2:$J$198,10,FALSE),0) -> 45043.32 | Q62: =IFERROR(VLOOKUP($A62,Expended!$A$2:$L$198,11,FALSE),0) -> 26713.23 | R62: =VLOOKUP($A62,Prior!$A$1:$K$199,5,FALSE) -> 11049 | S62: =VLOOKUP($A62,Prior!$A$1:$K$199,6,FALSE) -> 61516 | T62: =VLOOKUP($A62,Prior!$A$1:$K$199,7,FALSE) -> 0 | U62: =VLOOKUP($A62,Prior!$A$1:$K$199,8,FALSE) -> 223871.46 | V62: =VLOOKUP($A62,Prior!$A$1:$K$199,9,FALSE) -> 0 | W62: =VLOOKUP($A62,Prior!$A$1:$K$199,10,FALSE) -> 36013 | X62: =VLOOKUP($A62,Prior!$A$1:$K$199,11,FALSE) -> 79703.41 | Y62: 0 | Z62: 0 | AA62: 0 | AB62: 0 | AC62: 0 | AD62: 415713.28 | AE62: 17676.57
A63: 415 | B63: HANSEN DISTRICT | C63: 100015015 | D63: =IFERROR(VLOOKUP($A63,Awarded!$A$2:$J$196,4,FALSE),0) -> 11955.98 | E63: =IFERROR(VLOOKUP($A63,Awarded!$A$2:$J$196,5,FALSE),0) -> 81002.1 | F63: =IFERROR(VLOOKUP($A63,Awarded!$A$2:$J$196,6,FALSE),0) -> 0 | G63: =IFERROR(VLOOKUP($A63,Awarded!$A$2:$J$196,7,FALSE),0) -> 305356.41 | H63: =IFERROR(VLOOKUP($A63,Awarded!$A$2:$J$196,8,FALSE),0) -> 0 | I63: =IFERROR(VLOOKUP($A63,Awarded!$A$2:$J$196,9,FALSE),0) -> 548270.27 | J63: =IFERROR(VLOOKUP($A63,Awarded!$A$2:$J$196,10,FALSE),0) -> 136958.9 | K63: =IFERROR(VLOOKUP($A63,Expended!$A$2:$J$198,5,FALSE),0) -> 9265.98 | L63: =IFERROR(VLOOKUP($A63,Expended!$A$2:$J$198,6,FALSE),0) -> 83.1 | M63: =IFERROR(VLOOKUP($A63,Expended!$A$2:$J$198,7,FALSE),0) -> 0 | N63: =IFERROR(VLOOKUP($A63,Expended!$A$2:$J$198,8,FALSE),0) -> 170795.45 | O63: =IFERROR(VLOOKUP($A63,Expended!$A$2:$J$198,9,FALSE),0) -> 0 | P63: =IFERROR(VLOOKUP($A63,Expended!$A$2:$J$198,10,FALSE),0) -> 86026.36 | Q63: =IFERROR(VLOOKUP($A63,Expended!$A$2:$L$198,11,FALSE),0) -> 56159.37 | R63: =VLOOKUP($A63,Prior!$A$1:$K$199,5,FALSE) -> 2690 | S63: =VLOOKUP($A63,Prior!$A$1:$K$199,6,FALSE) -> 80919 | T63: =VLOOKUP($A63,Prior!$A$1:$K$199,7,FALSE) -> 0 | U63: =VLOOKUP($A63,Prior!$A$1:$K$199,8,FALSE) -> 40245.15 | V63: =VLOOKUP($A63,Prior!$A$1:$K$199,9,FALSE) -> 0 | W63: =VLOOKUP($A63,Prior!$A$1:$K$199,10,FALSE) -> 557.78 | X63: =VLOOKUP($A63,Prior!$A$1:$K$199,11,FALSE) -> 80799.53 | Y63: 0 | Z63: 0 | AA63: 0 | AB63: 94315.81 | AC63: 0 | AD63: 461686.13 | AE63: 0
A64: 508 | B64: HAYDEN CANYON CHARTER SCHOOL, INC. | C64: 80998762 | D64: =IFERROR(VLOOKUP($A64,Awarded!$A$2:$J$196,4,FALSE),0) -> 11545.18 | E64: =IFERROR(VLOOKUP($A64,Awarded!$A$2:$J$196,5,FALSE),0) -> 16069.49 | F64: =IFERROR(VLOOKUP($A64,Awarded!$A$2:$J$196,6,FALSE),0) -> 24469.5 | G64: =IFERROR(VLOOKUP($A64,Awarded!$A$2:$J$196,7,FALSE),0) -> 91541.48 | H64: =IFERROR(VLOOKUP($A64,Awarded!$A$2:$J$196,8,FALSE),0) -> 144732 | I64: =IFERROR(VLOOKUP($A64,Awarded!$A$2:$J$196,9,FALSE),0) -> 164363.44 | J64: =IFERROR(VLOOKUP($A64,Awarded!$A$2:$J$196,10,FALSE),0) -> 41057.96 | K64: =IFERROR(VLOOKUP($A64,Expended!$A$2:$J$198,5,FALSE),0) -> 189.18 | L64: =IFERROR(VLOOKUP($A64,Expended!$A$2:$J$198,6,FALSE),0) -> 16.49 | M64: =IFERROR(VLOOKUP($A64,Expended!$A$2:$J$198,7,FALSE),0) -> 0 | N64: =IFERROR(VLOOKUP($A64,Expended!$A$2:$J$198,8,FALSE),0) -> 205.48 | O64: =IFERROR(VLOOKUP($A64,Expended!$A$2:$J$198,9,FALSE),0) -> 0 | P64: =IFERROR(VLOOKUP($A64,Expended!$A$2:$J$198,10,FALSE),0) -> 0 | Q64: =IFERROR(VLOOKUP($A64,Expended!$A$2:$L$198,11,FALSE),0) -> 0 | R64: =VLOOKUP($A64,Prior!$A$1:$K$199,5,FALSE) -> 11356 | S64: =VLOOKUP($A64,Prior!$A$1:$K$199,6,FALSE) -> 16053 | T64: =VLOOKUP($A64,Prior!$A$1:$K$199,7,FALSE) -> 23969 | U64: =VLOOKUP($A64,Prior!$A$1:$K$199,8,FALSE) -> 91336 | V64: =VLOOKUP($A64,Prior!$A$1:$K$199,9,FALSE) -> 0 | W64: =VLOOKUP($A64,Prior!$A$1:$K$199,10,FALSE) -> 0 | X64: =VLOOKUP($A64,Prior!$A$1:$K$199,11,FALSE) -> 0 | Y64: 0 | Z64: 0 | AA64: 500.5 | AB64: 0 | AC64: 144732 | AD64: 164363.44 | AE64: 41057.96
A65: 479 | B65: HERITAGE ACADEMY, INC. | C65: 69071435 | D65: =IFERROR(VLOOKUP($A65,Awarded!$A$2:$J$196,4,FALSE),0) -> 9438.48 | E65: =IFERROR(VLOOKUP($A65,Awarded!$A$2:$J$196,5,FALSE),0) -> 45294.47 | F65: =IFERROR(VLOOKUP($A65,Awarded!$A$2:$J$196,6,FALSE),0) -> 0 | G65: =IFERROR(VLOOKUP($A65,Awarded!$A$2:$J$196,7,FALSE),0) -> 168856.02 | H65: =IFERROR(VLOOKUP($A65,Awarded!$A$2:$J$196,8,FALSE),0) -> 0 | I65: =IFERROR(VLOOKUP($A65,Awarded!$A$2:$J$196,9,FALSE),0) -> 303182.29 | J65: =IFERROR(VLOOKUP($A65,Awarded!$A$2:$J$196,10,FALSE),0) -> 75735.59 | K65: =IFERROR(VLOOKUP($A65,Expended!$A$2:$J$198,5,FALSE),0) -> 330.48 | L65: =IFERROR(VLOOKUP($A65,Expended!$A$2:$J$198,6,FALSE),0) -> 46.47 | M65: =IFERROR(VLOOKUP($A65,Expended!$A$2:$J$198,7,FALSE),0) -> 0 | N65: =IFERROR(VLOOKUP($A65,Expended!$A$2:$J$198,8,FALSE),0) -> 927.31 | O65: =IFERROR(VLOOKUP($A65,Expended!$A$2:$J$198,9,FALSE),0) -> 0 | P65: =IFERROR(VLOOKUP($A65,Expended!$A$2:$J$198,10,FALSE),0) -> 89161.25 | Q65: =IFERROR(VLOOKUP($A65,Expended!$A$2:$L$198,11,FALSE),0) -> 32909.64 | R65: =VLOOKUP($A65,Prior!$A$1:$K$199,5,FALSE) -> 9108 | S65: =VLOOKUP($A65,Prior!$A$1:$K$199,6,FALSE) -> 45248 | T65: =VLOOKUP($A65,Prior!$A$1:$K$199,7,FALSE) -> 0 | U65: =VLOOKUP($A65,Prior!$A$1:$K$199,8,FALSE) -> 167928.71 | V65: =VLOOKUP($A65,Prior!$A$1:$K$199,9,FALSE) -> 0 | W65: =VLOOKUP($A65,Prior!$A$1:$K$199,10,FALSE) -> 185209.92 | X65: =VLOOKUP($A65,Prior!$A$1:$K$199,11,FALSE) -> 42825.95 | Y65: 0 | Z65: 0 | AA65: 0 | AB65: 0 | AC65: 0 | AD65: 28811.12 | AE65: 0
A66: 481 | B66: HERITAGE COMMUNITY CHARTER SCHOOL, INC. | C66: 58025766 | D66: =IFERROR(VLOOKUP($A66,Awarded!$A$2:$J$196,4,FALSE),0) -> 13432.2 | E66: =IFERROR(VLOOKUP($A66,Awarded!$A$2:$J$196,5,FALSE),0) -> 101831.46 | F66: =IFERROR(VLOOKUP($A66,Awarded!$A$2:$J$196,6,FALSE),0) -> 0 | G66: =IFERROR(VLOOKUP($A66,Awarded!$A$2:$J$196,7,FALSE),0) -> 406964.49 | H66: =IFERROR(VLOOKUP($A66,Awarded!$A$2:$J$196,8,FALSE),0) -> 0 | I66: =IFERROR(VLOOKUP($A66,Awarded!$A$2:$J$196,9,FALSE),0) -> 730706.66 | J66: =IFERROR(VLOOKUP($A66,Awarded!$A$2:$J$196,10,FALSE),0) -> 182531.51 | K66: =IFERROR(VLOOKUP($A66,Expended!$A$2:$J$198,5,FALSE),0) -> 10485.2 | L66: =IFERROR(VLOOKUP($A66,Expended!$A$2:$J$198,6,FALSE),0) -> 104.46 | M66: =IFERROR(VLOOKUP($A66,Expended!$A$2:$J$198,7,FALSE),0) -> 0 | N66: =IFERROR(VLOOKUP($A66,Expended!$A$2:$J$198,8,FALSE),0) -> 16863.89 | O66: =IFERROR(VLOOKUP($A66,Expended!$A$2:$J$198,9,FALSE),0) -> 0 | P66: =IFERROR(VLOOKUP($A66,Expended!$A$2:$J$198,10,FALSE),0) -> 190147.41 | Q66: =IFERROR(VLOOKUP($A66,Expended!$A$2:$L$198,11,FALSE),0) -> 182531.51 | R66: =VLOOKUP($A66,Prior!$A$1:$K$199,5,FALSE) -> 2947 | S66: =VLOOKUP($A66,Prior!$A$1:$K$199,6,FALSE) -> 101727 | T66: =VLOOKUP($A66,Prior!$A$1:$K$199,7,FALSE) -> 0 | U66: =VLOOKUP($A66,Prior!$A$1:$K$199,8,FALSE) -> 322187.11 | V66: =VLOOKUP($A66,Prior!$A$1:$K$199,9,FALSE) -> 0 | W66: =VLOOKUP($A66,Prior!$A$1:$K$199,10,FALSE) -> 0 | X66: =VLOOKUP($A66,Prior!$A$1:$K$199,11,FALSE) -> 0 | Y66: 0 | Z66: 0 | AA66: 0 | AB66: 67913.49 | AC66: 0 | AD66: 540559.25 | AE66: 2.910383046e-11
A67: 305 | B67: HIGHLAND JOINT DISTRICT | C67: 193083409 | D67: =IFERROR(VLOOKUP($A67,Awarded!$A$2:$J$196,4,FALSE),0) -> 2588.84 | E67: =IFERROR(VLOOKUP($A67,Awarded!$A$2:$J$196,5,FALSE),0) -> 28647.39 | F67: =IFERROR(VLOOKUP($A67,Awarded!$A$2:$J$196,6,FALSE),0) -> 14693.54 | G67: =IFERROR(VLOOKUP($A67,Awarded!$A$2:$J$196,7,FALSE),0) -> 104405.35 | H67: =IFERROR(VLOOKUP($A67,Awarded!$A$2:$J$196,8,FALSE),0) -> 116008 | I67: =IFERROR(VLOOKUP($A67,Awarded!$A$2:$J$196,9,FALSE),0) -> 187460.21 | J67: =IFERROR(VLOOKUP($A67,Awarded!$A$2:$J$196,10,FALSE),0) -> 46828.06 | K67: =IFERROR(VLOOKUP($A67,Expended!$A$2:$J$198,5,FALSE),0) -> 1824.1 | L67: =IFERROR(VLOOKUP($A67,Expended!$A$2:$J$198,6,FALSE),0) -> 29.39 | M67: =IFERROR(VLOOKUP($A67,Expended!$A$2:$J$198,7,FALSE),0) -> 14693.54 | N67: =IFERROR(VLOOKUP($A67,Expended!$A$2:$J$198,8,FALSE),0) -> 48553.63 | O67: =IFERROR(VLOOKUP($A67,Expended!$A$2:$J$198,9,FALSE),0) -> 0 | P67: =IFERROR(VLOOKUP($A67,Expended!$A$2:$J$198,10,FALSE),0) -> 112905.75 | Q67: =IFERROR(VLOOKUP($A67,Expended!$A$2:$L$198,11,FALSE),0) -> 9733.06 | R67: =VLOOKUP($A67,Prior!$A$1:$K$199,5,FALSE) -> 764.74 | S67: =VLOOKUP($A67,Prior!$A$1:$K$199,6,FALSE) -> 28618 | T67: =VLOOKUP($A67,Prior!$A$1:$K$199,7,FALSE) -> 0 | U67: =VLOOKUP($A67,Prior!$A$1:$K$199,8,FALSE) -> 55851.72 | V67: =VLOOKUP($A67,Prior!$A$1:$K$199,9,FALSE) -> 0 | W67: =VLOOKUP($A67,Prior!$A$1:$K$199,10,FALSE) -> 0 | X67: =VLOOKUP($A67,Prior!$A$1:$K$199,11,FALSE) -> 0 | Y67: =D67-K67-R67 -> 0 | Z67: =E67-L67-S67 -> 0 | AA67: =F67-M67-T67 -> 0 | AB67: =G67-N67-U67 -> 0 | AC67: =H67-O67-V67 -> 116008 | AD67: =I67-P67-W67 -> 74554.46 | AE67: =J67-Q67-X67 -> 37095
A68: 370 | B68: HOMEDALE JOINT DISTRICT | C68: 100186048 | D68: =IFERROR(VLOOKUP($A68,Awarded!$A$2:$J$196,4,FALSE),0) -> 21792.41 | E68: =IFERROR(VLOOKUP($A68,Awarded!$A$2:$J$196,5,FALSE),0) -> 242004.26 | F68: =IFERROR(VLOOKUP($A68,Awarded!$A$2:$J$196,6,FALSE),0) -> 0 | G68: =IFERROR(VLOOKUP($A68,Awarded!$A$2:$J$196,7,FALSE),0) -> 908868.07 | H68: =IFERROR(VLOOKUP($A68,Awarded!$A$2:$J$196,8,FALSE),0) -> 0 | I68: =IFERROR(VLOOKUP($A68,Awarded!$A$2:$J$196,9,FALSE),0) -> 1631880.83 | J68: =IFERROR(VLOOKUP($A68,Awarded!$A$2:$J$196,10,FALSE),0) -> 407645.53 | K68: =IFERROR(VLOOKUP($A68,Expended!$A$2:$J$198,5,FALSE),0) -> 781.41 | L68: =IFERROR(VLOOKUP($A68,Expended!$A$2:$J$198,6,FALSE),0) -> 248.26 | M68: =IFERROR(VLOOKUP($A68,Expended!$A$2:$J$198,7,FALSE),0) -> 0 | N68: =IFERROR(VLOOKUP($A68,Expended!$A$2:$J$198,8,FALSE),0) -> 73980.02 | O68: =IFERROR(VLOOKUP($A68,Expended!$A$2:$J$198,9,FALSE),0) -> 0 | P68: =IFERROR(VLOOKUP($A68,Expended!$A$2:$J$198,10,FALSE),0) -> 55244.85 | Q68: =IFERROR(VLOOKUP($A68,Expended!$A$2:$L$198,11,FALSE),0) -> 268770 | R68: =VLOOKUP($A68,Prior!$A$1:$K$199,5,FALSE) -> 21011 | S68: =VLOOKUP($A68,Prior!$A$1:$K$199,6,FALSE) -> 241756 | T68: =VLOOKUP($A68,Prior!$A$1:$K$199,7,FALSE) -> 0 | U68: =VLOOKUP($A68,Prior!$A$1:$K$199,8,FALSE) -> 0 | V68: =VLOOKUP($A68,Prior!$A$1:$K$199,9,FALSE) -> 0 | W68: =VLOOKUP($A68,Prior!$A$1:$K$199,10,FALSE) -> 94980.02 | X68: =VLOOKUP($A68,Prior!$A$1:$K$199,11,FALSE) -> 78765.37 | Y68: 0 | Z68: 0 | AA68: 0 | AB68: 834888.05 | AC68: 0 | AD68: 1481655.96 | AE68: 60110.16
A69: 73 | B69: HORSESHOE BEND SCHOOL DISTRICT | C69: 949307193 | D69: =IFERROR(VLOOKUP($A69,Awarded!$A$2:$J$196,4,FALSE),0) -> 2718.18 | E69: =IFERROR(VLOOKUP($A69,Awarded!$A$2:$J$196,5,FALSE),0) -> 41712.79 | F69: =IFERROR(VLOOKUP($A69,Awarded!$A$2:$J$196,6,FALSE),0) -> 0 | G69: =IFERROR(VLOOKUP($A69,Awarded!$A$2:$J$196,7,FALSE),0) -> 166705.19 | H69: =IFERROR(VLOOKUP($A69,Awarded!$A$2:$J$196,8,FALSE),0) -> 0 | I69: =IFERROR(VLOOKUP($A69,Awarded!$A$2:$J$196,9,FALSE),0) -> 299319.82 | J69: =IFERROR(VLOOKUP($A69,Awarded!$A$2:$J$196,10,FALSE),0) -> 74770.24 | K69: =IFERROR(VLOOKUP($A69,Expended!$A$2:$J$198,5,FALSE),0) -> 189.18 | L69: =IFERROR(VLOOKUP($A69,Expended!$A$2:$J$198,6,FALSE),0) -> 42.79 | M69: =IFERROR(VLOOKUP($A69,Expended!$A$2:$J$198,7,FALSE),0) -> 0 | N69: =IFERROR(VLOOKUP($A69,Expended!$A$2:$J$198,8,FALSE),0) -> 374.19 | O69: =IFERROR(VLOOKUP($A69,Expended!$A$2:$J$198,9,FALSE),0) -> 0 | P69: =IFERROR(VLOOKUP($A69,Expended!$A$2:$J$198,10,FALSE),0) -> 193281.05 | Q69: =IFERROR(VLOOKUP($A69,Expended!$A$2:$L$198,11,FALSE),0) -> 48471.09 | R69: =VLOOKUP($A69,Prior!$A$1:$K$199,5,FALSE) -> 2529 | S69: =VLOOKUP($A69,Prior!$A$1:$K$199,6,FALSE) -> 41670 | T69: =VLOOKUP($A69,Prior!$A$1:$K$199,7,FALSE) -> 0 | U69: =VLOOKUP($A69,Prior!$A$1:$K$199,8,FALSE) -> 166331 | V69: =VLOOKUP($A69,Prior!$A$1:$K$199,9,FALSE) -> 0 | W69: =VLOOKUP($A69,Prior!$A$1:$K$199,10,FALSE) -> 67107.73 | X69: =VLOOKUP($A69,Prior!$A$1:$K$199,11,FALSE) -> 26299.15 | Y69: 0 | Z69: 0 | AA69: 0 | AB69: 0 | AC69: 0 | AD69: 38931.04 | AE69: 0
A70: 795 | B70: IDAHO ARTS CHARTER SCHOOL, INC. | C70: 191501993 | D70: =IFERROR(VLOOKUP($A70,Awarded!$A$2:$J$196,4,FALSE),0) -> 4595.74 | E70: =IFERROR(VLOOKUP($A70,Awarded!$A$2:$J$196,5,FALSE),0) -> 0 | F70: =IFERROR(VLOOKUP($A70,Awarded!$A$2:$J$196,6,FALSE),0) -> 404118.79 | G70: =IFERROR(VLOOKUP($A70,Awarded!$A$2:$J$196,7,FALSE),0) -> 569979.39 | H70: =IFERROR(VLOOKUP($A70,Awarded!$A$2:$J$196,8,FALSE),0) -> 0 | I70: =IFERROR(VLOOKUP($A70,Awarded!$A$2:$J$196,9,FALSE),0) -> 1023401.8 | J70: =IFERROR(VLOOKUP($A70,Awarded!$A$2:$J$196,10,FALSE),0) -> 255647.15 | K70: =IFERROR(VLOOKUP($A70,Expended!$A$2:$J$198,5,FALSE),0) -> 40 | L70: =IFERROR(VLOOKUP($A70,Expended!$A$2:$J$198,6,FALSE),0) -> 0 | M70: =IFERROR(VLOOKUP($A70,Expended!$A$2:$J$198,7,FALSE),0) -> 0 | N70: =IFERROR(VLOOKUP($A70,Expended!$A$2:$J$198,8,FALSE),0) -> 3448.35 | O70: =IFERROR(VLOOKUP($A70,Expended!$A$2:$J$198,9,FALSE),0) -> 0 | P70: =IFERROR(VLOOKUP($A70,Expended!$A$2:$J$198,10,FALSE),0) -> 791487.31 | Q70: =IFERROR(VLOOKUP($A70,Expended!$A$2:$L$198,11,FALSE),0) -> 255647.15 | R70: =VLOOKUP($A70,Prior!$A$1:$K$199,5,FALSE) -> 4520 | S70: =VLOOKUP($A70,Prior!$A$1:$K$199,6,FALSE) -> 0 | T70: =VLOOKUP($A70,Prior!$A$1:$K$199,7,FALSE) -> 395853 | U70: =VLOOKUP($A70,Prior!$A$1:$K$199,8,FALSE) -> 565251.65 | V70: =VLOOKUP($A70,Prior!$A$1:$K$199,9,FALSE) -> 0 | W70: =VLOOKUP($A70,Prior!$A$1:$K$199,10,FALSE) -> 0 | X70: =VLOOKUP($A70,Prior!$A$1:$K$199,11,FALSE) -> 0 | Y70: 35.74 | Z70: 0 | AA70: 8265.79 | AB70: 1279.39 | AC70: 0 | AD70: 231914.49 | AE70: 2.910383046e-11
A71: 596 | B71: IDAHO BUREAU OF EDUCATIONAL SERVICES FOR THE DEAF AND THE BLIND | C71: 78569416 | D71: =IFERROR(VLOOKUP($A71,Awarded!$A$2:$J$196,4,FALSE),0) -> 9076.78 | E71: =IFERROR(VLOOKUP($A71,Awarded!$A$2:$J$196,5,FALSE),0) -> 0 | F71: =IFERROR(VLOOKUP($A71,Awarded!$A$2:$J$196,6,FALSE),0) -> 0 | G71: =IFERROR(VLOOKUP($A71,Awarded!$A$2:$J$196,7,FALSE),0) -> 0 | H71: =IFERROR(VLOOKUP($A71,Awarded!$A$2:$J$196,8,FALSE),0) -> 590000 | I71: =IFERROR(VLOOKUP($A71,Awarded!$A$2:$J$196,9,FALSE),0) -> 0 | J71: =IFERROR(VLOOKUP($A71,Awarded!$A$2:$J$196,10,FALSE),0) -> 0 | K71: =IFERROR(VLOOKUP($A71,Expended!$A$2:$J$198,5,FALSE),0) -> 2681.28 | L71: =IFERROR(VLOOKUP($A71,Expended!$A$2:$J$198,6,FALSE),0) -> 0 | M71: =IFERROR(VLOOKUP($A71,Expended!$A$2:$J$198,7,FALSE),0) -> 0 | N71: =IFERROR(VLOOKUP($A71,Expended!$A$2:$J$198,8,FALSE),0) -> 0 | O71: =IFERROR(VLOOKUP($A71,Expended!$A$2:$J$198,9,FALSE),0) -> 11872 | P71: =IFERROR(VLOOKUP($A71,Expended!$A$2:$J$198,10,FALSE),0) -> 0 | Q71: =IFERROR(VLOOKUP($A71,Expended!$A$2:$L$198,11,FALSE),0) -> 0 | R71: =VLOOKUP($A71,Prior!$A$1:$K$199,5,FALSE) -> 6395.5 | S71: =VLOOKUP($A71,Prior!$A$1:$K$199,6,FALSE) -> 0 | T71: =VLOOKUP($A71,Prior!$A$1:$K$199,7,FALSE) -> 0 | U71: =VLOOKUP($A71,Prior!$A$1:$K$199,8,FALSE) -> 0 | V71: =VLOOKUP($A71,Prior!$A$1:$K$199,9,FALSE) -> 0 | W71: =VLOOKUP($A71,Prior!$A$1:$K$199,10,FALSE) -> 0 | X71: =VLOOKUP($A71,Prior!$A$1:$K$199,11,FALSE) -> 0 | Y71: 0 | Z71: 0 | AA71: 0 | AB71: 0 | AC71: 578128 | AD71: 0 | AE71: 0
A72: 489 | B72: IDAHO COLLEGE AND CAREER READINESS ACADEMY, INC. | C72: 79255786 | D72: =IFERROR(VLOOKUP($A72,Awarded!$A$2:$J$196,4,FALSE),0) -> 9737 | E72: =IFERROR(VLOOKUP($A72,Awarded!$A$2:$J$196,5,FALSE),0) -> 0 | F72: =IFERROR(VLOOKUP($A72,Awarded!$A$2:$J$196,6,FALSE),0) -> 118353.79 | G72: =IFERROR(VLOOKUP($A72,Awarded!$A$2:$J$196,7,FALSE),0) -> 0 | H72: =IFERROR(VLOOKUP($A72,Awarded!$A$2:$J$196,8,FALSE),0) -> 349143 | I72: =IFERROR(VLOOKUP($A72,Awarded!$A$2:$J$196,9,FALSE),0) -> 0 | J72: =IFERROR(VLOOKUP($A72,Awarded!$A$2:$J$196,10,FALSE),0) -> 0 | K72: =IFERROR(VLOOKUP($A72,Expended!$A$2:$J$198,5,FALSE),0) -> 0 | L72: =IFERROR(VLOOKUP($A72,Expended!$A$2:$J$198,6,FALSE),0) -> 0 | M72: =IFERROR(VLOOKUP($A72,Expended!$A$2:$J$198,7,FALSE),0) -> 2420.79 | N72: =IFERROR(VLOOKUP($A72,Expended!$A$2:$J$198,8,FALSE),0) -> 0 | O72: =IFERROR(VLOOKUP($A72,Expended!$A$2:$J$198,9,FALSE),0) -> 166692.6 | P72: =IFERROR(VLOOKUP($A72,Expended!$A$2:$J$198,10,FALSE),0) -> 0 | Q72: =IFERROR(VLOOKUP($A72,Expended!$A$2:$L$198,11,FALSE),0) -> 0 | R72: =VLOOKUP($A72,Prior!$A$1:$K$199,5,FALSE) -> 9737 | S72: =VLOOKUP($A72,Prior!$A$1:$K$199,6,FALSE) -> 0 | T72: =VLOOKUP($A72,Prior!$A$1:$K$199,7,FALSE) -> 115933 | U72: =VLOOKUP($A72,Prior!$A$1:$K$199,8,FALSE) -> 0 | V72: =VLOOKUP($A72,Prior!$A$1:$K$199,9,FALSE) -> 160489.18 | W72: =VLOOKUP($A72,Prior!$A$1:$K$199,10,FALSE) -> 0 | X72: =VLOOKUP($A72,Prior!$A$1:$K$199,11,FALSE) -> 0 | Y72: 0 | Z72: 0 | AA72: 0 | AB72: 0 | AC72: 21961.22 | AD72: 0 | AE72: 0
A73: 91 | B73: IDAHO FALLS DISTRICT | C73: 29642717 | D73: =IFERROR(VLOOKUP($A73,Awarded!$A$2:$J$196,4,FALSE),0) -> 123603.08 | E73: =IFERROR(VLOOKUP($A73,Awarded!$A$2:$J$196,5,FALSE),0) -> 1655222.02 | F73: =IFERROR(VLOOKUP($A73,Awarded!$A$2:$J$196,6,FALSE),0) -> 0 | G73: =IFERROR(VLOOKUP($A73,Awarded!$A$2:$J$196,7,FALSE),0) -> 6615025.29 | H73: =IFERROR(VLOOKUP($A73,Awarded!$A$2:$J$196,8,FALSE),0) -> 0 | I73: =IFERROR(VLOOKUP($A73,Awarded!$A$2:$J$196,9,FALSE),0) -> 11877328.04 | J73: =IFERROR(VLOOKUP($A73,Awarded!$A$2:$J$196,10,FALSE),0) -> 2966973.04 | K73: =IFERROR(VLOOKUP($A73,Expended!$A$2:$J$198,5,FALSE),0) -> 4495.08 | L73: =IFERROR(VLOOKUP($A73,Expended!$A$2:$J$198,6,FALSE),0) -> 1698.02 | M73: =IFERROR(VLOOKUP($A73,Expended!$A$2:$J$198,7,FALSE),0) -> 0 | N73: =IFERROR(VLOOKUP($A73,Expended!$A$2:$J$198,8,FALSE),0) -> 3803432.44 | O73: =IFERROR(VLOOKUP($A73,Expended!$A$2:$J$198,9,FALSE),0) -> 0 | P73: =IFERROR(VLOOKUP($A73,Expended!$A$2:$J$198,10,FALSE),0) -> 4790160.24 | Q73: =IFERROR(VLOOKUP($A73,Expended!$A$2:$L$198,11,FALSE),0) -> 2011064.65 | R73: =VLOOKUP($A73,Prior!$A$1:$K$199,5,FALSE) -> 119108 | S73: =VLOOKUP($A73,Prior!$A$1:$K$199,6,FALSE) -> 1653524 | T73: =VLOOKUP($A73,Prior!$A$1:$K$199,7,FALSE) -> 0 | U73: =VLOOKUP($A73,Prior!$A$1:$K$199,8,FALSE) -> 1146322.66 | V73: =VLOOKUP($A73,Prior!$A$1:$K$199,9,FALSE) -> 0 | W73: =VLOOKUP($A73,Prior!$A$1:$K$199,10,FALSE) -> 1943036.25 | X73: =VLOOKUP($A73,Prior!$A$1:$K$199,11,FALSE) -> 0 | Y73: 0 | Z73: 0 | AA73: 0 | AB73: 1665270.19 | AC73: 0 | AD73: 5144131.55 | AE73: 955908.39
A74: 468 | B74: IDAHO SCIENCE AND TECHNOLOGY CHARTER SCHOOL, INC. | C74: 826960853 | D74: =IFERROR(VLOOKUP($A74,Awarded!$A$2:$J$196,4,FALSE),0) -> 14541.18 | E74: =IFERROR(VLOOKUP($A74,Awarded!$A$2:$J$196,5,FALSE),0) -> 43489.61 | F74: =IFERROR(VLOOKUP($A74,Awarded!$A$2:$J$196,6,FALSE),0) -> 0 | G74: =IFERROR(VLOOKUP($A74,Awarded!$A$2:$J$196,7,FALSE),0) -> 245996.17 | H74: =IFERROR(VLOOKUP($A74,Awarded!$A$2:$J$196,8,FALSE),0) -> 0 | I74: =IFERROR(VLOOKUP($A74,Awarded!$A$2:$J$196,9,FALSE),0) -> 441688.78 | J74: =IFERROR(VLOOKUP($A74,Awarded!$A$2:$J$196,10,FALSE),0) -> 110334.2 | K74: =IFERROR(VLOOKUP($A74,Expended!$A$2:$J$198,5,FALSE),0) -> 2795.18 | L74: =IFERROR(VLOOKUP($A74,Expended!$A$2:$J$198,6,FALSE),0) -> 44.61 | M74: =IFERROR(VLOOKUP($A74,Expended!$A$2:$J$198,7,FALSE),0) -> 0 | N74: =IFERROR(VLOOKUP($A74,Expended!$A$2:$J$198,8,FALSE),0) -> 552.17 | O74: =IFERROR(VLOOKUP($A74,Expended!$A$2:$J$198,9,FALSE),0) -> 0 | P74: =IFERROR(VLOOKUP($A74,Expended!$A$2:$J$198,10,FALSE),0) -> 300511.78 | Q74: =IFERROR(VLOOKUP($A74,Expended!$A$2:$L$198,11,FALSE),0) -> 40.2 | R74: =VLOOKUP($A74,Prior!$A$1:$K$199,5,FALSE) -> 11746 | S74: =VLOOKUP($A74,Prior!$A$1:$K$199,6,FALSE) -> 43445 | T74: =VLOOKUP($A74,Prior!$A$1:$K$199,7,FALSE) -> 0 | U74: =VLOOKUP($A74,Prior!$A$1:$K$199,8,FALSE) -> 245444 | V74: =VLOOKUP($A74,Prior!$A$1:$K$199,9,FALSE) -> 0 | W74: =VLOOKUP($A74,Prior!$A$1:$K$199,10,FALSE) -> 141177 | X74: =VLOOKUP($A74,Prior!$A$1:$K$199,11,FALSE) -> 110294 | Y74: 0 | Z74: 0 | AA74: 0 | AB74: 0 | AC74: 0 | AD74: 0 | AE74: 0
A75: 485 | B75: IDAHO STEM ACADEMY, INC. | C75: 78455129 | D75: =IFERROR(VLOOKUP($A75,Awarded!$A$2:$J$196,4,FALSE),0) -> 9508.1 | E75: =IFERROR(VLOOKUP($A75,Awarded!$A$2:$J$196,5,FALSE),0) -> 17464.92 | F75: =IFERROR(VLOOKUP($A75,Awarded!$A$2:$J$196,6,FALSE),0) -> 8218.09 | G75: =IFERROR(VLOOKUP($A75,Awarded!$A$2:$J$196,7,FALSE),0) -> 69797.67 | H75: =IFERROR(VLOOKUP($A75,Awarded!$A$2:$J$196,8,FALSE),0) -> 193287 | I75: =IFERROR(VLOOKUP($A75,Awarded!$A$2:$J$196,9,FALSE),0) -> 125321.21 | J75: =IFERROR(VLOOKUP($A75,Awarded!$A$2:$J$196,10,FALSE),0) -> 31305.41 | K75: =IFERROR(VLOOKUP($A75,Expended!$A$2:$J$198,5,FALSE),0) -> 9508.1 | L75: =IFERROR(VLOOKUP($A75,Expended!$A$2:$J$198,6,FALSE),0) -> 17.92 | M75: =IFERROR(VLOOKUP($A75,Expended!$A$2:$J$198,7,FALSE),0) -> 0 | N75: =IFERROR(VLOOKUP($A75,Expended!$A$2:$J$198,8,FALSE),0) -> 26579.07 | O75: =IFERROR(VLOOKUP($A75,Expended!$A$2:$J$198,9,FALSE),0) -> 167013.77 | P75: =IFERROR(VLOOKUP($A75,Expended!$A$2:$J$198,10,FALSE),0) -> 0 | Q75: =IFERROR(VLOOKUP($A75,Expended!$A$2:$L$198,11,FALSE),0) -> 14472.67 | R75: =VLOOKUP($A75,Prior!$A$1:$K$199,5,FALSE) -> 0 | S75: =VLOOKUP($A75,Prior!$A$1:$K$199,6,FALSE) -> 17447 | T75: =VLOOKUP($A75,Prior!$A$1:$K$199,7,FALSE) -> 0 | U75: =VLOOKUP($A75,Prior!$A$1:$K$199,8,FALSE) -> 43218.6 | V75: =VLOOKUP($A75,Prior!$A$1:$K$199,9,FALSE) -> 0 | W75: =VLOOKUP($A75,Prior!$A$1:$K$199,10,FALSE) -> 98717.94 | X75: =VLOOKUP($A75,Prior!$A$1:$K$199,11,FALSE) -> 3174 | Y75: 0 | Z75: 0 | AA75: 8218.09 | AB75: 0 | AC75: 26273.23 | AD75: 26603.27 | AE75: 13658.74
A76: 452 | B76: IDAHO VIRTUAL ACADEMY, INC. | C76: 793722781 | D76: =IFERROR(VLOOKUP($A76,Awarded!$A$2:$J$196,4,FALSE),0) -> 27347 | E76: =IFERROR(VLOOKUP($A76,Awarded!$A$2:$J$196,5,FALSE),0) -> 437174.48 | F76: =IFERROR(VLOOKUP($A76,Awarded!$A$2:$J$196,6,FALSE),0) -> 15790.99 | G76: =IFERROR(VLOOKUP($A76,Awarded!$A$2:$J$196,7,FALSE),0) -> 1704487.95 | H76: =IFERROR(VLOOKUP($A76,Awarded!$A$2:$J$196,8,FALSE),0) -> 0 | I76: =IFERROR(VLOOKUP($A76,Awarded!$A$2:$J$196,9,FALSE),0) -> 3060421.05 | J76: =IFERROR(VLOOKUP($A76,Awarded!$A$2:$J$196,10,FALSE),0) -> 764497.55 | K76: =IFERROR(VLOOKUP($A76,Expended!$A$2:$J$198,5,FALSE),0) -> 786 | L76: =IFERROR(VLOOKUP($A76,Expended!$A$2:$J$198,6,FALSE),0) -> 448.48 | M76: =IFERROR(VLOOKUP($A76,Expended!$A$2:$J$198,7,FALSE),0) -> 322.99 | N76: =IFERROR(VLOOKUP($A76,Expended!$A$2:$J$198,8,FALSE),0) -> 311428.21 | O76: =IFERROR(VLOOKUP($A76,Expended!$A$2:$J$198,9,FALSE),0) -> 0 | P76: =IFERROR(VLOOKUP($A76,Expended!$A$2:$J$198,10,FALSE),0) -> 2411365.24 | Q76: =IFERROR(VLOOKUP($A76,Expended!$A$2:$L$198,11,FALSE),0) -> 366974.9 | R76: =VLOOKUP($A76,Prior!$A$1:$K$199,5,FALSE) -> 26561 | S76: =VLOOKUP($A76,Prior!$A$1:$K$199,6,FALSE) -> 436726 | T76: =VLOOKUP($A76,Prior!$A$1:$K$199,7,FALSE) -> 5233959.35 | U76: =VLOOKUP($A76,Prior!$A$1:$K$199,8,FALSE) -> 1393059.74 | V76: =VLOOKUP($A76,Prior!$A$1:$K$199,9,FALSE) -> 0 | W76: =VLOOKUP($A76,Prior!$A$1:$K$199,10,FALSE) -> 338978.52 | X76: =VLOOKUP($A76,Prior!$A$1:$K$199,11,FALSE) -> 397522.65 | Y76: 0 | Z76: 0 | AA76: -5218491.35 | AB76: 0 | AC76: 0 | AD76: 310077.29 | AE76: 0
A77: 469 | B77: IDAHO VIRTUAL EDUCATION PARTNERS, INC. | C77: 832251305 | D77: =IFERROR(VLOOKUP($A77,Awarded!$A$2:$J$196,4,FALSE),0) -> 10743.19 | E77: =IFERROR(VLOOKUP($A77,Awarded!$A$2:$J$196,5,FALSE),0) -> 0 | F77: =IFERROR(VLOOKUP($A77,Awarded!$A$2:$J$196,6,FALSE),0) -> 157865.97 | G77: =IFERROR(VLOOKUP($A77,Awarded!$A$2:$J$196,7,FALSE),0) -> 0 | H77: =IFERROR(VLOOKUP($A77,Awarded!$A$2:$J$196,8,FALSE),0) -> 349143 | I77: =IFERROR(VLOOKUP($A77,Awarded!$A$2:$J$196,9,FALSE),0) -> 0 | J77: =IFERROR(VLOOKUP($A77,Awarded!$A$2:$J$196,10,FALSE),0) -> 0 | K77: =IFERROR(VLOOKUP($A77,Expended!$A$2:$J$198,5,FALSE),0) -> 10733.33 | L77: =IFERROR(VLOOKUP($A77,Expended!$A$2:$J$198,6,FALSE),0) -> 0 | M77: =IFERROR(VLOOKUP($A77,Expended!$A$2:$J$198,7,FALSE),0) -> 128558.59 | N77: =IFERROR(VLOOKUP($A77,Expended!$A$2:$J$198,8,FALSE),0) -> 0 | O77: =IFERROR(VLOOKUP($A77,Expended!$A$2:$J$198,9,FALSE),0) -> 135692.84 | P77: =IFERROR(VLOOKUP($A77,Expended!$A$2:$J$198,10,FALSE),0) -> 0 | Q77: =IFERROR(VLOOKUP($A77,Expended!$A$2:$L$198,11,FALSE),0) -> 0 | R77: =VLOOKUP($A77,Prior!$A$1:$K$199,5,FALSE) -> 0 | S77: =VLOOKUP($A77,Prior!$A$1:$K$199,6,FALSE) -> 0 | T77: =VLOOKUP($A77,Prior!$A$1:$K$199,7,FALSE) -> 29307.3 | U77: =VLOOKUP($A77,Prior!$A$1:$K$199,8,FALSE) -> 0 | V77: =VLOOKUP($A77,Prior!$A$1:$K$199,9,FALSE) -> 0 | W77: =VLOOKUP($A77,Prior!$A$1:$K$199,10,FALSE) -> 0 | X77: =VLOOKUP($A77,Prior!$A$1:$K$199,11,FALSE) -> 0 | Y77: 9.86 | Z77: 0 | AA77: 0.08000000001 | AB77: 0 | AC77: 213450.16 | AD77: 0 | AE77: 0
A78: 453 | B78: IDAHO VIRTUAL HIGH SCHOOL, INC. | C78: 170660455 | D78: =IFERROR(VLOOKUP($A78,Awarded!$A$2:$J$196,4,FALSE),0) -> 13690.12 | E78: =IFERROR(VLOOKUP($A78,Awarded!$A$2:$J$196,5,FALSE),0) -> 0 | F78: =IFERROR(VLOOKUP($A78,Awarded!$A$2:$J$196,6,FALSE),0) -> 240392.96 | G78: =IFERROR(VLOOKUP($A78,Awarded!$A$2:$J$196,7,FALSE),0) -> 0 | H78: =IFERROR(VLOOKUP($A78,Awarded!$A$2:$J$196,8,FALSE),0) -> 349143 | I78: =IFERROR(VLOOKUP($A78,Awarded!$A$2:$J$196,9,FALSE),0) -> 0 | J78: =IFERROR(VLOOKUP($A78,Awarded!$A$2:$J$196,10,FALSE),0) -> 0 | K78: =IFERROR(VLOOKUP($A78,Expended!$A$2:$J$198,5,FALSE),0) -> 0 | L78: =IFERROR(VLOOKUP($A78,Expended!$A$2:$J$198,6,FALSE),0) -> 0 | M78: =IFERROR(VLOOKUP($A78,Expended!$A$2:$J$198,7,FALSE),0) -> 4916.96 | N78: =IFERROR(VLOOKUP($A78,Expended!$A$2:$J$198,8,FALSE),0) -> 0 | O78: =IFERROR(VLOOKUP($A78,Expended!$A$2:$J$198,9,FALSE),0) -> 59173.04 | P78: =IFERROR(VLOOKUP($A78,Expended!$A$2:$J$198,10,FALSE),0) -> 0 | Q78: =IFERROR(VLOOKUP($A78,Expended!$A$2:$L$198,11,FALSE),0) -> 0 | R78: =VLOOKUP($A78,Prior!$A$1:$K$199,5,FALSE) -> 13020 | S78: =VLOOKUP($A78,Prior!$A$1:$K$199,6,FALSE) -> 0 | T78: =VLOOKUP($A78,Prior!$A$1:$K$199,7,FALSE) -> 235476 | U78: =VLOOKUP($A78,Prior!$A$1:$K$199,8,FALSE) -> 0 | V78: =VLOOKUP($A78,Prior!$A$1:$K$199,9,FALSE) -> 0 | W78: =VLOOKUP($A78,Prior!$A$1:$K$199,10,FALSE) -> 0 | X78: =VLOOKUP($A78,Prior!$A$1:$K$199,11,FALSE) -> 0 | Y78: 670.12 | Z78: 0 | AA78: 0 | AB78: 0 | AC78: 289969.96 | AD78: 0 | AE78: 0
A79: 457 | B79: INSPIRE ACADEMICS, INC. | C79: 797530305 | D79: =IFERROR(VLOOKUP($A79,Awarded!$A$2:$J$196,4,FALSE),0) -> 20680.87 | E79: =IFERROR(VLOOKUP($A79,Awarded!$A$2:$J$196,5,FALSE),0) -> 151454.37 | F79: =IFERROR(VLOOKUP($A79,Awarded!$A$2:$J$196,6,FALSE),0) -> 18913.86 | G79: =IFERROR(VLOOKUP($A79,Awarded!$A$2:$J$196,7,FALSE),0) -> 859701.71 | H79: =IFERROR(VLOOKUP($A79,Awarded!$A$2:$J$196,8,FALSE),0) -> 0 | I79: =IFERROR(VLOOKUP($A79,Awarded!$A$2:$J$196,9,FALSE),0) -> 1543601.54 | J79: =IFERROR(VLOOKUP($A79,Awarded!$A$2:$J$196,10,FALSE),0) -> 385593.49 | K79: =IFERROR(VLOOKUP($A79,Expended!$A$2:$J$198,5,FALSE),0) -> 16038.87 | L79: =IFERROR(VLOOKUP($A79,Expended!$A$2:$J$198,6,FALSE),0) -> 0 | M79: =IFERROR(VLOOKUP($A79,Expended!$A$2:$J$198,7,FALSE),0) -> 0 | N79: =IFERROR(VLOOKUP($A79,Expended!$A$2:$J$198,8,FALSE),0) -> 98689.88 | O79: =IFERROR(VLOOKUP($A79,Expended!$A$2:$J$198,9,FALSE),0) -> 0 | P79: =IFERROR(VLOOKUP($A79,Expended!$A$2:$J$198,10,FALSE),0) -> 642963.3 | Q79: =IFERROR(VLOOKUP($A79,Expended!$A$2:$L$198,11,FALSE),0) -> 0 | R79: =VLOOKUP($A79,Prior!$A$1:$K$199,5,FALSE) -> 4640 | S79: =VLOOKUP($A79,Prior!$A$1:$K$199,6,FALSE) -> 151299 | T79: =VLOOKUP($A79,Prior!$A$1:$K$199,7,FALSE) -> 871112.06 | U79: =VLOOKUP($A79,Prior!$A$1:$K$199,8,FALSE) -> 759082.12 | V79: =VLOOKUP($A79,Prior!$A$1:$K$199,9,FALSE) -> 0 | W79: =VLOOKUP($A79,Prior!$A$1:$K$199,10,FALSE) -> 0 | X79: =VLOOKUP($A79,Prior!$A$1:$K$199,11,FALSE) -> 0 | Y79: 2 | Z79: 155.37 | AA79: -852198.2 | AB79: 1929.71 | AC79: 0 | AD79: 900638.24 | AE79: 385593.49
A80: 540 | B80: ISLAND PARK CHARTER SCHOOL, INC. | C80: 117224934 | D80: =IFERROR(VLOOKUP($A80,Awarded!$A$2:$J$196,4,FALSE),0) -> 8189.18 | E80: =IFERROR(VLOOKUP($A80,Awarded!$A$2:$J$196,5,FALSE),0) -> 0 | F80: =IFERROR(VLOOKUP($A80,Awarded!$A$2:$J$196,6,FALSE),0) -> 6041.57 | G80: =IFERROR(VLOOKUP($A80,Awarded!$A$2:$J$196,7,FALSE),0) -> 0 | H80: =IFERROR(VLOOKUP($A80,Awarded!$A$2:$J$196,8,FALSE),0) -> 349143 | I80: =IFERROR(VLOOKUP($A80,Awarded!$A$2:$J$196,9,FALSE),0) -> 0 | J80: =IFERROR(VLOOKUP($A80,Awarded!$A$2:$J$196,10,FALSE),0) -> 0 | K80: =IFERROR(VLOOKUP($A80,Expended!$A$2:$J$198,5,FALSE),0) -> 285.18 | L80: =IFERROR(VLOOKUP($A80,Expended!$A$2:$J$198,6,FALSE),0) -> 0 | M80: =IFERROR(VLOOKUP($A80,Expended!$A$2:$J$198,7,FALSE),0) -> 2353.43 | N80: =IFERROR(VLOOKUP($A80,Expended!$A$2:$J$198,8,FALSE),0) -> 0 | O80: =IFERROR(VLOOKUP($A80,Expended!$A$2:$J$198,9,FALSE),0) -> 0 | P80: =IFERROR(VLOOKUP($A80,Expended!$A$2:$J$198,10,FALSE),0) -> 0 | Q80: =IFERROR(VLOOKUP($A80,Expended!$A$2:$L$198,11,FALSE),0) -> 0 | R80: =VLOOKUP($A80,Prior!$A$1:$K$199,5,FALSE) -> 7904 | S80: =VLOOKUP($A80,Prior!$A$1:$K$199,6,FALSE) -> 0 | T80: =VLOOKUP($A80,Prior!$A$1:$K$199,7,FALSE) -> 3688.14 | U80: =VLOOKUP($A80,Prior!$A$1:$K$199,8,FALSE) -> 0 | V80: =VLOOKUP($A80,Prior!$A$1:$K$199,9,FALSE) -> 0 | W80: =VLOOKUP($A80,Prior!$A$1:$K$199,10,FALSE) -> 0 | X80: =VLOOKUP($A80,Prior!$A$1:$K$199,11,FALSE) -> 0 | Y80: 0 | Z80: 0 | AA80: 0 | AB80: 0 | AC80: 349143 | AD80: 0 | AE80: 0
A81: 466 | B81: ISUCCEED VIRTUAL HIGH SCHOOL, INC. | C81: 878662498 | D81: =IFERROR(VLOOKUP($A81,Awarded!$A$2:$J$196,4,FALSE),0) -> 0 | E81: =IFERROR(VLOOKUP($A81,Awarded!$A$2:$J$196,5,FALSE),0) -> 0 | F81: =IFERROR(VLOOKUP($A81,Awarded!$A$2:$J$196,6,FALSE),0) -> 0 | G81: =IFERROR(VLOOKUP($A81,Awarded!$A$2:$J$196,7,FALSE),0) -> 491878.08 | H81: =IFERROR(VLOOKUP($A81,Awarded!$A$2:$J$196,8,FALSE),0) -> 0 | I81: =IFERROR(VLOOKUP($A81,Awarded!$A$2:$J$196,9,FALSE),0) -> 883171.31 | J81: =IFERROR(VLOOKUP($A81,Awarded!$A$2:$J$196,10,FALSE),0) -> 220617.38 | K81: =IFERROR(VLOOKUP($A81,Expended!$A$2:$J$198,5,FALSE),0) -> 0 | L81: =IFERROR(VLOOKUP($A81,Expended!$A$2:$J$198,6,FALSE),0) -> 0 | M81: =IFERROR(VLOOKUP($A81,Expended!$A$2:$J$198,7,FALSE),0) -> 0 | N81: =IFERROR(VLOOKUP($A81,Expended!$A$2:$J$198,8,FALSE),0) -> 375839.86 | O81: =IFERROR(VLOOKUP($A81,Expended!$A$2:$J$198,9,FALSE),0) -> 0 | P81: =IFERROR(VLOOKUP($A81,Expended!$A$2:$J$198,10,FALSE),0) -> 0 | Q81: =IFERROR(VLOOKUP($A81,Expended!$A$2:$L$198,11,FALSE),0) -> 0 | R81: =VLOOKUP($A81,Prior!$A$1:$K$199,5,FALSE) -> 0 | S81: =VLOOKUP($A81,Prior!$A$1:$K$199,6,FALSE) -> 0 | T81: =VLOOKUP($A81,Prior!$A$1:$K$199,7,FALSE) -> 0 | U81: =VLOOKUP($A81,Prior!$A$1:$K$199,8,FALSE) -> 8542.51 | V81: =VLOOKUP($A81,Prior!$A$1:$K$199,9,FALSE) -> 0 | W81: =VLOOKUP($A81,Prior!$A$1:$K$199,10,FALSE) -> 0 | X81: =VLOOKUP($A81,Prior!$A$1:$K$199,11,FALSE) -> 0 | Y81: 0 | Z81: 0 | AA81: 0 | AB81: 107495.71 | AC81: 0 | AD81: 883171.31 | AE81: 220617.38
A82: 251 | B82: JEFFERSON COUNTY JOINT DISTRICT | C82: 29738903 | D82: =IFERROR(VLOOKUP($A82,Awarded!$A$2:$J$196,4,FALSE),0) -> 81273.73 | E82: =IFERROR(VLOOKUP($A82,Awarded!$A$2:$J$196,5,FALSE),0) -> 544638.72 | F82: =IFERROR(VLOOKUP($A82,Awarded!$A$2:$J$196,6,FALSE),0) -> 544478.69 | G82: =IFERROR(VLOOKUP($A82,Awarded!$A$2:$J$196,7,FALSE),0) -> 2025086.57 | H82: =IFERROR(VLOOKUP($A82,Awarded!$A$2:$J$196,8,FALSE),0) -> 0 | I82: =IFERROR(VLOOKUP($A82,Awarded!$A$2:$J$196,9,FALSE),0) -> 3636058.03 | J82: =IFERROR(VLOOKUP($A82,Awarded!$A$2:$J$196,10,FALSE),0) -> 908291.94 | K82: =IFERROR(VLOOKUP($A82,Expended!$A$2:$J$198,5,FALSE),0) -> 17197.41 | L82: =IFERROR(VLOOKUP($A82,Expended!$A$2:$J$198,6,FALSE),0) -> 558.72 | M82: =IFERROR(VLOOKUP($A82,Expended!$A$2:$J$198,7,FALSE),0) -> 0 | N82: =IFERROR(VLOOKUP($A82,Expended!$A$2:$J$198,8,FALSE),0) -> 0 | O82: =IFERROR(VLOOKUP($A82,Expended!$A$2:$J$198,9,FALSE),0) -> 0 | P82: =IFERROR(VLOOKUP($A82,Expended!$A$2:$J$198,10,FALSE),0) -> 1939356.13 | Q82: =IFERROR(VLOOKUP($A82,Expended!$A$2:$L$198,11,FALSE),0) -> 131192.96 | R82: =VLOOKUP($A82,Prior!$A$1:$K$199,5,FALSE) -> 64076.32 | S82: =VLOOKUP($A82,Prior!$A$1:$K$199,6,FALSE) -> 544080 | T82: =VLOOKUP($A82,Prior!$A$1:$K$199,7,FALSE) -> 533342 | U82: =VLOOKUP($A82,Prior!$A$1:$K$199,8,FALSE) -> 2020541 | V82: =VLOOKUP($A82,Prior!$A$1:$K$199,9,FALSE) -> 0 | W82: =VLOOKUP($A82,Prior!$A$1:$K$199,10,FALSE) -> 0 | X82: =VLOOKUP($A82,Prior!$A$1:$K$199,11,FALSE) -> 0 | Y82: 0 | Z82: 0 | AA82: 11136.69 | AB82: 4545.57 | AC82: 0 | AD82: 1696701.9 | AE82: 777098.98
A83: 261 | B83: JEROME JOINT DISTRICT | C83: 100015056 | D83: =IFERROR(VLOOKUP($A83,Awarded!$A$2:$J$196,4,FALSE),0) -> 54623.74 | E83: =IFERROR(VLOOKUP($A83,Awarded!$A$2:$J$196,5,FALSE),0) -> 649537.33 | F83: =IFERROR(VLOOKUP($A83,Awarded!$A$2:$J$196,6,FALSE),0) -> 0 | G83: =IFERROR(VLOOKUP($A83,Awarded!$A$2:$J$196,7,FALSE),0) -> 2634062.5 | H83: =IFERROR(VLOOKUP($A83,Awarded!$A$2:$J$196,8,FALSE),0) -> 0 | I83: =IFERROR(VLOOKUP($A83,Awarded!$A$2:$J$196,9,FALSE),0) -> 4729478.96 | J83: =IFERROR(VLOOKUP($A83,Awarded!$A$2:$J$196,10,FALSE),0) -> 1181430.46 | K83: =IFERROR(VLOOKUP($A83,Expended!$A$2:$J$198,5,FALSE),0) -> 1978.74 | L83: =IFERROR(VLOOKUP($A83,Expended!$A$2:$J$198,6,FALSE),0) -> 666.33 | M83: =IFERROR(VLOOKUP($A83,Expended!$A$2:$J$198,7,FALSE),0) -> 0 | N83: =IFERROR(VLOOKUP($A83,Expended!$A$2:$J$198,8,FALSE),0) -> 557169.34 | O83: =IFERROR(VLOOKUP($A83,Expended!$A$2:$J$198,9,FALSE),0) -> 0 | P83: =IFERROR(VLOOKUP($A83,Expended!$A$2:$J$198,10,FALSE),0) -> 141832.62 | Q83: =IFERROR(VLOOKUP($A83,Expended!$A$2:$L$198,11,FALSE),0) -> 276653.32 | R83: =VLOOKUP($A83,Prior!$A$1:$K$199,5,FALSE) -> 52645 | S83: =VLOOKUP($A83,Prior!$A$1:$K$199,6,FALSE) -> 648871 | T83: =VLOOKUP($A83,Prior!$A$1:$K$199,7,FALSE) -> 0 | U83: =VLOOKUP($A83,Prior!$A$1:$K$199,8,FALSE) -> 1079708.3 | V83: =VLOOKUP($A83,Prior!$A$1:$K$199,9,FALSE) -> 0 | W83: =VLOOKUP($A83,Prior!$A$1:$K$199,10,FALSE) -> 113240.79 | X83: =VLOOKUP($A83,Prior!$A$1:$K$199,11,FALSE) -> 179656 | Y83: 0 | Z83: 0 | AA83: 0 | AB83: 997184.86 | AC83: 0 | AD83: 4474405.55 | AE83: 725121.14
A84: 2 | B84: JOINT SCHOOL DISTRICT NO. 2 | C84: 29604402 | D84: =IFERROR(VLOOKUP($A84,Awarded!$A$2:$J$196,4,FALSE),0) -> 461978.11 | E84: =IFERROR(VLOOKUP($A84,Awarded!$A$2:$J$196,5,FALSE),0) -> 3080352.01 | F84: =IFERROR(VLOOKUP($A84,Awarded!$A$2:$J$196,6,FALSE),0) -> 2389437.21 | G84: =IFERROR(VLOOKUP($A84,Awarded!$A$2:$J$196,7,FALSE),0) -> 13883392.1 | H84: =IFERROR(VLOOKUP($A84,Awarded!$A$2:$J$196,8,FALSE),0) -> 0 | I84: =IFERROR(VLOOKUP($A84,Awarded!$A$2:$J$196,9,FALSE),0) -> 24927736.31 | J84: =IFERROR(VLOOKUP($A84,Awarded!$A$2:$J$196,10,FALSE),0) -> 6226981.84 | K84: =IFERROR(VLOOKUP($A84,Expended!$A$2:$J$198,5,FALSE),0) -> 27551.02 | L84: =IFERROR(VLOOKUP($A84,Expended!$A$2:$J$198,6,FALSE),0) -> 21581.65 | M84: =IFERROR(VLOOKUP($A84,Expended!$A$2:$J$198,7,FALSE),0) -> 1186958.36 | N84: =IFERROR(VLOOKUP($A84,Expended!$A$2:$J$198,8,FALSE),0) -> 10366378.52 | O84: =IFERROR(VLOOKUP($A84,Expended!$A$2:$J$198,9,FALSE),0) -> 0 | P84: =IFERROR(VLOOKUP($A84,Expended!$A$2:$J$198,10,FALSE),0) -> 11913174.43 | Q84: =IFERROR(VLOOKUP($A84,Expended!$A$2:$L$198,11,FALSE),0) -> 682396 | R84: =VLOOKUP($A84,Prior!$A$1:$K$199,5,FALSE) -> 434427.09 | S84: =VLOOKUP($A84,Prior!$A$1:$K$199,6,FALSE) -> 3058770.36 | T84: =VLOOKUP($A84,Prior!$A$1:$K$199,7,FALSE) -> 0 | U84: =VLOOKUP($A84,Prior!$A$1:$K$199,8,FALSE) -> 3517013.58 | V84: =VLOOKUP($A84,Prior!$A$1:$K$199,9,FALSE) -> 0 | W84: =VLOOKUP($A84,Prior!$A$1:$K$199,10,FALSE) -> 0 | X84: =VLOOKUP($A84,Prior!$A$1:$K$199,11,FALSE) -> 431771.05 | Y84: 0 | Z84: 0 | AA84: 1202478.85 | AB84: 0 | AC84: 0 | AD84: 13014561.88 | AE84: 5112814.79
A85: 304 | B85: KAMIAH JOINT DISTRICT | C85: 159151398 | D85: =IFERROR(VLOOKUP($A85,Awarded!$A$2:$J$196,4,FALSE),0) -> 12601.01 | E85: =IFERROR(VLOOKUP($A85,Awarded!$A$2:$J$196,5,FALSE),0) -> 257136.79 | F85: =IFERROR(VLOOKUP($A85,Awarded!$A$2:$J$196,6,FALSE),0) -> 0 | G85: =IFERROR(VLOOKUP($A85,Awarded!$A$2:$J$196,7,FALSE),0) -> 1235562.38 | H85: =IFERROR(VLOOKUP($A85,Awarded!$A$2:$J$196,8,FALSE),0) -> 0 | I85: =IFERROR(VLOOKUP($A85,Awarded!$A$2:$J$196,9,FALSE),0) -> 2218461.49 | J85: =IFERROR(VLOOKUP($A85,Awarded!$A$2:$J$196,10,FALSE),0) -> 554174.92 | K85: =IFERROR(VLOOKUP($A85,Expended!$A$2:$J$198,5,FALSE),0) -> 2978.86 | L85: =IFERROR(VLOOKUP($A85,Expended!$A$2:$J$198,6,FALSE),0) -> 2860.91 | M85: =IFERROR(VLOOKUP($A85,Expended!$A$2:$J$198,7,FALSE),0) -> 0 | N85: =IFERROR(VLOOKUP($A85,Expended!$A$2:$J$198,8,FALSE),0) -> 435856.75 | O85: =IFERROR(VLOOKUP($A85,Expended!$A$2:$J$198,9,FALSE),0) -> 0 | P85: =IFERROR(VLOOKUP($A85,Expended!$A$2:$J$198,10,FALSE),0) -> 90354.26 | Q85: =IFERROR(VLOOKUP($A85,Expended!$A$2:$L$198,11,FALSE),0) -> 135591.29 | R85: =VLOOKUP($A85,Prior!$A$1:$K$199,5,FALSE) -> 9433.93 | S85: =VLOOKUP($A85,Prior!$A$1:$K$199,6,FALSE) -> 254012.09 | T85: =VLOOKUP($A85,Prior!$A$1:$K$199,7,FALSE) -> 0 | U85: =VLOOKUP($A85,Prior!$A$1:$K$199,8,FALSE) -> 72732.53 | V85: =VLOOKUP($A85,Prior!$A$1:$K$199,9,FALSE) -> 0 | W85: =VLOOKUP($A85,Prior!$A$1:$K$199,10,FALSE) -> 573513.77 | X85: =VLOOKUP($A85,Prior!$A$1:$K$199,11,FALSE) -> 163947.61 | Y85: 188.22 | Z85: 263.79 | AA85: 0 | AB85: 726973.1 | AC85: 0 | AD85: 1554593.46 | AE85: 254636.02
A86: 391 | B86: KELLOGG JOINT DISTRICT | C86: 100186402 | D86: =IFERROR(VLOOKUP($A86,Awarded!$A$2:$J$196,4,FALSE),0) -> 20249.94 | E86: =IFERROR(VLOOKUP($A86,Awarded!$A$2:$J$196,5,FALSE),0) -> 263958.78 | F86: =IFERROR(VLOOKUP($A86,Awarded!$A$2:$J$196,6,FALSE),0) -> 0 | G86: =IFERROR(VLOOKUP($A86,Awarded!$A$2:$J$196,7,FALSE),0) -> 1054899.86 | H86: =IFERROR(VLOOKUP($A86,Awarded!$A$2:$J$196,8,FALSE),0) -> 0 | I86: =IFERROR(VLOOKUP($A86,Awarded!$A$2:$J$196,9,FALSE),0) -> 1894080.64 | J86: =IFERROR(VLOOKUP($A86,Awarded!$A$2:$J$196,10,FALSE),0) -> 473144.39 | K86: =IFERROR(VLOOKUP($A86,Expended!$A$2:$J$198,5,FALSE),0) -> 20249.94 | L86: =IFERROR(VLOOKUP($A86,Expended!$A$2:$J$198,6,FALSE),0) -> 270.78 | M86: =IFERROR(VLOOKUP($A86,Expended!$A$2:$J$198,7,FALSE),0) -> 0 | N86: =IFERROR(VLOOKUP($A86,Expended!$A$2:$J$198,8,FALSE),0) -> 2367.86 | O86: =IFERROR(VLOOKUP($A86,Expended!$A$2:$J$198,9,FALSE),0) -> 0 | P86: =IFERROR(VLOOKUP($A86,Expended!$A$2:$J$198,10,FALSE),0) -> 1069824 | Q86: =IFERROR(VLOOKUP($A86,Expended!$A$2:$L$198,11,FALSE),0) -> 132683.33 | R86: =VLOOKUP($A86,Prior!$A$1:$K$199,5,FALSE) -> 0 | S86: =VLOOKUP($A86,Prior!$A$1:$K$199,6,FALSE) -> 263688 | T86: =VLOOKUP($A86,Prior!$A$1:$K$199,7,FALSE) -> 0 | U86: =VLOOKUP($A86,Prior!$A$1:$K$199,8,FALSE) -> 1052532 | V86: =VLOOKUP($A86,Prior!$A$1:$K$199,9,FALSE) -> 0 | W86: =VLOOKUP($A86,Prior!$A$1:$K$199,10,FALSE) -> 786491.59 | X86: =VLOOKUP($A86,Prior!$A$1:$K$199,11,FALSE) -> 0 | Y86: 0 | Z86: 0 | AA86: 0 | AB86: 0 | AC86: 0 | AD86: 37765.05 | AE86: 340461.06
A87: 283 | B87: KENDRICK JOINT DISTRICT | C87: 100646397 | D87: =IFERROR(VLOOKUP($A87,Awarded!$A$2:$J$196,4,FALSE),0) -> 10809.68 | E87: =IFERROR(VLOOKUP($A87,Awarded!$A$2:$J$196,5,FALSE),0) -> 29230.99 | F87: =IFERROR(VLOOKUP($A87,Awarded!$A$2:$J$196,6,FALSE),0) -> 35743.08 | G87: =IFERROR(VLOOKUP($A87,Awarded!$A$2:$J$196,7,FALSE),0) -> 101719.32 | H87: =IFERROR(VLOOKUP($A87,Awarded!$A$2:$J$196,8,FALSE),0) -> 122006 | I87: =IFERROR(VLOOKUP($A87,Awarded!$A$2:$J$196,9,FALSE),0) -> 182636.62 | J87: =IFERROR(VLOOKUP($A87,Awarded!$A$2:$J$196,10,FALSE),0) -> 45622.62 | K87: =IFERROR(VLOOKUP($A87,Expended!$A$2:$J$198,5,FALSE),0) -> 6189.63 | L87: =IFERROR(VLOOKUP($A87,Expended!$A$2:$J$198,6,FALSE),0) -> 578.31 | M87: =IFERROR(VLOOKUP($A87,Expended!$A$2:$J$198,7,FALSE),0) -> 20365 | N87: =IFERROR(VLOOKUP($A87,Expended!$A$2:$J$198,8,FALSE),0) -> 51395.26 | O87: =IFERROR(VLOOKUP($A87,Expended!$A$2:$J$198,9,FALSE),0) -> 22862.69 | P87: =IFERROR(VLOOKUP($A87,Expended!$A$2:$J$198,10,FALSE),0) -> 0 | Q87: =IFERROR(VLOOKUP($A87,Expended!$A$2:$L$198,11,FALSE),0) -> 2512.58 | R87: =VLOOKUP($A87,Prior!$A$1:$K$199,5,FALSE) -> 4620.05 | S87: =VLOOKUP($A87,Prior!$A$1:$K$199,6,FALSE) -> 28652.68 | T87: =VLOOKUP($A87,Prior!$A$1:$K$199,7,FALSE) -> 0 | U87: =VLOOKUP($A87,Prior!$A$1:$K$199,8,FALSE) -> 0 | V87: =VLOOKUP($A87,Prior!$A$1:$K$199,9,FALSE) -> 0 | W87: =VLOOKUP($A87,Prior!$A$1:$K$199,10,FALSE) -> 0 | X87: =VLOOKUP($A87,Prior!$A$1:$K$199,11,FALSE) -> 0 | Y87: 0 | Z87: 0 | AA87: 15378.08 | AB87: 50324.06 | AC87: 99143.31 | AD87: 182636.62 | AE87: 43110.04
A88: 414 | B88: KIMBERLY DISTRICT | C88: 879016921 | D88: =IFERROR(VLOOKUP($A88,Awarded!$A$2:$J$196,4,FALSE),0) -> 34045.71 | E88: =IFERROR(VLOOKUP($A88,Awarded!$A$2:$J$196,5,FALSE),0) -> 140118.74 | F88: =IFERROR(VLOOKUP($A88,Awarded!$A$2:$J$196,6,FALSE),0) -> 223946.57 | G88: =IFERROR(VLOOKUP($A88,Awarded!$A$2:$J$196,7,FALSE),0) -> 583633.04 | H88: =IFERROR(VLOOKUP($A88,Awarded!$A$2:$J$196,8,FALSE),0) -> 0 | I88: =IFERROR(VLOOKUP($A88,Awarded!$A$2:$J$196,9,FALSE),0) -> 1047917.2 | J88: =IFERROR(VLOOKUP($A88,Awarded!$A$2:$J$196,10,FALSE),0) -> 261771.38 | K88: =IFERROR(VLOOKUP($A88,Expended!$A$2:$J$198,5,FALSE),0) -> 3560.71 | L88: =IFERROR(VLOOKUP($A88,Expended!$A$2:$J$198,6,FALSE),0) -> 143.74 | M88: =IFERROR(VLOOKUP($A88,Expended!$A$2:$J$198,7,FALSE),0) -> 4418.35 | N88: =IFERROR(VLOOKUP($A88,Expended!$A$2:$J$198,8,FALSE),0) -> 179588.52 | O88: =IFERROR(VLOOKUP($A88,Expended!$A$2:$J$198,9,FALSE),0) -> 0 | P88: =IFERROR(VLOOKUP($A88,Expended!$A$2:$J$198,10,FALSE),0) -> 98120 | Q88: =IFERROR(VLOOKUP($A88,Expended!$A$2:$L$198,11,FALSE),0) -> 50198.82 | R88: =VLOOKUP($A88,Prior!$A$1:$K$199,5,FALSE) -> 30485 | S88: =VLOOKUP($A88,Prior!$A$1:$K$199,6,FALSE) -> 139975 | T88: =VLOOKUP($A88,Prior!$A$1:$K$199,7,FALSE) -> 219360.73 | U88: =VLOOKUP($A88,Prior!$A$1:$K$199,8,FALSE) -> 377412.2 | V88: =VLOOKUP($A88,Prior!$A$1:$K$199,9,FALSE) -> 0 | W88: =VLOOKUP($A88,Prior!$A$1:$K$199,10,FALSE) -> 0 | X88: =VLOOKUP($A88,Prior!$A$1:$K$199,11,FALSE) -> 136891.33 | Y88: 0 | Z88: 0 | AA88: 167.49 | AB88: 26632.32 | AC88: 0 | AD88: 949797.2 | AE88: 74681.23
A89: 274 | B89: KOOTENAI DISTRICT | C89: 100646405 | D89: =IFERROR(VLOOKUP($A89,Awarded!$A$2:$J$196,4,FALSE),0) -> 9575.22 | E89: =IFERROR(VLOOKUP($A89,Awarded!$A$2:$J$196,5,FALSE),0) -> 43701.83 | F89: =IFERROR(VLOOKUP($A89,Awarded!$A$2:$J$196,6,FALSE),0) -> 0 | G89: =IFERROR(VLOOKUP($A89,Awarded!$A$2:$J$196,7,FALSE),0) -> 161283.02 | H89: =IFERROR(VLOOKUP($A89,Awarded!$A$2:$J$196,8,FALSE),0) -> 0 | I89: =IFERROR(VLOOKUP($A89,Awarded!$A$2:$J$196,9,FALSE),0) -> 289584.54 | J89: =IFERROR(VLOOKUP($A89,Awarded!$A$2:$J$196,10,FALSE),0) -> 72338.36 | K89: =IFERROR(VLOOKUP($A89,Expended!$A$2:$J$198,5,FALSE),0) -> 0 | L89: =IFERROR(VLOOKUP($A89,Expended!$A$2:$J$198,6,FALSE),0) -> 44.83 | M89: =IFERROR(VLOOKUP($A89,Expended!$A$2:$J$198,7,FALSE),0) -> 0 | N89: =IFERROR(VLOOKUP($A89,Expended!$A$2:$J$198,8,FALSE),0) -> 36445.78 | O89: =IFERROR(VLOOKUP($A89,Expended!$A$2:$J$198,9,FALSE),0) -> 0 | P89: =IFERROR(VLOOKUP($A89,Expended!$A$2:$J$198,10,FALSE),0) -> 107070.95 | Q89: =IFERROR(VLOOKUP($A89,Expended!$A$2:$L$198,11,FALSE),0) -> 38738.99 | R89: =VLOOKUP($A89,Prior!$A$1:$K$199,5,FALSE) -> 9537 | S89: =VLOOKUP($A89,Prior!$A$1:$K$199,6,FALSE) -> 43657 | T89: =VLOOKUP($A89,Prior!$A$1:$K$199,7,FALSE) -> 0 | U89: =VLOOKUP($A89,Prior!$A$1:$K$199,8,FALSE) -> 124837.24 | V89: =VLOOKUP($A89,Prior!$A$1:$K$199,9,FALSE) -> 0 | W89: =VLOOKUP($A89,Prior!$A$1:$K$199,10,FALSE) -> 80968.65 | X89: =VLOOKUP($A89,Prior!$A$1:$K$199,11,FALSE) -> 33599.37 | Y89: 38.22 | Z89: 0 | AA89: 0 | AB89: 0 | AC89: 0 | AD89: 101544.94 | AE89: 0
A90: 3 | B90: KUNA JOINT DISTRICT | C90: 100015072 | D90: =IFERROR(VLOOKUP($A90,Awarded!$A$2:$J$196,4,FALSE),0) -> 71160.8 | E90: =IFERROR(VLOOKUP($A90,Awarded!$A$2:$J$196,5,FALSE),0) -> 853029.09 | F90: =IFERROR(VLOOKUP($A90,Awarded!$A$2:$J$196,6,FALSE),0) -> 0 | G90: =IFERROR(VLOOKUP($A90,Awarded!$A$2:$J$196,7,FALSE),0) -> 2925376.39 | H90: =IFERROR(VLOOKUP($A90,Awarded!$A$2:$J$196,8,FALSE),0) -> 0 | I90: =IFERROR(VLOOKUP($A90,Awarded!$A$2:$J$196,9,FALSE),0) -> 5252536.02 | J90: =IFERROR(VLOOKUP($A90,Awarded!$A$2:$J$196,10,FALSE),0) -> 1312090.07 | K90: =IFERROR(VLOOKUP($A90,Expended!$A$2:$J$198,5,FALSE),0) -> 2581.8 | L90: =IFERROR(VLOOKUP($A90,Expended!$A$2:$J$198,6,FALSE),0) -> 875.09 | M90: =IFERROR(VLOOKUP($A90,Expended!$A$2:$J$198,7,FALSE),0) -> 0 | N90: =IFERROR(VLOOKUP($A90,Expended!$A$2:$J$198,8,FALSE),0) -> 1260484.03 | O90: =IFERROR(VLOOKUP($A90,Expended!$A$2:$J$198,9,FALSE),0) -> 0 | P90: =IFERROR(VLOOKUP($A90,Expended!$A$2:$J$198,10,FALSE),0) -> 1003747.75 | Q90: =IFERROR(VLOOKUP($A90,Expended!$A$2:$L$198,11,FALSE),0) -> 999680.16 | R90: =VLOOKUP($A90,Prior!$A$1:$K$199,5,FALSE) -> 68579 | S90: =VLOOKUP($A90,Prior!$A$1:$K$199,6,FALSE) -> 852154 | T90: =VLOOKUP($A90,Prior!$A$1:$K$199,7,FALSE) -> 0 | U90: =VLOOKUP($A90,Prior!$A$1:$K$199,8,FALSE) -> 1664892.36 | V90: =VLOOKUP($A90,Prior!$A$1:$K$199,9,FALSE) -> 0 | W90: =VLOOKUP($A90,Prior!$A$1:$K$199,10,FALSE) -> 0 | X90: =VLOOKUP($A90,Prior!$A$1:$K$199,11,FALSE) -> 312409.91 | Y90: 0 | Z90: 0 | AA90: 0 | AB90: 0 | AC90: 0 | AD90: 4248788.27 | AE90: 0
A91: 84 | B91: LAKE PEND OREILLE SCHOOL DISTRICT | C91: 832156884 | D91: =IFERROR(VLOOKUP($A91,Awarded!$A$2:$J$196,4,FALSE),0) -> 39116.19 | E91: =IFERROR(VLOOKUP($A91,Awarded!$A$2:$J$196,5,FALSE),0) -> 569861.6 | F91: =IFERROR(VLOOKUP($A91,Awarded!$A$2:$J$196,6,FALSE),0) -> 0 | G91: =IFERROR(VLOOKUP($A91,Awarded!$A$2:$J$196,7,FALSE),0) -> 2553329.28 | H91: =IFERROR(VLOOKUP($A91,Awarded!$A$2:$J$196,8,FALSE),0) -> 0 | I91: =IFERROR(VLOOKUP($A91,Awarded!$A$2:$J$196,9,FALSE),0) -> 4584522 | J91: =IFERROR(VLOOKUP($A91,Awarded!$A$2:$J$196,10,FALSE),0) -> 1145220.27 | K91: =IFERROR(VLOOKUP($A91,Expended!$A$2:$J$198,5,FALSE),0) -> 24936.19 | L91: =IFERROR(VLOOKUP($A91,Expended!$A$2:$J$198,6,FALSE),0) -> 584.6 | M91: =IFERROR(VLOOKUP($A91,Expended!$A$2:$J$198,7,FALSE),0) -> 0 | N91: =IFERROR(VLOOKUP($A91,Expended!$A$2:$J$198,8,FALSE),0) -> 0 | O91: =IFERROR(VLOOKUP($A91,Expended!$A$2:$J$198,9,FALSE),0) -> 0 | P91: =IFERROR(VLOOKUP($A91,Expended!$A$2:$J$198,10,FALSE),0) -> 2700377.97 | Q91: =IFERROR(VLOOKUP($A91,Expended!$A$2:$L$198,11,FALSE),0) -> 446781.62 | R91: =VLOOKUP($A91,Prior!$A$1:$K$199,5,FALSE) -> 14180 | S91: =VLOOKUP($A91,Prior!$A$1:$K$199,6,FALSE) -> 569277 | T91: =VLOOKUP($A91,Prior!$A$1:$K$199,7,FALSE) -> 0 | U91: =VLOOKUP($A91,Prior!$A$1:$K$199,8,FALSE) -> 2547598 | V91: =VLOOKUP($A91,Prior!$A$1:$K$199,9,FALSE) -> 0 | W91: =VLOOKUP($A91,Prior!$A$1:$K$199,10,FALSE) -> 644692.11 | X91: =VLOOKUP($A91,Prior!$A$1:$K$199,11,FALSE) -> 547667.97 | Y91: 0 | Z91: 0 | AA91: 0 | AB91: 5731.28 | AC91: 0 | AD91: 1239451.92 | AE91: 150770.68
A92: 272 | B92: LAKELAND DISTRICT | C92: 100015080 | D92: =IFERROR(VLOOKUP($A92,Awarded!$A$2:$J$196,4,FALSE),0) -> 59617.91 | E92: =IFERROR(VLOOKUP($A92,Awarded!$A$2:$J$196,5,FALSE),0) -> 750789.2 | F92: =IFERROR(VLOOKUP($A92,Awarded!$A$2:$J$196,6,FALSE),0) -> 0 | G92: =IFERROR(VLOOKUP($A92,Awarded!$A$2:$J$196,7,FALSE),0) -> 2618696.01 | H92: =IFERROR(VLOOKUP($A92,Awarded!$A$2:$J$196,8,FALSE),0) -> 0 | I92: =IFERROR(VLOOKUP($A92,Awarded!$A$2:$J$196,9,FALSE),0) -> 4701888.99 | J92: =IFERROR(VLOOKUP($A92,Awarded!$A$2:$J$196,10,FALSE),0) -> 1174537.95 | K92: =IFERROR(VLOOKUP($A92,Expended!$A$2:$J$198,5,FALSE),0) -> 2160.91 | L92: =IFERROR(VLOOKUP($A92,Expended!$A$2:$J$198,6,FALSE),0) -> 770.2 | M92: =IFERROR(VLOOKUP($A92,Expended!$A$2:$J$198,7,FALSE),0) -> 0 | N92: =IFERROR(VLOOKUP($A92,Expended!$A$2:$J$198,8,FALSE),0) -> 597855.64 | O92: =IFERROR(VLOOKUP($A92,Expended!$A$2:$J$198,9,FALSE),0) -> 0 | P92: =IFERROR(VLOOKUP($A92,Expended!$A$2:$J$198,10,FALSE),0) -> 2022571.65 | Q92: =IFERROR(VLOOKUP($A92,Expended!$A$2:$L$198,11,FALSE),0) -> 1042717.32 | R92: =VLOOKUP($A92,Prior!$A$1:$K$199,5,FALSE) -> 57457 | S92: =VLOOKUP($A92,Prior!$A$1:$K$199,6,FALSE) -> 750019 | T92: =VLOOKUP($A92,Prior!$A$1:$K$199,7,FALSE) -> 0 | U92: =VLOOKUP($A92,Prior!$A$1:$K$199,8,FALSE) -> 2020840.37 | V92: =VLOOKUP($A92,Prior!$A$1:$K$199,9,FALSE) -> 0 | W92: =VLOOKUP($A92,Prior!$A$1:$K$199,10,FALSE) -> 0 | X92: =VLOOKUP($A92,Prior!$A$1:$K$199,11,FALSE) -> 0 | Y92: 0 | Z92: 0 | AA92: 0 | AB92: 0 | AC92: 0 | AD92: 2679317.34 | AE92: 131820.63
A93: 341 | B93: LAPWAI DISTRICT | C93: 100015098 | D93: =IFERROR(VLOOKUP($A93,Awarded!$A$2:$J$196,4,FALSE),0) -> 11991 | E93: =IFERROR(VLOOKUP($A93,Awarded!$A$2:$J$196,5,FALSE),0) -> 149100.96 | F93: =IFERROR(VLOOKUP($A93,Awarded!$A$2:$J$196,6,FALSE),0) -> 0 | G93: =IFERROR(VLOOKUP($A93,Awarded!$A$2:$J$196,7,FALSE),0) -> 555908.81 | H93: =IFERROR(VLOOKUP($A93,Awarded!$A$2:$J$196,8,FALSE),0) -> 0 | I93: =IFERROR(VLOOKUP($A93,Awarded!$A$2:$J$196,9,FALSE),0) -> 998137.52 | J93: =IFERROR(VLOOKUP($A93,Awarded!$A$2:$J$196,10,FALSE),0) -> 249335.85 | K93: =IFERROR(VLOOKUP($A93,Expended!$A$2:$J$198,5,FALSE),0) -> 0 | L93: =IFERROR(VLOOKUP($A93,Expended!$A$2:$J$198,6,FALSE),0) -> 152.96 | M93: =IFERROR(VLOOKUP($A93,Expended!$A$2:$J$198,7,FALSE),0) -> 0 | N93: =IFERROR(VLOOKUP($A93,Expended!$A$2:$J$198,8,FALSE),0) -> 1247.81 | O93: =IFERROR(VLOOKUP($A93,Expended!$A$2:$J$198,9,FALSE),0) -> 0 | P93: =IFERROR(VLOOKUP($A93,Expended!$A$2:$J$198,10,FALSE),0) -> 696561.72 | Q93: =IFERROR(VLOOKUP($A93,Expended!$A$2:$L$198,11,FALSE),0) -> 106293.61 | R93: =VLOOKUP($A93,Prior!$A$1:$K$199,5,FALSE) -> 11991 | S93: =VLOOKUP($A93,Prior!$A$1:$K$199,6,FALSE) -> 148948 | T93: =VLOOKUP($A93,Prior!$A$1:$K$199,7,FALSE) -> 0 | U93: =VLOOKUP($A93,Prior!$A$1:$K$199,8,FALSE) -> 554661 | V93: =VLOOKUP($A93,Prior!$A$1:$K$199,9,FALSE) -> 0 | W93: =VLOOKUP($A93,Prior!$A$1:$K$199,10,FALSE) -> 198785.39 | X93: =VLOOKUP($A93,Prior!$A$1:$K$199,11,FALSE) -> 0 | Y93: 0 | Z93: 0 | AA93: 0 | AB93: 0 | AC93: 0 | AD93: 102790.41 | AE93: 143042.24
A94: 478 | B94: LEGACY PUBLIC CHARTER SCHOOL, INC. | C94: 968870522 | D94: =IFERROR(VLOOKUP($A94,Awarded!$A$2:$J$196,4,FALSE),0) -> 11231 | E94: =IFERROR(VLOOKUP($A94,Awarded!$A$2:$J$196,5,FALSE),0) -> 36159.09 | F94: =IFERROR(VLOOKUP($A94,Awarded!$A$2:$J$196,6,FALSE),0) -> 12789.6 | G94: =IFERROR(VLOOKUP($A94,Awarded!$A$2:$J$196,7,FALSE),0) -> 129394.44 | H94: =IFERROR(VLOOKUP($A94,Awarded!$A$2:$J$196,8,FALSE),0) -> 60208 | I94: =IFERROR(VLOOKUP($A94,Awarded!$A$2:$J$196,9,FALSE),0) -> 232328.19 | J94: =IFERROR(VLOOKUP($A94,Awarded!$A$2:$J$196,10,FALSE),0) -> 58036.15 | K94: =IFERROR(VLOOKUP($A94,Expended!$A$2:$J$198,5,FALSE),0) -> 0 | L94: =IFERROR(VLOOKUP($A94,Expended!$A$2:$J$198,6,FALSE),0) -> 37.09 | M94: =IFERROR(VLOOKUP($A94,Expended!$A$2:$J$198,7,FALSE),0) -> 6789.6 | N94: =IFERROR(VLOOKUP($A94,Expended!$A$2:$J$198,8,FALSE),0) -> 1477.61 | O94: =IFERROR(VLOOKUP($A94,Expended!$A$2:$J$198,9,FALSE),0) -> 20042.86 | P94: =IFERROR(VLOOKUP($A94,Expended!$A$2:$J$198,10,FALSE),0) -> 64567.47 | Q94: =IFERROR(VLOOKUP($A94,Expended!$A$2:$L$198,11,FALSE),0) -> 28774 | R94: =VLOOKUP($A94,Prior!$A$1:$K$199,5,FALSE) -> 11231 | S94: =VLOOKUP($A94,Prior!$A$1:$K$199,6,FALSE) -> 36122 | T94: =VLOOKUP($A94,Prior!$A$1:$K$199,7,FALSE) -> 6000 | U94: =VLOOKUP($A94,Prior!$A$1:$K$199,8,FALSE) -> 127916.83 | V94: =VLOOKUP($A94,Prior!$A$1:$K$199,9,FALSE) -> 0 | W94: =VLOOKUP($A94,Prior!$A$1:$K$199,10,FALSE) -> 162985.56 | X94: =VLOOKUP($A94,Prior!$A$1:$K$199,11,FALSE) -> 22786.08 | Y94: 0 | Z94: 0 | AA94: 0 | AB94: 0 | AC94: 40165.14 | AD94: 4775.16 | AE94: 6476.07
